Workbook

Sheet Home
B1: =uxb_works!$B$92 -> SAFE CITIES INDEX: 2019 | C1: =uxb_works!$B$92 -> SAFE CITIES INDEX: 2019 | BA1: 0 | BB1: 0

Sheet Summary
D1: =uxb_works!B92 -> SAFE CITIES INDEX: 2019 | BA1: 1 | BB1: 0
A4: =uxb_works!B111 -> 1
D6: =uxb_works!$C$5 -> The active weight profile has been changed from its default setting
D8: =uxb_works!D67 -> Active filter group: All regions in all income levels with all population sizes
B13: =COUNTIF(B15:B75,"<>0") -> 61 | D13: =iSummary!R6 -> OVERALL SCORE | H13: r | I13: Score | J13: r | K13: Rank | O13: =iSummary!AL6 -> 1) DIGITAL SECURITY | S13: r | T13: Score | U13: r | V13: Rank | Z13: =iSummary!BF6 -> 2) HEALTH SECURITY | AD13: r | AE13: Score | AF13: r | AG13: Rank | AK13: =iSummary!BZ6 -> 3) INFRASTRUCTURE SECURITY | AO13: r | AP13: Score | AQ13: r | AR13: Rank | AV13: =iSummary!CT6 -> 4) PERSONAL SECURITY | AZ13: r | BA13: Score | BB13: r | BC13: Rank | BD13: r | BE13: Score | BF13: r | BG13: Rank
B15: =iSummary!Q8 -> 1 | C15: =IF(B15=0,0,IF(G15<=uxb_works!$B$122,1,IF(G15<=uxb_works!$B$121,2,IF(G15<=uxb_works!$B$120,3,4)))) -> 4 | E15: =iSummary!R8 -> 1 | F15: =iSummary!S8 -> Tokyo | G15: =IF(ISNUMBER(iSummary!T8),ROUND(iSummary!T8,1),"") -> 92 | H15: =iSummary!W8 -> = | I15: =iSummary!X8 ->  | J15: =IF(iSummary!Y8=0,"",iSummary!Y8) ->  | K15: =iSummary!Z8 -> 1 | M15: =iSummary!AK8 -> 1 | N15: =IF(M15=0,0,IF(R15<=uxb_works!$B$122,1,IF(R15<=uxb_works!$B$121,2,IF(R15<=uxb_works!$B$120,3,4)))) -> 4 | P15: =iSummary!AL8 -> 1 | Q15: =iSummary!AM8 -> Tokyo | R15: =iSummary!AN8 -> 94.4 | S15: =iSummary!AQ8 -> = | T15: =iSummary!AR8 ->  | U15: =iSummary!AS8 -> 0 | V15: =iSummary!AT8 -> 1 | X15: =iSummary!BE8 -> 1 | Y15: =IF(X15=0,0,IF(AC15<=uxb_works!$B$122,1,IF(AC15<=uxb_works!$B$121,2,IF(AC15<=uxb_works!$B$120,3,4)))) -> 4 | AA15: =iSummary!BF8 -> 1 | AB15: =iSummary!BG8 -> Osaka | AC15: =iSummary!BH8 -> 88.5 | AD15: =iSummary!BK8 -> = | AE15: =iSummary!BL8 ->  | AF15: =iSummary!BM8 -> 0 | AG15: =iSummary!BN8 -> 1 | AI15: =iSummary!BY8 -> 1 | AJ15: =IF(AI15=0,0,IF(AN15<=uxb_works!$B$122,1,IF(AN15<=uxb_works!$B$121,2,IF(AN15<=uxb_works!$B$120,3,4)))) -> 4 | AL15: =iSummary!BZ8 -> 1 | AM15: =iSummary!CA8 -> Singapore | AN15: =iSummary!CB8 -> 96.9 | AO15: =iSummary!CE8 -> = | AP15: =iSummary!CF8 ->  | AQ15: =iSummary!CG8 -> 0 | AR15: =iSummary!CH8 -> 1 | AT15: =iSummary!CS8 -> 1 | AU15: =IF(AT15=0,0,IF(AY15<=uxb_works!$B$122,1,IF(AY15<=uxb_works!$B$121,2,IF(AY15<=uxb_works!$B$120,3,4)))) -> 4 | AW15: =iSummary!CT8 -> 1 | AX15: =iSummary!CU8 -> Singapore | AY15: =iSummary!CV8 -> 95.3 | AZ15: =iSummary!CY8 -> = | BA15: =iSummary!CZ8 ->  | BB15: =iSummary!DA8 -> 0 | BC15: =iSummary!DB8 -> 1 | BD15: =iSummary!#REF! ->  | BE15: =iSummary!#REF! ->  | BF15: =iSummary!#REF! ->  | BG15: =iSummary!#REF! -> 
B16: =iSummary!Q9 -> 1 | C16: =IF(B16=0,0,IF(G16<=uxb_works!$B$122,1,IF(G16<=uxb_works!$B$121,2,IF(G16<=uxb_works!$B$120,3,4)))) -> 4 | E16: =iSummary!R9 -> 2 | F16: =iSummary!S9 -> Singapore | G16: =IF(ISNUMBER(iSummary!T9),ROUND(iSummary!T9,1),"") -> 91.5 | H16: =iSummary!W9 -> = | I16: =iSummary!X9 ->  | J16: =IF(iSummary!Y9=0,"",iSummary!Y9) ->  | K16: =iSummary!Z9 -> 1 | M16: =iSummary!AK9 -> 1 | N16: =IF(M16=0,0,IF(R16<=uxb_works!$B$122,1,IF(R16<=uxb_works!$B$121,2,IF(R16<=uxb_works!$B$120,3,4)))) -> 4 | P16: =iSummary!AL9 -> 2 | Q16: =iSummary!AM9 -> Singapore | R16: =iSummary!AN9 -> 93.1 | S16: =iSummary!AQ9 -> = | T16: =iSummary!AR9 ->  | U16: =iSummary!AS9 -> 0 | V16: =iSummary!AT9 -> 1 | X16: =iSummary!BE9 -> 1 | Y16: =IF(X16=0,0,IF(AC16<=uxb_works!$B$122,1,IF(AC16<=uxb_works!$B$121,2,IF(AC16<=uxb_works!$B$120,3,4)))) -> 4 | AA16: =iSummary!BF9 -> 2 | AB16: =iSummary!BG9 -> Tokyo | AC16: =iSummary!BH9 -> 87.5 | AD16: =iSummary!BK9 -> = | AE16: =iSummary!BL9 ->  | AF16: =iSummary!BM9 -> 0 | AG16: =iSummary!BN9 -> 1 | AI16: =iSummary!BY9 -> 1 | AJ16: =IF(AI16=0,0,IF(AN16<=uxb_works!$B$122,1,IF(AN16<=uxb_works!$B$121,2,IF(AN16<=uxb_works!$B$120,3,4)))) -> 4 | AL16: =iSummary!BZ9 -> 2 | AM16: =iSummary!CA9 -> Osaka | AN16: =iSummary!CB9 -> 94.5 | AO16: =iSummary!CE9 -> = | AP16: =iSummary!CF9 ->  | AQ16: =iSummary!CG9 -> 0 | AR16: =iSummary!CH9 -> 1 | AT16: =iSummary!CS9 -> 1 | AU16: =IF(AT16=0,0,IF(AY16<=uxb_works!$B$122,1,IF(AY16<=uxb_works!$B$121,2,IF(AY16<=uxb_works!$B$120,3,4)))) -> 4 | AW16: =iSummary!CT9 -> 2 | AX16: =iSummary!CU9 -> Copenhagen | AY16: =iSummary!CV9 -> 93.6 | AZ16: =iSummary!CY9 -> = | BA16: =iSummary!CZ9 ->  | BB16: =iSummary!DA9 -> 0 | BC16: =iSummary!DB9 -> 1 | BD16: =iSummary!#REF! ->  | BE16: =iSummary!#REF! ->  | BF16: =iSummary!#REF! ->  | BG16: =iSummary!#REF! -> 
B17: =iSummary!Q10 -> 1 | C17: =IF(B17=0,0,IF(G17<=uxb_works!$B$122,1,IF(G17<=uxb_works!$B$121,2,IF(G17<=uxb_works!$B$120,3,4)))) -> 4 | E17: =iSummary!R10 -> 3 | F17: =iSummary!S10 -> Osaka | G17: =IF(ISNUMBER(iSummary!T10),ROUND(iSummary!T10,1),"") -> 90.9 | H17: =iSummary!W10 -> = | I17: =iSummary!X10 ->  | J17: =IF(iSummary!Y10=0,"",iSummary!Y10) ->  | K17: =iSummary!Z10 -> 1 | M17: =iSummary!AK10 -> 1 | N17: =IF(M17=0,0,IF(R17<=uxb_works!$B$122,1,IF(R17<=uxb_works!$B$121,2,IF(R17<=uxb_works!$B$120,3,4)))) -> 4 | P17: =iSummary!AL10 -> 3 | Q17: =iSummary!AM10 -> Chicago | R17: =iSummary!AN10 -> 92.9 | S17: =iSummary!AQ10 -> = | T17: =iSummary!AR10 ->  | U17: =iSummary!AS10 -> 0 | V17: =iSummary!AT10 -> 1 | X17: =iSummary!BE10 -> 1 | Y17: =IF(X17=0,0,IF(AC17<=uxb_works!$B$122,1,IF(AC17<=uxb_works!$B$121,2,IF(AC17<=uxb_works!$B$120,3,4)))) -> 4 | AA17: =iSummary!BF10 -> 3 | AB17: =iSummary!BG10 -> Seoul | AC17: =iSummary!BH10 -> 85.2 | AD17: =iSummary!BK10 -> = | AE17: =iSummary!BL10 ->  | AF17: =iSummary!BM10 -> 0 | AG17: =iSummary!BN10 -> 1 | AI17: =iSummary!BY10 -> 1 | AJ17: =IF(AI17=0,0,IF(AN17<=uxb_works!$B$122,1,IF(AN17<=uxb_works!$B$121,2,IF(AN17<=uxb_works!$B$120,3,4)))) -> 4 | AL17: =iSummary!BZ10 -> 3 | AM17: =iSummary!CA10 -> Barcelona | AN17: =iSummary!CB10 -> 94.4 | AO17: =iSummary!CE10 -> = | AP17: =iSummary!CF10 ->  | AQ17: =iSummary!CG10 -> 0 | AR17: =iSummary!CH10 -> 1 | AT17: =iSummary!CS10 -> 1 | AU17: =IF(AT17=0,0,IF(AY17<=uxb_works!$B$122,1,IF(AY17<=uxb_works!$B$121,2,IF(AY17<=uxb_works!$B$120,3,4)))) -> 4 | AW17: =iSummary!CT10 -> 3 | AX17: =iSummary!CU10 -> Hong Kong | AY17: =iSummary!CV10 -> 91.9 | AZ17: =iSummary!CY10 -> = | BA17: =iSummary!CZ10 ->  | BB17: =iSummary!DA10 -> 0 | BC17: =iSummary!DB10 -> 1 | BD17: =iSummary!#REF! ->  | BE17: =iSummary!#REF! ->  | BF17: =iSummary!#REF! ->  | BG17: =iSummary!#REF! -> 
B18: =iSummary!Q11 -> 1 | C18: =IF(B18=0,0,IF(G18<=uxb_works!$B$122,1,IF(G18<=uxb_works!$B$121,2,IF(G18<=uxb_works!$B$120,3,4)))) -> 4 | E18: =iSummary!R11 -> 4 | F18: =iSummary!S11 -> Amsterdam | G18: =IF(ISNUMBER(iSummary!T11),ROUND(iSummary!T11,1),"") -> 88 | H18: =iSummary!W11 -> = | I18: =iSummary!X11 ->  | J18: =IF(iSummary!Y11=0,"",iSummary!Y11) ->  | K18: =iSummary!Z11 -> 1 | M18: =iSummary!AK11 -> 1 | N18: =IF(M18=0,0,IF(R18<=uxb_works!$B$122,1,IF(R18<=uxb_works!$B$121,2,IF(R18<=uxb_works!$B$120,3,4)))) -> 4 | P18: =iSummary!AL11 -> 4 | Q18: =iSummary!AM11 -> Washington DC | R18: =iSummary!AN11 -> 92.2 | S18: =iSummary!AQ11 -> = | T18: =iSummary!AR11 ->  | U18: =iSummary!AS11 -> 0 | V18: =iSummary!AT11 -> 1 | X18: =iSummary!BE11 -> 1 | Y18: =IF(X18=0,0,IF(AC18<=uxb_works!$B$122,1,IF(AC18<=uxb_works!$B$121,2,IF(AC18<=uxb_works!$B$120,3,4)))) -> 4 | AA18: =iSummary!BF11 -> =4 | AB18: =iSummary!BG11 -> Amsterdam | AC18: =iSummary!BH11 -> 81.6 | AD18: =iSummary!BK11 -> = | AE18: =iSummary!BL11 ->  | AF18: =iSummary!BM11 -> 0 | AG18: =iSummary!BN11 -> 1 | AI18: =iSummary!BY11 -> 1 | AJ18: =IF(AI18=0,0,IF(AN18<=uxb_works!$B$122,1,IF(AN18<=uxb_works!$B$121,2,IF(AN18<=uxb_works!$B$120,3,4)))) -> 4 | AL18: =iSummary!BZ11 -> 4 | AM18: =iSummary!CA11 -> Tokyo | AN18: =iSummary!CB11 -> 94.3 | AO18: =iSummary!CE11 -> = | AP18: =iSummary!CF11 ->  | AQ18: =iSummary!CG11 -> 0 | AR18: =iSummary!CH11 -> 1 | AT18: =iSummary!CS11 -> 1 | AU18: =IF(AT18=0,0,IF(AY18<=uxb_works!$B$122,1,IF(AY18<=uxb_works!$B$121,2,IF(AY18<=uxb_works!$B$120,3,4)))) -> 4 | AW18: =iSummary!CT11 -> 4 | AX18: =iSummary!CU11 -> Tokyo | AY18: =iSummary!CV11 -> 91.7 | AZ18: =iSummary!CY11 -> = | BA18: =iSummary!CZ11 ->  | BB18: =iSummary!DA11 -> 0 | BC18: =iSummary!DB11 -> 1 | BD18: =iSummary!#REF! ->  | BE18: =iSummary!#REF! ->  | BF18: =iSummary!#REF! ->  | BG18: =iSummary!#REF! -> 
B19: =iSummary!Q12 -> 1 | C19: =IF(B19=0,0,IF(G19<=uxb_works!$B$122,1,IF(G19<=uxb_works!$B$121,2,IF(G19<=uxb_works!$B$120,3,4)))) -> 4 | E19: =iSummary!R12 -> 5 | F19: =iSummary!S12 -> Sydney | G19: =IF(ISNUMBER(iSummary!T12),ROUND(iSummary!T12,1),"") -> 87.9 | H19: =iSummary!W12 -> = | I19: =iSummary!X12 ->  | J19: =IF(iSummary!Y12=0,"",iSummary!Y12) ->  | K19: =iSummary!Z12 -> 1 | M19: =iSummary!AK12 -> 1 | N19: =IF(M19=0,0,IF(R19<=uxb_works!$B$122,1,IF(R19<=uxb_works!$B$121,2,IF(R19<=uxb_works!$B$120,3,4)))) -> 4 | P19: =iSummary!AL12 -> =5 | Q19: =iSummary!AM12 -> Los Angeles | R19: =iSummary!AN12 -> 91.4 | S19: =iSummary!AQ12 -> = | T19: =iSummary!AR12 ->  | U19: =iSummary!AS12 -> 0 | V19: =iSummary!AT12 -> 1 | X19: =iSummary!BE12 -> 1 | Y19: =IF(X19=0,0,IF(AC19<=uxb_works!$B$122,1,IF(AC19<=uxb_works!$B$121,2,IF(AC19<=uxb_works!$B$120,3,4)))) -> 4 | AA19: =iSummary!BF12 -> =4 | AB19: =iSummary!BG12 -> Stockholm | AC19: =iSummary!BH12 -> 81.6 | AD19: =iSummary!BK12 -> = | AE19: =iSummary!BL12 ->  | AF19: =iSummary!BM12 -> 0 | AG19: =iSummary!BN12 -> 1 | AI19: =iSummary!BY12 -> 1 | AJ19: =IF(AI19=0,0,IF(AN19<=uxb_works!$B$122,1,IF(AN19<=uxb_works!$B$121,2,IF(AN19<=uxb_works!$B$120,3,4)))) -> 4 | AL19: =iSummary!BZ12 -> 5 | AM19: =iSummary!CA12 -> Madrid | AN19: =iSummary!CB12 -> 94.2 | AO19: =iSummary!CE12 -> = | AP19: =iSummary!CF12 ->  | AQ19: =iSummary!CG12 -> 0 | AR19: =iSummary!CH12 -> 1 | AT19: =iSummary!CS12 -> 1 | AU19: =IF(AT19=0,0,IF(AY19<=uxb_works!$B$122,1,IF(AY19<=uxb_works!$B$121,2,IF(AY19<=uxb_works!$B$120,3,4)))) -> 4 | AW19: =iSummary!CT12 -> 5 | AX19: =iSummary!CU12 -> Wellington | AY19: =iSummary!CV12 -> 91.5 | AZ19: =iSummary!CY12 -> = | BA19: =iSummary!CZ12 ->  | BB19: =iSummary!DA12 -> 0 | BC19: =iSummary!DB12 -> 1 | BD19: =iSummary!#REF! ->  | BE19: =iSummary!#REF! ->  | BF19: =iSummary!#REF! ->  | BG19: =iSummary!#REF! -> 
B20: =iSummary!Q13 -> 1 | C20: =IF(B20=0,0,IF(G20<=uxb_works!$B$122,1,IF(G20<=uxb_works!$B$121,2,IF(G20<=uxb_works!$B$120,3,4)))) -> 4 | E20: =iSummary!R13 -> 6 | F20: =iSummary!S13 -> Toronto | G20: =IF(ISNUMBER(iSummary!T13),ROUND(iSummary!T13,1),"") -> 87.8 | H20: =iSummary!W13 -> = | I20: =iSummary!X13 ->  | J20: =IF(iSummary!Y13=0,"",iSummary!Y13) ->  | K20: =iSummary!Z13 -> 1 | M20: =iSummary!AK13 -> 1 | N20: =IF(M20=0,0,IF(R20<=uxb_works!$B$122,1,IF(R20<=uxb_works!$B$121,2,IF(R20<=uxb_works!$B$120,3,4)))) -> 4 | P20: =iSummary!AL13 -> =5 | Q20: =iSummary!AM13 -> San Francisco | R20: =iSummary!AN13 -> 91.4 | S20: =iSummary!AQ13 -> = | T20: =iSummary!AR13 ->  | U20: =iSummary!AS13 -> 0 | V20: =iSummary!AT13 -> 1 | X20: =iSummary!BE13 -> 1 | Y20: =IF(X20=0,0,IF(AC20<=uxb_works!$B$122,1,IF(AC20<=uxb_works!$B$121,2,IF(AC20<=uxb_works!$B$120,3,4)))) -> 4 | AA20: =iSummary!BF13 -> 6 | AB20: =iSummary!BG13 -> Frankfurt | AC20: =iSummary!BH13 -> 81.2 | AD20: =iSummary!BK13 -> = | AE20: =iSummary!BL13 ->  | AF20: =iSummary!BM13 -> 0 | AG20: =iSummary!BN13 -> 1 | AI20: =iSummary!BY13 -> 1 | AJ20: =IF(AI20=0,0,IF(AN20<=uxb_works!$B$122,1,IF(AN20<=uxb_works!$B$121,2,IF(AN20<=uxb_works!$B$120,3,4)))) -> 4 | AL20: =iSummary!BZ13 -> 6 | AM20: =iSummary!CA13 -> Frankfurt | AN20: =iSummary!CB13 -> 93.7 | AO20: =iSummary!CE13 -> = | AP20: =iSummary!CF13 ->  | AQ20: =iSummary!CG13 -> 0 | AR20: =iSummary!CH13 -> 1 | AT20: =iSummary!CS13 -> 1 | AU20: =IF(AT20=0,0,IF(AY20<=uxb_works!$B$122,1,IF(AY20<=uxb_works!$B$121,2,IF(AY20<=uxb_works!$B$120,3,4)))) -> 4 | AW20: =iSummary!CT13 -> 6 | AX20: =iSummary!CU13 -> Stockholm | AY20: =iSummary!CV13 -> 91.3 | AZ20: =iSummary!CY13 -> = | BA20: =iSummary!CZ13 ->  | BB20: =iSummary!DA13 -> 0 | BC20: =iSummary!DB13 -> 1 | BD20: =iSummary!#REF! ->  | BE20: =iSummary!#REF! ->  | BF20: =iSummary!#REF! ->  | BG20: =iSummary!#REF! -> 
B21: =iSummary!Q14 -> 1 | C21: =IF(B21=0,0,IF(G21<=uxb_works!$B$122,1,IF(G21<=uxb_works!$B$121,2,IF(G21<=uxb_works!$B$120,3,4)))) -> 4 | E21: =iSummary!R14 -> 7 | F21: =iSummary!S14 -> Washington DC | G21: =IF(ISNUMBER(iSummary!T14),ROUND(iSummary!T14,1),"") -> 87.6 | H21: =iSummary!W14 -> = | I21: =iSummary!X14 ->  | J21: =IF(iSummary!Y14=0,"",iSummary!Y14) ->  | K21: =iSummary!Z14 -> 1 | M21: =iSummary!AK14 -> 1 | N21: =IF(M21=0,0,IF(R21<=uxb_works!$B$122,1,IF(R21<=uxb_works!$B$121,2,IF(R21<=uxb_works!$B$120,3,4)))) -> 4 | P21: =iSummary!AL14 -> 7 | Q21: =iSummary!AM14 -> Dallas | R21: =iSummary!AN14 -> 91.3 | S21: =iSummary!AQ14 -> = | T21: =iSummary!AR14 ->  | U21: =iSummary!AS14 -> 0 | V21: =iSummary!AT14 -> 1 | X21: =iSummary!BE14 -> 1 | Y21: =IF(X21=0,0,IF(AC21<=uxb_works!$B$122,1,IF(AC21<=uxb_works!$B$121,2,IF(AC21<=uxb_works!$B$120,3,4)))) -> 4 | AA21: =iSummary!BF14 -> 7 | AB21: =iSummary!BG14 -> Washington DC | AC21: =iSummary!BH14 -> 81.1 | AD21: =iSummary!BK14 -> = | AE21: =iSummary!BL14 ->  | AF21: =iSummary!BM14 -> 0 | AG21: =iSummary!BN14 -> 1 | AI21: =iSummary!BY14 -> 1 | AJ21: =IF(AI21=0,0,IF(AN21<=uxb_works!$B$122,1,IF(AN21<=uxb_works!$B$121,2,IF(AN21<=uxb_works!$B$120,3,4)))) -> 4 | AL21: =iSummary!BZ14 -> =7 | AM21: =iSummary!CA14 -> Melbourne | AN21: =iSummary!CB14 -> 93.5 | AO21: =iSummary!CE14 -> = | AP21: =iSummary!CF14 ->  | AQ21: =iSummary!CG14 -> 0 | AR21: =iSummary!CH14 -> 1 | AT21: =iSummary!CS14 -> 1 | AU21: =IF(AT21=0,0,IF(AY21<=uxb_works!$B$122,1,IF(AY21<=uxb_works!$B$121,2,IF(AY21<=uxb_works!$B$120,3,4)))) -> 4 | AW21: =iSummary!CT14 -> 7 | AX21: =iSummary!CU14 -> Osaka | AY21: =iSummary!CV14 -> 91.1 | AZ21: =iSummary!CY14 -> = | BA21: =iSummary!CZ14 ->  | BB21: =iSummary!DA14 -> 0 | BC21: =iSummary!DB14 -> 1 | BD21: =iSummary!#REF! ->  | BE21: =iSummary!#REF! ->  | BF21: =iSummary!#REF! ->  | BG21: =iSummary!#REF! -> 
B22: =iSummary!Q15 -> 1 | C22: =IF(B22=0,0,IF(G22<=uxb_works!$B$122,1,IF(G22<=uxb_works!$B$121,2,IF(G22<=uxb_works!$B$120,3,4)))) -> 4 | E22: =iSummary!R15 -> =8 | F22: =iSummary!S15 -> Copenhagen | G22: =IF(ISNUMBER(iSummary!T15),ROUND(iSummary!T15,1),"") -> 87.4 | H22: =iSummary!W15 -> = | I22: =iSummary!X15 ->  | J22: =IF(iSummary!Y15=0,"",iSummary!Y15) ->  | K22: =iSummary!Z15 -> 1 | M22: =iSummary!AK15 -> 1 | N22: =IF(M22=0,0,IF(R22<=uxb_works!$B$122,1,IF(R22<=uxb_works!$B$121,2,IF(R22<=uxb_works!$B$120,3,4)))) -> 4 | P22: =iSummary!AL15 -> 8 | Q22: =iSummary!AM15 -> New York | R22: =iSummary!AN15 -> 91.1 | S22: =iSummary!AQ15 -> = | T22: =iSummary!AR15 ->  | U22: =iSummary!AS15 -> 0 | V22: =iSummary!AT15 -> 1 | X22: =iSummary!BE15 -> 1 | Y22: =IF(X22=0,0,IF(AC22<=uxb_works!$B$122,1,IF(AC22<=uxb_works!$B$121,2,IF(AC22<=uxb_works!$B$120,3,4)))) -> 4 | AA22: =iSummary!BF15 -> 8 | AB22: =iSummary!BG15 -> Singapore | AC22: =iSummary!BH15 -> 80.9 | AD22: =iSummary!BK15 -> = | AE22: =iSummary!BL15 ->  | AF22: =iSummary!BM15 -> 0 | AG22: =iSummary!BN15 -> 1 | AI22: =iSummary!BY15 -> 1 | AJ22: =IF(AI22=0,0,IF(AN22<=uxb_works!$B$122,1,IF(AN22<=uxb_works!$B$121,2,IF(AN22<=uxb_works!$B$120,3,4)))) -> 4 | AL22: =iSummary!BZ15 -> =7 | AM22: =iSummary!CA15 -> Sydney | AN22: =iSummary!CB15 -> 93.5 | AO22: =iSummary!CE15 -> = | AP22: =iSummary!CF15 ->  | AQ22: =iSummary!CG15 -> 0 | AR22: =iSummary!CH15 -> 1 | AT22: =iSummary!CS15 -> 1 | AU22: =IF(AT22=0,0,IF(AY22<=uxb_works!$B$122,1,IF(AY22<=uxb_works!$B$121,2,IF(AY22<=uxb_works!$B$120,3,4)))) -> 4 | AW22: =iSummary!CT15 -> 8 | AX22: =iSummary!CU15 -> Toronto | AY22: =iSummary!CV15 -> 90.8 | AZ22: =iSummary!CY15 -> = | BA22: =iSummary!CZ15 ->  | BB22: =iSummary!DA15 -> 0 | BC22: =iSummary!DB15 -> 1 | BD22: =iSummary!#REF! ->  | BE22: =iSummary!#REF! ->  | BF22: =iSummary!#REF! ->  | BG22: =iSummary!#REF! -> 
B23: =iSummary!Q16 -> 1 | C23: =IF(B23=0,0,IF(G23<=uxb_works!$B$122,1,IF(G23<=uxb_works!$B$121,2,IF(G23<=uxb_works!$B$120,3,4)))) -> 4 | E23: =iSummary!R16 -> =8 | F23: =iSummary!S16 -> Seoul | G23: =IF(ISNUMBER(iSummary!T16),ROUND(iSummary!T16,1),"") -> 87.4 | H23: =iSummary!W16 -> = | I23: =iSummary!X16 ->  | J23: =IF(iSummary!Y16=0,"",iSummary!Y16) ->  | K23: =iSummary!Z16 -> 1 | M23: =iSummary!AK16 -> 1 | N23: =IF(M23=0,0,IF(R23<=uxb_works!$B$122,1,IF(R23<=uxb_works!$B$121,2,IF(R23<=uxb_works!$B$120,3,4)))) -> 4 | P23: =iSummary!AL16 -> 9 | Q23: =iSummary!AM16 -> Toronto | R23: =iSummary!AN16 -> 90.6 | S23: =iSummary!AQ16 -> = | T23: =iSummary!AR16 ->  | U23: =iSummary!AS16 -> 0 | V23: =iSummary!AT16 -> 1 | X23: =iSummary!BE16 -> 1 | Y23: =IF(X23=0,0,IF(AC23<=uxb_works!$B$122,1,IF(AC23<=uxb_works!$B$121,2,IF(AC23<=uxb_works!$B$120,3,4)))) -> 4 | AA23: =iSummary!BF16 -> 9 | AB23: =iSummary!BG16 -> Zurich | AC23: =iSummary!BH16 -> 80.8 | AD23: =iSummary!BK16 -> = | AE23: =iSummary!BL16 ->  | AF23: =iSummary!BM16 -> 0 | AG23: =iSummary!BN16 -> 1 | AI23: =iSummary!BY16 -> 1 | AJ23: =IF(AI23=0,0,IF(AN23<=uxb_works!$B$122,1,IF(AN23<=uxb_works!$B$121,2,IF(AN23<=uxb_works!$B$120,3,4)))) -> 4 | AL23: =iSummary!BZ16 -> 9 | AM23: =iSummary!CA16 -> Wellington | AN23: =iSummary!CB16 -> 93.2 | AO23: =iSummary!CE16 -> = | AP23: =iSummary!CF16 ->  | AQ23: =iSummary!CG16 -> 0 | AR23: =iSummary!CH16 -> 1 | AT23: =iSummary!CS16 -> 1 | AU23: =IF(AT23=0,0,IF(AY23<=uxb_works!$B$122,1,IF(AY23<=uxb_works!$B$121,2,IF(AY23<=uxb_works!$B$120,3,4)))) -> 4 | AW23: =iSummary!CT16 -> 9 | AX23: =iSummary!CU16 -> Amsterdam | AY23: =iSummary!CV16 -> 89.4 | AZ23: =iSummary!CY16 -> = | BA23: =iSummary!CZ16 ->  | BB23: =iSummary!DA16 -> 0 | BC23: =iSummary!DB16 -> 1 | BD23: =iSummary!#REF! ->  | BE23: =iSummary!#REF! ->  | BF23: =iSummary!#REF! ->  | BG23: =iSummary!#REF! -> 
B24: =iSummary!Q17 -> 1 | C24: =IF(B24=0,0,IF(G24<=uxb_works!$B$122,1,IF(G24<=uxb_works!$B$121,2,IF(G24<=uxb_works!$B$120,3,4)))) -> 4 | E24: =iSummary!R17 -> 10 | F24: =iSummary!S17 -> Melbourne | G24: =IF(ISNUMBER(iSummary!T17),ROUND(iSummary!T17,1),"") -> 87.3 | H24: =iSummary!W17 -> = | I24: =iSummary!X17 ->  | J24: =IF(iSummary!Y17=0,"",iSummary!Y17) ->  | K24: =iSummary!Z17 -> 1 | M24: =iSummary!AK17 -> 1 | N24: =IF(M24=0,0,IF(R24<=uxb_works!$B$122,1,IF(R24<=uxb_works!$B$121,2,IF(R24<=uxb_works!$B$120,3,4)))) -> 4 | P24: =iSummary!AL17 -> 10 | Q24: =iSummary!AM17 -> London | R24: =iSummary!AN17 -> 90.2 | S24: =iSummary!AQ17 -> = | T24: =iSummary!AR17 ->  | U24: =iSummary!AS17 -> 0 | V24: =iSummary!AT17 -> 1 | X24: =iSummary!BE17 -> 1 | Y24: =IF(X24=0,0,IF(AC24<=uxb_works!$B$122,1,IF(AC24<=uxb_works!$B$121,2,IF(AC24<=uxb_works!$B$120,3,4)))) -> 4 | AA24: =iSummary!BF17 -> 10 | AB24: =iSummary!BG17 -> Taipei | AC24: =iSummary!BH17 -> 80.2 | AD24: =iSummary!BK17 -> = | AE24: =iSummary!BL17 ->  | AF24: =iSummary!BM17 -> 0 | AG24: =iSummary!BN17 -> 1 | AI24: =iSummary!BY17 -> 1 | AJ24: =IF(AI24=0,0,IF(AN24<=uxb_works!$B$122,1,IF(AN24<=uxb_works!$B$121,2,IF(AN24<=uxb_works!$B$120,3,4)))) -> 4 | AL24: =iSummary!BZ17 -> 10 | AM24: =iSummary!CA17 -> Washington DC | AN24: =iSummary!CB17 -> 93.1 | AO24: =iSummary!CE17 -> = | AP24: =iSummary!CF17 ->  | AQ24: =iSummary!CG17 -> 0 | AR24: =iSummary!CH17 -> 1 | AT24: =iSummary!CS17 -> 1 | AU24: =IF(AT24=0,0,IF(AY24<=uxb_works!$B$122,1,IF(AY24<=uxb_works!$B$121,2,IF(AY24<=uxb_works!$B$120,3,4)))) -> 4 | AW24: =iSummary!CT17 -> 10 | AX24: =iSummary!CU17 -> Sydney | AY24: =iSummary!CV17 -> 89.1 | AZ24: =iSummary!CY17 -> = | BA24: =iSummary!CZ17 ->  | BB24: =iSummary!DA17 -> 0 | BC24: =iSummary!DB17 -> 1 | BD24: =iSummary!#REF! ->  | BE24: =iSummary!#REF! ->  | BF24: =iSummary!#REF! ->  | BG24: =iSummary!#REF! -> 
B25: =iSummary!Q18 -> 1 | C25: =IF(B25=0,0,IF(G25<=uxb_works!$B$122,1,IF(G25<=uxb_works!$B$121,2,IF(G25<=uxb_works!$B$120,3,4)))) -> 4 | E25: =iSummary!R18 -> 11 | F25: =iSummary!S18 -> Chicago | G25: =IF(ISNUMBER(iSummary!T18),ROUND(iSummary!T18,1),"") -> 86.7 | H25: =iSummary!W18 -> = | I25: =iSummary!X18 ->  | J25: =IF(iSummary!Y18=0,"",iSummary!Y18) ->  | K25: =iSummary!Z18 -> 1 | M25: =iSummary!AK18 -> 1 | N25: =IF(M25=0,0,IF(R25<=uxb_works!$B$122,1,IF(R25<=uxb_works!$B$121,2,IF(R25<=uxb_works!$B$120,3,4)))) -> 4 | P25: =iSummary!AL18 -> =11 | Q25: =iSummary!AM18 -> Melbourne | R25: =iSummary!AN18 -> 89.4 | S25: =iSummary!AQ18 -> = | T25: =iSummary!AR18 ->  | U25: =iSummary!AS18 -> 0 | V25: =iSummary!AT18 -> 1 | X25: =iSummary!BE18 -> 1 | Y25: =IF(X25=0,0,IF(AC25<=uxb_works!$B$122,1,IF(AC25<=uxb_works!$B$121,2,IF(AC25<=uxb_works!$B$120,3,4)))) -> 4 | AA25: =iSummary!BF18 -> =11 | AB25: =iSummary!BG18 -> Copenhagen | AC25: =iSummary!BH18 -> 79.8 | AD25: =iSummary!BK18 -> = | AE25: =iSummary!BL18 ->  | AF25: =iSummary!BM18 -> 0 | AG25: =iSummary!BN18 -> 1 | AI25: =iSummary!BY18 -> 1 | AJ25: =IF(AI25=0,0,IF(AN25<=uxb_works!$B$122,1,IF(AN25<=uxb_works!$B$121,2,IF(AN25<=uxb_works!$B$120,3,4)))) -> 4 | AL25: =iSummary!BZ18 -> 11 | AM25: =iSummary!CA18 -> Chicago | AN25: =iSummary!CB18 -> 93 | AO25: =iSummary!CE18 -> = | AP25: =iSummary!CF18 ->  | AQ25: =iSummary!CG18 -> 0 | AR25: =iSummary!CH18 -> 1 | AT25: =iSummary!CS18 -> 1 | AU25: =IF(AT25=0,0,IF(AY25<=uxb_works!$B$122,1,IF(AY25<=uxb_works!$B$121,2,IF(AY25<=uxb_works!$B$120,3,4)))) -> 4 | AW25: =iSummary!CT18 -> 11 | AX25: =iSummary!CU18 -> Abu Dhabi | AY25: =iSummary!CV18 -> 88.9 | AZ25: =iSummary!CY18 -> = | BA25: =iSummary!CZ18 ->  | BB25: =iSummary!DA18 -> 0 | BC25: =iSummary!DB18 -> 1 | BD25: =iSummary!#REF! ->  | BE25: =iSummary!#REF! ->  | BF25: =iSummary!#REF! ->  | BG25: =iSummary!#REF! -> 
B26: =iSummary!Q19 -> 1 | C26: =IF(B26=0,0,IF(G26<=uxb_works!$B$122,1,IF(G26<=uxb_works!$B$121,2,IF(G26<=uxb_works!$B$120,3,4)))) -> 4 | E26: =iSummary!R19 -> 12 | F26: =iSummary!S19 -> Stockholm | G26: =IF(ISNUMBER(iSummary!T19),ROUND(iSummary!T19,1),"") -> 86.5 | H26: =iSummary!W19 -> = | I26: =iSummary!X19 ->  | J26: =IF(iSummary!Y19=0,"",iSummary!Y19) ->  | K26: =iSummary!Z19 -> 1 | M26: =iSummary!AK19 -> 1 | N26: =IF(M26=0,0,IF(R26<=uxb_works!$B$122,1,IF(R26<=uxb_works!$B$121,2,IF(R26<=uxb_works!$B$120,3,4)))) -> 4 | P26: =iSummary!AL19 -> =11 | Q26: =iSummary!AM19 -> Osaka | R26: =iSummary!AN19 -> 89.4 | S26: =iSummary!AQ19 -> = | T26: =iSummary!AR19 ->  | U26: =iSummary!AS19 -> 0 | V26: =iSummary!AT19 -> 1 | X26: =iSummary!BE19 -> 1 | Y26: =IF(X26=0,0,IF(AC26<=uxb_works!$B$122,1,IF(AC26<=uxb_works!$B$121,2,IF(AC26<=uxb_works!$B$120,3,4)))) -> 4 | AA26: =iSummary!BF19 -> =11 | AB26: =iSummary!BG19 -> Sydney | AC26: =iSummary!BH19 -> 79.8 | AD26: =iSummary!BK19 -> = | AE26: =iSummary!BL19 ->  | AF26: =iSummary!BM19 -> 0 | AG26: =iSummary!BN19 -> 1 | AI26: =iSummary!BY19 -> 1 | AJ26: =IF(AI26=0,0,IF(AN26<=uxb_works!$B$122,1,IF(AN26<=uxb_works!$B$121,2,IF(AN26<=uxb_works!$B$120,3,4)))) -> 4 | AL26: =iSummary!BZ19 -> =12 | AM26: =iSummary!CA19 -> New York | AN26: =iSummary!CB19 -> 92.5 | AO26: =iSummary!CE19 -> = | AP26: =iSummary!CF19 ->  | AQ26: =iSummary!CG19 -> 0 | AR26: =iSummary!CH19 -> 1 | AT26: =iSummary!CS19 -> 1 | AU26: =IF(AT26=0,0,IF(AY26<=uxb_works!$B$122,1,IF(AY26<=uxb_works!$B$121,2,IF(AY26<=uxb_works!$B$120,3,4)))) -> 4 | AW26: =iSummary!CT19 -> 12 | AX26: =iSummary!CU19 -> Dubai | AY26: =iSummary!CV19 -> 88.6 | AZ26: =iSummary!CY19 -> = | BA26: =iSummary!CZ19 ->  | BB26: =iSummary!DA19 -> 0 | BC26: =iSummary!DB19 -> 1 | BD26: =iSummary!#REF! ->  | BE26: =iSummary!#REF! ->  | BF26: =iSummary!#REF! ->  | BG26: =iSummary!#REF! -> 
B27: =iSummary!Q20 -> 1 | C27: =IF(B27=0,0,IF(G27<=uxb_works!$B$122,1,IF(G27<=uxb_works!$B$121,2,IF(G27<=uxb_works!$B$120,3,4)))) -> 4 | E27: =iSummary!R20 -> 13 | F27: =iSummary!S20 -> San Francisco | G27: =IF(ISNUMBER(iSummary!T20),ROUND(iSummary!T20,1),"") -> 85.9 | H27: =iSummary!W20 -> = | I27: =iSummary!X20 ->  | J27: =IF(iSummary!Y20=0,"",iSummary!Y20) ->  | K27: =iSummary!Z20 -> 1 | M27: =iSummary!AK20 -> 1 | N27: =IF(M27=0,0,IF(R27<=uxb_works!$B$122,1,IF(R27<=uxb_works!$B$121,2,IF(R27<=uxb_works!$B$120,3,4)))) -> 4 | P27: =iSummary!AL20 -> =11 | Q27: =iSummary!AM20 -> Sydney | R27: =iSummary!AN20 -> 89.4 | S27: =iSummary!AQ20 -> = | T27: =iSummary!AR20 ->  | U27: =iSummary!AS20 -> 0 | V27: =iSummary!AT20 -> 1 | X27: =iSummary!BE20 -> 1 | Y27: =IF(X27=0,0,IF(AC27<=uxb_works!$B$122,1,IF(AC27<=uxb_works!$B$121,2,IF(AC27<=uxb_works!$B$120,3,4)))) -> 4 | AA27: =iSummary!BF20 -> =13 | AB27: =iSummary!BG20 -> Brussels | AC27: =iSummary!BH20 -> 79.3 | AD27: =iSummary!BK20 -> = | AE27: =iSummary!BL20 ->  | AF27: =iSummary!BM20 -> 0 | AG27: =iSummary!BN20 -> 1 | AI27: =iSummary!BY20 -> 1 | AJ27: =IF(AI27=0,0,IF(AN27<=uxb_works!$B$122,1,IF(AN27<=uxb_works!$B$121,2,IF(AN27<=uxb_works!$B$120,3,4)))) -> 4 | AL27: =iSummary!BZ20 -> =12 | AM27: =iSummary!CA20 -> Toronto | AN27: =iSummary!CB20 -> 92.5 | AO27: =iSummary!CE20 -> = | AP27: =iSummary!CF20 ->  | AQ27: =iSummary!CG20 -> 0 | AR27: =iSummary!CH20 -> 1 | AT27: =iSummary!CS20 -> 1 | AU27: =IF(AT27=0,0,IF(AY27<=uxb_works!$B$122,1,IF(AY27<=uxb_works!$B$121,2,IF(AY27<=uxb_works!$B$120,3,4)))) -> 4 | AW27: =iSummary!CT20 -> 13 | AX27: =iSummary!CU20 -> Zurich | AY27: =iSummary!CV20 -> 87.8 | AZ27: =iSummary!CY20 -> = | BA27: =iSummary!CZ20 ->  | BB27: =iSummary!DA20 -> 0 | BC27: =iSummary!DB20 -> 1 | BD27: =iSummary!#REF! ->  | BE27: =iSummary!#REF! ->  | BF27: =iSummary!#REF! ->  | BG27: =iSummary!#REF! -> 
B28: =iSummary!Q21 -> 1 | C28: =IF(B28=0,0,IF(G28<=uxb_works!$B$122,1,IF(G28<=uxb_works!$B$121,2,IF(G28<=uxb_works!$B$120,3,4)))) -> 4 | E28: =iSummary!R21 -> 14 | F28: =iSummary!S21 -> London | G28: =IF(ISNUMBER(iSummary!T21),ROUND(iSummary!T21,1),"") -> 85.7 | H28: =iSummary!W21 -> = | I28: =iSummary!X21 ->  | J28: =IF(iSummary!Y21=0,"",iSummary!Y21) ->  | K28: =iSummary!Z21 -> 1 | M28: =iSummary!AK21 -> 1 | N28: =IF(M28=0,0,IF(R28<=uxb_works!$B$122,1,IF(R28<=uxb_works!$B$121,2,IF(R28<=uxb_works!$B$120,3,4)))) -> 4 | P28: =iSummary!AL21 -> 14 | Q28: =iSummary!AM21 -> Amsterdam | R28: =iSummary!AN21 -> 89 | S28: =iSummary!AQ21 -> = | T28: =iSummary!AR21 ->  | U28: =iSummary!AS21 -> 0 | V28: =iSummary!AT21 -> 1 | X28: =iSummary!BE21 -> 1 | Y28: =IF(X28=0,0,IF(AC28<=uxb_works!$B$122,1,IF(AC28<=uxb_works!$B$121,2,IF(AC28<=uxb_works!$B$120,3,4)))) -> 4 | AA28: =iSummary!BF21 -> =13 | AB28: =iSummary!BG21 -> Melbourne | AC28: =iSummary!BH21 -> 79.3 | AD28: =iSummary!BK21 -> = | AE28: =iSummary!BL21 ->  | AF28: =iSummary!BM21 -> 0 | AG28: =iSummary!BN21 -> 1 | AI28: =iSummary!BY21 -> 1 | AJ28: =IF(AI28=0,0,IF(AN28<=uxb_works!$B$122,1,IF(AN28<=uxb_works!$B$121,2,IF(AN28<=uxb_works!$B$120,3,4)))) -> 4 | AL28: =iSummary!BZ21 -> 14 | AM28: =iSummary!CA21 -> Seoul | AN28: =iSummary!CB21 -> 92.4 | AO28: =iSummary!CE21 -> = | AP28: =iSummary!CF21 ->  | AQ28: =iSummary!CG21 -> 0 | AR28: =iSummary!CH21 -> 1 | AT28: =iSummary!CS21 -> 1 | AU28: =IF(AT28=0,0,IF(AY28<=uxb_works!$B$122,1,IF(AY28<=uxb_works!$B$121,2,IF(AY28<=uxb_works!$B$120,3,4)))) -> 4 | AW28: =iSummary!CT21 -> 14 | AX28: =iSummary!CU21 -> Frankfurt | AY28: =iSummary!CV21 -> 87.7 | AZ28: =iSummary!CY21 -> = | BA28: =iSummary!CZ21 ->  | BB28: =iSummary!DA21 -> 0 | BC28: =iSummary!DB21 -> 1 | BD28: =iSummary!#REF! ->  | BE28: =iSummary!#REF! ->  | BF28: =iSummary!#REF! ->  | BG28: =iSummary!#REF! -> 
B29: =iSummary!Q22 -> 1 | C29: =IF(B29=0,0,IF(G29<=uxb_works!$B$122,1,IF(G29<=uxb_works!$B$121,2,IF(G29<=uxb_works!$B$120,3,4)))) -> 4 | E29: =iSummary!R22 -> 15 | F29: =iSummary!S22 -> New York | G29: =IF(ISNUMBER(iSummary!T22),ROUND(iSummary!T22,1),"") -> 85.5 | H29: =iSummary!W22 -> = | I29: =iSummary!X22 ->  | J29: =IF(iSummary!Y22=0,"",iSummary!Y22) ->  | K29: =iSummary!Z22 -> 1 | M29: =iSummary!AK22 -> 1 | N29: =IF(M29=0,0,IF(R29<=uxb_works!$B$122,1,IF(R29<=uxb_works!$B$121,2,IF(R29<=uxb_works!$B$120,3,4)))) -> 4 | P29: =iSummary!AL22 -> 15 | Q29: =iSummary!AM22 -> Copenhagen | R29: =iSummary!AN22 -> 87.3 | S29: =iSummary!AQ22 -> = | T29: =iSummary!AR22 ->  | U29: =iSummary!AS22 -> 0 | V29: =iSummary!AT22 -> 1 | X29: =iSummary!BE22 -> 1 | Y29: =IF(X29=0,0,IF(AC29<=uxb_works!$B$122,1,IF(AC29<=uxb_works!$B$121,2,IF(AC29<=uxb_works!$B$120,3,4)))) -> 4 | AA29: =iSummary!BF22 -> 15 | AB29: =iSummary!BG22 -> Paris | AC29: =iSummary!BH22 -> 78.7 | AD29: =iSummary!BK22 -> = | AE29: =iSummary!BL22 ->  | AF29: =iSummary!BM22 -> 0 | AG29: =iSummary!BN22 -> 1 | AI29: =iSummary!BY22 -> 1 | AJ29: =IF(AI29=0,0,IF(AN29<=uxb_works!$B$122,1,IF(AN29<=uxb_works!$B$121,2,IF(AN29<=uxb_works!$B$120,3,4)))) -> 4 | AL29: =iSummary!BZ22 -> 15 | AM29: =iSummary!CA22 -> Los Angeles | AN29: =iSummary!CB22 -> 92.2 | AO29: =iSummary!CE22 -> = | AP29: =iSummary!CF22 ->  | AQ29: =iSummary!CG22 -> 0 | AR29: =iSummary!CH22 -> 1 | AT29: =iSummary!CS22 -> 1 | AU29: =IF(AT29=0,0,IF(AY29<=uxb_works!$B$122,1,IF(AY29<=uxb_works!$B$121,2,IF(AY29<=uxb_works!$B$120,3,4)))) -> 4 | AW29: =iSummary!CT22 -> 15 | AX29: =iSummary!CU22 -> Seoul | AY29: =iSummary!CV22 -> 87.5 | AZ29: =iSummary!CY22 -> = | BA29: =iSummary!CZ22 ->  | BB29: =iSummary!DA22 -> 0 | BC29: =iSummary!DB22 -> 1 | BD29: =iSummary!#REF! ->  | BE29: =iSummary!#REF! ->  | BF29: =iSummary!#REF! ->  | BG29: =iSummary!#REF! -> 
B30: =iSummary!Q23 -> 1 | C30: =IF(B30=0,0,IF(G30<=uxb_works!$B$122,1,IF(G30<=uxb_works!$B$121,2,IF(G30<=uxb_works!$B$120,3,4)))) -> 4 | E30: =iSummary!R23 -> 16 | F30: =iSummary!S23 -> Frankfurt | G30: =IF(ISNUMBER(iSummary!T23),ROUND(iSummary!T23,1),"") -> 85.4 | H30: =iSummary!W23 -> = | I30: =iSummary!X23 ->  | J30: =IF(iSummary!Y23=0,"",iSummary!Y23) ->  | K30: =iSummary!Z23 -> 1 | M30: =iSummary!AK23 -> 1 | N30: =IF(M30=0,0,IF(R30<=uxb_works!$B$122,1,IF(R30<=uxb_works!$B$121,2,IF(R30<=uxb_works!$B$120,3,4)))) -> 4 | P30: =iSummary!AL23 -> 16 | Q30: =iSummary!AM23 -> Stockholm | R30: =iSummary!AN23 -> 85.5 | S30: =iSummary!AQ23 -> = | T30: =iSummary!AR23 ->  | U30: =iSummary!AS23 -> 0 | V30: =iSummary!AT23 -> 1 | X30: =iSummary!BE23 -> 1 | Y30: =IF(X30=0,0,IF(AC30<=uxb_works!$B$122,1,IF(AC30<=uxb_works!$B$121,2,IF(AC30<=uxb_works!$B$120,3,4)))) -> 4 | AA30: =iSummary!BF23 -> 16 | AB30: =iSummary!BG23 -> London | AC30: =iSummary!BH23 -> 78 | AD30: =iSummary!BK23 -> = | AE30: =iSummary!BL23 ->  | AF30: =iSummary!BM23 -> 0 | AG30: =iSummary!BN23 -> 1 | AI30: =iSummary!BY23 -> 1 | AJ30: =IF(AI30=0,0,IF(AN30<=uxb_works!$B$122,1,IF(AN30<=uxb_works!$B$121,2,IF(AN30<=uxb_works!$B$120,3,4)))) -> 4 | AL30: =iSummary!BZ23 -> 16 | AM30: =iSummary!CA23 -> Amsterdam | AN30: =iSummary!CB23 -> 92 | AO30: =iSummary!CE23 -> = | AP30: =iSummary!CF23 ->  | AQ30: =iSummary!CG23 -> 0 | AR30: =iSummary!CH23 -> 1 | AT30: =iSummary!CS23 -> 1 | AU30: =IF(AT30=0,0,IF(AY30<=uxb_works!$B$122,1,IF(AY30<=uxb_works!$B$121,2,IF(AY30<=uxb_works!$B$120,3,4)))) -> 4 | AW30: =iSummary!CT23 -> 16 | AX30: =iSummary!CU23 -> Melbourne | AY30: =iSummary!CV23 -> 86.8 | AZ30: =iSummary!CY23 -> = | BA30: =iSummary!CZ23 ->  | BB30: =iSummary!DA23 -> 0 | BC30: =iSummary!DB23 -> 1 | BD30: =iSummary!#REF! ->  | BE30: =iSummary!#REF! ->  | BF30: =iSummary!#REF! ->  | BG30: =iSummary!#REF! -> 
B31: =iSummary!Q24 -> 1 | C31: =IF(B31=0,0,IF(G31<=uxb_works!$B$122,1,IF(G31<=uxb_works!$B$121,2,IF(G31<=uxb_works!$B$120,3,4)))) -> 4 | E31: =iSummary!R24 -> 17 | F31: =iSummary!S24 -> Los Angeles | G31: =IF(ISNUMBER(iSummary!T24),ROUND(iSummary!T24,1),"") -> 85.2 | H31: =iSummary!W24 -> = | I31: =iSummary!X24 ->  | J31: =IF(iSummary!Y24=0,"",iSummary!Y24) ->  | K31: =iSummary!Z24 -> 1 | M31: =iSummary!AK24 -> 1 | N31: =IF(M31=0,0,IF(R31<=uxb_works!$B$122,1,IF(R31<=uxb_works!$B$121,2,IF(R31<=uxb_works!$B$120,3,4)))) -> 4 | P31: =iSummary!AL24 -> 17 | Q31: =iSummary!AM24 -> Seoul | R31: =iSummary!AN24 -> 84.7 | S31: =iSummary!AQ24 -> = | T31: =iSummary!AR24 ->  | U31: =iSummary!AS24 -> 0 | V31: =iSummary!AT24 -> 1 | X31: =iSummary!BE24 -> 1 | Y31: =IF(X31=0,0,IF(AC31<=uxb_works!$B$122,1,IF(AC31<=uxb_works!$B$121,2,IF(AC31<=uxb_works!$B$120,3,4)))) -> 4 | AA31: =iSummary!BF24 -> 17 | AB31: =iSummary!BG24 -> Toronto | AC31: =iSummary!BH24 -> 77.4 | AD31: =iSummary!BK24 -> = | AE31: =iSummary!BL24 ->  | AF31: =iSummary!BM24 -> 0 | AG31: =iSummary!BN24 -> 1 | AI31: =iSummary!BY24 -> 1 | AJ31: =IF(AI31=0,0,IF(AN31<=uxb_works!$B$122,1,IF(AN31<=uxb_works!$B$121,2,IF(AN31<=uxb_works!$B$120,3,4)))) -> 4 | AL31: =iSummary!BZ24 -> 17 | AM31: =iSummary!CA24 -> San Francisco | AN31: =iSummary!CB24 -> 91.7 | AO31: =iSummary!CE24 -> = | AP31: =iSummary!CF24 ->  | AQ31: =iSummary!CG24 -> 0 | AR31: =iSummary!CH24 -> 1 | AT31: =iSummary!CS24 -> 1 | AU31: =IF(AT31=0,0,IF(AY31<=uxb_works!$B$122,1,IF(AY31<=uxb_works!$B$121,2,IF(AY31<=uxb_works!$B$120,3,4)))) -> 4 | AW31: =iSummary!CT24 -> 17 | AX31: =iSummary!CU24 -> Brussels | AY31: =iSummary!CV24 -> 86.3 | AZ31: =iSummary!CY24 -> = | BA31: =iSummary!CZ24 ->  | BB31: =iSummary!DA24 -> 0 | BC31: =iSummary!DB24 -> 1 | BD31: =iSummary!#REF! ->  | BE31: =iSummary!#REF! ->  | BF31: =iSummary!#REF! ->  | BG31: =iSummary!#REF! -> 
B32: =iSummary!Q25 -> 1 | C32: =IF(B32=0,0,IF(G32<=uxb_works!$B$122,1,IF(G32<=uxb_works!$B$121,2,IF(G32<=uxb_works!$B$120,3,4)))) -> 4 | E32: =iSummary!R25 -> =18 | F32: =iSummary!S25 -> Wellington | G32: =IF(ISNUMBER(iSummary!T25),ROUND(iSummary!T25,1),"") -> 84.5 | H32: =iSummary!W25 -> = | I32: =iSummary!X25 ->  | J32: =IF(iSummary!Y25=0,"",iSummary!Y25) ->  | K32: =iSummary!Z25 -> 1 | M32: =iSummary!AK25 -> 1 | N32: =IF(M32=0,0,IF(R32<=uxb_works!$B$122,1,IF(R32<=uxb_works!$B$121,2,IF(R32<=uxb_works!$B$120,3,4)))) -> 4 | P32: =iSummary!AL25 -> 18 | Q32: =iSummary!AM25 -> Zurich | R32: =iSummary!AN25 -> 80.8 | S32: =iSummary!AQ25 -> = | T32: =iSummary!AR25 ->  | U32: =iSummary!AS25 -> 0 | V32: =iSummary!AT25 -> 1 | X32: =iSummary!BE25 -> 1 | Y32: =IF(X32=0,0,IF(AC32<=uxb_works!$B$122,1,IF(AC32<=uxb_works!$B$121,2,IF(AC32<=uxb_works!$B$120,3,4)))) -> 4 | AA32: =iSummary!BF25 -> 18 | AB32: =iSummary!BG25 -> San Francisco | AC32: =iSummary!BH25 -> 77.2 | AD32: =iSummary!BK25 -> = | AE32: =iSummary!BL25 ->  | AF32: =iSummary!BM25 -> 0 | AG32: =iSummary!BN25 -> 1 | AI32: =iSummary!BY25 -> 1 | AJ32: =IF(AI32=0,0,IF(AN32<=uxb_works!$B$122,1,IF(AN32<=uxb_works!$B$121,2,IF(AN32<=uxb_works!$B$120,3,4)))) -> 4 | AL32: =iSummary!BZ25 -> 18 | AM32: =iSummary!CA25 -> Hong Kong | AN32: =iSummary!CB25 -> 91.1 | AO32: =iSummary!CE25 -> = | AP32: =iSummary!CF25 ->  | AQ32: =iSummary!CG25 -> 0 | AR32: =iSummary!CH25 -> 1 | AT32: =iSummary!CS25 -> 1 | AU32: =IF(AT32=0,0,IF(AY32<=uxb_works!$B$122,1,IF(AY32<=uxb_works!$B$121,2,IF(AY32<=uxb_works!$B$120,3,4)))) -> 4 | AW32: =iSummary!CT25 -> 18 | AX32: =iSummary!CU25 -> Madrid | AY32: =iSummary!CV25 -> 86.2 | AZ32: =iSummary!CY25 -> = | BA32: =iSummary!CZ25 ->  | BB32: =iSummary!DA25 -> 0 | BC32: =iSummary!DB25 -> 1 | BD32: =iSummary!#REF! ->  | BE32: =iSummary!#REF! ->  | BF32: =iSummary!#REF! ->  | BG32: =iSummary!#REF! -> 
B33: =iSummary!Q26 -> 1 | C33: =IF(B33=0,0,IF(G33<=uxb_works!$B$122,1,IF(G33<=uxb_works!$B$121,2,IF(G33<=uxb_works!$B$120,3,4)))) -> 4 | E33: =iSummary!R26 -> =18 | F33: =iSummary!S26 -> Zurich | G33: =IF(ISNUMBER(iSummary!T26),ROUND(iSummary!T26,1),"") -> 84.5 | H33: =iSummary!W26 -> = | I33: =iSummary!X26 ->  | J33: =IF(iSummary!Y26=0,"",iSummary!Y26) ->  | K33: =iSummary!Z26 -> 1 | M33: =iSummary!AK26 -> 1 | N33: =IF(M33=0,0,IF(R33<=uxb_works!$B$122,1,IF(R33<=uxb_works!$B$121,2,IF(R33<=uxb_works!$B$120,3,4)))) -> 4 | P33: =iSummary!AL26 -> 19 | Q33: =iSummary!AM26 -> Wellington | R33: =iSummary!AN26 -> 80.2 | S33: =iSummary!AQ26 -> = | T33: =iSummary!AR26 ->  | U33: =iSummary!AS26 -> 0 | V33: =iSummary!AT26 -> 1 | X33: =iSummary!BE26 -> 1 | Y33: =IF(X33=0,0,IF(AC33<=uxb_works!$B$122,1,IF(AC33<=uxb_works!$B$121,2,IF(AC33<=uxb_works!$B$120,3,4)))) -> 4 | AA33: =iSummary!BF26 -> 19 | AB33: =iSummary!BG26 -> Chicago | AC33: =iSummary!BH26 -> 77.1 | AD33: =iSummary!BK26 -> = | AE33: =iSummary!BL26 ->  | AF33: =iSummary!BM26 -> 0 | AG33: =iSummary!BN26 -> 1 | AI33: =iSummary!BY26 -> 1 | AJ33: =IF(AI33=0,0,IF(AN33<=uxb_works!$B$122,1,IF(AN33<=uxb_works!$B$121,2,IF(AN33<=uxb_works!$B$120,3,4)))) -> 4 | AL33: =iSummary!BZ26 -> 19 | AM33: =iSummary!CA26 -> London | AN33: =iSummary!CB26 -> 90.4 | AO33: =iSummary!CE26 -> = | AP33: =iSummary!CF26 ->  | AQ33: =iSummary!CG26 -> 0 | AR33: =iSummary!CH26 -> 1 | AT33: =iSummary!CS26 -> 1 | AU33: =IF(AT33=0,0,IF(AY33<=uxb_works!$B$122,1,IF(AY33<=uxb_works!$B$121,2,IF(AY33<=uxb_works!$B$120,3,4)))) -> 4 | AW33: =iSummary!CT26 -> 19 | AX33: =iSummary!CU26 -> Barcelona | AY33: =iSummary!CV26 -> 86 | AZ33: =iSummary!CY26 -> = | BA33: =iSummary!CZ26 ->  | BB33: =iSummary!DA26 -> 0 | BC33: =iSummary!DB26 -> 1 | BD33: =iSummary!#REF! ->  | BE33: =iSummary!#REF! ->  | BF33: =iSummary!#REF! ->  | BG33: =iSummary!#REF! -> 
B34: =iSummary!Q27 -> 1 | C34: =IF(B34=0,0,IF(G34<=uxb_works!$B$122,1,IF(G34<=uxb_works!$B$121,2,IF(G34<=uxb_works!$B$120,3,4)))) -> 4 | E34: =iSummary!R27 -> 20 | F34: =iSummary!S27 -> Hong Kong | G34: =IF(ISNUMBER(iSummary!T27),ROUND(iSummary!T27,1),"") -> 83.7 | H34: =iSummary!W27 -> = | I34: =iSummary!X27 ->  | J34: =IF(iSummary!Y27=0,"",iSummary!Y27) ->  | K34: =iSummary!Z27 -> 1 | M34: =iSummary!AK27 -> 1 | N34: =IF(M34=0,0,IF(R34<=uxb_works!$B$122,1,IF(R34<=uxb_works!$B$121,2,IF(R34<=uxb_works!$B$120,3,4)))) -> 4 | P34: =iSummary!AL27 -> 20 | Q34: =iSummary!AM27 -> Paris | R34: =iSummary!AN27 -> 80 | S34: =iSummary!AQ27 -> = | T34: =iSummary!AR27 ->  | U34: =iSummary!AS27 -> 0 | V34: =iSummary!AT27 -> 1 | X34: =iSummary!BE27 -> 1 | Y34: =IF(X34=0,0,IF(AC34<=uxb_works!$B$122,1,IF(AC34<=uxb_works!$B$121,2,IF(AC34<=uxb_works!$B$120,3,4)))) -> 4 | AA34: =iSummary!BF27 -> =20 | AB34: =iSummary!BG27 -> Madrid | AC34: =iSummary!BH27 -> 76.1 | AD34: =iSummary!BK27 -> = | AE34: =iSummary!BL27 ->  | AF34: =iSummary!BM27 -> 0 | AG34: =iSummary!BN27 -> 1 | AI34: =iSummary!BY27 -> 1 | AJ34: =IF(AI34=0,0,IF(AN34<=uxb_works!$B$122,1,IF(AN34<=uxb_works!$B$121,2,IF(AN34<=uxb_works!$B$120,3,4)))) -> 4 | AL34: =iSummary!BZ27 -> 20 | AM34: =iSummary!CA27 -> Copenhagen | AN34: =iSummary!CB27 -> 89 | AO34: =iSummary!CE27 -> = | AP34: =iSummary!CF27 ->  | AQ34: =iSummary!CG27 -> 0 | AR34: =iSummary!CH27 -> 1 | AT34: =iSummary!CS27 -> 1 | AU34: =IF(AT34=0,0,IF(AY34<=uxb_works!$B$122,1,IF(AY34<=uxb_works!$B$121,2,IF(AY34<=uxb_works!$B$120,3,4)))) -> 4 | AW34: =iSummary!CT27 -> 20 | AX34: =iSummary!CU27 -> Taipei | AY34: =iSummary!CV27 -> 85.8 | AZ34: =iSummary!CY27 -> = | BA34: =iSummary!CZ27 ->  | BB34: =iSummary!DA27 -> 0 | BC34: =iSummary!DB27 -> 1 | BD34: =iSummary!#REF! ->  | BE34: =iSummary!#REF! ->  | BF34: =iSummary!#REF! ->  | BG34: =iSummary!#REF! -> 
B35: =iSummary!Q28 -> 1 | C35: =IF(B35=0,0,IF(G35<=uxb_works!$B$122,1,IF(G35<=uxb_works!$B$121,2,IF(G35<=uxb_works!$B$120,3,4)))) -> 4 | E35: =iSummary!R28 -> 21 | F35: =iSummary!S28 -> Dallas | G35: =IF(ISNUMBER(iSummary!T28),ROUND(iSummary!T28,1),"") -> 83.1 | H35: =iSummary!W28 -> = | I35: =iSummary!X28 ->  | J35: =IF(iSummary!Y28=0,"",iSummary!Y28) ->  | K35: =iSummary!Z28 -> 1 | M35: =iSummary!AK28 -> 1 | N35: =IF(M35=0,0,IF(R35<=uxb_works!$B$122,1,IF(R35<=uxb_works!$B$121,2,IF(R35<=uxb_works!$B$120,3,4)))) -> 4 | P35: =iSummary!AL28 -> 21 | Q35: =iSummary!AM28 -> Frankfurt | R35: =iSummary!AN28 -> 78.9 | S35: =iSummary!AQ28 -> = | T35: =iSummary!AR28 ->  | U35: =iSummary!AS28 -> 0 | V35: =iSummary!AT28 -> 1 | X35: =iSummary!BE28 -> 1 | Y35: =IF(X35=0,0,IF(AC35<=uxb_works!$B$122,1,IF(AC35<=uxb_works!$B$121,2,IF(AC35<=uxb_works!$B$120,3,4)))) -> 4 | AA35: =iSummary!BF28 -> =20 | AB35: =iSummary!BG28 -> New York | AC35: =iSummary!BH28 -> 76.1 | AD35: =iSummary!BK28 -> = | AE35: =iSummary!BL28 ->  | AF35: =iSummary!BM28 -> 0 | AG35: =iSummary!BN28 -> 1 | AI35: =iSummary!BY28 -> 1 | AJ35: =IF(AI35=0,0,IF(AN35<=uxb_works!$B$122,1,IF(AN35<=uxb_works!$B$121,2,IF(AN35<=uxb_works!$B$120,3,4)))) -> 4 | AL35: =iSummary!BZ28 -> 21 | AM35: =iSummary!CA28 -> Brussels | AN35: =iSummary!CB28 -> 88.9 | AO35: =iSummary!CE28 -> = | AP35: =iSummary!CF28 ->  | AQ35: =iSummary!CG28 -> 0 | AR35: =iSummary!CH28 -> 1 | AT35: =iSummary!CS28 -> 1 | AU35: =IF(AT35=0,0,IF(AY35<=uxb_works!$B$122,1,IF(AY35<=uxb_works!$B$121,2,IF(AY35<=uxb_works!$B$120,3,4)))) -> 4 | AW35: =iSummary!CT28 -> 21 | AX35: =iSummary!CU28 -> Paris | AY35: =iSummary!CV28 -> 85.2 | AZ35: =iSummary!CY28 -> = | BA35: =iSummary!CZ28 ->  | BB35: =iSummary!DA28 -> 0 | BC35: =iSummary!DB28 -> 1 | BD35: =iSummary!#REF! ->  | BE35: =iSummary!#REF! ->  | BF35: =iSummary!#REF! ->  | BG35: =iSummary!#REF! -> 
B36: =iSummary!Q29 -> 1 | C36: =IF(B36=0,0,IF(G36<=uxb_works!$B$122,1,IF(G36<=uxb_works!$B$121,2,IF(G36<=uxb_works!$B$120,3,4)))) -> 4 | E36: =iSummary!R29 -> 22 | F36: =iSummary!S29 -> Taipei | G36: =IF(ISNUMBER(iSummary!T29),ROUND(iSummary!T29,1),"") -> 82.5 | H36: =iSummary!W29 -> = | I36: =iSummary!X29 ->  | J36: =IF(iSummary!Y29=0,"",iSummary!Y29) ->  | K36: =iSummary!Z29 -> 1 | M36: =iSummary!AK29 -> 1 | N36: =IF(M36=0,0,IF(R36<=uxb_works!$B$122,1,IF(R36<=uxb_works!$B$121,2,IF(R36<=uxb_works!$B$120,3,4)))) -> 4 | P36: =iSummary!AL29 -> 22 | Q36: =iSummary!AM29 -> Hong Kong | R36: =iSummary!AN29 -> 78.8 | S36: =iSummary!AQ29 -> = | T36: =iSummary!AR29 ->  | U36: =iSummary!AS29 -> 0 | V36: =iSummary!AT29 -> 1 | X36: =iSummary!BE29 -> 1 | Y36: =IF(X36=0,0,IF(AC36<=uxb_works!$B$122,1,IF(AC36<=uxb_works!$B$121,2,IF(AC36<=uxb_works!$B$120,3,4)))) -> 4 | AA36: =iSummary!BF29 -> 22 | AB36: =iSummary!BG29 -> Dallas | AC36: =iSummary!BH29 -> 75.9 | AD36: =iSummary!BK29 -> = | AE36: =iSummary!BL29 ->  | AF36: =iSummary!BM29 -> 0 | AG36: =iSummary!BN29 -> 1 | AI36: =iSummary!BY29 -> 1 | AJ36: =IF(AI36=0,0,IF(AN36<=uxb_works!$B$122,1,IF(AN36<=uxb_works!$B$121,2,IF(AN36<=uxb_works!$B$120,3,4)))) -> 4 | AL36: =iSummary!BZ29 -> 22 | AM36: =iSummary!CA29 -> Zurich | AN36: =iSummary!CB29 -> 88.5 | AO36: =iSummary!CE29 -> = | AP36: =iSummary!CF29 ->  | AQ36: =iSummary!CG29 -> 0 | AR36: =iSummary!CH29 -> 1 | AT36: =iSummary!CS29 -> 1 | AU36: =IF(AT36=0,0,IF(AY36<=uxb_works!$B$122,1,IF(AY36<=uxb_works!$B$121,2,IF(AY36<=uxb_works!$B$120,3,4)))) -> 4 | AW36: =iSummary!CT29 -> 22 | AX36: =iSummary!CU29 -> London | AY36: =iSummary!CV29 -> 84.3 | AZ36: =iSummary!CY29 -> = | BA36: =iSummary!CZ29 ->  | BB36: =iSummary!DA29 -> 0 | BC36: =iSummary!DB29 -> 1 | BD36: =iSummary!#REF! ->  | BE36: =iSummary!#REF! ->  | BF36: =iSummary!#REF! ->  | BG36: =iSummary!#REF! -> 
B37: =iSummary!Q30 -> 1 | C37: =IF(B37=0,0,IF(G37<=uxb_works!$B$122,1,IF(G37<=uxb_works!$B$121,2,IF(G37<=uxb_works!$B$120,3,4)))) -> 4 | E37: =iSummary!R30 -> 23 | F37: =iSummary!S30 -> Paris | G37: =IF(ISNUMBER(iSummary!T30),ROUND(iSummary!T30,1),"") -> 82.4 | H37: =iSummary!W30 -> = | I37: =iSummary!X30 ->  | J37: =IF(iSummary!Y30=0,"",iSummary!Y30) ->  | K37: =iSummary!Z30 -> 1 | M37: =iSummary!AK30 -> 1 | N37: =IF(M37=0,0,IF(R37<=uxb_works!$B$122,1,IF(R37<=uxb_works!$B$121,2,IF(R37<=uxb_works!$B$120,3,4)))) -> 4 | P37: =iSummary!AL30 -> 23 | Q37: =iSummary!AM30 -> Taipei | R37: =iSummary!AN30 -> 77 | S37: =iSummary!AQ30 -> = | T37: =iSummary!AR30 ->  | U37: =iSummary!AS30 -> 0 | V37: =iSummary!AT30 -> 1 | X37: =iSummary!BE30 -> 1 | Y37: =IF(X37=0,0,IF(AC37<=uxb_works!$B$122,1,IF(AC37<=uxb_works!$B$121,2,IF(AC37<=uxb_works!$B$120,3,4)))) -> 4 | AA37: =iSummary!BF30 -> 23 | AB37: =iSummary!BG30 -> Los Angeles | AC37: =iSummary!BH30 -> 75.8 | AD37: =iSummary!BK30 -> = | AE37: =iSummary!BL30 ->  | AF37: =iSummary!BM30 -> 0 | AG37: =iSummary!BN30 -> 1 | AI37: =iSummary!BY30 -> 1 | AJ37: =IF(AI37=0,0,IF(AN37<=uxb_works!$B$122,1,IF(AN37<=uxb_works!$B$121,2,IF(AN37<=uxb_works!$B$120,3,4)))) -> 4 | AL37: =iSummary!BZ30 -> 23 | AM37: =iSummary!CA30 -> Stockholm | AN37: =iSummary!CB30 -> 87.5 | AO37: =iSummary!CE30 -> = | AP37: =iSummary!CF30 ->  | AQ37: =iSummary!CG30 -> 0 | AR37: =iSummary!CH30 -> 1 | AT37: =iSummary!CS30 -> 1 | AU37: =IF(AT37=0,0,IF(AY37<=uxb_works!$B$122,1,IF(AY37<=uxb_works!$B$121,2,IF(AY37<=uxb_works!$B$120,3,4)))) -> 4 | AW37: =iSummary!CT30 -> =23 | AX37: =iSummary!CU30 -> Shanghai | AY37: =iSummary!CV30 -> 84 | AZ37: =iSummary!CY30 -> = | BA37: =iSummary!CZ30 ->  | BB37: =iSummary!DA30 -> 0 | BC37: =iSummary!DB30 -> 1 | BD37: =iSummary!#REF! ->  | BE37: =iSummary!#REF! ->  | BF37: =iSummary!#REF! ->  | BG37: =iSummary!#REF! -> 
B38: =iSummary!Q31 -> 1 | C38: =IF(B38=0,0,IF(G38<=uxb_works!$B$122,1,IF(G38<=uxb_works!$B$121,2,IF(G38<=uxb_works!$B$120,3,4)))) -> 4 | E38: =iSummary!R31 -> 24 | F38: =iSummary!S31 -> Brussels | G38: =IF(ISNUMBER(iSummary!T31),ROUND(iSummary!T31,1),"") -> 82.1 | H38: =iSummary!W31 -> = | I38: =iSummary!X31 ->  | J38: =IF(iSummary!Y31=0,"",iSummary!Y31) ->  | K38: =iSummary!Z31 -> 1 | M38: =iSummary!AK31 -> 1 | N38: =IF(M38=0,0,IF(R38<=uxb_works!$B$122,1,IF(R38<=uxb_works!$B$121,2,IF(R38<=uxb_works!$B$120,3,4)))) -> 3 | P38: =iSummary!AL31 -> =24 | Q38: =iSummary!AM31 -> Abu Dhabi | R38: =iSummary!AN31 -> 74.1 | S38: =iSummary!AQ31 -> = | T38: =iSummary!AR31 ->  | U38: =iSummary!AS31 -> 0 | V38: =iSummary!AT31 -> 1 | X38: =iSummary!BE31 -> 1 | Y38: =IF(X38=0,0,IF(AC38<=uxb_works!$B$122,1,IF(AC38<=uxb_works!$B$121,2,IF(AC38<=uxb_works!$B$120,3,4)))) -> 4 | AA38: =iSummary!BF31 -> 24 | AB38: =iSummary!BG31 -> Barcelona | AC38: =iSummary!BH31 -> 75.2 | AD38: =iSummary!BK31 -> = | AE38: =iSummary!BL31 ->  | AF38: =iSummary!BM31 -> 0 | AG38: =iSummary!BN31 -> 1 | AI38: =iSummary!BY31 -> 1 | AJ38: =IF(AI38=0,0,IF(AN38<=uxb_works!$B$122,1,IF(AN38<=uxb_works!$B$121,2,IF(AN38<=uxb_works!$B$120,3,4)))) -> 4 | AL38: =iSummary!BZ31 -> 24 | AM38: =iSummary!CA31 -> Taipei | AN38: =iSummary!CB31 -> 87.1 | AO38: =iSummary!CE31 -> = | AP38: =iSummary!CF31 ->  | AQ38: =iSummary!CG31 -> 0 | AR38: =iSummary!CH31 -> 1 | AT38: =iSummary!CS31 -> 1 | AU38: =IF(AT38=0,0,IF(AY38<=uxb_works!$B$122,1,IF(AY38<=uxb_works!$B$121,2,IF(AY38<=uxb_works!$B$120,3,4)))) -> 4 | AW38: =iSummary!CT31 -> =23 | AX38: =iSummary!CU31 -> Washington DC | AY38: =iSummary!CV31 -> 84 | AZ38: =iSummary!CY31 -> = | BA38: =iSummary!CZ31 ->  | BB38: =iSummary!DA31 -> 0 | BC38: =iSummary!DB31 -> 1 | BD38: =iSummary!#REF! ->  | BE38: =iSummary!#REF! ->  | BF38: =iSummary!#REF! ->  | BG38: =iSummary!#REF! -> 
B39: =iSummary!Q32 -> 1 | C39: =IF(B39=0,0,IF(G39<=uxb_works!$B$122,1,IF(G39<=uxb_works!$B$121,2,IF(G39<=uxb_works!$B$120,3,4)))) -> 4 | E39: =iSummary!R32 -> 25 | F39: =iSummary!S32 -> Madrid | G39: =IF(ISNUMBER(iSummary!T32),ROUND(iSummary!T32,1),"") -> 81.4 | H39: =iSummary!W32 -> = | I39: =iSummary!X32 ->  | J39: =IF(iSummary!Y32=0,"",iSummary!Y32) ->  | K39: =iSummary!Z32 -> 1 | M39: =iSummary!AK32 -> 1 | N39: =IF(M39=0,0,IF(R39<=uxb_works!$B$122,1,IF(R39<=uxb_works!$B$121,2,IF(R39<=uxb_works!$B$120,3,4)))) -> 3 | P39: =iSummary!AL32 -> =24 | Q39: =iSummary!AM32 -> Dubai | R39: =iSummary!AN32 -> 74.1 | S39: =iSummary!AQ32 -> = | T39: =iSummary!AR32 ->  | U39: =iSummary!AS32 -> 0 | V39: =iSummary!AT32 -> 1 | X39: =iSummary!BE32 -> 1 | Y39: =IF(X39=0,0,IF(AC39<=uxb_works!$B$122,1,IF(AC39<=uxb_works!$B$121,2,IF(AC39<=uxb_works!$B$120,3,4)))) -> 4 | AA39: =iSummary!BF32 -> 25 | AB39: =iSummary!BG32 -> Rome | AC39: =iSummary!BH32 -> 75.1 | AD39: =iSummary!BK32 -> = | AE39: =iSummary!BL32 ->  | AF39: =iSummary!BM32 -> 0 | AG39: =iSummary!BN32 -> 1 | AI39: =iSummary!BY32 -> 1 | AJ39: =IF(AI39=0,0,IF(AN39<=uxb_works!$B$122,1,IF(AN39<=uxb_works!$B$121,2,IF(AN39<=uxb_works!$B$120,3,4)))) -> 4 | AL39: =iSummary!BZ32 -> 25 | AM39: =iSummary!CA32 -> Paris | AN39: =iSummary!CB32 -> 85.9 | AO39: =iSummary!CE32 -> = | AP39: =iSummary!CF32 ->  | AQ39: =iSummary!CG32 -> 0 | AR39: =iSummary!CH32 -> 1 | AT39: =iSummary!CS32 -> 1 | AU39: =IF(AT39=0,0,IF(AY39<=uxb_works!$B$122,1,IF(AY39<=uxb_works!$B$121,2,IF(AY39<=uxb_works!$B$120,3,4)))) -> 4 | AW39: =iSummary!CT32 -> 25 | AX39: =iSummary!CU32 -> Beijing | AY39: =iSummary!CV32 -> 83.9 | AZ39: =iSummary!CY32 -> = | BA39: =iSummary!CZ32 ->  | BB39: =iSummary!DA32 -> 0 | BC39: =iSummary!DB32 -> 1 | BD39: =iSummary!#REF! ->  | BE39: =iSummary!#REF! ->  | BF39: =iSummary!#REF! ->  | BG39: =iSummary!#REF! -> 
B40: =iSummary!Q33 -> 1 | C40: =IF(B40=0,0,IF(G40<=uxb_works!$B$122,1,IF(G40<=uxb_works!$B$121,2,IF(G40<=uxb_works!$B$120,3,4)))) -> 4 | E40: =iSummary!R33 -> 26 | F40: =iSummary!S33 -> Barcelona | G40: =IF(ISNUMBER(iSummary!T33),ROUND(iSummary!T33,1),"") -> 81.2 | H40: =iSummary!W33 -> = | I40: =iSummary!X33 ->  | J40: =IF(iSummary!Y33=0,"",iSummary!Y33) ->  | K40: =iSummary!Z33 -> 1 | M40: =iSummary!AK33 -> 1 | N40: =IF(M40=0,0,IF(R40<=uxb_works!$B$122,1,IF(R40<=uxb_works!$B$121,2,IF(R40<=uxb_works!$B$120,3,4)))) -> 3 | P40: =iSummary!AL33 -> 26 | Q40: =iSummary!AM33 -> Brussels | R40: =iSummary!AN33 -> 74 | S40: =iSummary!AQ33 -> = | T40: =iSummary!AR33 ->  | U40: =iSummary!AS33 -> 0 | V40: =iSummary!AT33 -> 1 | X40: =iSummary!BE33 -> 1 | Y40: =IF(X40=0,0,IF(AC40<=uxb_works!$B$122,1,IF(AC40<=uxb_works!$B$121,2,IF(AC40<=uxb_works!$B$120,3,4)))) -> 3 | AA40: =iSummary!BF33 -> 26 | AB40: =iSummary!BG33 -> Milan | AC40: =iSummary!BH33 -> 74.9 | AD40: =iSummary!BK33 -> = | AE40: =iSummary!BL33 ->  | AF40: =iSummary!BM33 -> 0 | AG40: =iSummary!BN33 -> 1 | AI40: =iSummary!BY33 -> 1 | AJ40: =IF(AI40=0,0,IF(AN40<=uxb_works!$B$122,1,IF(AN40<=uxb_works!$B$121,2,IF(AN40<=uxb_works!$B$120,3,4)))) -> 4 | AL40: =iSummary!BZ33 -> =26 | AM40: =iSummary!CA33 -> Abu Dhabi | AN40: =iSummary!CB33 -> 83.2 | AO40: =iSummary!CE33 -> = | AP40: =iSummary!CF33 ->  | AQ40: =iSummary!CG33 -> 0 | AR40: =iSummary!CH33 -> 1 | AT40: =iSummary!CS33 -> 1 | AU40: =IF(AT40=0,0,IF(AY40<=uxb_works!$B$122,1,IF(AY40<=uxb_works!$B$121,2,IF(AY40<=uxb_works!$B$120,3,4)))) -> 4 | AW40: =iSummary!CT33 -> 26 | AX40: =iSummary!CU33 -> Chicago | AY40: =iSummary!CV33 -> 83.8 | AZ40: =iSummary!CY33 -> = | BA40: =iSummary!CZ33 ->  | BB40: =iSummary!DA33 -> 0 | BC40: =iSummary!DB33 -> 1 | BD40: =iSummary!#REF! ->  | BE40: =iSummary!#REF! ->  | BF40: =iSummary!#REF! ->  | BG40: =iSummary!#REF! -> 
B41: =iSummary!Q34 -> 1 | C41: =IF(B41=0,0,IF(G41<=uxb_works!$B$122,1,IF(G41<=uxb_works!$B$121,2,IF(G41<=uxb_works!$B$120,3,4)))) -> 4 | E41: =iSummary!R34 -> 27 | F41: =iSummary!S34 -> Abu Dhabi | G41: =IF(ISNUMBER(iSummary!T34),ROUND(iSummary!T34,1),"") -> 79.5 | H41: =iSummary!W34 -> = | I41: =iSummary!X34 ->  | J41: =IF(iSummary!Y34=0,"",iSummary!Y34) ->  | K41: =iSummary!Z34 -> 1 | M41: =iSummary!AK34 -> 1 | N41: =IF(M41=0,0,IF(R41<=uxb_works!$B$122,1,IF(R41<=uxb_works!$B$121,2,IF(R41<=uxb_works!$B$120,3,4)))) -> 3 | P41: =iSummary!AL34 -> 27 | Q41: =iSummary!AM34 -> Milan | R41: =iSummary!AN34 -> 72.5 | S41: =iSummary!AQ34 -> = | T41: =iSummary!AR34 ->  | U41: =iSummary!AS34 -> 0 | V41: =iSummary!AT34 -> 1 | X41: =iSummary!BE34 -> 1 | Y41: =IF(X41=0,0,IF(AC41<=uxb_works!$B$122,1,IF(AC41<=uxb_works!$B$121,2,IF(AC41<=uxb_works!$B$120,3,4)))) -> 3 | AA41: =iSummary!BF34 -> 27 | AB41: =iSummary!BG34 -> Hong Kong | AC41: =iSummary!BH34 -> 73.2 | AD41: =iSummary!BK34 -> = | AE41: =iSummary!BL34 ->  | AF41: =iSummary!BM34 -> 0 | AG41: =iSummary!BN34 -> 1 | AI41: =iSummary!BY34 -> 1 | AJ41: =IF(AI41=0,0,IF(AN41<=uxb_works!$B$122,1,IF(AN41<=uxb_works!$B$121,2,IF(AN41<=uxb_works!$B$120,3,4)))) -> 4 | AL41: =iSummary!BZ34 -> =26 | AM41: =iSummary!CA34 -> Dubai | AN41: =iSummary!CB34 -> 83.2 | AO41: =iSummary!CE34 -> = | AP41: =iSummary!CF34 ->  | AQ41: =iSummary!CG34 -> 0 | AR41: =iSummary!CH34 -> 1 | AT41: =iSummary!CS34 -> 1 | AU41: =IF(AT41=0,0,IF(AY41<=uxb_works!$B$122,1,IF(AY41<=uxb_works!$B$121,2,IF(AY41<=uxb_works!$B$120,3,4)))) -> 4 | AW41: =iSummary!CT34 -> =27 | AX41: =iSummary!CU34 -> Dallas | AY41: =iSummary!CV34 -> 83.3 | AZ41: =iSummary!CY34 -> = | BA41: =iSummary!CZ34 ->  | BB41: =iSummary!DA34 -> 0 | BC41: =iSummary!DB34 -> 1 | BD41: =iSummary!#REF! ->  | BE41: =iSummary!#REF! ->  | BF41: =iSummary!#REF! ->  | BG41: =iSummary!#REF! -> 
B42: =iSummary!Q35 -> 1 | C42: =IF(B42=0,0,IF(G42<=uxb_works!$B$122,1,IF(G42<=uxb_works!$B$121,2,IF(G42<=uxb_works!$B$120,3,4)))) -> 4 | E42: =iSummary!R35 -> 28 | F42: =iSummary!S35 -> Dubai | G42: =IF(ISNUMBER(iSummary!T35),ROUND(iSummary!T35,1),"") -> 79.1 | H42: =iSummary!W35 -> = | I42: =iSummary!X35 ->  | J42: =IF(iSummary!Y35=0,"",iSummary!Y35) ->  | K42: =iSummary!Z35 -> 1 | M42: =iSummary!AK35 -> 1 | N42: =IF(M42=0,0,IF(R42<=uxb_works!$B$122,1,IF(R42<=uxb_works!$B$121,2,IF(R42<=uxb_works!$B$120,3,4)))) -> 3 | P42: =iSummary!AL35 -> =28 | Q42: =iSummary!AM35 -> Barcelona | R42: =iSummary!AN35 -> 69.2 | S42: =iSummary!AQ35 -> = | T42: =iSummary!AR35 ->  | U42: =iSummary!AS35 -> 0 | V42: =iSummary!AT35 -> 1 | X42: =iSummary!BE35 -> 1 | Y42: =IF(X42=0,0,IF(AC42<=uxb_works!$B$122,1,IF(AC42<=uxb_works!$B$121,2,IF(AC42<=uxb_works!$B$120,3,4)))) -> 3 | AA42: =iSummary!BF35 -> 28 | AB42: =iSummary!BG35 -> Wellington | AC42: =iSummary!BH35 -> 72.9 | AD42: =iSummary!BK35 -> = | AE42: =iSummary!BL35 ->  | AF42: =iSummary!BM35 -> 0 | AG42: =iSummary!BN35 -> 1 | AI42: =iSummary!BY35 -> 1 | AJ42: =IF(AI42=0,0,IF(AN42<=uxb_works!$B$122,1,IF(AN42<=uxb_works!$B$121,2,IF(AN42<=uxb_works!$B$120,3,4)))) -> 4 | AL42: =iSummary!BZ35 -> 28 | AM42: =iSummary!CA35 -> Rome | AN42: =iSummary!CB35 -> 83.1 | AO42: =iSummary!CE35 -> = | AP42: =iSummary!CF35 ->  | AQ42: =iSummary!CG35 -> 0 | AR42: =iSummary!CH35 -> 1 | AT42: =iSummary!CS35 -> 1 | AU42: =IF(AT42=0,0,IF(AY42<=uxb_works!$B$122,1,IF(AY42<=uxb_works!$B$121,2,IF(AY42<=uxb_works!$B$120,3,4)))) -> 4 | AW42: =iSummary!CT35 -> =27 | AX42: =iSummary!CU35 -> San Francisco | AY42: =iSummary!CV35 -> 83.3 | AZ42: =iSummary!CY35 -> = | BA42: =iSummary!CZ35 ->  | BB42: =iSummary!DA35 -> 0 | BC42: =iSummary!DB35 -> 1 | BD42: =iSummary!#REF! ->  | BE42: =iSummary!#REF! ->  | BF42: =iSummary!#REF! ->  | BG42: =iSummary!#REF! -> 
B43: =iSummary!Q36 -> 1 | C43: =IF(B43=0,0,IF(G43<=uxb_works!$B$122,1,IF(G43<=uxb_works!$B$121,2,IF(G43<=uxb_works!$B$120,3,4)))) -> 4 | E43: =iSummary!R36 -> 29 | F43: =iSummary!S36 -> Milan | G43: =IF(ISNUMBER(iSummary!T36),ROUND(iSummary!T36,1),"") -> 78.1 | H43: =iSummary!W36 -> = | I43: =iSummary!X36 ->  | J43: =IF(iSummary!Y36=0,"",iSummary!Y36) ->  | K43: =iSummary!Z36 -> 1 | M43: =iSummary!AK36 -> 1 | N43: =IF(M43=0,0,IF(R43<=uxb_works!$B$122,1,IF(R43<=uxb_works!$B$121,2,IF(R43<=uxb_works!$B$120,3,4)))) -> 3 | P43: =iSummary!AL36 -> =28 | Q43: =iSummary!AM36 -> Madrid | R43: =iSummary!AN36 -> 69.2 | S43: =iSummary!AQ36 -> = | T43: =iSummary!AR36 ->  | U43: =iSummary!AS36 -> 0 | V43: =iSummary!AT36 -> 1 | X43: =iSummary!BE36 -> 1 | Y43: =IF(X43=0,0,IF(AC43<=uxb_works!$B$122,1,IF(AC43<=uxb_works!$B$121,2,IF(AC43<=uxb_works!$B$120,3,4)))) -> 3 | AA43: =iSummary!BF36 -> 29 | AB43: =iSummary!BG36 -> Abu Dhabi | AC43: =iSummary!BH36 -> 71.8 | AD43: =iSummary!BK36 -> = | AE43: =iSummary!BL36 ->  | AF43: =iSummary!BM36 -> 0 | AG43: =iSummary!BN36 -> 1 | AI43: =iSummary!BY36 -> 1 | AJ43: =IF(AI43=0,0,IF(AN43<=uxb_works!$B$122,1,IF(AN43<=uxb_works!$B$121,2,IF(AN43<=uxb_works!$B$120,3,4)))) -> 4 | AL43: =iSummary!BZ36 -> 29 | AM43: =iSummary!CA36 -> Milan | AN43: =iSummary!CB36 -> 82.8 | AO43: =iSummary!CE36 -> = | AP43: =iSummary!CF36 ->  | AQ43: =iSummary!CG36 -> 0 | AR43: =iSummary!CH36 -> 1 | AT43: =iSummary!CS36 -> 1 | AU43: =IF(AT43=0,0,IF(AY43<=uxb_works!$B$122,1,IF(AY43<=uxb_works!$B$121,2,IF(AY43<=uxb_works!$B$120,3,4)))) -> 4 | AW43: =iSummary!CT36 -> 29 | AX43: =iSummary!CU36 -> Milan | AY43: =iSummary!CV36 -> 82.4 | AZ43: =iSummary!CY36 -> = | BA43: =iSummary!CZ36 ->  | BB43: =iSummary!DA36 -> 0 | BC43: =iSummary!DB36 -> 1 | BD43: =iSummary!#REF! ->  | BE43: =iSummary!#REF! ->  | BF43: =iSummary!#REF! ->  | BG43: =iSummary!#REF! -> 
B44: =iSummary!Q37 -> 1 | C44: =IF(B44=0,0,IF(G44<=uxb_works!$B$122,1,IF(G44<=uxb_works!$B$121,2,IF(G44<=uxb_works!$B$120,3,4)))) -> 4 | E44: =iSummary!R37 -> 30 | F44: =iSummary!S37 -> Rome | G44: =IF(ISNUMBER(iSummary!T37),ROUND(iSummary!T37,1),"") -> 76.4 | H44: =iSummary!W37 -> = | I44: =iSummary!X37 ->  | J44: =IF(iSummary!Y37=0,"",iSummary!Y37) ->  | K44: =iSummary!Z37 -> 1 | M44: =iSummary!AK37 -> 1 | N44: =IF(M44=0,0,IF(R44<=uxb_works!$B$122,1,IF(R44<=uxb_works!$B$121,2,IF(R44<=uxb_works!$B$120,3,4)))) -> 3 | P44: =iSummary!AL37 -> 30 | Q44: =iSummary!AM37 -> Rome | R44: =iSummary!AN37 -> 67.5 | S44: =iSummary!AQ37 -> = | T44: =iSummary!AR37 ->  | U44: =iSummary!AS37 -> 0 | V44: =iSummary!AT37 -> 1 | X44: =iSummary!BE37 -> 1 | Y44: =IF(X44=0,0,IF(AC44<=uxb_works!$B$122,1,IF(AC44<=uxb_works!$B$121,2,IF(AC44<=uxb_works!$B$120,3,4)))) -> 3 | AA44: =iSummary!BF37 -> 30 | AB44: =iSummary!BG37 -> Moscow | AC44: =iSummary!BH37 -> 71.5 | AD44: =iSummary!BK37 -> = | AE44: =iSummary!BL37 ->  | AF44: =iSummary!BM37 -> 0 | AG44: =iSummary!BN37 -> 1 | AI44: =iSummary!BY37 -> 1 | AJ44: =IF(AI44=0,0,IF(AN44<=uxb_works!$B$122,1,IF(AN44<=uxb_works!$B$121,2,IF(AN44<=uxb_works!$B$120,3,4)))) -> 4 | AL44: =iSummary!BZ37 -> 30 | AM44: =iSummary!CA37 -> Dallas | AN44: =iSummary!CB37 -> 81.9 | AO44: =iSummary!CE37 -> = | AP44: =iSummary!CF37 ->  | AQ44: =iSummary!CG37 -> 0 | AR44: =iSummary!CH37 -> 1 | AT44: =iSummary!CS37 -> 1 | AU44: =IF(AT44=0,0,IF(AY44<=uxb_works!$B$122,1,IF(AY44<=uxb_works!$B$121,2,IF(AY44<=uxb_works!$B$120,3,4)))) -> 4 | AW44: =iSummary!CT37 -> 30 | AX44: =iSummary!CU37 -> New York | AY44: =iSummary!CV37 -> 82.2 | AZ44: =iSummary!CY37 -> = | BA44: =iSummary!CZ37 ->  | BB44: =iSummary!DA37 -> 0 | BC44: =iSummary!DB37 -> 1 | BD44: =iSummary!#REF! ->  | BE44: =iSummary!#REF! ->  | BF44: =iSummary!#REF! ->  | BG44: =iSummary!#REF! -> 
B45: =iSummary!Q38 -> 4 | C45: =IF(B45=0,0,IF(G45<=uxb_works!$B$122,1,IF(G45<=uxb_works!$B$121,2,IF(G45<=uxb_works!$B$120,3,4)))) -> 3 | E45: =iSummary!R38 ->  | F45: =iSummary!S38 -> AVERAGE | G45: =IF(ISNUMBER(iSummary!T38),ROUND(iSummary!T38,1),"") -> 71.2 | H45: =iSummary!W38 ->  | I45: =iSummary!X38 ->  | J45: =IF(iSummary!Y38=0,"",iSummary!Y38) ->  | K45: =iSummary!Z38 ->  | M45: =iSummary!AK38 -> 4 | N45: =IF(M45=0,0,IF(R45<=uxb_works!$B$122,1,IF(R45<=uxb_works!$B$121,2,IF(R45<=uxb_works!$B$120,3,4)))) -> 3 | P45: =iSummary!AL38 ->  | Q45: =iSummary!AM38 -> AVERAGE | R45: =iSummary!AN38 -> 67.2 | S45: =iSummary!AQ38 ->  | T45: =iSummary!AR38 ->  | U45: =iSummary!AS38 ->  | V45: =iSummary!AT38 ->  | X45: =iSummary!BE38 -> 1 | Y45: =IF(X45=0,0,IF(AC45<=uxb_works!$B$122,1,IF(AC45<=uxb_works!$B$121,2,IF(AC45<=uxb_works!$B$120,3,4)))) -> 3 | AA45: =iSummary!BF38 -> 31 | AB45: =iSummary!BG38 -> Dubai | AC45: =iSummary!BH38 -> 70.5 | AD45: =iSummary!BK38 -> = | AE45: =iSummary!BL38 ->  | AF45: =iSummary!BM38 -> 0 | AG45: =iSummary!BN38 -> 1 | AI45: =iSummary!BY38 -> 1 | AJ45: =IF(AI45=0,0,IF(AN45<=uxb_works!$B$122,1,IF(AN45<=uxb_works!$B$121,2,IF(AN45<=uxb_works!$B$120,3,4)))) -> 4 | AL45: =iSummary!BZ38 -> 31 | AM45: =iSummary!CA38 -> Istanbul | AN45: =iSummary!CB38 -> 75.8 | AO45: =iSummary!CE38 -> = | AP45: =iSummary!CF38 ->  | AQ45: =iSummary!CG38 -> 0 | AR45: =iSummary!CH38 -> 1 | AT45: =iSummary!CS38 -> 1 | AU45: =IF(AT45=0,0,IF(AY45<=uxb_works!$B$122,1,IF(AY45<=uxb_works!$B$121,2,IF(AY45<=uxb_works!$B$120,3,4)))) -> 4 | AW45: =iSummary!CT38 -> 31 | AX45: =iSummary!CU38 -> Kuala Lumpur | AY45: =iSummary!CV38 -> 81.8 | AZ45: =iSummary!CY38 -> = | BA45: =iSummary!CZ38 ->  | BB45: =iSummary!DA38 -> 0 | BC45: =iSummary!DB38 -> 1 | BD45: =iSummary!#REF! ->  | BE45: =iSummary!#REF! ->  | BF45: =iSummary!#REF! ->  | BG45: =iSummary!#REF! -> 
B46: =iSummary!Q39 -> 1 | C46: =IF(B46=0,0,IF(G46<=uxb_works!$B$122,1,IF(G46<=uxb_works!$B$121,2,IF(G46<=uxb_works!$B$120,3,4)))) -> 3 | E46: =iSummary!R39 -> 31 | F46: =iSummary!S39 -> Beijing | G46: =IF(ISNUMBER(iSummary!T39),ROUND(iSummary!T39,1),"") -> 70.5 | H46: =iSummary!W39 -> = | I46: =iSummary!X39 ->  | J46: =IF(iSummary!Y39=0,"",iSummary!Y39) ->  | K46: =iSummary!Z39 -> 1 | M46: =iSummary!AK39 -> 1 | N46: =IF(M46=0,0,IF(R46<=uxb_works!$B$122,1,IF(R46<=uxb_works!$B$121,2,IF(R46<=uxb_works!$B$120,3,4)))) -> 3 | P46: =iSummary!AL39 -> 31 | Q46: =iSummary!AM39 -> Buenos Aires | R46: =iSummary!AN39 -> 65 | S46: =iSummary!AQ39 -> = | T46: =iSummary!AR39 ->  | U46: =iSummary!AS39 -> 0 | V46: =iSummary!AT39 -> 1 | X46: =iSummary!BE39 -> 1 | Y46: =IF(X46=0,0,IF(AC46<=uxb_works!$B$122,1,IF(AC46<=uxb_works!$B$121,2,IF(AC46<=uxb_works!$B$120,3,4)))) -> 3 | AA46: =iSummary!BF39 -> 32 | AB46: =iSummary!BG39 -> Buenos Aires | AC46: =iSummary!BH39 -> 69.8 | AD46: =iSummary!BK39 -> = | AE46: =iSummary!BL39 ->  | AF46: =iSummary!BM39 -> 0 | AG46: =iSummary!BN39 -> 1 | AI46: =iSummary!BY39 -> 1 | AJ46: =IF(AI46=0,0,IF(AN46<=uxb_works!$B$122,1,IF(AN46<=uxb_works!$B$121,2,IF(AN46<=uxb_works!$B$120,3,4)))) -> 3 | AL46: =iSummary!BZ39 -> 32 | AM46: =iSummary!CA39 -> Moscow | AN46: =iSummary!CB39 -> 73.6 | AO46: =iSummary!CE39 -> = | AP46: =iSummary!CF39 ->  | AQ46: =iSummary!CG39 -> 0 | AR46: =iSummary!CH39 -> 1 | AT46: =iSummary!CS39 -> 1 | AU46: =IF(AT46=0,0,IF(AY46<=uxb_works!$B$122,1,IF(AY46<=uxb_works!$B$121,2,IF(AY46<=uxb_works!$B$120,3,4)))) -> 4 | AW46: =iSummary!CT39 -> 32 | AX46: =iSummary!CU39 -> Los Angeles | AY46: =iSummary!CV39 -> 81.3 | AZ46: =iSummary!CY39 -> = | BA46: =iSummary!CZ39 ->  | BB46: =iSummary!DA39 -> 0 | BC46: =iSummary!DB39 -> 1 | BD46: =iSummary!#REF! ->  | BE46: =iSummary!#REF! ->  | BF46: =iSummary!#REF! ->  | BG46: =iSummary!#REF! -> 
B47: =iSummary!Q40 -> 1 | C47: =IF(B47=0,0,IF(G47<=uxb_works!$B$122,1,IF(G47<=uxb_works!$B$121,2,IF(G47<=uxb_works!$B$120,3,4)))) -> 3 | E47: =iSummary!R40 -> 32 | F47: =iSummary!S40 -> Shanghai | G47: =IF(ISNUMBER(iSummary!T40),ROUND(iSummary!T40,1),"") -> 70.2 | H47: =iSummary!W40 -> = | I47: =iSummary!X40 ->  | J47: =IF(iSummary!Y40=0,"",iSummary!Y40) ->  | K47: =iSummary!Z40 -> 1 | M47: =iSummary!AK40 -> 1 | N47: =IF(M47=0,0,IF(R47<=uxb_works!$B$122,1,IF(R47<=uxb_works!$B$121,2,IF(R47<=uxb_works!$B$120,3,4)))) -> 3 | P47: =iSummary!AL40 -> 32 | Q47: =iSummary!AM40 -> Santiago | R47: =iSummary!AN40 -> 64.6 | S47: =iSummary!AQ40 -> = | T47: =iSummary!AR40 ->  | U47: =iSummary!AS40 -> 0 | V47: =iSummary!AT40 -> 1 | X47: =iSummary!BE40 -> 1 | Y47: =IF(X47=0,0,IF(AC47<=uxb_works!$B$122,1,IF(AC47<=uxb_works!$B$121,2,IF(AC47<=uxb_works!$B$120,3,4)))) -> 3 | AA47: =iSummary!BF40 -> 33 | AB47: =iSummary!BG40 -> Beijing | AC47: =iSummary!BH40 -> 68 | AD47: =iSummary!BK40 -> = | AE47: =iSummary!BL40 ->  | AF47: =iSummary!BM40 -> 0 | AG47: =iSummary!BN40 -> 1 | AI47: =iSummary!BY40 -> 4 | AJ47: =IF(AI47=0,0,IF(AN47<=uxb_works!$B$122,1,IF(AN47<=uxb_works!$B$121,2,IF(AN47<=uxb_works!$B$120,3,4)))) -> 3 | AL47: =iSummary!BZ40 ->  | AM47: =iSummary!CA40 -> AVERAGE | AN47: =iSummary!CB40 -> 72.5 | AO47: =iSummary!CE40 ->  | AP47: =iSummary!CF40 ->  | AQ47: =iSummary!CG40 ->  | AR47: =iSummary!CH40 ->  | AT47: =iSummary!CS40 -> 1 | AU47: =IF(AT47=0,0,IF(AY47<=uxb_works!$B$122,1,IF(AY47<=uxb_works!$B$121,2,IF(AY47<=uxb_works!$B$120,3,4)))) -> 4 | AW47: =iSummary!CT40 -> 33 | AX47: =iSummary!CU40 -> Kuwait city | AY47: =iSummary!CV40 -> 80.4 | AZ47: =iSummary!CY40 -> = | BA47: =iSummary!CZ40 ->  | BB47: =iSummary!DA40 -> 0 | BC47: =iSummary!DB40 -> 1 | BD47: =iSummary!#REF! ->  | BE47: =iSummary!#REF! ->  | BF47: =iSummary!#REF! ->  | BG47: =iSummary!#REF! -> 
B48: =iSummary!Q41 -> 1 | C48: =IF(B48=0,0,IF(G48<=uxb_works!$B$122,1,IF(G48<=uxb_works!$B$121,2,IF(G48<=uxb_works!$B$120,3,4)))) -> 3 | E48: =iSummary!R41 -> 33 | F48: =iSummary!S41 -> Santiago | G48: =IF(ISNUMBER(iSummary!T41),ROUND(iSummary!T41,1),"") -> 69.8 | H48: =iSummary!W41 -> = | I48: =iSummary!X41 ->  | J48: =IF(iSummary!Y41=0,"",iSummary!Y41) ->  | K48: =iSummary!Z41 -> 1 | M48: =iSummary!AK41 -> 1 | N48: =IF(M48=0,0,IF(R48<=uxb_works!$B$122,1,IF(R48<=uxb_works!$B$121,2,IF(R48<=uxb_works!$B$120,3,4)))) -> 3 | P48: =iSummary!AL41 -> 33 | Q48: =iSummary!AM41 -> Istanbul | R48: =iSummary!AN41 -> 61.9 | S48: =iSummary!AQ41 -> = | T48: =iSummary!AR41 ->  | U48: =iSummary!AS41 -> 0 | V48: =iSummary!AT41 -> 1 | X48: =iSummary!BE41 -> 4 | Y48: =IF(X48=0,0,IF(AC48<=uxb_works!$B$122,1,IF(AC48<=uxb_works!$B$121,2,IF(AC48<=uxb_works!$B$120,3,4)))) -> 3 | AA48: =iSummary!BF41 ->  | AB48: =iSummary!BG41 -> AVERAGE | AC48: =iSummary!BH41 -> 68 | AD48: =iSummary!BK41 ->  | AE48: =iSummary!BL41 ->  | AF48: =iSummary!BM41 ->  | AG48: =iSummary!BN41 ->  | AI48: =iSummary!BY41 -> 1 | AJ48: =IF(AI48=0,0,IF(AN48<=uxb_works!$B$122,1,IF(AN48<=uxb_works!$B$121,2,IF(AN48<=uxb_works!$B$120,3,4)))) -> 3 | AL48: =iSummary!BZ41 -> 33 | AM48: =iSummary!CA41 -> Beijing | AN48: =iSummary!CB41 -> 72.1 | AO48: =iSummary!CE41 -> = | AP48: =iSummary!CF41 ->  | AQ48: =iSummary!CG41 -> 0 | AR48: =iSummary!CH41 -> 1 | AT48: =iSummary!CS41 -> 1 | AU48: =IF(AT48=0,0,IF(AY48<=uxb_works!$B$122,1,IF(AY48<=uxb_works!$B$121,2,IF(AY48<=uxb_works!$B$120,3,4)))) -> 4 | AW48: =iSummary!CT41 -> 34 | AX48: =iSummary!CU41 -> Rome | AY48: =iSummary!CV41 -> 79.8 | AZ48: =iSummary!CY41 -> = | BA48: =iSummary!CZ41 ->  | BB48: =iSummary!DA41 -> 0 | BC48: =iSummary!DB41 -> 1 | BD48: =iSummary!#REF! ->  | BE48: =iSummary!#REF! ->  | BF48: =iSummary!#REF! ->  | BG48: =iSummary!#REF! -> 
B49: =iSummary!Q42 -> 1 | C49: =IF(B49=0,0,IF(G49<=uxb_works!$B$122,1,IF(G49<=uxb_works!$B$121,2,IF(G49<=uxb_works!$B$120,3,4)))) -> 3 | E49: =iSummary!R42 -> 34 | F49: =iSummary!S42 -> Buenos Aires | G49: =IF(ISNUMBER(iSummary!T42),ROUND(iSummary!T42,1),"") -> 69.7 | H49: =iSummary!W42 -> = | I49: =iSummary!X42 ->  | J49: =IF(iSummary!Y42=0,"",iSummary!Y42) ->  | K49: =iSummary!Z42 -> 1 | M49: =iSummary!AK42 -> 1 | N49: =IF(M49=0,0,IF(R49<=uxb_works!$B$122,1,IF(R49<=uxb_works!$B$121,2,IF(R49<=uxb_works!$B$120,3,4)))) -> 3 | P49: =iSummary!AL42 -> 34 | Q49: =iSummary!AM42 -> Johannesburg | R49: =iSummary!AN42 -> 60.2 | S49: =iSummary!AQ42 -> = | T49: =iSummary!AR42 ->  | U49: =iSummary!AS42 -> 0 | V49: =iSummary!AT42 -> 1 | X49: =iSummary!BE42 -> 1 | Y49: =IF(X49=0,0,IF(AC49<=uxb_works!$B$122,1,IF(AC49<=uxb_works!$B$121,2,IF(AC49<=uxb_works!$B$120,3,4)))) -> 3 | AA49: =iSummary!BF42 -> 34 | AB49: =iSummary!BG42 -> Shanghai | AC49: =iSummary!BH42 -> 67.5 | AD49: =iSummary!BK42 -> = | AE49: =iSummary!BL42 ->  | AF49: =iSummary!BM42 -> 0 | AG49: =iSummary!BN42 -> 1 | AI49: =iSummary!BY42 -> 1 | AJ49: =IF(AI49=0,0,IF(AN49<=uxb_works!$B$122,1,IF(AN49<=uxb_works!$B$121,2,IF(AN49<=uxb_works!$B$120,3,4)))) -> 3 | AL49: =iSummary!BZ42 -> 34 | AM49: =iSummary!CA42 -> Shanghai | AN49: =iSummary!CB42 -> 72 | AO49: =iSummary!CE42 -> = | AP49: =iSummary!CF42 ->  | AQ49: =iSummary!CG42 -> 0 | AR49: =iSummary!CH42 -> 1 | AT49: =iSummary!CS42 -> 1 | AU49: =IF(AT49=0,0,IF(AY49<=uxb_works!$B$122,1,IF(AY49<=uxb_works!$B$121,2,IF(AY49<=uxb_works!$B$120,3,4)))) -> 4 | AW49: =iSummary!CT42 -> 35 | AX49: =iSummary!CU42 -> Santiago | AY49: =iSummary!CV42 -> 79.4 | AZ49: =iSummary!CY42 -> = | BA49: =iSummary!CZ42 ->  | BB49: =iSummary!DA42 -> 0 | BC49: =iSummary!DB42 -> 1 | BD49: =iSummary!#REF! ->  | BE49: =iSummary!#REF! ->  | BF49: =iSummary!#REF! ->  | BG49: =iSummary!#REF! -> 
B50: =iSummary!Q43 -> 1 | C50: =IF(B50=0,0,IF(G50<=uxb_works!$B$122,1,IF(G50<=uxb_works!$B$121,2,IF(G50<=uxb_works!$B$120,3,4)))) -> 3 | E50: =iSummary!R43 -> 35 | F50: =iSummary!S43 -> Kuala Lumpur | G50: =IF(ISNUMBER(iSummary!T43),ROUND(iSummary!T43,1),"") -> 66.3 | H50: =iSummary!W43 -> = | I50: =iSummary!X43 ->  | J50: =IF(iSummary!Y43=0,"",iSummary!Y43) ->  | K50: =iSummary!Z43 -> 1 | M50: =iSummary!AK43 -> 1 | N50: =IF(M50=0,0,IF(R50<=uxb_works!$B$122,1,IF(R50<=uxb_works!$B$121,2,IF(R50<=uxb_works!$B$120,3,4)))) -> 3 | P50: =iSummary!AL43 -> 35 | Q50: =iSummary!AM43 -> Mexico City | R50: =iSummary!AN43 -> 58.4 | S50: =iSummary!AQ43 -> = | T50: =iSummary!AR43 ->  | U50: =iSummary!AS43 -> 0 | V50: =iSummary!AT43 -> 1 | X50: =iSummary!BE43 -> 1 | Y50: =IF(X50=0,0,IF(AC50<=uxb_works!$B$122,1,IF(AC50<=uxb_works!$B$121,2,IF(AC50<=uxb_works!$B$120,3,4)))) -> 3 | AA50: =iSummary!BF43 -> 35 | AB50: =iSummary!BG43 -> Kuwait city | AC50: =iSummary!BH43 -> 64.8 | AD50: =iSummary!BK43 -> = | AE50: =iSummary!BL43 ->  | AF50: =iSummary!BM43 -> 0 | AG50: =iSummary!BN43 -> 1 | AI50: =iSummary!BY43 -> 1 | AJ50: =IF(AI50=0,0,IF(AN50<=uxb_works!$B$122,1,IF(AN50<=uxb_works!$B$121,2,IF(AN50<=uxb_works!$B$120,3,4)))) -> 3 | AL50: =iSummary!BZ43 -> 35 | AM50: =iSummary!CA43 -> Buenos Aires | AN50: =iSummary!CB43 -> 71.2 | AO50: =iSummary!CE43 -> = | AP50: =iSummary!CF43 ->  | AQ50: =iSummary!CG43 -> 0 | AR50: =iSummary!CH43 -> 1 | AT50: =iSummary!CS43 -> 1 | AU50: =IF(AT50=0,0,IF(AY50<=uxb_works!$B$122,1,IF(AY50<=uxb_works!$B$121,2,IF(AY50<=uxb_works!$B$120,3,4)))) -> 4 | AW50: =iSummary!CT43 -> 36 | AX50: =iSummary!CU43 -> Ho Chi Minh City | AY50: =iSummary!CV43 -> 78.7 | AZ50: =iSummary!CY43 -> = | BA50: =iSummary!CZ43 ->  | BB50: =iSummary!DA43 -> 0 | BC50: =iSummary!DB43 -> 1 | BD50: =iSummary!#REF! ->  | BE50: =iSummary!#REF! ->  | BF50: =iSummary!#REF! ->  | BG50: =iSummary!#REF! -> 
B51: =iSummary!Q44 -> 1 | C51: =IF(B51=0,0,IF(G51<=uxb_works!$B$122,1,IF(G51<=uxb_works!$B$121,2,IF(G51<=uxb_works!$B$120,3,4)))) -> 3 | E51: =iSummary!R44 -> 36 | F51: =iSummary!S44 -> Istanbul | G51: =IF(ISNUMBER(iSummary!T44),ROUND(iSummary!T44,1),"") -> 66.1 | H51: =iSummary!W44 -> = | I51: =iSummary!X44 ->  | J51: =IF(iSummary!Y44=0,"",iSummary!Y44) ->  | K51: =iSummary!Z44 -> 1 | M51: =iSummary!AK44 -> 1 | N51: =IF(M51=0,0,IF(R51<=uxb_works!$B$122,1,IF(R51<=uxb_works!$B$121,2,IF(R51<=uxb_works!$B$120,3,4)))) -> 3 | P51: =iSummary!AL44 -> 36 | Q51: =iSummary!AM44 -> Beijing | R51: =iSummary!AN44 -> 58.1 | S51: =iSummary!AQ44 -> = | T51: =iSummary!AR44 ->  | U51: =iSummary!AS44 -> 0 | V51: =iSummary!AT44 -> 1 | X51: =iSummary!BE44 -> 1 | Y51: =IF(X51=0,0,IF(AC51<=uxb_works!$B$122,1,IF(AC51<=uxb_works!$B$121,2,IF(AC51<=uxb_works!$B$120,3,4)))) -> 3 | AA51: =iSummary!BF44 -> =36 | AB51: =iSummary!BG44 -> Rio de Janeiro | AC51: =iSummary!BH44 -> 64.7 | AD51: =iSummary!BK44 -> = | AE51: =iSummary!BL44 ->  | AF51: =iSummary!BM44 -> 0 | AG51: =iSummary!BN44 -> 1 | AI51: =iSummary!BY44 -> 1 | AJ51: =IF(AI51=0,0,IF(AN51<=uxb_works!$B$122,1,IF(AN51<=uxb_works!$B$121,2,IF(AN51<=uxb_works!$B$120,3,4)))) -> 3 | AL51: =iSummary!BZ44 -> 36 | AM51: =iSummary!CA44 -> Santiago | AN51: =iSummary!CB44 -> 71 | AO51: =iSummary!CE44 -> = | AP51: =iSummary!CF44 ->  | AQ51: =iSummary!CG44 -> 0 | AR51: =iSummary!CH44 -> 1 | AT51: =iSummary!CS44 -> 4 | AU51: =IF(AT51=0,0,IF(AY51<=uxb_works!$B$122,1,IF(AY51<=uxb_works!$B$121,2,IF(AY51<=uxb_works!$B$120,3,4)))) -> 4 | AW51: =iSummary!CT44 ->  | AX51: =iSummary!CU44 -> AVERAGE | AY51: =iSummary!CV44 -> 77 | AZ51: =iSummary!CY44 ->  | BA51: =iSummary!CZ44 ->  | BB51: =iSummary!DA44 ->  | BC51: =iSummary!DB44 ->  | BD51: =iSummary!#REF! ->  | BE51: =iSummary!#REF! ->  | BF51: =iSummary!#REF! ->  | BG51: =iSummary!#REF! -> 
B52: =iSummary!Q45 -> 1 | C52: =IF(B52=0,0,IF(G52<=uxb_works!$B$122,1,IF(G52<=uxb_works!$B$121,2,IF(G52<=uxb_works!$B$120,3,4)))) -> 3 | E52: =iSummary!R45 -> 37 | F52: =iSummary!S45 -> Moscow | G52: =IF(ISNUMBER(iSummary!T45),ROUND(iSummary!T45,1),"") -> 65.8 | H52: =iSummary!W45 -> = | I52: =iSummary!X45 ->  | J52: =IF(iSummary!Y45=0,"",iSummary!Y45) ->  | K52: =iSummary!Z45 -> 1 | M52: =iSummary!AK45 -> 1 | N52: =IF(M52=0,0,IF(R52<=uxb_works!$B$122,1,IF(R52<=uxb_works!$B$121,2,IF(R52<=uxb_works!$B$120,3,4)))) -> 3 | P52: =iSummary!AL45 -> 37 | Q52: =iSummary!AM45 -> Shanghai | R52: =iSummary!AN45 -> 57.4 | S52: =iSummary!AQ45 -> = | T52: =iSummary!AR45 ->  | U52: =iSummary!AS45 -> 0 | V52: =iSummary!AT45 -> 1 | X52: =iSummary!BE45 -> 1 | Y52: =IF(X52=0,0,IF(AC52<=uxb_works!$B$122,1,IF(AC52<=uxb_works!$B$121,2,IF(AC52<=uxb_works!$B$120,3,4)))) -> 3 | AA52: =iSummary!BF45 -> =36 | AB52: =iSummary!BG45 -> Sao Paulo | AC52: =iSummary!BH45 -> 64.7 | AD52: =iSummary!BK45 -> = | AE52: =iSummary!BL45 ->  | AF52: =iSummary!BM45 -> 0 | AG52: =iSummary!BN45 -> 1 | AI52: =iSummary!BY45 -> 1 | AJ52: =IF(AI52=0,0,IF(AN52<=uxb_works!$B$122,1,IF(AN52<=uxb_works!$B$121,2,IF(AN52<=uxb_works!$B$120,3,4)))) -> 3 | AL52: =iSummary!BZ45 -> 37 | AM52: =iSummary!CA45 -> Kuala Lumpur | AN52: =iSummary!CB45 -> 64.7 | AO52: =iSummary!CE45 -> = | AP52: =iSummary!CF45 ->  | AQ52: =iSummary!CG45 -> 0 | AR52: =iSummary!CH45 -> 1 | AT52: =iSummary!CS45 -> 1 | AU52: =IF(AT52=0,0,IF(AY52<=uxb_works!$B$122,1,IF(AY52<=uxb_works!$B$121,2,IF(AY52<=uxb_works!$B$120,3,4)))) -> 4 | AW52: =iSummary!CT45 -> 37 | AX52: =iSummary!CU45 -> Mumbai | AY52: =iSummary!CV45 -> 76.2 | AZ52: =iSummary!CY45 -> = | BA52: =iSummary!CZ45 ->  | BB52: =iSummary!DA45 -> 0 | BC52: =iSummary!DB45 -> 1 | BD52: =iSummary!#REF! ->  | BE52: =iSummary!#REF! ->  | BF52: =iSummary!#REF! ->  | BG52: =iSummary!#REF! -> 
B53: =iSummary!Q46 -> 1 | C53: =IF(B53=0,0,IF(G53<=uxb_works!$B$122,1,IF(G53<=uxb_works!$B$121,2,IF(G53<=uxb_works!$B$120,3,4)))) -> 3 | E53: =iSummary!R46 -> 38 | F53: =iSummary!S46 -> Kuwait city | G53: =IF(ISNUMBER(iSummary!T46),ROUND(iSummary!T46,1),"") -> 64.5 | H53: =iSummary!W46 -> = | I53: =iSummary!X46 ->  | J53: =IF(iSummary!Y46=0,"",iSummary!Y46) ->  | K53: =iSummary!Z46 -> 1 | M53: =iSummary!AK46 -> 1 | N53: =IF(M53=0,0,IF(R53<=uxb_works!$B$122,1,IF(R53<=uxb_works!$B$121,2,IF(R53<=uxb_works!$B$120,3,4)))) -> 3 | P53: =iSummary!AL46 -> 38 | Q53: =iSummary!AM46 -> Riyadh | R53: =iSummary!AN46 -> 56.5 | S53: =iSummary!AQ46 -> = | T53: =iSummary!AR46 ->  | U53: =iSummary!AS46 -> 0 | V53: =iSummary!AT46 -> 1 | X53: =iSummary!BE46 -> 1 | Y53: =IF(X53=0,0,IF(AC53<=uxb_works!$B$122,1,IF(AC53<=uxb_works!$B$121,2,IF(AC53<=uxb_works!$B$120,3,4)))) -> 3 | AA53: =iSummary!BF46 -> =38 | AB53: =iSummary!BG46 -> Kuala Lumpur | AC53: =iSummary!BH46 -> 64.4 | AD53: =iSummary!BK46 -> = | AE53: =iSummary!BL46 ->  | AF53: =iSummary!BM46 -> 0 | AG53: =iSummary!BN46 -> 1 | AI53: =iSummary!BY46 -> 1 | AJ53: =IF(AI53=0,0,IF(AN53<=uxb_works!$B$122,1,IF(AN53<=uxb_works!$B$121,2,IF(AN53<=uxb_works!$B$120,3,4)))) -> 3 | AL53: =iSummary!BZ46 -> 38 | AM53: =iSummary!CA46 -> Mexico City | AN53: =iSummary!CB46 -> 61.5 | AO53: =iSummary!CE46 -> = | AP53: =iSummary!CF46 ->  | AQ53: =iSummary!CG46 -> 0 | AR53: =iSummary!CH46 -> 1 | AT53: =iSummary!CS46 -> 1 | AU53: =IF(AT53=0,0,IF(AY53<=uxb_works!$B$122,1,IF(AY53<=uxb_works!$B$121,2,IF(AY53<=uxb_works!$B$120,3,4)))) -> 4 | AW53: =iSummary!CT46 -> 38 | AX53: =iSummary!CU46 -> Riyadh | AY53: =iSummary!CV46 -> 75.9 | AZ53: =iSummary!CY46 -> = | BA53: =iSummary!CZ46 ->  | BB53: =iSummary!DA46 -> 0 | BC53: =iSummary!DB46 -> 1 | BD53: =iSummary!#REF! ->  | BE53: =iSummary!#REF! ->  | BF53: =iSummary!#REF! ->  | BG53: =iSummary!#REF! -> 
B54: =iSummary!Q47 -> 1 | C54: =IF(B54=0,0,IF(G54<=uxb_works!$B$122,1,IF(G54<=uxb_works!$B$121,2,IF(G54<=uxb_works!$B$120,3,4)))) -> 3 | E54: =iSummary!R47 -> 39 | F54: =iSummary!S47 -> Riyadh | G54: =IF(ISNUMBER(iSummary!T47),ROUND(iSummary!T47,1),"") -> 62.5 | H54: =iSummary!W47 -> = | I54: =iSummary!X47 ->  | J54: =IF(iSummary!Y47=0,"",iSummary!Y47) ->  | K54: =iSummary!Z47 -> 1 | M54: =iSummary!AK47 -> 1 | N54: =IF(M54=0,0,IF(R54<=uxb_works!$B$122,1,IF(R54<=uxb_works!$B$121,2,IF(R54<=uxb_works!$B$120,3,4)))) -> 3 | P54: =iSummary!AL47 -> 39 | Q54: =iSummary!AM47 -> Kuwait city | R54: =iSummary!AN47 -> 56.4 | S54: =iSummary!AQ47 -> = | T54: =iSummary!AR47 ->  | U54: =iSummary!AS47 -> 0 | V54: =iSummary!AT47 -> 1 | X54: =iSummary!BE47 -> 1 | Y54: =IF(X54=0,0,IF(AC54<=uxb_works!$B$122,1,IF(AC54<=uxb_works!$B$121,2,IF(AC54<=uxb_works!$B$120,3,4)))) -> 3 | AA54: =iSummary!BF47 -> =38 | AB54: =iSummary!BG47 -> Santiago | AC54: =iSummary!BH47 -> 64.4 | AD54: =iSummary!BK47 -> = | AE54: =iSummary!BL47 ->  | AF54: =iSummary!BM47 -> 0 | AG54: =iSummary!BN47 -> 1 | AI54: =iSummary!BY47 -> 1 | AJ54: =IF(AI54=0,0,IF(AN54<=uxb_works!$B$122,1,IF(AN54<=uxb_works!$B$121,2,IF(AN54<=uxb_works!$B$120,3,4)))) -> 3 | AL54: =iSummary!BZ47 -> 39 | AM54: =iSummary!CA47 -> Johannesburg | AN54: =iSummary!CB47 -> 57.8 | AO54: =iSummary!CE47 -> = | AP54: =iSummary!CF47 ->  | AQ54: =iSummary!CG47 -> 0 | AR54: =iSummary!CH47 -> 1 | AT54: =iSummary!CS47 -> 1 | AU54: =IF(AT54=0,0,IF(AY54<=uxb_works!$B$122,1,IF(AY54<=uxb_works!$B$121,2,IF(AY54<=uxb_works!$B$120,3,4)))) -> 4 | AW54: =iSummary!CT47 -> 39 | AX54: =iSummary!CU47 -> Moscow | AY54: =iSummary!CV47 -> 75.3 | AZ54: =iSummary!CY47 -> = | BA54: =iSummary!CZ47 ->  | BB54: =iSummary!DA47 -> 0 | BC54: =iSummary!DB47 -> 1 | BD54: =iSummary!#REF! ->  | BE54: =iSummary!#REF! ->  | BF54: =iSummary!#REF! ->  | BG54: =iSummary!#REF! -> 
B55: =iSummary!Q48 -> 1 | C55: =IF(B55=0,0,IF(G55<=uxb_works!$B$122,1,IF(G55<=uxb_works!$B$121,2,IF(G55<=uxb_works!$B$120,3,4)))) -> 3 | E55: =iSummary!R48 -> 40 | F55: =iSummary!S48 -> Mexico City | G55: =IF(ISNUMBER(iSummary!T48),ROUND(iSummary!T48,1),"") -> 61.6 | H55: =iSummary!W48 -> = | I55: =iSummary!X48 ->  | J55: =IF(iSummary!Y48=0,"",iSummary!Y48) ->  | K55: =iSummary!Z48 -> 1 | M55: =iSummary!AK48 -> 1 | N55: =IF(M55=0,0,IF(R55<=uxb_works!$B$122,1,IF(R55<=uxb_works!$B$121,2,IF(R55<=uxb_works!$B$120,3,4)))) -> 3 | P55: =iSummary!AL48 -> 40 | Q55: =iSummary!AM48 -> Bangkok | R55: =iSummary!AN48 -> 56.2 | S55: =iSummary!AQ48 -> = | T55: =iSummary!AR48 ->  | U55: =iSummary!AS48 -> 0 | V55: =iSummary!AT48 -> 1 | X55: =iSummary!BE48 -> 1 | Y55: =IF(X55=0,0,IF(AC55<=uxb_works!$B$122,1,IF(AC55<=uxb_works!$B$121,2,IF(AC55<=uxb_works!$B$120,3,4)))) -> 3 | AA55: =iSummary!BF48 -> 40 | AB55: =iSummary!BG48 -> Mexico City | AC55: =iSummary!BH48 -> 64.1 | AD55: =iSummary!BK48 -> = | AE55: =iSummary!BL48 ->  | AF55: =iSummary!BM48 -> 0 | AG55: =iSummary!BN48 -> 1 | AI55: =iSummary!BY48 -> 1 | AJ55: =IF(AI55=0,0,IF(AN55<=uxb_works!$B$122,1,IF(AN55<=uxb_works!$B$121,2,IF(AN55<=uxb_works!$B$120,3,4)))) -> 3 | AL55: =iSummary!BZ48 -> 40 | AM55: =iSummary!CA48 -> Rio de Janeiro | AN55: =iSummary!CB48 -> 57.7 | AO55: =iSummary!CE48 -> = | AP55: =iSummary!CF48 ->  | AQ55: =iSummary!CG48 -> 0 | AR55: =iSummary!CH48 -> 1 | AT55: =iSummary!CS48 -> 1 | AU55: =IF(AT55=0,0,IF(AY55<=uxb_works!$B$122,1,IF(AY55<=uxb_works!$B$121,2,IF(AY55<=uxb_works!$B$120,3,4)))) -> 3 | AW55: =iSummary!CT48 -> 40 | AX55: =iSummary!CU48 -> Manila | AY55: =iSummary!CV48 -> 74.7 | AZ55: =iSummary!CY48 -> = | BA55: =iSummary!CZ48 ->  | BB55: =iSummary!DA48 -> 0 | BC55: =iSummary!DB48 -> 1 | BD55: =iSummary!#REF! ->  | BE55: =iSummary!#REF! ->  | BF55: =iSummary!#REF! ->  | BG55: =iSummary!#REF! -> 
B56: =iSummary!Q49 -> 1 | C56: =IF(B56=0,0,IF(G56<=uxb_works!$B$122,1,IF(G56<=uxb_works!$B$121,2,IF(G56<=uxb_works!$B$120,3,4)))) -> 3 | E56: =iSummary!R49 -> 41 | F56: =iSummary!S49 -> Rio de Janeiro | G56: =IF(ISNUMBER(iSummary!T49),ROUND(iSummary!T49,1),"") -> 60.9 | H56: =iSummary!W49 -> = | I56: =iSummary!X49 ->  | J56: =IF(iSummary!Y49=0,"",iSummary!Y49) ->  | K56: =iSummary!Z49 -> 1 | M56: =iSummary!AK49 -> 1 | N56: =IF(M56=0,0,IF(R56<=uxb_works!$B$122,1,IF(R56<=uxb_works!$B$121,2,IF(R56<=uxb_works!$B$120,3,4)))) -> 3 | P56: =iSummary!AL49 -> 41 | Q56: =iSummary!AM49 -> Bogota | R56: =iSummary!AN49 -> 54.7 | S56: =iSummary!AQ49 -> = | T56: =iSummary!AR49 ->  | U56: =iSummary!AS49 -> 0 | V56: =iSummary!AT49 -> 1 | X56: =iSummary!BE49 -> 1 | Y56: =IF(X56=0,0,IF(AC56<=uxb_works!$B$122,1,IF(AC56<=uxb_works!$B$121,2,IF(AC56<=uxb_works!$B$120,3,4)))) -> 3 | AA56: =iSummary!BF49 -> 41 | AB56: =iSummary!BG49 -> Baku | AC56: =iSummary!BH49 -> 64 | AD56: =iSummary!BK49 -> = | AE56: =iSummary!BL49 ->  | AF56: =iSummary!BM49 -> 0 | AG56: =iSummary!BN49 -> 1 | AI56: =iSummary!BY49 -> 1 | AJ56: =IF(AI56=0,0,IF(AN56<=uxb_works!$B$122,1,IF(AN56<=uxb_works!$B$121,2,IF(AN56<=uxb_works!$B$120,3,4)))) -> 3 | AL56: =iSummary!BZ49 -> 41 | AM56: =iSummary!CA49 -> Sao Paulo | AN56: =iSummary!CB49 -> 57.2 | AO56: =iSummary!CE49 -> = | AP56: =iSummary!CF49 ->  | AQ56: =iSummary!CG49 -> 0 | AR56: =iSummary!CH49 -> 1 | AT56: =iSummary!CS49 -> 1 | AU56: =IF(AT56=0,0,IF(AY56<=uxb_works!$B$122,1,IF(AY56<=uxb_works!$B$121,2,IF(AY56<=uxb_works!$B$120,3,4)))) -> 3 | AW56: =iSummary!CT49 -> 41 | AX56: =iSummary!CU49 -> New Delhi | AY56: =iSummary!CV49 -> 73.6 | AZ56: =iSummary!CY49 -> = | BA56: =iSummary!CZ49 ->  | BB56: =iSummary!DA49 -> 0 | BC56: =iSummary!DB49 -> 1 | BD56: =iSummary!#REF! ->  | BE56: =iSummary!#REF! ->  | BF56: =iSummary!#REF! ->  | BG56: =iSummary!#REF! -> 
B57: =iSummary!Q50 -> 1 | C57: =IF(B57=0,0,IF(G57<=uxb_works!$B$122,1,IF(G57<=uxb_works!$B$121,2,IF(G57<=uxb_works!$B$120,3,4)))) -> 3 | E57: =iSummary!R50 -> 42 | F57: =iSummary!S50 -> Sao Paulo | G57: =IF(ISNUMBER(iSummary!T50),ROUND(iSummary!T50,1),"") -> 59.7 | H57: =iSummary!W50 -> = | I57: =iSummary!X50 ->  | J57: =IF(iSummary!Y50=0,"",iSummary!Y50) ->  | K57: =iSummary!Z50 -> 1 | M57: =iSummary!AK50 -> 1 | N57: =IF(M57=0,0,IF(R57<=uxb_works!$B$122,1,IF(R57<=uxb_works!$B$121,2,IF(R57<=uxb_works!$B$120,3,4)))) -> 3 | P57: =iSummary!AL50 -> 42 | Q57: =iSummary!AM50 -> Quito | R57: =iSummary!AN50 -> 54.5 | S57: =iSummary!AQ50 -> = | T57: =iSummary!AR50 ->  | U57: =iSummary!AS50 -> 0 | V57: =iSummary!AT50 -> 1 | X57: =iSummary!BE50 -> 1 | Y57: =IF(X57=0,0,IF(AC57<=uxb_works!$B$122,1,IF(AC57<=uxb_works!$B$121,2,IF(AC57<=uxb_works!$B$120,3,4)))) -> 3 | AA57: =iSummary!BF50 -> 42 | AB57: =iSummary!BG50 -> Riyadh | AC57: =iSummary!BH50 -> 62.9 | AD57: =iSummary!BK50 -> = | AE57: =iSummary!BL50 ->  | AF57: =iSummary!BM50 -> 0 | AG57: =iSummary!BN50 -> 1 | AI57: =iSummary!BY50 -> 1 | AJ57: =IF(AI57=0,0,IF(AN57<=uxb_works!$B$122,1,IF(AN57<=uxb_works!$B$121,2,IF(AN57<=uxb_works!$B$120,3,4)))) -> 3 | AL57: =iSummary!BZ50 -> 42 | AM57: =iSummary!CA50 -> Kuwait city | AN57: =iSummary!CB50 -> 56.4 | AO57: =iSummary!CE50 -> = | AP57: =iSummary!CF50 ->  | AQ57: =iSummary!CG50 -> 0 | AR57: =iSummary!CH50 -> 1 | AT57: =iSummary!CS50 -> 1 | AU57: =IF(AT57=0,0,IF(AY57<=uxb_works!$B$122,1,IF(AY57<=uxb_works!$B$121,2,IF(AY57<=uxb_works!$B$120,3,4)))) -> 3 | AW57: =iSummary!CT50 -> 42 | AX57: =iSummary!CU50 -> Buenos Aires | AY57: =iSummary!CV50 -> 72.9 | AZ57: =iSummary!CY50 -> = | BA57: =iSummary!CZ50 ->  | BB57: =iSummary!DA50 -> 0 | BC57: =iSummary!DB50 -> 1 | BD57: =iSummary!#REF! ->  | BE57: =iSummary!#REF! ->  | BF57: =iSummary!#REF! ->  | BG57: =iSummary!#REF! -> 
B58: =iSummary!Q51 -> 1 | C58: =IF(B58=0,0,IF(G58<=uxb_works!$B$122,1,IF(G58<=uxb_works!$B$121,2,IF(G58<=uxb_works!$B$120,3,4)))) -> 3 | E58: =iSummary!R51 -> 43 | F58: =iSummary!S51 -> Manila | G58: =IF(ISNUMBER(iSummary!T51),ROUND(iSummary!T51,1),"") -> 59.2 | H58: =iSummary!W51 -> = | I58: =iSummary!X51 ->  | J58: =IF(iSummary!Y51=0,"",iSummary!Y51) ->  | K58: =iSummary!Z51 -> 1 | M58: =iSummary!AK51 -> 1 | N58: =IF(M58=0,0,IF(R58<=uxb_works!$B$122,1,IF(R58<=uxb_works!$B$121,2,IF(R58<=uxb_works!$B$120,3,4)))) -> 3 | P58: =iSummary!AL51 -> 43 | Q58: =iSummary!AM51 -> Kuala Lumpur | R58: =iSummary!AN51 -> 54.4 | S58: =iSummary!AQ51 -> = | T58: =iSummary!AR51 ->  | U58: =iSummary!AS51 -> 0 | V58: =iSummary!AT51 -> 1 | X58: =iSummary!BE51 -> 1 | Y58: =IF(X58=0,0,IF(AC58<=uxb_works!$B$122,1,IF(AC58<=uxb_works!$B$121,2,IF(AC58<=uxb_works!$B$120,3,4)))) -> 3 | AA58: =iSummary!BF51 -> 43 | AB58: =iSummary!BG51 -> Istanbul | AC58: =iSummary!BH51 -> 61.7 | AD58: =iSummary!BK51 -> = | AE58: =iSummary!BL51 ->  | AF58: =iSummary!BM51 -> 0 | AG58: =iSummary!BN51 -> 1 | AI58: =iSummary!BY51 -> 1 | AJ58: =IF(AI58=0,0,IF(AN58<=uxb_works!$B$122,1,IF(AN58<=uxb_works!$B$121,2,IF(AN58<=uxb_works!$B$120,3,4)))) -> 3 | AL58: =iSummary!BZ51 -> 43 | AM58: =iSummary!CA51 -> Ho Chi Minh City | AN58: =iSummary!CB51 -> 55.4 | AO58: =iSummary!CE51 -> = | AP58: =iSummary!CF51 ->  | AQ58: =iSummary!CG51 -> 0 | AR58: =iSummary!CH51 -> 1 | AT58: =iSummary!CS51 -> 1 | AU58: =IF(AT58=0,0,IF(AY58<=uxb_works!$B$122,1,IF(AY58<=uxb_works!$B$121,2,IF(AY58<=uxb_works!$B$120,3,4)))) -> 3 | AW58: =iSummary!CT51 -> 43 | AX58: =iSummary!CU51 -> Jakarta | AY58: =iSummary!CV51 -> 71.7 | AZ58: =iSummary!CY51 -> = | BA58: =iSummary!CZ51 ->  | BB58: =iSummary!DA51 -> 0 | BC58: =iSummary!DB51 -> 1 | BD58: =iSummary!#REF! ->  | BE58: =iSummary!#REF! ->  | BF58: =iSummary!#REF! ->  | BG58: =iSummary!#REF! -> 
B59: =iSummary!Q52 -> 1 | C59: =IF(B59=0,0,IF(G59<=uxb_works!$B$122,1,IF(G59<=uxb_works!$B$121,2,IF(G59<=uxb_works!$B$120,3,4)))) -> 3 | E59: =iSummary!R52 -> 44 | F59: =iSummary!S52 -> Johannesburg | G59: =IF(ISNUMBER(iSummary!T52),ROUND(iSummary!T52,1),"") -> 58.6 | H59: =iSummary!W52 -> = | I59: =iSummary!X52 ->  | J59: =IF(iSummary!Y52=0,"",iSummary!Y52) ->  | K59: =iSummary!Z52 -> 1 | M59: =iSummary!AK52 -> 1 | N59: =IF(M59=0,0,IF(R59<=uxb_works!$B$122,1,IF(R59<=uxb_works!$B$121,2,IF(R59<=uxb_works!$B$120,3,4)))) -> 3 | P59: =iSummary!AL52 -> 44 | Q59: =iSummary!AM52 -> Rio de Janeiro | R59: =iSummary!AN52 -> 52.7 | S59: =iSummary!AQ52 -> = | T59: =iSummary!AR52 ->  | U59: =iSummary!AS52 -> 0 | V59: =iSummary!AT52 -> 1 | X59: =iSummary!BE52 -> 1 | Y59: =IF(X59=0,0,IF(AC59<=uxb_works!$B$122,1,IF(AC59<=uxb_works!$B$121,2,IF(AC59<=uxb_works!$B$120,3,4)))) -> 3 | AA59: =iSummary!BF52 -> 44 | AB59: =iSummary!BG52 -> Lima | AC59: =iSummary!BH52 -> 60.7 | AD59: =iSummary!BK52 -> = | AE59: =iSummary!BL52 ->  | AF59: =iSummary!BM52 -> 0 | AG59: =iSummary!BN52 -> 1 | AI59: =iSummary!BY52 -> 1 | AJ59: =IF(AI59=0,0,IF(AN59<=uxb_works!$B$122,1,IF(AN59<=uxb_works!$B$121,2,IF(AN59<=uxb_works!$B$120,3,4)))) -> 3 | AL59: =iSummary!BZ52 -> 44 | AM59: =iSummary!CA52 -> Riyadh | AN59: =iSummary!CB52 -> 54.8 | AO59: =iSummary!CE52 -> = | AP59: =iSummary!CF52 ->  | AQ59: =iSummary!CG52 -> 0 | AR59: =iSummary!CH52 -> 1 | AT59: =iSummary!CS52 -> 1 | AU59: =IF(AT59=0,0,IF(AY59<=uxb_works!$B$122,1,IF(AY59<=uxb_works!$B$121,2,IF(AY59<=uxb_works!$B$120,3,4)))) -> 3 | AW59: =iSummary!CT52 -> 44 | AX59: =iSummary!CU52 -> Casablanca | AY59: =iSummary!CV52 -> 69.5 | AZ59: =iSummary!CY52 -> = | BA59: =iSummary!CZ52 ->  | BB59: =iSummary!DA52 -> 0 | BC59: =iSummary!DB52 -> 1 | BD59: =iSummary!#REF! ->  | BE59: =iSummary!#REF! ->  | BF59: =iSummary!#REF! ->  | BG59: =iSummary!#REF! -> 
B60: =iSummary!Q53 -> 1 | C60: =IF(B60=0,0,IF(G60<=uxb_works!$B$122,1,IF(G60<=uxb_works!$B$121,2,IF(G60<=uxb_works!$B$120,3,4)))) -> 3 | E60: =iSummary!R53 -> =45 | F60: =iSummary!S53 -> Lima | G60: =IF(ISNUMBER(iSummary!T53),ROUND(iSummary!T53,1),"") -> 58.2 | H60: =iSummary!W53 -> = | I60: =iSummary!X53 ->  | J60: =IF(iSummary!Y53=0,"",iSummary!Y53) ->  | K60: =iSummary!Z53 -> 1 | M60: =iSummary!AK53 -> 1 | N60: =IF(M60=0,0,IF(R60<=uxb_works!$B$122,1,IF(R60<=uxb_works!$B$121,2,IF(R60<=uxb_works!$B$120,3,4)))) -> 3 | P60: =iSummary!AL53 -> 45 | Q60: =iSummary!AM53 -> Manila | R60: =iSummary!AN53 -> 52.1 | S60: =iSummary!AQ53 -> = | T60: =iSummary!AR53 ->  | U60: =iSummary!AS53 -> 0 | V60: =iSummary!AT53 -> 1 | X60: =iSummary!BE53 -> 1 | Y60: =IF(X60=0,0,IF(AC60<=uxb_works!$B$122,1,IF(AC60<=uxb_works!$B$121,2,IF(AC60<=uxb_works!$B$120,3,4)))) -> 3 | AA60: =iSummary!BF53 -> 45 | AB60: =iSummary!BG53 -> Bangkok | AC60: =iSummary!BH53 -> 59.9 | AD60: =iSummary!BK53 -> = | AE60: =iSummary!BL53 ->  | AF60: =iSummary!BM53 -> 0 | AG60: =iSummary!BN53 -> 1 | AI60: =iSummary!BY53 -> 1 | AJ60: =IF(AI60=0,0,IF(AN60<=uxb_works!$B$122,1,IF(AN60<=uxb_works!$B$121,2,IF(AN60<=uxb_works!$B$120,3,4)))) -> 3 | AL60: =iSummary!BZ53 -> 45 | AM60: =iSummary!CA53 -> Bogota | AN60: =iSummary!CB53 -> 53.9 | AO60: =iSummary!CE53 -> = | AP60: =iSummary!CF53 ->  | AQ60: =iSummary!CG53 -> 0 | AR60: =iSummary!CH53 -> 1 | AT60: =iSummary!CS53 -> 1 | AU60: =IF(AT60=0,0,IF(AY60<=uxb_works!$B$122,1,IF(AY60<=uxb_works!$B$121,2,IF(AY60<=uxb_works!$B$120,3,4)))) -> 3 | AW60: =iSummary!CT53 -> 45 | AX60: =iSummary!CU53 -> Lima | AY60: =iSummary!CV53 -> 69.3 | AZ60: =iSummary!CY53 -> = | BA60: =iSummary!CZ53 ->  | BB60: =iSummary!DA53 -> 0 | BC60: =iSummary!DB53 -> 1 | BD60: =iSummary!#REF! ->  | BE60: =iSummary!#REF! ->  | BF60: =iSummary!#REF! ->  | BG60: =iSummary!#REF! -> 
B61: =iSummary!Q54 -> 1 | C61: =IF(B61=0,0,IF(G61<=uxb_works!$B$122,1,IF(G61<=uxb_works!$B$121,2,IF(G61<=uxb_works!$B$120,3,4)))) -> 3 | E61: =iSummary!R54 -> =45 | F61: =iSummary!S54 -> Mumbai | G61: =IF(ISNUMBER(iSummary!T54),ROUND(iSummary!T54,1),"") -> 58.2 | H61: =iSummary!W54 -> = | I61: =iSummary!X54 ->  | J61: =IF(iSummary!Y54=0,"",iSummary!Y54) ->  | K61: =iSummary!Z54 -> 1 | M61: =iSummary!AK54 -> 1 | N61: =IF(M61=0,0,IF(R61<=uxb_works!$B$122,1,IF(R61<=uxb_works!$B$121,2,IF(R61<=uxb_works!$B$120,3,4)))) -> 3 | P61: =iSummary!AL54 -> 46 | Q61: =iSummary!AM54 -> Baku | R61: =iSummary!AN54 -> 51.7 | S61: =iSummary!AQ54 -> = | T61: =iSummary!AR54 ->  | U61: =iSummary!AS54 -> 0 | V61: =iSummary!AT54 -> 1 | X61: =iSummary!BE54 -> 1 | Y61: =IF(X61=0,0,IF(AC61<=uxb_works!$B$122,1,IF(AC61<=uxb_works!$B$121,2,IF(AC61<=uxb_works!$B$120,3,4)))) -> 3 | AA61: =iSummary!BF54 -> 46 | AB61: =iSummary!BG54 -> Quito | AC61: =iSummary!BH54 -> 59.4 | AD61: =iSummary!BK54 -> = | AE61: =iSummary!BL54 ->  | AF61: =iSummary!BM54 -> 0 | AG61: =iSummary!BN54 -> 1 | AI61: =iSummary!BY54 -> 1 | AJ61: =IF(AI61=0,0,IF(AN61<=uxb_works!$B$122,1,IF(AN61<=uxb_works!$B$121,2,IF(AN61<=uxb_works!$B$120,3,4)))) -> 3 | AL61: =iSummary!BZ54 -> 46 | AM61: =iSummary!CA54 -> Manila | AN61: =iSummary!CB54 -> 53.6 | AO61: =iSummary!CE54 -> = | AP61: =iSummary!CF54 ->  | AQ61: =iSummary!CG54 -> 0 | AR61: =iSummary!CH54 -> 1 | AT61: =iSummary!CS54 -> 1 | AU61: =IF(AT61=0,0,IF(AY61<=uxb_works!$B$122,1,IF(AY61<=uxb_works!$B$121,2,IF(AY61<=uxb_works!$B$120,3,4)))) -> 3 | AW61: =iSummary!CT54 -> 46 | AX61: =iSummary!CU54 -> Rio de Janeiro | AY61: =iSummary!CV54 -> 68.4 | AZ61: =iSummary!CY54 -> = | BA61: =iSummary!CZ54 ->  | BB61: =iSummary!DA54 -> 0 | BC61: =iSummary!DB54 -> 1 | BD61: =iSummary!#REF! ->  | BE61: =iSummary!#REF! ->  | BF61: =iSummary!#REF! ->  | BG61: =iSummary!#REF! -> 
B62: =iSummary!Q55 -> 1 | C62: =IF(B62=0,0,IF(G62<=uxb_works!$B$122,1,IF(G62<=uxb_works!$B$121,2,IF(G62<=uxb_works!$B$120,3,4)))) -> 3 | E62: =iSummary!R55 -> =47 | F62: =iSummary!S55 -> Bangkok | G62: =IF(ISNUMBER(iSummary!T55),ROUND(iSummary!T55,1),"") -> 57.6 | H62: =iSummary!W55 -> = | I62: =iSummary!X55 ->  | J62: =IF(iSummary!Y55=0,"",iSummary!Y55) ->  | K62: =iSummary!Z55 -> 1 | M62: =iSummary!AK55 -> 1 | N62: =IF(M62=0,0,IF(R62<=uxb_works!$B$122,1,IF(R62<=uxb_works!$B$121,2,IF(R62<=uxb_works!$B$120,3,4)))) -> 3 | P62: =iSummary!AL55 -> =47 | Q62: =iSummary!AM55 -> Mumbai | R62: =iSummary!AN55 -> 51 | S62: =iSummary!AQ55 -> = | T62: =iSummary!AR55 ->  | U62: =iSummary!AS55 -> 0 | V62: =iSummary!AT55 -> 1 | X62: =iSummary!BE55 -> 1 | Y62: =IF(X62=0,0,IF(AC62<=uxb_works!$B$122,1,IF(AC62<=uxb_works!$B$121,2,IF(AC62<=uxb_works!$B$120,3,4)))) -> 3 | AA62: =iSummary!BF55 -> 47 | AB62: =iSummary!BG55 -> Bogota | AC62: =iSummary!BH55 -> 59.1 | AD62: =iSummary!BK55 -> = | AE62: =iSummary!BL55 ->  | AF62: =iSummary!BM55 -> 0 | AG62: =iSummary!BN55 -> 1 | AI62: =iSummary!BY55 -> 1 | AJ62: =IF(AI62=0,0,IF(AN62<=uxb_works!$B$122,1,IF(AN62<=uxb_works!$B$121,2,IF(AN62<=uxb_works!$B$120,3,4)))) -> 3 | AL62: =iSummary!BZ55 -> 47 | AM62: =iSummary!CA55 -> Lima | AN62: =iSummary!CB55 -> 53 | AO62: =iSummary!CE55 -> = | AP62: =iSummary!CF55 ->  | AQ62: =iSummary!CG55 -> 0 | AR62: =iSummary!CH55 -> 1 | AT62: =iSummary!CS55 -> 1 | AU62: =IF(AT62=0,0,IF(AY62<=uxb_works!$B$122,1,IF(AY62<=uxb_works!$B$121,2,IF(AY62<=uxb_works!$B$120,3,4)))) -> 3 | AW62: =iSummary!CT55 -> 47 | AX62: =iSummary!CU55 -> Sao Paulo | AY62: =iSummary!CV55 -> 67.5 | AZ62: =iSummary!CY55 -> = | BA62: =iSummary!CZ55 ->  | BB62: =iSummary!DA55 -> 0 | BC62: =iSummary!DB55 -> 1 | BD62: =iSummary!#REF! ->  | BE62: =iSummary!#REF! ->  | BF62: =iSummary!#REF! ->  | BG62: =iSummary!#REF! -> 
B63: =iSummary!Q56 -> 1 | C63: =IF(B63=0,0,IF(G63<=uxb_works!$B$122,1,IF(G63<=uxb_works!$B$121,2,IF(G63<=uxb_works!$B$120,3,4)))) -> 3 | E63: =iSummary!R56 -> =47 | F63: =iSummary!S56 -> Ho Chi Minh City | G63: =IF(ISNUMBER(iSummary!T56),ROUND(iSummary!T56,1),"") -> 57.6 | H63: =iSummary!W56 -> = | I63: =iSummary!X56 ->  | J63: =IF(iSummary!Y56=0,"",iSummary!Y56) ->  | K63: =iSummary!Z56 -> 1 | M63: =iSummary!AK56 -> 1 | N63: =IF(M63=0,0,IF(R63<=uxb_works!$B$122,1,IF(R63<=uxb_works!$B$121,2,IF(R63<=uxb_works!$B$120,3,4)))) -> 3 | P63: =iSummary!AL56 -> =47 | Q63: =iSummary!AM56 -> New Delhi | R63: =iSummary!AN56 -> 51 | S63: =iSummary!AQ56 -> = | T63: =iSummary!AR56 ->  | U63: =iSummary!AS56 -> 0 | V63: =iSummary!AT56 -> 1 | X63: =iSummary!BE56 -> 1 | Y63: =IF(X63=0,0,IF(AC63<=uxb_works!$B$122,1,IF(AC63<=uxb_works!$B$121,2,IF(AC63<=uxb_works!$B$120,3,4)))) -> 3 | AA63: =iSummary!BF56 -> 48 | AB63: =iSummary!BG56 -> Manila | AC63: =iSummary!BH56 -> 56.6 | AD63: =iSummary!BK56 -> = | AE63: =iSummary!BL56 ->  | AF63: =iSummary!BM56 -> 0 | AG63: =iSummary!BN56 -> 1 | AI63: =iSummary!BY56 -> 1 | AJ63: =IF(AI63=0,0,IF(AN63<=uxb_works!$B$122,1,IF(AN63<=uxb_works!$B$121,2,IF(AN63<=uxb_works!$B$120,3,4)))) -> 3 | AL63: =iSummary!BZ56 -> 48 | AM63: =iSummary!CA56 -> Bangkok | AN63: =iSummary!CB56 -> 52.5 | AO63: =iSummary!CE56 -> = | AP63: =iSummary!CF56 ->  | AQ63: =iSummary!CG56 -> 0 | AR63: =iSummary!CH56 -> 1 | AT63: =iSummary!CS56 -> 1 | AU63: =IF(AT63=0,0,IF(AY63<=uxb_works!$B$122,1,IF(AY63<=uxb_works!$B$121,2,IF(AY63<=uxb_works!$B$120,3,4)))) -> 3 | AW63: =iSummary!CT56 -> 48 | AX63: =iSummary!CU56 -> Istanbul | AY63: =iSummary!CV56 -> 65.2 | AZ63: =iSummary!CY56 -> = | BA63: =iSummary!CZ56 ->  | BB63: =iSummary!DA56 -> 0 | BC63: =iSummary!DB56 -> 1 | BD63: =iSummary!#REF! ->  | BE63: =iSummary!#REF! ->  | BF63: =iSummary!#REF! ->  | BG63: =iSummary!#REF! -> 
B64: =iSummary!Q57 -> 1 | C64: =IF(B64=0,0,IF(G64<=uxb_works!$B$122,1,IF(G64<=uxb_works!$B$121,2,IF(G64<=uxb_works!$B$120,3,4)))) -> 3 | E64: =iSummary!R57 -> 49 | F64: =iSummary!S57 -> Baku | G64: =IF(ISNUMBER(iSummary!T57),ROUND(iSummary!T57,1),"") -> 56.4 | H64: =iSummary!W57 -> = | I64: =iSummary!X57 ->  | J64: =IF(iSummary!Y57=0,"",iSummary!Y57) ->  | K64: =iSummary!Z57 -> 1 | M64: =iSummary!AK57 -> 1 | N64: =IF(M64=0,0,IF(R64<=uxb_works!$B$122,1,IF(R64<=uxb_works!$B$121,2,IF(R64<=uxb_works!$B$120,3,4)))) -> 2 | P64: =iSummary!AL57 -> 49 | Q64: =iSummary!AM57 -> Lima | R64: =iSummary!AN57 -> 49.8 | S64: =iSummary!AQ57 -> = | T64: =iSummary!AR57 ->  | U64: =iSummary!AS57 -> 0 | V64: =iSummary!AT57 -> 1 | X64: =iSummary!BE57 -> 1 | Y64: =IF(X64=0,0,IF(AC64<=uxb_works!$B$122,1,IF(AC64<=uxb_works!$B$121,2,IF(AC64<=uxb_works!$B$120,3,4)))) -> 3 | AA64: =iSummary!BF57 -> 49 | AB64: =iSummary!BG57 -> Ho Chi Minh City | AC64: =iSummary!BH57 -> 56.3 | AD64: =iSummary!BK57 -> = | AE64: =iSummary!BL57 ->  | AF64: =iSummary!BM57 -> 0 | AG64: =iSummary!BN57 -> 1 | AI64: =iSummary!BY57 -> 1 | AJ64: =IF(AI64=0,0,IF(AN64<=uxb_works!$B$122,1,IF(AN64<=uxb_works!$B$121,2,IF(AN64<=uxb_works!$B$120,3,4)))) -> 3 | AL64: =iSummary!BZ57 -> 49 | AM64: =iSummary!CA57 -> Jakarta | AN64: =iSummary!CB57 -> 52.3 | AO64: =iSummary!CE57 -> = | AP64: =iSummary!CF57 ->  | AQ64: =iSummary!CG57 -> 0 | AR64: =iSummary!CH57 -> 1 | AT64: =iSummary!CS57 -> 1 | AU64: =IF(AT64=0,0,IF(AY64<=uxb_works!$B$122,1,IF(AY64<=uxb_works!$B$121,2,IF(AY64<=uxb_works!$B$120,3,4)))) -> 3 | AW64: =iSummary!CT57 -> 49 | AX64: =iSummary!CU57 -> Baku | AY64: =iSummary!CV57 -> 63.7 | AZ64: =iSummary!CY57 -> = | BA64: =iSummary!CZ57 ->  | BB64: =iSummary!DA57 -> 0 | BC64: =iSummary!DB57 -> 1 | BD64: =iSummary!#REF! ->  | BE64: =iSummary!#REF! ->  | BF64: =iSummary!#REF! ->  | BG64: =iSummary!#REF! -> 
B65: =iSummary!Q58 -> 1 | C65: =IF(B65=0,0,IF(G65<=uxb_works!$B$122,1,IF(G65<=uxb_works!$B$121,2,IF(G65<=uxb_works!$B$120,3,4)))) -> 3 | E65: =iSummary!R58 -> 50 | F65: =iSummary!S58 -> Quito | G65: =IF(ISNUMBER(iSummary!T58),ROUND(iSummary!T58,1),"") -> 55.3 | H65: =iSummary!W58 -> = | I65: =iSummary!X58 ->  | J65: =IF(iSummary!Y58=0,"",iSummary!Y58) ->  | K65: =iSummary!Z58 -> 1 | M65: =iSummary!AK58 -> 1 | N65: =IF(M65=0,0,IF(R65<=uxb_works!$B$122,1,IF(R65<=uxb_works!$B$121,2,IF(R65<=uxb_works!$B$120,3,4)))) -> 2 | P65: =iSummary!AL58 -> 50 | Q65: =iSummary!AM58 -> Sao Paulo | R65: =iSummary!AN58 -> 49.4 | S65: =iSummary!AQ58 -> = | T65: =iSummary!AR58 ->  | U65: =iSummary!AS58 -> 0 | V65: =iSummary!AT58 -> 1 | X65: =iSummary!BE58 -> 1 | Y65: =IF(X65=0,0,IF(AC65<=uxb_works!$B$122,1,IF(AC65<=uxb_works!$B$121,2,IF(AC65<=uxb_works!$B$120,3,4)))) -> 3 | AA65: =iSummary!BF58 -> 50 | AB65: =iSummary!BG58 -> Mumbai | AC65: =iSummary!BH58 -> 55.8 | AD65: =iSummary!BK58 -> = | AE65: =iSummary!BL58 ->  | AF65: =iSummary!BM58 -> 0 | AG65: =iSummary!BN58 -> 1 | AI65: =iSummary!BY58 -> 1 | AJ65: =IF(AI65=0,0,IF(AN65<=uxb_works!$B$122,1,IF(AN65<=uxb_works!$B$121,2,IF(AN65<=uxb_works!$B$120,3,4)))) -> 2 | AL65: =iSummary!BZ58 -> 50 | AM65: =iSummary!CA58 -> Mumbai | AN65: =iSummary!CB58 -> 50 | AO65: =iSummary!CE58 -> = | AP65: =iSummary!CF58 ->  | AQ65: =iSummary!CG58 -> 0 | AR65: =iSummary!CH58 -> 1 | AT65: =iSummary!CS58 -> 1 | AU65: =IF(AT65=0,0,IF(AY65<=uxb_works!$B$122,1,IF(AY65<=uxb_works!$B$121,2,IF(AY65<=uxb_works!$B$120,3,4)))) -> 3 | AW65: =iSummary!CT58 -> 50 | AX65: =iSummary!CU58 -> Johannesburg | AY65: =iSummary!CV58 -> 63.2 | AZ65: =iSummary!CY58 -> = | BA65: =iSummary!CZ58 ->  | BB65: =iSummary!DA58 -> 0 | BC65: =iSummary!DB58 -> 1 | BD65: =iSummary!#REF! ->  | BE65: =iSummary!#REF! ->  | BF65: =iSummary!#REF! ->  | BG65: =iSummary!#REF! -> 
B66: =iSummary!Q59 -> 1 | C66: =IF(B66=0,0,IF(G66<=uxb_works!$B$122,1,IF(G66<=uxb_works!$B$121,2,IF(G66<=uxb_works!$B$120,3,4)))) -> 3 | E66: =iSummary!R59 -> 51 | F66: =iSummary!S59 -> Bogota | G66: =IF(ISNUMBER(iSummary!T59),ROUND(iSummary!T59,1),"") -> 55.1 | H66: =iSummary!W59 -> = | I66: =iSummary!X59 ->  | J66: =IF(iSummary!Y59=0,"",iSummary!Y59) ->  | K66: =iSummary!Z59 -> 1 | M66: =iSummary!AK59 -> 1 | N66: =IF(M66=0,0,IF(R66<=uxb_works!$B$122,1,IF(R66<=uxb_works!$B$121,2,IF(R66<=uxb_works!$B$120,3,4)))) -> 2 | P66: =iSummary!AL59 -> 51 | Q66: =iSummary!AM59 -> Casablanca | R66: =iSummary!AN59 -> 44.9 | S66: =iSummary!AQ59 -> = | T66: =iSummary!AR59 ->  | U66: =iSummary!AS59 -> 0 | V66: =iSummary!AT59 -> 1 | X66: =iSummary!BE59 -> 1 | Y66: =IF(X66=0,0,IF(AC66<=uxb_works!$B$122,1,IF(AC66<=uxb_works!$B$121,2,IF(AC66<=uxb_works!$B$120,3,4)))) -> 3 | AA66: =iSummary!BF59 -> 51 | AB66: =iSummary!BG59 -> New Delhi | AC66: =iSummary!BH59 -> 54.6 | AD66: =iSummary!BK59 -> = | AE66: =iSummary!BL59 ->  | AF66: =iSummary!BM59 -> 0 | AG66: =iSummary!BN59 -> 1 | AI66: =iSummary!BY59 -> 1 | AJ66: =IF(AI66=0,0,IF(AN66<=uxb_works!$B$122,1,IF(AN66<=uxb_works!$B$121,2,IF(AN66<=uxb_works!$B$120,3,4)))) -> 2 | AL66: =iSummary!BZ59 -> 51 | AM66: =iSummary!CA59 -> Quito | AN66: =iSummary!CB59 -> 49.9 | AO66: =iSummary!CE59 -> = | AP66: =iSummary!CF59 ->  | AQ66: =iSummary!CG59 -> 0 | AR66: =iSummary!CH59 -> 1 | AT66: =iSummary!CS59 -> 1 | AU66: =IF(AT66=0,0,IF(AY66<=uxb_works!$B$122,1,IF(AY66<=uxb_works!$B$121,2,IF(AY66<=uxb_works!$B$120,3,4)))) -> 3 | AW66: =iSummary!CT59 -> 51 | AX66: =iSummary!CU59 -> Mexico City | AY66: =iSummary!CV59 -> 62.3 | AZ66: =iSummary!CY59 -> = | BA66: =iSummary!CZ59 ->  | BB66: =iSummary!DA59 -> 0 | BC66: =iSummary!DB59 -> 1 | BD66: =iSummary!#REF! ->  | BE66: =iSummary!#REF! ->  | BF66: =iSummary!#REF! ->  | BG66: =iSummary!#REF! -> 
B67: =iSummary!Q60 -> 1 | C67: =IF(B67=0,0,IF(G67<=uxb_works!$B$122,1,IF(G67<=uxb_works!$B$121,2,IF(G67<=uxb_works!$B$120,3,4)))) -> 3 | E67: =iSummary!R60 -> 52 | F67: =iSummary!S60 -> New Delhi | G67: =IF(ISNUMBER(iSummary!T60),ROUND(iSummary!T60,1),"") -> 55 | H67: =iSummary!W60 -> = | I67: =iSummary!X60 ->  | J67: =IF(iSummary!Y60=0,"",iSummary!Y60) ->  | K67: =iSummary!Z60 -> 1 | M67: =iSummary!AK60 -> 1 | N67: =IF(M67=0,0,IF(R67<=uxb_works!$B$122,1,IF(R67<=uxb_works!$B$121,2,IF(R67<=uxb_works!$B$120,3,4)))) -> 2 | P67: =iSummary!AL60 -> 52 | Q67: =iSummary!AM60 -> Karachi | R67: =iSummary!AN60 -> 43.1 | S67: =iSummary!AQ60 -> = | T67: =iSummary!AR60 ->  | U67: =iSummary!AS60 -> 0 | V67: =iSummary!AT60 -> 1 | X67: =iSummary!BE60 -> 1 | Y67: =IF(X67=0,0,IF(AC67<=uxb_works!$B$122,1,IF(AC67<=uxb_works!$B$121,2,IF(AC67<=uxb_works!$B$120,3,4)))) -> 3 | AA67: =iSummary!BF60 -> 52 | AB67: =iSummary!BG60 -> Johannesburg | AC67: =iSummary!BH60 -> 53.2 | AD67: =iSummary!BK60 -> = | AE67: =iSummary!BL60 ->  | AF67: =iSummary!BM60 -> 0 | AG67: =iSummary!BN60 -> 1 | AI67: =iSummary!BY60 -> 1 | AJ67: =IF(AI67=0,0,IF(AN67<=uxb_works!$B$122,1,IF(AN67<=uxb_works!$B$121,2,IF(AN67<=uxb_works!$B$120,3,4)))) -> 2 | AL67: =iSummary!BZ60 -> 52 | AM67: =iSummary!CA60 -> Casablanca | AN67: =iSummary!CB60 -> 49.6 | AO67: =iSummary!CE60 -> = | AP67: =iSummary!CF60 ->  | AQ67: =iSummary!CG60 -> 0 | AR67: =iSummary!CH60 -> 1 | AT67: =iSummary!CS60 -> 1 | AU67: =IF(AT67=0,0,IF(AY67<=uxb_works!$B$122,1,IF(AY67<=uxb_works!$B$121,2,IF(AY67<=uxb_works!$B$120,3,4)))) -> 3 | AW67: =iSummary!CT60 -> 52 | AX67: =iSummary!CU60 -> Bangkok | AY67: =iSummary!CV60 -> 61.8 | AZ67: =iSummary!CY60 -> = | BA67: =iSummary!CZ60 ->  | BB67: =iSummary!DA60 -> 0 | BC67: =iSummary!DB60 -> 1 | BD67: =iSummary!#REF! ->  | BE67: =iSummary!#REF! ->  | BF67: =iSummary!#REF! ->  | BG67: =iSummary!#REF! -> 
B68: =iSummary!Q61 -> 1 | C68: =IF(B68=0,0,IF(G68<=uxb_works!$B$122,1,IF(G68<=uxb_works!$B$121,2,IF(G68<=uxb_works!$B$120,3,4)))) -> 3 | E68: =iSummary!R61 -> 53 | F68: =iSummary!S61 -> Jakarta | G68: =IF(ISNUMBER(iSummary!T61),ROUND(iSummary!T61,1),"") -> 54.5 | H68: =iSummary!W61 -> = | I68: =iSummary!X61 ->  | J68: =IF(iSummary!Y61=0,"",iSummary!Y61) ->  | K68: =iSummary!Z61 -> 1 | M68: =iSummary!AK61 -> 1 | N68: =IF(M68=0,0,IF(R68<=uxb_works!$B$122,1,IF(R68<=uxb_works!$B$121,2,IF(R68<=uxb_works!$B$120,3,4)))) -> 2 | P68: =iSummary!AL61 -> 53 | Q68: =iSummary!AM61 -> Caracas | R68: =iSummary!AN61 -> 42.9 | S68: =iSummary!AQ61 -> = | T68: =iSummary!AR61 ->  | U68: =iSummary!AS61 -> 0 | V68: =iSummary!AT61 -> 1 | X68: =iSummary!BE61 -> 1 | Y68: =IF(X68=0,0,IF(AC68<=uxb_works!$B$122,1,IF(AC68<=uxb_works!$B$121,2,IF(AC68<=uxb_works!$B$120,3,4)))) -> 3 | AA68: =iSummary!BF61 -> 53 | AB68: =iSummary!BG61 -> Jakarta | AC68: =iSummary!BH61 -> 51.7 | AD68: =iSummary!BK61 -> = | AE68: =iSummary!BL61 ->  | AF68: =iSummary!BM61 -> 0 | AG68: =iSummary!BN61 -> 1 | AI68: =iSummary!BY61 -> 1 | AJ68: =IF(AI68=0,0,IF(AN68<=uxb_works!$B$122,1,IF(AN68<=uxb_works!$B$121,2,IF(AN68<=uxb_works!$B$120,3,4)))) -> 2 | AL68: =iSummary!BZ61 -> 53 | AM68: =iSummary!CA61 -> Cairo | AN68: =iSummary!CB61 -> 48.2 | AO68: =iSummary!CE61 -> = | AP68: =iSummary!CF61 ->  | AQ68: =iSummary!CG61 -> 0 | AR68: =iSummary!CH61 -> 1 | AT68: =iSummary!CS61 -> 1 | AU68: =IF(AT68=0,0,IF(AY68<=uxb_works!$B$122,1,IF(AY68<=uxb_works!$B$121,2,IF(AY68<=uxb_works!$B$120,3,4)))) -> 3 | AW68: =iSummary!CT61 -> 53 | AX68: =iSummary!CU61 -> Cairo | AY68: =iSummary!CV61 -> 59.3 | AZ68: =iSummary!CY61 -> = | BA68: =iSummary!CZ61 ->  | BB68: =iSummary!DA61 -> 0 | BC68: =iSummary!DB61 -> 1 | BD68: =iSummary!#REF! ->  | BE68: =iSummary!#REF! ->  | BF68: =iSummary!#REF! ->  | BG68: =iSummary!#REF! -> 
B69: =iSummary!Q62 -> 1 | C69: =IF(B69=0,0,IF(G69<=uxb_works!$B$122,1,IF(G69<=uxb_works!$B$121,2,IF(G69<=uxb_works!$B$120,3,4)))) -> 3 | E69: =iSummary!R62 -> 54 | F69: =iSummary!S62 -> Casablanca | G69: =IF(ISNUMBER(iSummary!T62),ROUND(iSummary!T62,1),"") -> 53.5 | H69: =iSummary!W62 -> = | I69: =iSummary!X62 ->  | J69: =IF(iSummary!Y62=0,"",iSummary!Y62) ->  | K69: =iSummary!Z62 -> 1 | M69: =iSummary!AK62 -> 1 | N69: =IF(M69=0,0,IF(R69<=uxb_works!$B$122,1,IF(R69<=uxb_works!$B$121,2,IF(R69<=uxb_works!$B$120,3,4)))) -> 2 | P69: =iSummary!AL62 -> 54 | Q69: =iSummary!AM62 -> Moscow | R69: =iSummary!AN62 -> 42.8 | S69: =iSummary!AQ62 -> = | T69: =iSummary!AR62 ->  | U69: =iSummary!AS62 -> 0 | V69: =iSummary!AT62 -> 1 | X69: =iSummary!BE62 -> 1 | Y69: =IF(X69=0,0,IF(AC69<=uxb_works!$B$122,1,IF(AC69<=uxb_works!$B$121,2,IF(AC69<=uxb_works!$B$120,3,4)))) -> 2 | AA69: =iSummary!BF62 -> 54 | AB69: =iSummary!BG62 -> Casablanca | AC69: =iSummary!BH62 -> 50 | AD69: =iSummary!BK62 -> = | AE69: =iSummary!BL62 ->  | AF69: =iSummary!BM62 -> 0 | AG69: =iSummary!BN62 -> 1 | AI69: =iSummary!BY62 -> 1 | AJ69: =IF(AI69=0,0,IF(AN69<=uxb_works!$B$122,1,IF(AN69<=uxb_works!$B$121,2,IF(AN69<=uxb_works!$B$120,3,4)))) -> 2 | AL69: =iSummary!BZ62 -> 54 | AM69: =iSummary!CA62 -> Baku | AN69: =iSummary!CB62 -> 46.3 | AO69: =iSummary!CE62 -> = | AP69: =iSummary!CF62 ->  | AQ69: =iSummary!CG62 -> 0 | AR69: =iSummary!CH62 -> 1 | AT69: =iSummary!CS62 -> 1 | AU69: =IF(AT69=0,0,IF(AY69<=uxb_works!$B$122,1,IF(AY69<=uxb_works!$B$121,2,IF(AY69<=uxb_works!$B$120,3,4)))) -> 3 | AW69: =iSummary!CT62 -> 54 | AX69: =iSummary!CU62 -> Quito | AY69: =iSummary!CV62 -> 57.5 | AZ69: =iSummary!CY62 -> = | BA69: =iSummary!CZ62 ->  | BB69: =iSummary!DA62 -> 0 | BC69: =iSummary!DB62 -> 1 | BD69: =iSummary!#REF! ->  | BE69: =iSummary!#REF! ->  | BF69: =iSummary!#REF! ->  | BG69: =iSummary!#REF! -> 
B70: =iSummary!Q63 -> 1 | C70: =IF(B70=0,0,IF(G70<=uxb_works!$B$122,1,IF(G70<=uxb_works!$B$121,2,IF(G70<=uxb_works!$B$120,3,4)))) -> 2 | E70: =iSummary!R63 -> 55 | F70: =iSummary!S63 -> Cairo | G70: =IF(ISNUMBER(iSummary!T63),ROUND(iSummary!T63,1),"") -> 48.6 | H70: =iSummary!W63 -> = | I70: =iSummary!X63 ->  | J70: =IF(iSummary!Y63=0,"",iSummary!Y63) ->  | K70: =iSummary!Z63 -> 1 | M70: =iSummary!AK63 -> 1 | N70: =IF(M70=0,0,IF(R70<=uxb_works!$B$122,1,IF(R70<=uxb_works!$B$121,2,IF(R70<=uxb_works!$B$120,3,4)))) -> 2 | P70: =iSummary!AL63 -> 55 | Q70: =iSummary!AM63 -> Jakarta | R70: =iSummary!AN63 -> 42.3 | S70: =iSummary!AQ63 -> = | T70: =iSummary!AR63 ->  | U70: =iSummary!AS63 -> 0 | V70: =iSummary!AT63 -> 1 | X70: =iSummary!BE63 -> 1 | Y70: =IF(X70=0,0,IF(AC70<=uxb_works!$B$122,1,IF(AC70<=uxb_works!$B$121,2,IF(AC70<=uxb_works!$B$120,3,4)))) -> 2 | AA70: =iSummary!BF63 -> 55 | AB70: =iSummary!BG63 -> Caracas | AC70: =iSummary!BH63 -> 48.1 | AD70: =iSummary!BK63 -> = | AE70: =iSummary!BL63 ->  | AF70: =iSummary!BM63 -> 0 | AG70: =iSummary!BN63 -> 1 | AI70: =iSummary!BY63 -> 1 | AJ70: =IF(AI70=0,0,IF(AN70<=uxb_works!$B$122,1,IF(AN70<=uxb_works!$B$121,2,IF(AN70<=uxb_works!$B$120,3,4)))) -> 2 | AL70: =iSummary!BZ63 -> 55 | AM70: =iSummary!CA63 -> Karachi | AN70: =iSummary!CB63 -> 46.1 | AO70: =iSummary!CE63 -> = | AP70: =iSummary!CF63 ->  | AQ70: =iSummary!CG63 -> 0 | AR70: =iSummary!CH63 -> 1 | AT70: =iSummary!CS63 -> 1 | AU70: =IF(AT70=0,0,IF(AY70<=uxb_works!$B$122,1,IF(AY70<=uxb_works!$B$121,2,IF(AY70<=uxb_works!$B$120,3,4)))) -> 3 | AW70: =iSummary!CT63 -> 55 | AX70: =iSummary!CU63 -> Dhaka | AY70: =iSummary!CV63 -> 57.4 | AZ70: =iSummary!CY63 -> = | BA70: =iSummary!CZ63 ->  | BB70: =iSummary!DA63 -> 0 | BC70: =iSummary!DB63 -> 1 | BD70: =iSummary!#REF! ->  | BE70: =iSummary!#REF! ->  | BF70: =iSummary!#REF! ->  | BG70: =iSummary!#REF! -> 
B71: =iSummary!Q64 -> 1 | C71: =IF(B71=0,0,IF(G71<=uxb_works!$B$122,1,IF(G71<=uxb_works!$B$121,2,IF(G71<=uxb_works!$B$120,3,4)))) -> 2 | E71: =iSummary!R64 -> 56 | F71: =iSummary!S64 -> Dhaka | G71: =IF(ISNUMBER(iSummary!T64),ROUND(iSummary!T64,1),"") -> 44.6 | H71: =iSummary!W64 -> = | I71: =iSummary!X64 ->  | J71: =IF(iSummary!Y64=0,"",iSummary!Y64) ->  | K71: =iSummary!Z64 -> 1 | M71: =iSummary!AK64 -> 1 | N71: =IF(M71=0,0,IF(R71<=uxb_works!$B$122,1,IF(R71<=uxb_works!$B$121,2,IF(R71<=uxb_works!$B$120,3,4)))) -> 2 | P71: =iSummary!AL64 -> 56 | Q71: =iSummary!AM64 -> Lagos | R71: =iSummary!AN64 -> 42.2 | S71: =iSummary!AQ64 -> = | T71: =iSummary!AR64 ->  | U71: =iSummary!AS64 -> 0 | V71: =iSummary!AT64 -> 1 | X71: =iSummary!BE64 -> 1 | Y71: =IF(X71=0,0,IF(AC71<=uxb_works!$B$122,1,IF(AC71<=uxb_works!$B$121,2,IF(AC71<=uxb_works!$B$120,3,4)))) -> 2 | AA71: =iSummary!BF64 -> 56 | AB71: =iSummary!BG64 -> Cairo | AC71: =iSummary!BH64 -> 46.1 | AD71: =iSummary!BK64 -> = | AE71: =iSummary!BL64 ->  | AF71: =iSummary!BM64 -> 0 | AG71: =iSummary!BN64 -> 1 | AI71: =iSummary!BY64 -> 1 | AJ71: =IF(AI71=0,0,IF(AN71<=uxb_works!$B$122,1,IF(AN71<=uxb_works!$B$121,2,IF(AN71<=uxb_works!$B$120,3,4)))) -> 2 | AL71: =iSummary!BZ64 -> 56 | AM71: =iSummary!CA64 -> Yangon | AN71: =iSummary!CB64 -> 45.3 | AO71: =iSummary!CE64 -> = | AP71: =iSummary!CF64 ->  | AQ71: =iSummary!CG64 -> 0 | AR71: =iSummary!CH64 -> 1 | AT71: =iSummary!CS64 -> 1 | AU71: =IF(AT71=0,0,IF(AY71<=uxb_works!$B$122,1,IF(AY71<=uxb_works!$B$121,2,IF(AY71<=uxb_works!$B$120,3,4)))) -> 3 | AW71: =iSummary!CT64 -> 56 | AX71: =iSummary!CU64 -> Bogota | AY71: =iSummary!CV64 -> 52.8 | AZ71: =iSummary!CY64 -> = | BA71: =iSummary!CZ64 ->  | BB71: =iSummary!DA64 -> 0 | BC71: =iSummary!DB64 -> 1 | BD71: =iSummary!#REF! ->  | BE71: =iSummary!#REF! ->  | BF71: =iSummary!#REF! ->  | BG71: =iSummary!#REF! -> 
B72: =iSummary!Q65 -> 1 | C72: =IF(B72=0,0,IF(G72<=uxb_works!$B$122,1,IF(G72<=uxb_works!$B$121,2,IF(G72<=uxb_works!$B$120,3,4)))) -> 2 | E72: =iSummary!R65 -> 57 | F72: =iSummary!S65 -> Karachi | G72: =IF(ISNUMBER(iSummary!T65),ROUND(iSummary!T65,1),"") -> 43.5 | H72: =iSummary!W65 -> = | I72: =iSummary!X65 ->  | J72: =IF(iSummary!Y65=0,"",iSummary!Y65) ->  | K72: =iSummary!Z65 -> 1 | M72: =iSummary!AK65 -> 1 | N72: =IF(M72=0,0,IF(R72<=uxb_works!$B$122,1,IF(R72<=uxb_works!$B$121,2,IF(R72<=uxb_works!$B$120,3,4)))) -> 2 | P72: =iSummary!AL65 -> 57 | Q72: =iSummary!AM65 -> Dhaka | R72: =iSummary!AN65 -> 41.9 | S72: =iSummary!AQ65 -> = | T72: =iSummary!AR65 ->  | U72: =iSummary!AS65 -> 0 | V72: =iSummary!AT65 -> 1 | X72: =iSummary!BE65 -> 1 | Y72: =IF(X72=0,0,IF(AC72<=uxb_works!$B$122,1,IF(AC72<=uxb_works!$B$121,2,IF(AC72<=uxb_works!$B$120,3,4)))) -> 2 | AA72: =iSummary!BF65 -> 57 | AB72: =iSummary!BG65 -> Dhaka | AC72: =iSummary!BH65 -> 45.1 | AD72: =iSummary!BK65 -> = | AE72: =iSummary!BL65 ->  | AF72: =iSummary!BM65 -> 0 | AG72: =iSummary!BN65 -> 1 | AI72: =iSummary!BY65 -> 1 | AJ72: =IF(AI72=0,0,IF(AN72<=uxb_works!$B$122,1,IF(AN72<=uxb_works!$B$121,2,IF(AN72<=uxb_works!$B$120,3,4)))) -> 2 | AL72: =iSummary!BZ65 -> 57 | AM72: =iSummary!CA65 -> New Delhi | AN72: =iSummary!CB65 -> 40.7 | AO72: =iSummary!CE65 -> = | AP72: =iSummary!CF65 ->  | AQ72: =iSummary!CG65 -> 0 | AR72: =iSummary!CH65 -> 1 | AT72: =iSummary!CS65 -> 1 | AU72: =IF(AT72=0,0,IF(AY72<=uxb_works!$B$122,1,IF(AY72<=uxb_works!$B$121,2,IF(AY72<=uxb_works!$B$120,3,4)))) -> 3 | AW72: =iSummary!CT65 -> 57 | AX72: =iSummary!CU65 -> Yangon | AY72: =iSummary!CV65 -> 52.3 | AZ72: =iSummary!CY65 -> = | BA72: =iSummary!CZ65 ->  | BB72: =iSummary!DA65 -> 0 | BC72: =iSummary!DB65 -> 1 | BD72: =iSummary!#REF! ->  | BE72: =iSummary!#REF! ->  | BF72: =iSummary!#REF! ->  | BG72: =iSummary!#REF! -> 
B73: =iSummary!Q66 -> 1 | C73: =IF(B73=0,0,IF(G73<=uxb_works!$B$122,1,IF(G73<=uxb_works!$B$121,2,IF(G73<=uxb_works!$B$120,3,4)))) -> 2 | E73: =iSummary!R66 -> 58 | F73: =iSummary!S66 -> Yangon | G73: =IF(ISNUMBER(iSummary!T66),ROUND(iSummary!T66,1),"") -> 41.9 | H73: =iSummary!W66 -> = | I73: =iSummary!X66 ->  | J73: =IF(iSummary!Y66=0,"",iSummary!Y66) ->  | K73: =iSummary!Z66 -> 1 | M73: =iSummary!AK66 -> 1 | N73: =IF(M73=0,0,IF(R73<=uxb_works!$B$122,1,IF(R73<=uxb_works!$B$121,2,IF(R73<=uxb_works!$B$120,3,4)))) -> 2 | P73: =iSummary!AL66 -> 58 | Q73: =iSummary!AM66 -> Cairo | R73: =iSummary!AN66 -> 40.7 | S73: =iSummary!AQ66 -> = | T73: =iSummary!AR66 ->  | U73: =iSummary!AS66 -> 0 | V73: =iSummary!AT66 -> 1 | X73: =iSummary!BE66 -> 1 | Y73: =IF(X73=0,0,IF(AC73<=uxb_works!$B$122,1,IF(AC73<=uxb_works!$B$121,2,IF(AC73<=uxb_works!$B$120,3,4)))) -> 2 | AA73: =iSummary!BF66 -> 58 | AB73: =iSummary!BG66 -> Yangon | AC73: =iSummary!BH66 -> 42.3 | AD73: =iSummary!BK66 -> = | AE73: =iSummary!BL66 ->  | AF73: =iSummary!BM66 -> 0 | AG73: =iSummary!BN66 -> 1 | AI73: =iSummary!BY66 -> 1 | AJ73: =IF(AI73=0,0,IF(AN73<=uxb_works!$B$122,1,IF(AN73<=uxb_works!$B$121,2,IF(AN73<=uxb_works!$B$120,3,4)))) -> 2 | AL73: =iSummary!BZ66 -> 58 | AM73: =iSummary!CA66 -> Lagos | AN73: =iSummary!CB66 -> 37.4 | AO73: =iSummary!CE66 -> = | AP73: =iSummary!CF66 ->  | AQ73: =iSummary!CG66 -> 0 | AR73: =iSummary!CH66 -> 1 | AT73: =iSummary!CS66 -> 1 | AU73: =IF(AT73=0,0,IF(AY73<=uxb_works!$B$122,1,IF(AY73<=uxb_works!$B$121,2,IF(AY73<=uxb_works!$B$120,3,4)))) -> 2 | AW73: =iSummary!CT66 -> 58 | AX73: =iSummary!CU66 -> Karachi | AY73: =iSummary!CV66 -> 45.9 | AZ73: =iSummary!CY66 -> = | BA73: =iSummary!CZ66 ->  | BB73: =iSummary!DA66 -> 0 | BC73: =iSummary!DB66 -> 1 | BD73: =iSummary!#REF! ->  | BE73: =iSummary!#REF! ->  | BF73: =iSummary!#REF! ->  | BG73: =iSummary!#REF! -> 
B74: =iSummary!Q67 -> 1 | C74: =IF(B74=0,0,IF(G74<=uxb_works!$B$122,1,IF(G74<=uxb_works!$B$121,2,IF(G74<=uxb_works!$B$120,3,4)))) -> 2 | E74: =iSummary!R67 -> 59 | F74: =iSummary!S67 -> Caracas | G74: =IF(ISNUMBER(iSummary!T67),ROUND(iSummary!T67,1),"") -> 40.1 | H74: =iSummary!W67 -> = | I74: =iSummary!X67 ->  | J74: =IF(iSummary!Y67=0,"",iSummary!Y67) ->  | K74: =iSummary!Z67 -> 1 | M74: =iSummary!AK67 -> 1 | N74: =IF(M74=0,0,IF(R74<=uxb_works!$B$122,1,IF(R74<=uxb_works!$B$121,2,IF(R74<=uxb_works!$B$120,3,4)))) -> 2 | P74: =iSummary!AL67 -> 59 | Q74: =iSummary!AM67 -> Ho Chi Minh City | R74: =iSummary!AN67 -> 40.2 | S74: =iSummary!AQ67 -> = | T74: =iSummary!AR67 ->  | U74: =iSummary!AS67 -> 0 | V74: =iSummary!AT67 -> 1 | X74: =iSummary!BE67 -> 1 | Y74: =IF(X74=0,0,IF(AC74<=uxb_works!$B$122,1,IF(AC74<=uxb_works!$B$121,2,IF(AC74<=uxb_works!$B$120,3,4)))) -> 2 | AA74: =iSummary!BF67 -> 59 | AB74: =iSummary!BG67 -> Karachi | AC74: =iSummary!BH67 -> 39 | AD74: =iSummary!BK67 -> = | AE74: =iSummary!BL67 ->  | AF74: =iSummary!BM67 -> 0 | AG74: =iSummary!BN67 -> 1 | AI74: =iSummary!BY67 -> 1 | AJ74: =IF(AI74=0,0,IF(AN74<=uxb_works!$B$122,1,IF(AN74<=uxb_works!$B$121,2,IF(AN74<=uxb_works!$B$120,3,4)))) -> 2 | AL74: =iSummary!BZ67 -> 59 | AM74: =iSummary!CA67 -> Dhaka | AN74: =iSummary!CB67 -> 34.2 | AO74: =iSummary!CE67 -> = | AP74: =iSummary!CF67 ->  | AQ74: =iSummary!CG67 -> 0 | AR74: =iSummary!CH67 -> 1 | AT74: =iSummary!CS67 -> 1 | AU74: =IF(AT74=0,0,IF(AY74<=uxb_works!$B$122,1,IF(AY74<=uxb_works!$B$121,2,IF(AY74<=uxb_works!$B$120,3,4)))) -> 2 | AW74: =iSummary!CT67 -> 59 | AX74: =iSummary!CU67 -> Caracas | AY74: =iSummary!CV67 -> 42.1 | AZ74: =iSummary!CY67 -> = | BA74: =iSummary!CZ67 ->  | BB74: =iSummary!DA67 -> 0 | BC74: =iSummary!DB67 -> 1 | BD74: =iSummary!#REF! ->  | BE74: =iSummary!#REF! ->  | BF74: =iSummary!#REF! ->  | BG74: =iSummary!#REF! -> 
B75: =iSummary!Q68 -> 1 | C75: =IF(B75=0,0,IF(G75<=uxb_works!$B$122,1,IF(G75<=uxb_works!$B$121,2,IF(G75<=uxb_works!$B$120,3,4)))) -> 2 | E75: =iSummary!R68 -> 60 | F75: =iSummary!S68 -> Lagos | G75: =IF(ISNUMBER(iSummary!T68),ROUND(iSummary!T68,1),"") -> 38.1 | H75: =iSummary!W68 -> = | I75: =iSummary!X68 ->  | J75: =IF(iSummary!Y68=0,"",iSummary!Y68) ->  | K75: =iSummary!Z68 -> 1 | M75: =iSummary!AK68 -> 1 | N75: =IF(M75=0,0,IF(R75<=uxb_works!$B$122,1,IF(R75<=uxb_works!$B$121,2,IF(R75<=uxb_works!$B$120,3,4)))) -> 2 | P75: =iSummary!AL68 -> 60 | Q75: =iSummary!AM68 -> Yangon | R75: =iSummary!AN68 -> 27.8 | S75: =iSummary!AQ68 -> = | T75: =iSummary!AR68 ->  | U75: =iSummary!AS68 -> 0 | V75: =iSummary!AT68 -> 1 | X75: =iSummary!BE68 -> 1 | Y75: =IF(X75=0,0,IF(AC75<=uxb_works!$B$122,1,IF(AC75<=uxb_works!$B$121,2,IF(AC75<=uxb_works!$B$120,3,4)))) -> 2 | AA75: =iSummary!BF68 -> 60 | AB75: =iSummary!BG68 -> Lagos | AC75: =iSummary!BH68 -> 34.1 | AD75: =iSummary!BK68 -> = | AE75: =iSummary!BL68 ->  | AF75: =iSummary!BM68 -> 0 | AG75: =iSummary!BN68 -> 1 | AI75: =iSummary!BY68 -> 1 | AJ75: =IF(AI75=0,0,IF(AN75<=uxb_works!$B$122,1,IF(AN75<=uxb_works!$B$121,2,IF(AN75<=uxb_works!$B$120,3,4)))) -> 2 | AL75: =iSummary!BZ68 -> 60 | AM75: =iSummary!CA68 -> Caracas | AN75: =iSummary!CB68 -> 27.3 | AO75: =iSummary!CE68 -> = | AP75: =iSummary!CF68 ->  | AQ75: =iSummary!CG68 -> 0 | AR75: =iSummary!CH68 -> 1 | AT75: =iSummary!CS68 -> 1 | AU75: =IF(AT75=0,0,IF(AY75<=uxb_works!$B$122,1,IF(AY75<=uxb_works!$B$121,2,IF(AY75<=uxb_works!$B$120,3,4)))) -> 2 | AW75: =iSummary!CT68 -> 60 | AX75: =iSummary!CU68 -> Lagos | AY75: =iSummary!CV68 -> 38.7 | AZ75: =iSummary!CY68 -> = | BA75: =iSummary!CZ68 ->  | BB75: =iSummary!DA68 -> 0 | BC75: =iSummary!DB68 -> 1 | BD75: =iSummary!#REF! ->  | BE75: =iSummary!#REF! ->  | BF75: =iSummary!#REF! ->  | BG75: =iSummary!#REF! -> 

Sheet Indicator_Ranking
A1: =uxb_works!$B$92 -> SAFE CITIES INDEX: 2019 | Z1: $W$24 | AN1: 1600 | AO1: =INDEX(Indicator_Ranking!AN1:AN10,uxb_works!$J$21) -> 1600 | AP1: =2.2*AO1 -> 3520 | BA1: 1 | BB1: 1
AN2: 1600 | AR2: =iIndiRank!U2 -> 0 | AT2: =iIndiRank!V2 -> -
A4: =uxb_works!B111 -> 1 | AN4: 1600
C6: =uxb_works!$C$5 -> The active weight profile has been changed from its default setting | AN6: 1000
C8: =uxb_works!D67 -> Active filter group: All regions in all income levels with all population sizes
C10: =iIndiRank!$G$2 -> OVERALL SCORE | AN10: 1000
C11: =iIndiRank!$F$2 -> OVERALL SCORE | BO11: =C11 -> OVERALL SCORE
C14: Forecast spend on defense equipment Source: Jane's Year: 2025-2027 Scoring Guidance: US$ million | E14: =iIndiRank!AO2 ->  | K14: =COUNT(J17:J76) -> 60 | V14: =IF(COUNTIF(V17:V76,"<>0")=0,1,COUNTIF(V17:V76,"<>0")) -> 1 | W14: =iIndiRank!AU1 -> 0 | Y14: =IF(COUNTIF(Y17:Y76,"<>0")=0,1,COUNTIF(Y17:Y76,"<>0")) -> 1 | Z14: =iIndiRank!AX1 -> 0 | AB14: =IF(COUNTIF(AB17:AB76,"<>0")=0,1,COUNTIF(AB17:AB76,"<>0")) -> 1 | AC14: =iIndiRank!BA1 -> 0 | AE14: =IF(COUNTIF(AE17:AE76,"<>0")=0,1,COUNTIF(AE17:AE76,"<>0")) -> 1 | AF14: =iIndiRank!BD1 -> 0 | AH14: =IF(COUNTIF(AH17:AH76,"<>0")=0,1,COUNTIF(AH17:AH76,"<>0")) -> 1 | AI14: =iIndiRank!BG1 -> 0
B15: =COUNTIF(B16:B76,"<>0") -> 61 | W15: =IF(W14<>0,iIndiRank!AU3,"") ->  | Z15: =IF(Z14<>0,iIndiRank!AX3,"") ->  | AC15: =IF(AC14<>0,iIndiRank!BA3,"") ->  | AF15: =IF(AF14<>0,iIndiRank!BD3,"") ->  | AI15: =IF(AI14<>0,iIndiRank!BG3,"") -> 
B16: =iIndiRank!T2 -> 1 | C16: Description: Number of female homicides per year, per 100,000 population UNODC data; EIU population data; various city-level sources Units: per 100,000 Year: 2019 Click on a country name to view source | J16: =IF(uxb_works!$J$21=1,COUNTIF(J17:J76,">0"),MAX(V16,Indicator_Ranking!Y16,Indicator_Ranking!AB16,Indicator_Ranking!AE16,Indicator_Ranking!AH16)) -> 60 | L16: Rank | N16: City | O16: Score / 100 | P16: =IF(iIndiRank!$G$3=1,"","Score / 100") -> Score / 100 | Q16: =IF(iIndiRank!$G$3=1,"","Visualisation") -> Visualisation | R16: =iIndiRank!S5 ->  | V16: =COUNTIF(V17:V76,">0") -> 0 | Y16: =COUNTIF(Y17:Y76,">0") -> 0 | AB16: =COUNTIF(AB17:AB76,">0") -> 0 | AE16: =COUNTIF(AE17:AE76,">0") -> 0 | AH16: =COUNTIF(AH17:AH76,">0") -> 0 | BA16: =W15 ->  | BD16: =Z15 ->  | BG16: =AC15 ->  | BJ16: =AF15 ->  | BM16: =AI15 -> 
B17: =IF(uxb_works!$J$21=1,1,IF(OR(V17>0,Y17>0,AB17>0,AE17>0,AH17>0),1,0)) -> 1 | J17: =iIndiRank!L6 -> 1 | K17: =IF(J17=0,4,IF(P17<=uxb_works!$B$122,0,IF(P17<=uxb_works!$B$121,1,IF(P17<=uxb_works!$B$120,2,3)))) -> 3 | M17: =iIndiRank!P6 -> 1 | N17: =iIndiRank!Q6 -> Tokyo | O17: =iIndiRank!R6 -> 92 | P17: =iIndiRank!T6 -> 92 | Q17: =IF(ISNUMBER(O17),REPT("|",O17/3),"") -> |||||||||||||||||||||||||||||| | R17: =TEXT(iIndiRank!S6,iIndiRank!$E$2) ->  | V17: =iIndiRank!AT6 -> 0 | W17: =iIndiRank!AU6 -> Tokyo | Y17: =iIndiRank!AW6 -> 0 | Z17: =iIndiRank!AX6 ->  | AB17: =iIndiRank!AZ6 -> 0 | AC17: =iIndiRank!BA6 ->  | AE17: =iIndiRank!BC6 -> 0 | AF17: =iIndiRank!BD6 ->  | AH17: =iIndiRank!BF6 -> 0 | AI17: =iIndiRank!BG6 -> 
B18: =IF(uxb_works!$J$21=1,1,IF(OR(V18>0,Y18>0,AB18>0,AE18>0,AH18>0),1,0)) -> 1 | J18: =iIndiRank!L7 -> 1 | K18: =IF(J18=0,4,IF(P18<=uxb_works!$B$122,0,IF(P18<=uxb_works!$B$121,1,IF(P18<=uxb_works!$B$120,2,3)))) -> 3 | M18: =iIndiRank!P7 -> 2 | N18: =iIndiRank!Q7 -> Singapore | O18: =iIndiRank!R7 -> 91.5 | P18: =iIndiRank!T7 -> 91.5 | Q18: =IF(ISNUMBER(O18),REPT("|",O18/3),"") -> |||||||||||||||||||||||||||||| | R18: =TEXT(iIndiRank!S7,iIndiRank!$E$2) ->  | V18: =iIndiRank!AT7 -> 0 | W18: =iIndiRank!AU7 -> Singapore | Y18: =iIndiRank!AW7 -> 0 | Z18: =iIndiRank!AX7 ->  | AB18: =iIndiRank!AZ7 -> 0 | AC18: =iIndiRank!BA7 ->  | AE18: =iIndiRank!BC7 -> 0 | AF18: =iIndiRank!BD7 ->  | AH18: =iIndiRank!BF7 -> 0 | AI18: =iIndiRank!BG7 -> 
B19: =IF(uxb_works!$J$21=1,1,IF(OR(V19>0,Y19>0,AB19>0,AE19>0,AH19>0),1,0)) -> 1 | J19: =iIndiRank!L8 -> 1 | K19: =IF(J19=0,4,IF(P19<=uxb_works!$B$122,0,IF(P19<=uxb_works!$B$121,1,IF(P19<=uxb_works!$B$120,2,3)))) -> 3 | M19: =iIndiRank!P8 -> 3 | N19: =iIndiRank!Q8 -> Osaka | O19: =iIndiRank!R8 -> 90.9 | P19: =iIndiRank!T8 -> 90.9 | Q19: =IF(ISNUMBER(O19),REPT("|",O19/3),"") -> |||||||||||||||||||||||||||||| | R19: =TEXT(iIndiRank!S8,iIndiRank!$E$2) ->  | V19: =iIndiRank!AT8 -> 0 | W19: =iIndiRank!AU8 -> Osaka | Y19: =iIndiRank!AW8 -> 0 | Z19: =iIndiRank!AX8 ->  | AB19: =iIndiRank!AZ8 -> 0 | AC19: =iIndiRank!BA8 ->  | AE19: =iIndiRank!BC8 -> 0 | AF19: =iIndiRank!BD8 ->  | AH19: =iIndiRank!BF8 -> 0 | AI19: =iIndiRank!BG8 -> 
B20: =IF(uxb_works!$J$21=1,1,IF(OR(V20>0,Y20>0,AB20>0,AE20>0,AH20>0),1,0)) -> 1 | J20: =iIndiRank!L9 -> 1 | K20: =IF(J20=0,4,IF(P20<=uxb_works!$B$122,0,IF(P20<=uxb_works!$B$121,1,IF(P20<=uxb_works!$B$120,2,3)))) -> 3 | M20: =iIndiRank!P9 -> 4 | N20: =iIndiRank!Q9 -> Amsterdam | O20: =iIndiRank!R9 -> 88 | P20: =iIndiRank!T9 -> 88 | Q20: ||||||||||||||||||||||||||||| | R20: =TEXT(iIndiRank!S9,iIndiRank!$E$2) ->  | V20: =iIndiRank!AT9 -> 0 | W20: =iIndiRank!AU9 -> Amsterdam | Y20: =iIndiRank!AW9 -> 0 | Z20: =iIndiRank!AX9 ->  | AB20: =iIndiRank!AZ9 -> 0 | AC20: =iIndiRank!BA9 ->  | AE20: =iIndiRank!BC9 -> 0 | AF20: =iIndiRank!BD9 ->  | AH20: =iIndiRank!BF9 -> 0 | AI20: =iIndiRank!BG9 -> 
B21: =IF(uxb_works!$J$21=1,1,IF(OR(V21>0,Y21>0,AB21>0,AE21>0,AH21>0),1,0)) -> 1 | J21: =iIndiRank!L10 -> 1 | K21: =IF(J21=0,4,IF(P21<=uxb_works!$B$122,0,IF(P21<=uxb_works!$B$121,1,IF(P21<=uxb_works!$B$120,2,3)))) -> 3 | M21: =iIndiRank!P10 -> 5 | N21: =iIndiRank!Q10 -> Sydney | O21: =iIndiRank!R10 -> 87.9 | P21: =iIndiRank!T10 -> 87.9 | Q21: ||||||||||||||||||||||||||||| | R21: =TEXT(iIndiRank!S10,iIndiRank!$E$2) ->  | V21: =iIndiRank!AT10 -> 0 | W21: =iIndiRank!AU10 -> Sydney | Y21: =iIndiRank!AW10 -> 0 | Z21: =iIndiRank!AX10 ->  | AB21: =iIndiRank!AZ10 -> 0 | AC21: =iIndiRank!BA10 ->  | AE21: =iIndiRank!BC10 -> 0 | AF21: =iIndiRank!BD10 ->  | AH21: =iIndiRank!BF10 -> 0 | AI21: =iIndiRank!BG10 -> 
B22: =IF(uxb_works!$J$21=1,1,IF(OR(V22>0,Y22>0,AB22>0,AE22>0,AH22>0),1,0)) -> 1 | J22: =iIndiRank!L11 -> 1 | K22: =IF(J22=0,4,IF(P22<=uxb_works!$B$122,0,IF(P22<=uxb_works!$B$121,1,IF(P22<=uxb_works!$B$120,2,3)))) -> 3 | M22: =iIndiRank!P11 -> 6 | N22: =iIndiRank!Q11 -> Toronto | O22: =iIndiRank!R11 -> 87.8 | P22: =iIndiRank!T11 -> 87.8 | Q22: ||||||||||||||||||||||||||||| | R22: =TEXT(iIndiRank!S11,iIndiRank!$E$2) ->  | V22: =iIndiRank!AT11 -> 0 | W22: =iIndiRank!AU11 -> Toronto | Y22: =iIndiRank!AW11 -> 0 | Z22: =iIndiRank!AX11 ->  | AB22: =iIndiRank!AZ11 -> 0 | AC22: =iIndiRank!BA11 ->  | AE22: =iIndiRank!BC11 -> 0 | AF22: =iIndiRank!BD11 ->  | AH22: =iIndiRank!BF11 -> 0 | AI22: =iIndiRank!BG11 -> 
B23: =IF(uxb_works!$J$21=1,1,IF(OR(V23>0,Y23>0,AB23>0,AE23>0,AH23>0),1,0)) -> 1 | J23: =iIndiRank!L12 -> 1 | K23: =IF(J23=0,4,IF(P23<=uxb_works!$B$122,0,IF(P23<=uxb_works!$B$121,1,IF(P23<=uxb_works!$B$120,2,3)))) -> 3 | M23: =iIndiRank!P12 -> 7 | N23: =iIndiRank!Q12 -> Washington DC | O23: =iIndiRank!R12 -> 87.6 | P23: =iIndiRank!T12 -> 87.6 | Q23: ||||||||||||||||||||||||||||| | R23: =TEXT(iIndiRank!S12,iIndiRank!$E$2) ->  | V23: =iIndiRank!AT12 -> 0 | W23: =iIndiRank!AU12 -> Washington DC | Y23: =iIndiRank!AW12 -> 0 | Z23: =iIndiRank!AX12 ->  | AB23: =iIndiRank!AZ12 -> 0 | AC23: =iIndiRank!BA12 ->  | AE23: =iIndiRank!BC12 -> 0 | AF23: =iIndiRank!BD12 ->  | AH23: =iIndiRank!BF12 -> 0 | AI23: =iIndiRank!BG12 -> 
B24: =IF(uxb_works!$J$21=1,1,IF(OR(V24>0,Y24>0,AB24>0,AE24>0,AH24>0),1,0)) -> 1 | J24: =iIndiRank!L13 -> 1 | K24: =IF(J24=0,4,IF(P24<=uxb_works!$B$122,0,IF(P24<=uxb_works!$B$121,1,IF(P24<=uxb_works!$B$120,2,3)))) -> 3 | M24: =iIndiRank!P13 -> =8 | N24: =iIndiRank!Q13 -> Copenhagen | O24: =iIndiRank!R13 -> 87.4 | P24: =iIndiRank!T13 -> 87.4 | Q24: ||||||||||||||||||||||||||||| | R24: =TEXT(iIndiRank!S13,iIndiRank!$E$2) ->  | V24: =iIndiRank!AT13 -> 0 | W24: =iIndiRank!AU13 -> Copenhagen | Y24: =iIndiRank!AW13 -> 0 | Z24: =iIndiRank!AX13 ->  | AB24: =iIndiRank!AZ13 -> 0 | AC24: =iIndiRank!BA13 ->  | AE24: =iIndiRank!BC13 -> 0 | AF24: =iIndiRank!BD13 ->  | AH24: =iIndiRank!BF13 -> 0 | AI24: =iIndiRank!BG13 -> 
B25: =IF(uxb_works!$J$21=1,1,IF(OR(V25>0,Y25>0,AB25>0,AE25>0,AH25>0),1,0)) -> 1 | J25: =iIndiRank!L14 -> 1 | K25: =IF(J25=0,4,IF(P25<=uxb_works!$B$122,0,IF(P25<=uxb_works!$B$121,1,IF(P25<=uxb_works!$B$120,2,3)))) -> 3 | M25: =iIndiRank!P14 -> =8 | N25: =iIndiRank!Q14 -> Seoul | O25: =iIndiRank!R14 -> 87.4 | P25: =iIndiRank!T14 -> 87.4 | Q25: ||||||||||||||||||||||||||||| | R25: =TEXT(iIndiRank!S14,iIndiRank!$E$2) ->  | V25: =iIndiRank!AT14 -> 0 | W25: =iIndiRank!AU14 -> Seoul | Y25: =iIndiRank!AW14 -> 0 | Z25: =iIndiRank!AX14 ->  | AB25: =iIndiRank!AZ14 -> 0 | AC25: =iIndiRank!BA14 ->  | AE25: =iIndiRank!BC14 -> 0 | AF25: =iIndiRank!BD14 ->  | AH25: =iIndiRank!BF14 -> 0 | AI25: =iIndiRank!BG14 -> 
B26: =IF(uxb_works!$J$21=1,1,IF(OR(V26>0,Y26>0,AB26>0,AE26>0,AH26>0),1,0)) -> 1 | J26: =iIndiRank!L15 -> 1 | K26: =IF(J26=0,4,IF(P26<=uxb_works!$B$122,0,IF(P26<=uxb_works!$B$121,1,IF(P26<=uxb_works!$B$120,2,3)))) -> 3 | M26: =iIndiRank!P15 -> 10 | N26: =iIndiRank!Q15 -> Melbourne | O26: =iIndiRank!R15 -> 87.3 | P26: =iIndiRank!T15 -> 87.3 | Q26: ||||||||||||||||||||||||||||| | R26: =TEXT(iIndiRank!S15,iIndiRank!$E$2) ->  | V26: =iIndiRank!AT15 -> 0 | W26: =iIndiRank!AU15 -> Melbourne | Y26: =iIndiRank!AW15 -> 0 | Z26: =iIndiRank!AX15 ->  | AB26: =iIndiRank!AZ15 -> 0 | AC26: =iIndiRank!BA15 ->  | AE26: =iIndiRank!BC15 -> 0 | AF26: =iIndiRank!BD15 ->  | AH26: =iIndiRank!BF15 -> 0 | AI26: =iIndiRank!BG15 -> 
B27: =IF(uxb_works!$J$21=1,1,IF(OR(V27>0,Y27>0,AB27>0,AE27>0,AH27>0),1,0)) -> 1 | J27: =iIndiRank!L16 -> 1 | K27: =IF(J27=0,4,IF(P27<=uxb_works!$B$122,0,IF(P27<=uxb_works!$B$121,1,IF(P27<=uxb_works!$B$120,2,3)))) -> 3 | M27: =iIndiRank!P16 -> 11 | N27: =iIndiRank!Q16 -> Chicago | O27: =iIndiRank!R16 -> 86.7 | P27: =iIndiRank!T16 -> 86.7 | Q27: |||||||||||||||||||||||||||| | R27: =TEXT(iIndiRank!S16,iIndiRank!$E$2) ->  | V27: =iIndiRank!AT16 -> 0 | W27: =iIndiRank!AU16 -> Chicago | Y27: =iIndiRank!AW16 -> 0 | Z27: =iIndiRank!AX16 ->  | AB27: =iIndiRank!AZ16 -> 0 | AC27: =iIndiRank!BA16 ->  | AE27: =iIndiRank!BC16 -> 0 | AF27: =iIndiRank!BD16 ->  | AH27: =iIndiRank!BF16 -> 0 | AI27: =iIndiRank!BG16 -> 
B28: =IF(uxb_works!$J$21=1,1,IF(OR(V28>0,Y28>0,AB28>0,AE28>0,AH28>0),1,0)) -> 1 | J28: =iIndiRank!L17 -> 1 | K28: =IF(J28=0,4,IF(P28<=uxb_works!$B$122,0,IF(P28<=uxb_works!$B$121,1,IF(P28<=uxb_works!$B$120,2,3)))) -> 3 | M28: =iIndiRank!P17 -> 12 | N28: =iIndiRank!Q17 -> Stockholm | O28: =iIndiRank!R17 -> 86.5 | P28: =iIndiRank!T17 -> 86.5 | Q28: |||||||||||||||||||||||||||| | R28: =TEXT(iIndiRank!S17,iIndiRank!$E$2) ->  | V28: =iIndiRank!AT17 -> 0 | W28: =iIndiRank!AU17 -> Stockholm | Y28: =iIndiRank!AW17 -> 0 | Z28: =iIndiRank!AX17 ->  | AB28: =iIndiRank!AZ17 -> 0 | AC28: =iIndiRank!BA17 ->  | AE28: =iIndiRank!BC17 -> 0 | AF28: =iIndiRank!BD17 ->  | AH28: =iIndiRank!BF17 -> 0 | AI28: =iIndiRank!BG17 -> 
B29: =IF(uxb_works!$J$21=1,1,IF(OR(V29>0,Y29>0,AB29>0,AE29>0,AH29>0),1,0)) -> 1 | J29: =iIndiRank!L18 -> 1 | K29: =IF(J29=0,4,IF(P29<=uxb_works!$B$122,0,IF(P29<=uxb_works!$B$121,1,IF(P29<=uxb_works!$B$120,2,3)))) -> 3 | M29: =iIndiRank!P18 -> 13 | N29: =iIndiRank!Q18 -> San Francisco | O29: =iIndiRank!R18 -> 85.9 | P29: =iIndiRank!T18 -> 85.9 | Q29: |||||||||||||||||||||||||||| | R29: =TEXT(iIndiRank!S18,iIndiRank!$E$2) ->  | V29: =iIndiRank!AT18 -> 0 | W29: =iIndiRank!AU18 -> San Francisco | Y29: =iIndiRank!AW18 -> 0 | Z29: =iIndiRank!AX18 ->  | AB29: =iIndiRank!AZ18 -> 0 | AC29: =iIndiRank!BA18 ->  | AE29: =iIndiRank!BC18 -> 0 | AF29: =iIndiRank!BD18 ->  | AH29: =iIndiRank!BF18 -> 0 | AI29: =iIndiRank!BG18 -> 
B30: =IF(uxb_works!$J$21=1,1,IF(OR(V30>0,Y30>0,AB30>0,AE30>0,AH30>0),1,0)) -> 1 | J30: =iIndiRank!L19 -> 1 | K30: =IF(J30=0,4,IF(P30<=uxb_works!$B$122,0,IF(P30<=uxb_works!$B$121,1,IF(P30<=uxb_works!$B$120,2,3)))) -> 3 | M30: =iIndiRank!P19 -> 14 | N30: =iIndiRank!Q19 -> London | O30: =iIndiRank!R19 -> 85.7 | P30: =iIndiRank!T19 -> 85.7 | Q30: |||||||||||||||||||||||||||| | R30: =TEXT(iIndiRank!S19,iIndiRank!$E$2) ->  | V30: =iIndiRank!AT19 -> 0 | W30: =iIndiRank!AU19 -> London | Y30: =iIndiRank!AW19 -> 0 | Z30: =iIndiRank!AX19 ->  | AB30: =iIndiRank!AZ19 -> 0 | AC30: =iIndiRank!BA19 ->  | AE30: =iIndiRank!BC19 -> 0 | AF30: =iIndiRank!BD19 ->  | AH30: =iIndiRank!BF19 -> 0 | AI30: =iIndiRank!BG19 -> 
B31: =IF(uxb_works!$J$21=1,1,IF(OR(V31>0,Y31>0,AB31>0,AE31>0,AH31>0),1,0)) -> 1 | J31: =iIndiRank!L20 -> 1 | K31: =IF(J31=0,4,IF(P31<=uxb_works!$B$122,0,IF(P31<=uxb_works!$B$121,1,IF(P31<=uxb_works!$B$120,2,3)))) -> 3 | M31: =iIndiRank!P20 -> 15 | N31: =iIndiRank!Q20 -> New York | O31: =iIndiRank!R20 -> 85.5 | P31: =iIndiRank!T20 -> 85.5 | Q31: |||||||||||||||||||||||||||| | R31: =TEXT(iIndiRank!S20,iIndiRank!$E$2) ->  | V31: =iIndiRank!AT20 -> 0 | W31: =iIndiRank!AU20 -> New York | Y31: =iIndiRank!AW20 -> 0 | Z31: =iIndiRank!AX20 ->  | AB31: =iIndiRank!AZ20 -> 0 | AC31: =iIndiRank!BA20 ->  | AE31: =iIndiRank!BC20 -> 0 | AF31: =iIndiRank!BD20 ->  | AH31: =iIndiRank!BF20 -> 0 | AI31: =iIndiRank!BG20 -> 
B32: =IF(uxb_works!$J$21=1,1,IF(OR(V32>0,Y32>0,AB32>0,AE32>0,AH32>0),1,0)) -> 1 | J32: =iIndiRank!L21 -> 1 | K32: =IF(J32=0,4,IF(P32<=uxb_works!$B$122,0,IF(P32<=uxb_works!$B$121,1,IF(P32<=uxb_works!$B$120,2,3)))) -> 3 | M32: =iIndiRank!P21 -> 16 | N32: =iIndiRank!Q21 -> Frankfurt | O32: =iIndiRank!R21 -> 85.4 | P32: =iIndiRank!T21 -> 85.4 | Q32: |||||||||||||||||||||||||||| | R32: =TEXT(iIndiRank!S21,iIndiRank!$E$2) ->  | V32: =iIndiRank!AT21 -> 0 | W32: =iIndiRank!AU21 -> Frankfurt | Y32: =iIndiRank!AW21 -> 0 | Z32: =iIndiRank!AX21 ->  | AB32: =iIndiRank!AZ21 -> 0 | AC32: =iIndiRank!BA21 ->  | AE32: =iIndiRank!BC21 -> 0 | AF32: =iIndiRank!BD21 ->  | AH32: =iIndiRank!BF21 -> 0 | AI32: =iIndiRank!BG21 -> 
B33: =IF(uxb_works!$J$21=1,1,IF(OR(V33>0,Y33>0,AB33>0,AE33>0,AH33>0),1,0)) -> 1 | J33: =iIndiRank!L22 -> 1 | K33: =IF(J33=0,4,IF(P33<=uxb_works!$B$122,0,IF(P33<=uxb_works!$B$121,1,IF(P33<=uxb_works!$B$120,2,3)))) -> 3 | M33: =iIndiRank!P22 -> 17 | N33: =iIndiRank!Q22 -> Los Angeles | O33: =iIndiRank!R22 -> 85.2 | P33: =iIndiRank!T22 -> 85.2 | Q33: |||||||||||||||||||||||||||| | R33: =TEXT(iIndiRank!S22,iIndiRank!$E$2) ->  | V33: =iIndiRank!AT22 -> 0 | W33: =iIndiRank!AU22 -> Los Angeles | Y33: =iIndiRank!AW22 -> 0 | Z33: =iIndiRank!AX22 ->  | AB33: =iIndiRank!AZ22 -> 0 | AC33: =iIndiRank!BA22 ->  | AE33: =iIndiRank!BC22 -> 0 | AF33: =iIndiRank!BD22 ->  | AH33: =iIndiRank!BF22 -> 0 | AI33: =iIndiRank!BG22 -> 
B34: =IF(uxb_works!$J$21=1,1,IF(OR(V34>0,Y34>0,AB34>0,AE34>0,AH34>0),1,0)) -> 1 | J34: =iIndiRank!L23 -> 1 | K34: =IF(J34=0,4,IF(P34<=uxb_works!$B$122,0,IF(P34<=uxb_works!$B$121,1,IF(P34<=uxb_works!$B$120,2,3)))) -> 3 | M34: =iIndiRank!P23 -> =18 | N34: =iIndiRank!Q23 -> Wellington | O34: =iIndiRank!R23 -> 84.5 | P34: =iIndiRank!T23 -> 84.5 | Q34: |||||||||||||||||||||||||||| | R34: =TEXT(iIndiRank!S23,iIndiRank!$E$2) ->  | V34: =iIndiRank!AT23 -> 0 | W34: =iIndiRank!AU23 -> Wellington | Y34: =iIndiRank!AW23 -> 0 | Z34: =iIndiRank!AX23 ->  | AB34: =iIndiRank!AZ23 -> 0 | AC34: =iIndiRank!BA23 ->  | AE34: =iIndiRank!BC23 -> 0 | AF34: =iIndiRank!BD23 ->  | AH34: =iIndiRank!BF23 -> 0 | AI34: =iIndiRank!BG23 -> 
B35: =IF(uxb_works!$J$21=1,1,IF(OR(V35>0,Y35>0,AB35>0,AE35>0,AH35>0),1,0)) -> 1 | J35: =iIndiRank!L24 -> 1 | K35: =IF(J35=0,4,IF(P35<=uxb_works!$B$122,0,IF(P35<=uxb_works!$B$121,1,IF(P35<=uxb_works!$B$120,2,3)))) -> 3 | M35: =iIndiRank!P24 -> =18 | N35: =iIndiRank!Q24 -> Zurich | O35: =iIndiRank!R24 -> 84.5 | P35: =iIndiRank!T24 -> 84.5 | Q35: |||||||||||||||||||||||||||| | R35: =TEXT(iIndiRank!S24,iIndiRank!$E$2) ->  | V35: =iIndiRank!AT24 -> 0 | W35: =iIndiRank!AU24 -> Zurich | Y35: =iIndiRank!AW24 -> 0 | Z35: =iIndiRank!AX24 ->  | AB35: =iIndiRank!AZ24 -> 0 | AC35: =iIndiRank!BA24 ->  | AE35: =iIndiRank!BC24 -> 0 | AF35: =iIndiRank!BD24 ->  | AH35: =iIndiRank!BF24 -> 0 | AI35: =iIndiRank!BG24 -> 
B36: =IF(uxb_works!$J$21=1,1,IF(OR(V36>0,Y36>0,AB36>0,AE36>0,AH36>0),1,0)) -> 1 | J36: =iIndiRank!L25 -> 1 | K36: =IF(J36=0,4,IF(P36<=uxb_works!$B$122,0,IF(P36<=uxb_works!$B$121,1,IF(P36<=uxb_works!$B$120,2,3)))) -> 3 | M36: =iIndiRank!P25 -> 20 | N36: =iIndiRank!Q25 -> Hong Kong | O36: =iIndiRank!R25 -> 83.7 | P36: =iIndiRank!T25 -> 83.7 | Q36: ||||||||||||||||||||||||||| | R36: =TEXT(iIndiRank!S25,iIndiRank!$E$2) ->  | V36: =iIndiRank!AT25 -> 0 | W36: =iIndiRank!AU25 -> Hong Kong | Y36: =iIndiRank!AW25 -> 0 | Z36: =iIndiRank!AX25 ->  | AB36: =iIndiRank!AZ25 -> 0 | AC36: =iIndiRank!BA25 ->  | AE36: =iIndiRank!BC25 -> 0 | AF36: =iIndiRank!BD25 ->  | AH36: =iIndiRank!BF25 -> 0 | AI36: =iIndiRank!BG25 -> 
B37: =IF(uxb_works!$J$21=1,1,IF(OR(V37>0,Y37>0,AB37>0,AE37>0,AH37>0),1,0)) -> 1 | J37: =iIndiRank!L26 -> 1 | K37: =IF(J37=0,4,IF(P37<=uxb_works!$B$122,0,IF(P37<=uxb_works!$B$121,1,IF(P37<=uxb_works!$B$120,2,3)))) -> 3 | M37: =iIndiRank!P26 -> 21 | N37: =iIndiRank!Q26 -> Dallas | O37: =iIndiRank!R26 -> 83.1 | P37: =iIndiRank!T26 -> 83.1 | Q37: ||||||||||||||||||||||||||| | R37: =TEXT(iIndiRank!S26,iIndiRank!$E$2) ->  | V37: =iIndiRank!AT26 -> 0 | W37: =iIndiRank!AU26 -> Dallas | Y37: =iIndiRank!AW26 -> 0 | Z37: =iIndiRank!AX26 ->  | AB37: =iIndiRank!AZ26 -> 0 | AC37: =iIndiRank!BA26 ->  | AE37: =iIndiRank!BC26 -> 0 | AF37: =iIndiRank!BD26 ->  | AH37: =iIndiRank!BF26 -> 0 | AI37: =iIndiRank!BG26 -> 
B38: =IF(uxb_works!$J$21=1,1,IF(OR(V38>0,Y38>0,AB38>0,AE38>0,AH38>0),1,0)) -> 1 | J38: =iIndiRank!L27 -> 1 | K38: =IF(J38=0,4,IF(P38<=uxb_works!$B$122,0,IF(P38<=uxb_works!$B$121,1,IF(P38<=uxb_works!$B$120,2,3)))) -> 3 | M38: =iIndiRank!P27 -> 22 | N38: =iIndiRank!Q27 -> Taipei | O38: =iIndiRank!R27 -> 82.5 | P38: =iIndiRank!T27 -> 82.5 | Q38: ||||||||||||||||||||||||||| | R38: =TEXT(iIndiRank!S27,iIndiRank!$E$2) ->  | V38: =iIndiRank!AT27 -> 0 | W38: =iIndiRank!AU27 -> Taipei | Y38: =iIndiRank!AW27 -> 0 | Z38: =iIndiRank!AX27 ->  | AB38: =iIndiRank!AZ27 -> 0 | AC38: =iIndiRank!BA27 ->  | AE38: =iIndiRank!BC27 -> 0 | AF38: =iIndiRank!BD27 ->  | AH38: =iIndiRank!BF27 -> 0 | AI38: =iIndiRank!BG27 -> 
B39: =IF(uxb_works!$J$21=1,1,IF(OR(V39>0,Y39>0,AB39>0,AE39>0,AH39>0),1,0)) -> 1 | J39: =iIndiRank!L28 -> 1 | K39: =IF(J39=0,4,IF(P39<=uxb_works!$B$122,0,IF(P39<=uxb_works!$B$121,1,IF(P39<=uxb_works!$B$120,2,3)))) -> 3 | M39: =iIndiRank!P28 -> 23 | N39: =iIndiRank!Q28 -> Paris | O39: =iIndiRank!R28 -> 82.4 | P39: =iIndiRank!T28 -> 82.4 | Q39: ||||||||||||||||||||||||||| | R39: =TEXT(iIndiRank!S28,iIndiRank!$E$2) ->  | V39: =iIndiRank!AT28 -> 0 | W39: =iIndiRank!AU28 -> Paris | Y39: =iIndiRank!AW28 -> 0 | Z39: =iIndiRank!AX28 ->  | AB39: =iIndiRank!AZ28 -> 0 | AC39: =iIndiRank!BA28 ->  | AE39: =iIndiRank!BC28 -> 0 | AF39: =iIndiRank!BD28 ->  | AH39: =iIndiRank!BF28 -> 0 | AI39: =iIndiRank!BG28 -> 
B40: =IF(uxb_works!$J$21=1,1,IF(OR(V40>0,Y40>0,AB40>0,AE40>0,AH40>0),1,0)) -> 1 | J40: =iIndiRank!L29 -> 1 | K40: =IF(J40=0,4,IF(P40<=uxb_works!$B$122,0,IF(P40<=uxb_works!$B$121,1,IF(P40<=uxb_works!$B$120,2,3)))) -> 3 | M40: =iIndiRank!P29 -> 24 | N40: =iIndiRank!Q29 -> Brussels | O40: =iIndiRank!R29 -> 82.1 | P40: =iIndiRank!T29 -> 82.1 | Q40: ||||||||||||||||||||||||||| | R40: =TEXT(iIndiRank!S29,iIndiRank!$E$2) ->  | V40: =iIndiRank!AT29 -> 0 | W40: =iIndiRank!AU29 -> Brussels | Y40: =iIndiRank!AW29 -> 0 | Z40: =iIndiRank!AX29 ->  | AB40: =iIndiRank!AZ29 -> 0 | AC40: =iIndiRank!BA29 ->  | AE40: =iIndiRank!BC29 -> 0 | AF40: =iIndiRank!BD29 ->  | AH40: =iIndiRank!BF29 -> 0 | AI40: =iIndiRank!BG29 -> 
B41: =IF(uxb_works!$J$21=1,1,IF(OR(V41>0,Y41>0,AB41>0,AE41>0,AH41>0),1,0)) -> 1 | J41: =iIndiRank!L30 -> 1 | K41: =IF(J41=0,4,IF(P41<=uxb_works!$B$122,0,IF(P41<=uxb_works!$B$121,1,IF(P41<=uxb_works!$B$120,2,3)))) -> 3 | M41: =iIndiRank!P30 -> 25 | N41: =iIndiRank!Q30 -> Madrid | O41: =iIndiRank!R30 -> 81.4 | P41: =iIndiRank!T30 -> 81.4 | Q41: ||||||||||||||||||||||||||| | R41: =TEXT(iIndiRank!S30,iIndiRank!$E$2) ->  | V41: =iIndiRank!AT30 -> 0 | W41: =iIndiRank!AU30 -> Madrid | Y41: =iIndiRank!AW30 -> 0 | Z41: =iIndiRank!AX30 ->  | AB41: =iIndiRank!AZ30 -> 0 | AC41: =iIndiRank!BA30 ->  | AE41: =iIndiRank!BC30 -> 0 | AF41: =iIndiRank!BD30 ->  | AH41: =iIndiRank!BF30 -> 0 | AI41: =iIndiRank!BG30 -> 
B42: =IF(uxb_works!$J$21=1,1,IF(OR(V42>0,Y42>0,AB42>0,AE42>0,AH42>0),1,0)) -> 1 | J42: =iIndiRank!L31 -> 1 | K42: =IF(J42=0,4,IF(P42<=uxb_works!$B$122,0,IF(P42<=uxb_works!$B$121,1,IF(P42<=uxb_works!$B$120,2,3)))) -> 3 | M42: =iIndiRank!P31 -> 26 | N42: =iIndiRank!Q31 -> Barcelona | O42: =iIndiRank!R31 -> 81.2 | P42: =iIndiRank!T31 -> 81.2 | Q42: ||||||||||||||||||||||||||| | R42: =TEXT(iIndiRank!S31,iIndiRank!$E$2) ->  | V42: =iIndiRank!AT31 -> 0 | W42: =iIndiRank!AU31 -> Barcelona | Y42: =iIndiRank!AW31 -> 0 | Z42: =iIndiRank!AX31 ->  | AB42: =iIndiRank!AZ31 -> 0 | AC42: =iIndiRank!BA31 ->  | AE42: =iIndiRank!BC31 -> 0 | AF42: =iIndiRank!BD31 ->  | AH42: =iIndiRank!BF31 -> 0 | AI42: =iIndiRank!BG31 -> 
B43: =IF(uxb_works!$J$21=1,1,IF(OR(V43>0,Y43>0,AB43>0,AE43>0,AH43>0),1,0)) -> 1 | J43: =iIndiRank!L32 -> 1 | K43: =IF(J43=0,4,IF(P43<=uxb_works!$B$122,0,IF(P43<=uxb_works!$B$121,1,IF(P43<=uxb_works!$B$120,2,3)))) -> 3 | M43: =iIndiRank!P32 -> 27 | N43: =iIndiRank!Q32 -> Abu Dhabi | O43: =iIndiRank!R32 -> 79.5 | P43: =iIndiRank!T32 -> 79.5 | Q43: |||||||||||||||||||||||||| | R43: =TEXT(iIndiRank!S32,iIndiRank!$E$2) ->  | V43: =iIndiRank!AT32 -> 0 | W43: =iIndiRank!AU32 -> Abu Dhabi | Y43: =iIndiRank!AW32 -> 0 | Z43: =iIndiRank!AX32 ->  | AB43: =iIndiRank!AZ32 -> 0 | AC43: =iIndiRank!BA32 ->  | AE43: =iIndiRank!BC32 -> 0 | AF43: =iIndiRank!BD32 ->  | AH43: =iIndiRank!BF32 -> 0 | AI43: =iIndiRank!BG32 -> 
B44: =IF(uxb_works!$J$21=1,1,IF(OR(V44>0,Y44>0,AB44>0,AE44>0,AH44>0),1,0)) -> 1 | J44: =iIndiRank!L33 -> 1 | K44: =IF(J44=0,4,IF(P44<=uxb_works!$B$122,0,IF(P44<=uxb_works!$B$121,1,IF(P44<=uxb_works!$B$120,2,3)))) -> 3 | M44: =iIndiRank!P33 -> 28 | N44: =iIndiRank!Q33 -> Dubai | O44: =iIndiRank!R33 -> 79.1 | P44: =iIndiRank!T33 -> 79.1 | Q44: |||||||||||||||||||||||||| | R44: =TEXT(iIndiRank!S33,iIndiRank!$E$2) ->  | V44: =iIndiRank!AT33 -> 0 | W44: =iIndiRank!AU33 -> Dubai | Y44: =iIndiRank!AW33 -> 0 | Z44: =iIndiRank!AX33 ->  | AB44: =iIndiRank!AZ33 -> 0 | AC44: =iIndiRank!BA33 ->  | AE44: =iIndiRank!BC33 -> 0 | AF44: =iIndiRank!BD33 ->  | AH44: =iIndiRank!BF33 -> 0 | AI44: =iIndiRank!BG33 -> 
B45: =IF(uxb_works!$J$21=1,1,IF(OR(V45>0,Y45>0,AB45>0,AE45>0,AH45>0),1,0)) -> 1 | J45: =iIndiRank!L34 -> 1 | K45: =IF(J45=0,4,IF(P45<=uxb_works!$B$122,0,IF(P45<=uxb_works!$B$121,1,IF(P45<=uxb_works!$B$120,2,3)))) -> 3 | M45: =iIndiRank!P34 -> 29 | N45: =iIndiRank!Q34 -> Milan | O45: =iIndiRank!R34 -> 78.1 | P45: =iIndiRank!T34 -> 78.1 | Q45: |||||||||||||||||||||||||| | R45: =TEXT(iIndiRank!S34,iIndiRank!$E$2) ->  | V45: =iIndiRank!AT34 -> 0 | W45: =iIndiRank!AU34 -> Milan | Y45: =iIndiRank!AW34 -> 0 | Z45: =iIndiRank!AX34 ->  | AB45: =iIndiRank!AZ34 -> 0 | AC45: =iIndiRank!BA34 ->  | AE45: =iIndiRank!BC34 -> 0 | AF45: =iIndiRank!BD34 ->  | AH45: =iIndiRank!BF34 -> 0 | AI45: =iIndiRank!BG34 -> 
B46: =IF(uxb_works!$J$21=1,1,IF(OR(V46>0,Y46>0,AB46>0,AE46>0,AH46>0),1,0)) -> 1 | J46: =iIndiRank!L35 -> 1 | K46: =IF(J46=0,4,IF(P46<=uxb_works!$B$122,0,IF(P46<=uxb_works!$B$121,1,IF(P46<=uxb_works!$B$120,2,3)))) -> 3 | M46: =iIndiRank!P35 -> 30 | N46: =iIndiRank!Q35 -> Rome | O46: =iIndiRank!R35 -> 76.4 | P46: =iIndiRank!T35 -> 76.4 | Q46: ||||||||||||||||||||||||| | R46: =TEXT(iIndiRank!S35,iIndiRank!$E$2) ->  | V46: =iIndiRank!AT35 -> 0 | W46: =iIndiRank!AU35 -> Rome | Y46: =iIndiRank!AW35 -> 0 | Z46: =iIndiRank!AX35 ->  | AB46: =iIndiRank!AZ35 -> 0 | AC46: =iIndiRank!BA35 ->  | AE46: =iIndiRank!BC35 -> 0 | AF46: =iIndiRank!BD35 ->  | AH46: =iIndiRank!BF35 -> 0 | AI46: =iIndiRank!BG35 -> 
B47: =IF(uxb_works!$J$21=1,1,IF(OR(V47>0,Y47>0,AB47>0,AE47>0,AH47>0),1,0)) -> 1 | J47: =iIndiRank!L36 -> 1 | K47: =IF(J47=0,4,IF(P47<=uxb_works!$B$122,0,IF(P47<=uxb_works!$B$121,1,IF(P47<=uxb_works!$B$120,2,3)))) -> 2 | M47: =iIndiRank!P36 -> 31 | N47: =iIndiRank!Q36 -> Beijing | O47: =iIndiRank!R36 -> 70.5 | P47: =iIndiRank!T36 -> 70.5 | Q47: ||||||||||||||||||||||| | R47: =TEXT(iIndiRank!S36,iIndiRank!$E$2) ->  | V47: =iIndiRank!AT36 -> 0 | W47: =iIndiRank!AU36 -> Beijing | Y47: =iIndiRank!AW36 -> 0 | Z47: =iIndiRank!AX36 ->  | AB47: =iIndiRank!AZ36 -> 0 | AC47: =iIndiRank!BA36 ->  | AE47: =iIndiRank!BC36 -> 0 | AF47: =iIndiRank!BD36 ->  | AH47: =iIndiRank!BF36 -> 0 | AI47: =iIndiRank!BG36 -> 
B48: =IF(uxb_works!$J$21=1,1,IF(OR(V48>0,Y48>0,AB48>0,AE48>0,AH48>0),1,0)) -> 1 | J48: =iIndiRank!L37 -> 1 | K48: =IF(J48=0,4,IF(P48<=uxb_works!$B$122,0,IF(P48<=uxb_works!$B$121,1,IF(P48<=uxb_works!$B$120,2,3)))) -> 2 | M48: =iIndiRank!P37 -> 32 | N48: =iIndiRank!Q37 -> Shanghai | O48: =iIndiRank!R37 -> 70.2 | P48: =iIndiRank!T37 -> 70.2 | Q48: ||||||||||||||||||||||| | R48: =TEXT(iIndiRank!S37,iIndiRank!$E$2) ->  | V48: =iIndiRank!AT37 -> 0 | W48: =iIndiRank!AU37 -> Shanghai | Y48: =iIndiRank!AW37 -> 0 | Z48: =iIndiRank!AX37 ->  | AB48: =iIndiRank!AZ37 -> 0 | AC48: =iIndiRank!BA37 ->  | AE48: =iIndiRank!BC37 -> 0 | AF48: =iIndiRank!BD37 ->  | AH48: =iIndiRank!BF37 -> 0 | AI48: =iIndiRank!BG37 -> 
B49: =IF(uxb_works!$J$21=1,1,IF(OR(V49>0,Y49>0,AB49>0,AE49>0,AH49>0),1,0)) -> 1 | J49: =iIndiRank!L38 -> 1 | K49: =IF(J49=0,4,IF(P49<=uxb_works!$B$122,0,IF(P49<=uxb_works!$B$121,1,IF(P49<=uxb_works!$B$120,2,3)))) -> 2 | M49: =iIndiRank!P38 -> 33 | N49: =iIndiRank!Q38 -> Santiago | O49: =iIndiRank!R38 -> 69.8 | P49: =iIndiRank!T38 -> 69.8 | Q49: ||||||||||||||||||||||| | R49: =TEXT(iIndiRank!S38,iIndiRank!$E$2) ->  | V49: =iIndiRank!AT38 -> 0 | W49: =iIndiRank!AU38 -> Santiago | Y49: =iIndiRank!AW38 -> 0 | Z49: =iIndiRank!AX38 ->  | AB49: =iIndiRank!AZ38 -> 0 | AC49: =iIndiRank!BA38 ->  | AE49: =iIndiRank!BC38 -> 0 | AF49: =iIndiRank!BD38 ->  | AH49: =iIndiRank!BF38 -> 0 | AI49: =iIndiRank!BG38 -> 
B50: =IF(uxb_works!$J$21=1,1,IF(OR(V50>0,Y50>0,AB50>0,AE50>0,AH50>0),1,0)) -> 1 | J50: =iIndiRank!L39 -> 1 | K50: =IF(J50=0,4,IF(P50<=uxb_works!$B$122,0,IF(P50<=uxb_works!$B$121,1,IF(P50<=uxb_works!$B$120,2,3)))) -> 2 | M50: =iIndiRank!P39 -> 34 | N50: =iIndiRank!Q39 -> Buenos Aires | O50: =iIndiRank!R39 -> 69.7 | P50: =iIndiRank!T39 -> 69.7 | Q50: ||||||||||||||||||||||| | R50: =TEXT(iIndiRank!S39,iIndiRank!$E$2) ->  | V50: =iIndiRank!AT39 -> 0 | W50: =iIndiRank!AU39 -> Buenos Aires | Y50: =iIndiRank!AW39 -> 0 | Z50: =iIndiRank!AX39 ->  | AB50: =iIndiRank!AZ39 -> 0 | AC50: =iIndiRank!BA39 ->  | AE50: =iIndiRank!BC39 -> 0 | AF50: =iIndiRank!BD39 ->  | AH50: =iIndiRank!BF39 -> 0 | AI50: =iIndiRank!BG39 -> 
B51: =IF(uxb_works!$J$21=1,1,IF(OR(V51>0,Y51>0,AB51>0,AE51>0,AH51>0),1,0)) -> 1 | J51: =iIndiRank!L40 -> 1 | K51: =IF(J51=0,4,IF(P51<=uxb_works!$B$122,0,IF(P51<=uxb_works!$B$121,1,IF(P51<=uxb_works!$B$120,2,3)))) -> 2 | M51: =iIndiRank!P40 -> 35 | N51: =iIndiRank!Q40 -> Kuala Lumpur | O51: =iIndiRank!R40 -> 66.3 | P51: =iIndiRank!T40 -> 66.3 | Q51: |||||||||||||||||||||| | R51: =TEXT(iIndiRank!S40,iIndiRank!$E$2) ->  | V51: =iIndiRank!AT40 -> 0 | W51: =iIndiRank!AU40 -> Kuala Lumpur | Y51: =iIndiRank!AW40 -> 0 | Z51: =iIndiRank!AX40 ->  | AB51: =iIndiRank!AZ40 -> 0 | AC51: =iIndiRank!BA40 ->  | AE51: =iIndiRank!BC40 -> 0 | AF51: =iIndiRank!BD40 ->  | AH51: =iIndiRank!BF40 -> 0 | AI51: =iIndiRank!BG40 -> 
B52: =IF(uxb_works!$J$21=1,1,IF(OR(V52>0,Y52>0,AB52>0,AE52>0,AH52>0),1,0)) -> 1 | J52: =iIndiRank!L41 -> 1 | K52: =IF(J52=0,4,IF(P52<=uxb_works!$B$122,0,IF(P52<=uxb_works!$B$121,1,IF(P52<=uxb_works!$B$120,2,3)))) -> 2 | M52: =iIndiRank!P41 -> 36 | N52: =iIndiRank!Q41 -> Istanbul | O52: =iIndiRank!R41 -> 66.1 | P52: =iIndiRank!T41 -> 66.1 | Q52: |||||||||||||||||||||| | R52: =TEXT(iIndiRank!S41,iIndiRank!$E$2) ->  | V52: =iIndiRank!AT41 -> 0 | W52: =iIndiRank!AU41 -> Istanbul | Y52: =iIndiRank!AW41 -> 0 | Z52: =iIndiRank!AX41 ->  | AB52: =iIndiRank!AZ41 -> 0 | AC52: =iIndiRank!BA41 ->  | AE52: =iIndiRank!BC41 -> 0 | AF52: =iIndiRank!BD41 ->  | AH52: =iIndiRank!BF41 -> 0 | AI52: =iIndiRank!BG41 -> 
B53: =IF(uxb_works!$J$21=1,1,IF(OR(V53>0,Y53>0,AB53>0,AE53>0,AH53>0),1,0)) -> 1 | J53: =iIndiRank!L42 -> 1 | K53: =IF(J53=0,4,IF(P53<=uxb_works!$B$122,0,IF(P53<=uxb_works!$B$121,1,IF(P53<=uxb_works!$B$120,2,3)))) -> 2 | M53: =iIndiRank!P42 -> 37 | N53: =iIndiRank!Q42 -> Moscow | O53: =iIndiRank!R42 -> 65.8 | P53: =iIndiRank!T42 -> 65.8 | Q53: ||||||||||||||||||||| | R53: =TEXT(iIndiRank!S42,iIndiRank!$E$2) ->  | V53: =iIndiRank!AT42 -> 0 | W53: =iIndiRank!AU42 -> Moscow | Y53: =iIndiRank!AW42 -> 0 | Z53: =iIndiRank!AX42 ->  | AB53: =iIndiRank!AZ42 -> 0 | AC53: =iIndiRank!BA42 ->  | AE53: =iIndiRank!BC42 -> 0 | AF53: =iIndiRank!BD42 ->  | AH53: =iIndiRank!BF42 -> 0 | AI53: =iIndiRank!BG42 -> 
B54: =IF(uxb_works!$J$21=1,1,IF(OR(V54>0,Y54>0,AB54>0,AE54>0,AH54>0),1,0)) -> 1 | J54: =iIndiRank!L43 -> 1 | K54: =IF(J54=0,4,IF(P54<=uxb_works!$B$122,0,IF(P54<=uxb_works!$B$121,1,IF(P54<=uxb_works!$B$120,2,3)))) -> 2 | M54: =iIndiRank!P43 -> 38 | N54: =iIndiRank!Q43 -> Kuwait city | O54: =iIndiRank!R43 -> 64.5 | P54: =iIndiRank!T43 -> 64.5 | Q54: ||||||||||||||||||||| | R54: =TEXT(iIndiRank!S43,iIndiRank!$E$2) ->  | V54: =iIndiRank!AT43 -> 0 | W54: =iIndiRank!AU43 -> Kuwait city | Y54: =iIndiRank!AW43 -> 0 | Z54: =iIndiRank!AX43 ->  | AB54: =iIndiRank!AZ43 -> 0 | AC54: =iIndiRank!BA43 ->  | AE54: =iIndiRank!BC43 -> 0 | AF54: =iIndiRank!BD43 ->  | AH54: =iIndiRank!BF43 -> 0 | AI54: =iIndiRank!BG43 -> 
B55: =IF(uxb_works!$J$21=1,1,IF(OR(V55>0,Y55>0,AB55>0,AE55>0,AH55>0),1,0)) -> 1 | J55: =iIndiRank!L44 -> 1 | K55: =IF(J55=0,4,IF(P55<=uxb_works!$B$122,0,IF(P55<=uxb_works!$B$121,1,IF(P55<=uxb_works!$B$120,2,3)))) -> 2 | M55: =iIndiRank!P44 -> 39 | N55: =iIndiRank!Q44 -> Riyadh | O55: =iIndiRank!R44 -> 62.5 | P55: =iIndiRank!T44 -> 62.5 | Q55: |||||||||||||||||||| | R55: =TEXT(iIndiRank!S44,iIndiRank!$E$2) ->  | V55: =iIndiRank!AT44 -> 0 | W55: =iIndiRank!AU44 -> Riyadh | Y55: =iIndiRank!AW44 -> 0 | Z55: =iIndiRank!AX44 ->  | AB55: =iIndiRank!AZ44 -> 0 | AC55: =iIndiRank!BA44 ->  | AE55: =iIndiRank!BC44 -> 0 | AF55: =iIndiRank!BD44 ->  | AH55: =iIndiRank!BF44 -> 0 | AI55: =iIndiRank!BG44 -> 
B56: =IF(uxb_works!$J$21=1,1,IF(OR(V56>0,Y56>0,AB56>0,AE56>0,AH56>0),1,0)) -> 1 | J56: =iIndiRank!L45 -> 1 | K56: =IF(J56=0,4,IF(P56<=uxb_works!$B$122,0,IF(P56<=uxb_works!$B$121,1,IF(P56<=uxb_works!$B$120,2,3)))) -> 2 | M56: =iIndiRank!P45 -> 40 | N56: =iIndiRank!Q45 -> Mexico City | O56: =iIndiRank!R45 -> 61.6 | P56: =iIndiRank!T45 -> 61.6 | Q56: |||||||||||||||||||| | R56: =TEXT(iIndiRank!S45,iIndiRank!$E$2) ->  | V56: =iIndiRank!AT45 -> 0 | W56: =iIndiRank!AU45 -> Mexico City | Y56: =iIndiRank!AW45 -> 0 | Z56: =iIndiRank!AX45 ->  | AB56: =iIndiRank!AZ45 -> 0 | AC56: =iIndiRank!BA45 ->  | AE56: =iIndiRank!BC45 -> 0 | AF56: =iIndiRank!BD45 ->  | AH56: =iIndiRank!BF45 -> 0 | AI56: =iIndiRank!BG45 -> 
B57: =IF(uxb_works!$J$21=1,1,IF(OR(V57>0,Y57>0,AB57>0,AE57>0,AH57>0),1,0)) -> 1 | J57: =iIndiRank!L46 -> 1 | K57: =IF(J57=0,4,IF(P57<=uxb_works!$B$122,0,IF(P57<=uxb_works!$B$121,1,IF(P57<=uxb_works!$B$120,2,3)))) -> 2 | M57: =iIndiRank!P46 -> 41 | N57: =iIndiRank!Q46 -> Rio de Janeiro | O57: =iIndiRank!R46 -> 60.9 | P57: =iIndiRank!T46 -> 60.9 | Q57: |||||||||||||||||||| | R57: =TEXT(iIndiRank!S46,iIndiRank!$E$2) ->  | V57: =iIndiRank!AT46 -> 0 | W57: =iIndiRank!AU46 -> Rio de Janeiro | Y57: =iIndiRank!AW46 -> 0 | Z57: =iIndiRank!AX46 ->  | AB57: =iIndiRank!AZ46 -> 0 | AC57: =iIndiRank!BA46 ->  | AE57: =iIndiRank!BC46 -> 0 | AF57: =iIndiRank!BD46 ->  | AH57: =iIndiRank!BF46 -> 0 | AI57: =iIndiRank!BG46 -> 
B58: =IF(uxb_works!$J$21=1,1,IF(OR(V58>0,Y58>0,AB58>0,AE58>0,AH58>0),1,0)) -> 1 | J58: =iIndiRank!L47 -> 1 | K58: =IF(J58=0,4,IF(P58<=uxb_works!$B$122,0,IF(P58<=uxb_works!$B$121,1,IF(P58<=uxb_works!$B$120,2,3)))) -> 2 | M58: =iIndiRank!P47 -> 42 | N58: =iIndiRank!Q47 -> Sao Paulo | O58: =iIndiRank!R47 -> 59.7 | P58: =iIndiRank!T47 -> 59.7 | Q58: ||||||||||||||||||| | R58: =TEXT(iIndiRank!S47,iIndiRank!$E$2) ->  | V58: =iIndiRank!AT47 -> 0 | W58: =iIndiRank!AU47 -> Sao Paulo | Y58: =iIndiRank!AW47 -> 0 | Z58: =iIndiRank!AX47 ->  | AB58: =iIndiRank!AZ47 -> 0 | AC58: =iIndiRank!BA47 ->  | AE58: =iIndiRank!BC47 -> 0 | AF58: =iIndiRank!BD47 ->  | AH58: =iIndiRank!BF47 -> 0 | AI58: =iIndiRank!BG47 -> 
B59: =IF(uxb_works!$J$21=1,1,IF(OR(V59>0,Y59>0,AB59>0,AE59>0,AH59>0),1,0)) -> 1 | J59: =iIndiRank!L48 -> 1 | K59: =IF(J59=0,4,IF(P59<=uxb_works!$B$122,0,IF(P59<=uxb_works!$B$121,1,IF(P59<=uxb_works!$B$120,2,3)))) -> 2 | M59: =iIndiRank!P48 -> 43 | N59: =iIndiRank!Q48 -> Manila | O59: =iIndiRank!R48 -> 59.2 | P59: =iIndiRank!T48 -> 59.2 | Q59: ||||||||||||||||||| | R59: =TEXT(iIndiRank!S48,iIndiRank!$E$2) ->  | V59: =iIndiRank!AT48 -> 0 | W59: =iIndiRank!AU48 -> Manila | Y59: =iIndiRank!AW48 -> 0 | Z59: =iIndiRank!AX48 ->  | AB59: =iIndiRank!AZ48 -> 0 | AC59: =iIndiRank!BA48 ->  | AE59: =iIndiRank!BC48 -> 0 | AF59: =iIndiRank!BD48 ->  | AH59: =iIndiRank!BF48 -> 0 | AI59: =iIndiRank!BG48 -> 
B60: =IF(uxb_works!$J$21=1,1,IF(OR(V60>0,Y60>0,AB60>0,AE60>0,AH60>0),1,0)) -> 1 | J60: =iIndiRank!L49 -> 1 | K60: =IF(J60=0,4,IF(P60<=uxb_works!$B$122,0,IF(P60<=uxb_works!$B$121,1,IF(P60<=uxb_works!$B$120,2,3)))) -> 2 | M60: =iIndiRank!P49 -> 44 | N60: =iIndiRank!Q49 -> Johannesburg | O60: =iIndiRank!R49 -> 58.6 | P60: =iIndiRank!T49 -> 58.6 | Q60: ||||||||||||||||||| | R60: =TEXT(iIndiRank!S49,iIndiRank!$E$2) ->  | V60: =iIndiRank!AT49 -> 0 | W60: =iIndiRank!AU49 -> Johannesburg | Y60: =iIndiRank!AW49 -> 0 | Z60: =iIndiRank!AX49 ->  | AB60: =iIndiRank!AZ49 -> 0 | AC60: =iIndiRank!BA49 ->  | AE60: =iIndiRank!BC49 -> 0 | AF60: =iIndiRank!BD49 ->  | AH60: =iIndiRank!BF49 -> 0 | AI60: =iIndiRank!BG49 -> 
B61: =IF(uxb_works!$J$21=1,1,IF(OR(V61>0,Y61>0,AB61>0,AE61>0,AH61>0),1,0)) -> 1 | J61: =iIndiRank!L50 -> 1 | K61: =IF(J61=0,4,IF(P61<=uxb_works!$B$122,0,IF(P61<=uxb_works!$B$121,1,IF(P61<=uxb_works!$B$120,2,3)))) -> 2 | M61: =iIndiRank!P50 -> =45 | N61: =iIndiRank!Q50 -> Lima | O61: =iIndiRank!R50 -> 58.2 | P61: =iIndiRank!T50 -> 58.2 | Q61: ||||||||||||||||||| | R61: =TEXT(iIndiRank!S50,iIndiRank!$E$2) ->  | V61: =iIndiRank!AT50 -> 0 | W61: =iIndiRank!AU50 -> Lima | Y61: =iIndiRank!AW50 -> 0 | Z61: =iIndiRank!AX50 ->  | AB61: =iIndiRank!AZ50 -> 0 | AC61: =iIndiRank!BA50 ->  | AE61: =iIndiRank!BC50 -> 0 | AF61: =iIndiRank!BD50 ->  | AH61: =iIndiRank!BF50 -> 0 | AI61: =iIndiRank!BG50 -> 
B62: =IF(uxb_works!$J$21=1,1,IF(OR(V62>0,Y62>0,AB62>0,AE62>0,AH62>0),1,0)) -> 1 | J62: =iIndiRank!L51 -> 1 | K62: =IF(J62=0,4,IF(P62<=uxb_works!$B$122,0,IF(P62<=uxb_works!$B$121,1,IF(P62<=uxb_works!$B$120,2,3)))) -> 2 | M62: =iIndiRank!P51 -> =45 | N62: =iIndiRank!Q51 -> Mumbai | O62: =iIndiRank!R51 -> 58.2 | P62: =iIndiRank!T51 -> 58.2 | Q62: ||||||||||||||||||| | R62: =TEXT(iIndiRank!S51,iIndiRank!$E$2) ->  | V62: =iIndiRank!AT51 -> 0 | W62: =iIndiRank!AU51 -> Mumbai | Y62: =iIndiRank!AW51 -> 0 | Z62: =iIndiRank!AX51 ->  | AB62: =iIndiRank!AZ51 -> 0 | AC62: =iIndiRank!BA51 ->  | AE62: =iIndiRank!BC51 -> 0 | AF62: =iIndiRank!BD51 ->  | AH62: =iIndiRank!BF51 -> 0 | AI62: =iIndiRank!BG51 -> 
B63: =IF(uxb_works!$J$21=1,1,IF(OR(V63>0,Y63>0,AB63>0,AE63>0,AH63>0),1,0)) -> 1 | J63: =iIndiRank!L52 -> 1 | K63: =IF(J63=0,4,IF(P63<=uxb_works!$B$122,0,IF(P63<=uxb_works!$B$121,1,IF(P63<=uxb_works!$B$120,2,3)))) -> 2 | M63: =iIndiRank!P52 -> =47 | N63: =iIndiRank!Q52 -> Bangkok | O63: =iIndiRank!R52 -> 57.6 | P63: =iIndiRank!T52 -> 57.6 | Q63: ||||||||||||||||||| | R63: =TEXT(iIndiRank!S52,iIndiRank!$E$2) ->  | V63: =iIndiRank!AT52 -> 0 | W63: =iIndiRank!AU52 -> Bangkok | Y63: =iIndiRank!AW52 -> 0 | Z63: =iIndiRank!AX52 ->  | AB63: =iIndiRank!AZ52 -> 0 | AC63: =iIndiRank!BA52 ->  | AE63: =iIndiRank!BC52 -> 0 | AF63: =iIndiRank!BD52 ->  | AH63: =iIndiRank!BF52 -> 0 | AI63: =iIndiRank!BG52 -> 
B64: =IF(uxb_works!$J$21=1,1,IF(OR(V64>0,Y64>0,AB64>0,AE64>0,AH64>0),1,0)) -> 1 | J64: =iIndiRank!L53 -> 1 | K64: =IF(J64=0,4,IF(P64<=uxb_works!$B$122,0,IF(P64<=uxb_works!$B$121,1,IF(P64<=uxb_works!$B$120,2,3)))) -> 2 | M64: =iIndiRank!P53 -> =47 | N64: =iIndiRank!Q53 -> Ho Chi Minh City | O64: =iIndiRank!R53 -> 57.6 | P64: =iIndiRank!T53 -> 57.6 | Q64: ||||||||||||||||||| | R64: =TEXT(iIndiRank!S53,iIndiRank!$E$2) ->  | V64: =iIndiRank!AT53 -> 0 | W64: =iIndiRank!AU53 -> Ho Chi Minh City | Y64: =iIndiRank!AW53 -> 0 | Z64: =iIndiRank!AX53 ->  | AB64: =iIndiRank!AZ53 -> 0 | AC64: =iIndiRank!BA53 ->  | AE64: =iIndiRank!BC53 -> 0 | AF64: =iIndiRank!BD53 ->  | AH64: =iIndiRank!BF53 -> 0 | AI64: =iIndiRank!BG53 -> 
B65: =IF(uxb_works!$J$21=1,1,IF(OR(V65>0,Y65>0,AB65>0,AE65>0,AH65>0),1,0)) -> 1 | J65: =iIndiRank!L54 -> 1 | K65: =IF(J65=0,4,IF(P65<=uxb_works!$B$122,0,IF(P65<=uxb_works!$B$121,1,IF(P65<=uxb_works!$B$120,2,3)))) -> 2 | M65: =iIndiRank!P54 -> 49 | N65: =iIndiRank!Q54 -> Baku | O65: =iIndiRank!R54 -> 56.4 | P65: =iIndiRank!T54 -> 56.4 | Q65: |||||||||||||||||| | R65: =TEXT(iIndiRank!S54,iIndiRank!$E$2) ->  | V65: =iIndiRank!AT54 -> 0 | W65: =iIndiRank!AU54 -> Baku | Y65: =iIndiRank!AW54 -> 0 | Z65: =iIndiRank!AX54 ->  | AB65: =iIndiRank!AZ54 -> 0 | AC65: =iIndiRank!BA54 ->  | AE65: =iIndiRank!BC54 -> 0 | AF65: =iIndiRank!BD54 ->  | AH65: =iIndiRank!BF54 -> 0 | AI65: =iIndiRank!BG54 -> 
B66: =IF(uxb_works!$J$21=1,1,IF(OR(V66>0,Y66>0,AB66>0,AE66>0,AH66>0),1,0)) -> 1 | J66: =iIndiRank!L55 -> 1 | K66: =IF(J66=0,4,IF(P66<=uxb_works!$B$122,0,IF(P66<=uxb_works!$B$121,1,IF(P66<=uxb_works!$B$120,2,3)))) -> 2 | M66: =iIndiRank!P55 -> 50 | N66: =iIndiRank!Q55 -> Quito | O66: =iIndiRank!R55 -> 55.3 | P66: =iIndiRank!T55 -> 55.3 | Q66: |||||||||||||||||| | R66: =TEXT(iIndiRank!S55,iIndiRank!$E$2) ->  | V66: =iIndiRank!AT55 -> 0 | W66: =iIndiRank!AU55 -> Quito | Y66: =iIndiRank!AW55 -> 0 | Z66: =iIndiRank!AX55 ->  | AB66: =iIndiRank!AZ55 -> 0 | AC66: =iIndiRank!BA55 ->  | AE66: =iIndiRank!BC55 -> 0 | AF66: =iIndiRank!BD55 ->  | AH66: =iIndiRank!BF55 -> 0 | AI66: =iIndiRank!BG55 -> 
B67: =IF(uxb_works!$J$21=1,1,IF(OR(V67>0,Y67>0,AB67>0,AE67>0,AH67>0),1,0)) -> 1 | J67: =iIndiRank!L56 -> 1 | K67: =IF(J67=0,4,IF(P67<=uxb_works!$B$122,0,IF(P67<=uxb_works!$B$121,1,IF(P67<=uxb_works!$B$120,2,3)))) -> 2 | M67: =iIndiRank!P56 -> 51 | N67: =iIndiRank!Q56 -> Bogota | O67: =iIndiRank!R56 -> 55.1 | P67: =iIndiRank!T56 -> 55.1 | Q67: |||||||||||||||||| | R67: =TEXT(iIndiRank!S56,iIndiRank!$E$2) ->  | V67: =iIndiRank!AT56 -> 0 | W67: =iIndiRank!AU56 -> Bogota | Y67: =iIndiRank!AW56 -> 0 | Z67: =iIndiRank!AX56 ->  | AB67: =iIndiRank!AZ56 -> 0 | AC67: =iIndiRank!BA56 ->  | AE67: =iIndiRank!BC56 -> 0 | AF67: =iIndiRank!BD56 ->  | AH67: =iIndiRank!BF56 -> 0 | AI67: =iIndiRank!BG56 -> 
B68: =IF(uxb_works!$J$21=1,1,IF(OR(V68>0,Y68>0,AB68>0,AE68>0,AH68>0),1,0)) -> 1 | J68: =iIndiRank!L57 -> 1 | K68: =IF(J68=0,4,IF(P68<=uxb_works!$B$122,0,IF(P68<=uxb_works!$B$121,1,IF(P68<=uxb_works!$B$120,2,3)))) -> 2 | M68: =iIndiRank!P57 -> 52 | N68: =iIndiRank!Q57 -> New Delhi | O68: =iIndiRank!R57 -> 55 | P68: =iIndiRank!T57 -> 55 | Q68: |||||||||||||||||| | R68: =TEXT(iIndiRank!S57,iIndiRank!$E$2) ->  | V68: =iIndiRank!AT57 -> 0 | W68: =iIndiRank!AU57 -> New Delhi | Y68: =iIndiRank!AW57 -> 0 | Z68: =iIndiRank!AX57 ->  | AB68: =iIndiRank!AZ57 -> 0 | AC68: =iIndiRank!BA57 ->  | AE68: =iIndiRank!BC57 -> 0 | AF68: =iIndiRank!BD57 ->  | AH68: =iIndiRank!BF57 -> 0 | AI68: =iIndiRank!BG57 -> 
B69: =IF(uxb_works!$J$21=1,1,IF(OR(V69>0,Y69>0,AB69>0,AE69>0,AH69>0),1,0)) -> 1 | J69: =iIndiRank!L58 -> 1 | K69: =IF(J69=0,4,IF(P69<=uxb_works!$B$122,0,IF(P69<=uxb_works!$B$121,1,IF(P69<=uxb_works!$B$120,2,3)))) -> 2 | M69: =iIndiRank!P58 -> 53 | N69: =iIndiRank!Q58 -> Jakarta | O69: =iIndiRank!R58 -> 54.5 | P69: =iIndiRank!T58 -> 54.5 | Q69: |||||||||||||||||| | R69: =TEXT(iIndiRank!S58,iIndiRank!$E$2) ->  | V69: =iIndiRank!AT58 -> 0 | W69: =iIndiRank!AU58 -> Jakarta | Y69: =iIndiRank!AW58 -> 0 | Z69: =iIndiRank!AX58 ->  | AB69: =iIndiRank!AZ58 -> 0 | AC69: =iIndiRank!BA58 ->  | AE69: =iIndiRank!BC58 -> 0 | AF69: =iIndiRank!BD58 ->  | AH69: =iIndiRank!BF58 -> 0 | AI69: =iIndiRank!BG58 -> 
B70: =IF(uxb_works!$J$21=1,1,IF(OR(V70>0,Y70>0,AB70>0,AE70>0,AH70>0),1,0)) -> 1 | J70: =iIndiRank!L59 -> 1 | K70: =IF(J70=0,4,IF(P70<=uxb_works!$B$122,0,IF(P70<=uxb_works!$B$121,1,IF(P70<=uxb_works!$B$120,2,3)))) -> 2 | M70: =iIndiRank!P59 -> 54 | N70: =iIndiRank!Q59 -> Casablanca | O70: =iIndiRank!R59 -> 53.5 | P70: =iIndiRank!T59 -> 53.5 | Q70: ||||||||||||||||| | R70: =TEXT(iIndiRank!S59,iIndiRank!$E$2) ->  | V70: =iIndiRank!AT59 -> 0 | W70: =iIndiRank!AU59 -> Casablanca | Y70: =iIndiRank!AW59 -> 0 | Z70: =iIndiRank!AX59 ->  | AB70: =iIndiRank!AZ59 -> 0 | AC70: =iIndiRank!BA59 ->  | AE70: =iIndiRank!BC59 -> 0 | AF70: =iIndiRank!BD59 ->  | AH70: =iIndiRank!BF59 -> 0 | AI70: =iIndiRank!BG59 -> 
B71: =IF(uxb_works!$J$21=1,1,IF(OR(V71>0,Y71>0,AB71>0,AE71>0,AH71>0),1,0)) -> 1 | J71: =iIndiRank!L60 -> 1 | K71: =IF(J71=0,4,IF(P71<=uxb_works!$B$122,0,IF(P71<=uxb_works!$B$121,1,IF(P71<=uxb_works!$B$120,2,3)))) -> 1 | M71: =iIndiRank!P60 -> 55 | N71: =iIndiRank!Q60 -> Cairo | O71: =iIndiRank!R60 -> 48.6 | P71: =iIndiRank!T60 -> 48.6 | Q71: |||||||||||||||| | R71: =TEXT(iIndiRank!S60,iIndiRank!$E$2) ->  | V71: =iIndiRank!AT60 -> 0 | W71: =iIndiRank!AU60 -> Cairo | Y71: =iIndiRank!AW60 -> 0 | Z71: =iIndiRank!AX60 ->  | AB71: =iIndiRank!AZ60 -> 0 | AC71: =iIndiRank!BA60 ->  | AE71: =iIndiRank!BC60 -> 0 | AF71: =iIndiRank!BD60 ->  | AH71: =iIndiRank!BF60 -> 0 | AI71: =iIndiRank!BG60 -> 
B72: =IF(uxb_works!$J$21=1,1,IF(OR(V72>0,Y72>0,AB72>0,AE72>0,AH72>0),1,0)) -> 1 | J72: =iIndiRank!L61 -> 1 | K72: =IF(J72=0,4,IF(P72<=uxb_works!$B$122,0,IF(P72<=uxb_works!$B$121,1,IF(P72<=uxb_works!$B$120,2,3)))) -> 1 | M72: =iIndiRank!P61 -> 56 | N72: =iIndiRank!Q61 -> Dhaka | O72: =iIndiRank!R61 -> 44.6 | P72: =iIndiRank!T61 -> 44.6 | Q72: |||||||||||||| | R72: =TEXT(iIndiRank!S61,iIndiRank!$E$2) ->  | V72: =iIndiRank!AT61 -> 0 | W72: =iIndiRank!AU61 -> Dhaka | Y72: =iIndiRank!AW61 -> 0 | Z72: =iIndiRank!AX61 ->  | AB72: =iIndiRank!AZ61 -> 0 | AC72: =iIndiRank!BA61 ->  | AE72: =iIndiRank!BC61 -> 0 | AF72: =iIndiRank!BD61 ->  | AH72: =iIndiRank!BF61 -> 0 | AI72: =iIndiRank!BG61 -> 
B73: =IF(uxb_works!$J$21=1,1,IF(OR(V73>0,Y73>0,AB73>0,AE73>0,AH73>0),1,0)) -> 1 | J73: =iIndiRank!L62 -> 1 | K73: =IF(J73=0,4,IF(P73<=uxb_works!$B$122,0,IF(P73<=uxb_works!$B$121,1,IF(P73<=uxb_works!$B$120,2,3)))) -> 1 | M73: =iIndiRank!P62 -> 57 | N73: =iIndiRank!Q62 -> Karachi | O73: =iIndiRank!R62 -> 43.5 | P73: =iIndiRank!T62 -> 43.5 | Q73: |||||||||||||| | R73: =TEXT(iIndiRank!S62,iIndiRank!$E$2) ->  | V73: =iIndiRank!AT62 -> 0 | W73: =iIndiRank!AU62 -> Karachi | Y73: =iIndiRank!AW62 -> 0 | Z73: =iIndiRank!AX62 ->  | AB73: =iIndiRank!AZ62 -> 0 | AC73: =iIndiRank!BA62 ->  | AE73: =iIndiRank!BC62 -> 0 | AF73: =iIndiRank!BD62 ->  | AH73: =iIndiRank!BF62 -> 0 | AI73: =iIndiRank!BG62 -> 
B74: =IF(uxb_works!$J$21=1,1,IF(OR(V74>0,Y74>0,AB74>0,AE74>0,AH74>0),1,0)) -> 1 | J74: =iIndiRank!L63 -> 1 | K74: =IF(J74=0,4,IF(P74<=uxb_works!$B$122,0,IF(P74<=uxb_works!$B$121,1,IF(P74<=uxb_works!$B$120,2,3)))) -> 1 | M74: =iIndiRank!P63 -> 58 | N74: =iIndiRank!Q63 -> Yangon | O74: =iIndiRank!R63 -> 41.9 | P74: =iIndiRank!T63 -> 41.9 | Q74: ||||||||||||| | R74: =TEXT(iIndiRank!S63,iIndiRank!$E$2) ->  | V74: =iIndiRank!AT63 -> 0 | W74: =iIndiRank!AU63 -> Yangon | Y74: =iIndiRank!AW63 -> 0 | Z74: =iIndiRank!AX63 ->  | AB74: =iIndiRank!AZ63 -> 0 | AC74: =iIndiRank!BA63 ->  | AE74: =iIndiRank!BC63 -> 0 | AF74: =iIndiRank!BD63 ->  | AH74: =iIndiRank!BF63 -> 0 | AI74: =iIndiRank!BG63 -> 
B75: =IF(uxb_works!$J$21=1,1,IF(OR(V75>0,Y75>0,AB75>0,AE75>0,AH75>0),1,0)) -> 1 | J75: =iIndiRank!L64 -> 1 | K75: =IF(J75=0,4,IF(P75<=uxb_works!$B$122,0,IF(P75<=uxb_works!$B$121,1,IF(P75<=uxb_works!$B$120,2,3)))) -> 1 | M75: =iIndiRank!P64 -> 59 | N75: =iIndiRank!Q64 -> Caracas | O75: =iIndiRank!R64 -> 40.1 | P75: =iIndiRank!T64 -> 40.1 | Q75: ||||||||||||| | R75: =TEXT(iIndiRank!S64,iIndiRank!$E$2) ->  | V75: =iIndiRank!AT64 -> 0 | W75: =iIndiRank!AU64 -> Caracas | Y75: =iIndiRank!AW64 -> 0 | Z75: =iIndiRank!AX64 ->  | AB75: =iIndiRank!AZ64 -> 0 | AC75: =iIndiRank!BA64 ->  | AE75: =iIndiRank!BC64 -> 0 | AF75: =iIndiRank!BD64 ->  | AH75: =iIndiRank!BF64 -> 0 | AI75: =iIndiRank!BG64 -> 
B76: =IF(uxb_works!$J$21=1,1,IF(OR(V76>0,Y76>0,AB76>0,AE76>0,AH76>0),1,0)) -> 1 | J76: =iIndiRank!L65 -> 1 | K76: =IF(J76=0,4,IF(P76<=uxb_works!$B$122,0,IF(P76<=uxb_works!$B$121,1,IF(P76<=uxb_works!$B$120,2,3)))) -> 1 | M76: =iIndiRank!P65 -> 60 | N76: =iIndiRank!Q65 -> Lagos | O76: =iIndiRank!R65 -> 38.1 | P76: =iIndiRank!T65 -> 38.1 | Q76: |||||||||||| | R76: =TEXT(iIndiRank!S65,iIndiRank!$E$2) ->  | V76: =iIndiRank!AT65 -> 0 | W76: =iIndiRank!AU65 -> Lagos | Y76: =iIndiRank!AW65 -> 0 | Z76: =iIndiRank!AX65 ->  | AB76: =iIndiRank!AZ65 -> 0 | AC76: =iIndiRank!BA65 ->  | AE76: =iIndiRank!BC65 -> 0 | AF76: =iIndiRank!BD65 ->  | AH76: =iIndiRank!BF65 -> 0 | AI76: =iIndiRank!BG65 -> 

Sheet CountryScoreCard
A1: =uxb_works!$B$92 -> SAFE CITIES INDEX: 2019 | AC1: $C$30 | BA1: 1 | BB1: 2 | BC1: 1 | BD1: 2 | BF1: 1 | BG1: 2
BC2: 2 | BD2: 0
A4: =uxb_works!B111 -> 1
A6: =uxb_works!$C$5 -> The active weight profile has been changed from its default setting
C8: =uxb_works!D67 -> Active filter group: All regions in all income levels with all population sizes
C13: =uxb_works!C26 -> Abu Dhabi | I13: Score | J13: ="Rank/"&uxb_works!$B$1 -> Rank/60 | K13: =iCntyScoreCard!C68 -> All city average
B14: 1 | C14: =iCSCtbl!C3 -> OVERVIEW | I14: =iCSCtbl!D3 -> 79.5 | J14: =iCSCtbl!E3 -> 27 | K14: =iCSCtbl!G3 -> 71.2
B15: =iCSCtbl!F4 -> 1 | C15: =TRIM(UPPER(iCSCtbl!C4)) -> 1) DIGITAL SECURITY | I15: =iCSCtbl!D4 -> 74.1 | J15: =iCSCtbl!E4 -> =24 | K15: =iCSCtbl!G4 -> 67.2
B16: =iCSCtbl!F5 -> 2 | C16: =TRIM(iCSCtbl!C5) -> 1.1) Digital security (Inputs) | I16: =iCSCtbl!D5 -> 88.3 | J16: =iCSCtbl!E5 -> =18 | K16: =iCSCtbl!G5 -> 73.8
B17: =iCSCtbl!F6 -> 2 | C17: =TRIM(iCSCtbl!C6) -> 1.2) Digital security (Outputs) | I17: =iCSCtbl!D6 -> 59.8 | J17: =iCSCtbl!E6 -> =28 | K17: =iCSCtbl!G6 -> 60.7
B18: =iCSCtbl!F7 -> 1 | C18: =TRIM(iCSCtbl!C7) -> 2) HEALTH SECURITY | I18: =iCSCtbl!D7 -> 71.8 | J18: =iCSCtbl!E7 -> 29 | K18: =iCSCtbl!G7 -> 68
B19: =iCSCtbl!F8 -> 2 | C19: =TRIM(iCSCtbl!C8) -> 2.1) Health security (Inputs) | I19: =iCSCtbl!D8 -> 62.7 | J19: =iCSCtbl!E8 -> 34 | K19: =iCSCtbl!G8 -> 61.8
B20: =iCSCtbl!F9 -> 2 | C20: =TRIM(iCSCtbl!C9) -> 2.2) Health security (Outputs) | I20: =iCSCtbl!D9 -> 80.9 | J20: =iCSCtbl!E9 -> 19 | K20: =iCSCtbl!G9 -> 74.1
B21: =iCSCtbl!F10 -> 1 | C21: =TRIM(iCSCtbl!C10) -> 3) INFRASTRUCTURE SECURITY | I21: =iCSCtbl!D10 -> 83.2 | J21: =iCSCtbl!E10 -> =26 | K21: =iCSCtbl!G10 -> 72.5
B22: =iCSCtbl!F11 -> 2 | C22: =TRIM(iCSCtbl!C11) -> 3.1) Infrastructure security (Inputs) | I22: =iCSCtbl!D11 -> 91.7 | J22: =iCSCtbl!E11 -> =13 | K22: =iCSCtbl!G11 -> 72.3
B23: =iCSCtbl!F12 -> 2 | C23: =TRIM(iCSCtbl!C12) -> 3.2) Infrastructure security (Outputs) | I23: =iCSCtbl!D12 -> 74.7 | J23: =iCSCtbl!E12 -> =29 | K23: =iCSCtbl!G12 -> 72.8
B24: =iCSCtbl!F13 -> 1 | C24: =TRIM(iCSCtbl!C13) -> 4) PERSONAL SECURITY | I24: =iCSCtbl!D13 -> 88.9 | J24: =iCSCtbl!E13 -> 11 | K24: =iCSCtbl!G13 -> 77
B25: =iCSCtbl!F14 -> 2 | C25: =TRIM(iCSCtbl!C14) -> 4.1) Personal security (Inputs) | I25: =iCSCtbl!D14 -> 89.2 | J25: =iCSCtbl!E14 -> =23 | K25: =iCSCtbl!G14 -> 80.9
B26: =iCSCtbl!F15 -> 2 | C26: =TRIM(iCSCtbl!C15) -> 4.2) Personal security (Outputs) | I26: =iCSCtbl!D15 -> 88.7 | J26: =iCSCtbl!E15 -> 11 | K26: =iCSCtbl!G15 -> 73.1
C31: Score > 75 | G31: Score < 25
B32: =MAX(SUM(B33:B74),1) -> 5 | F32: =MAX(SUM(F33:F74),1) -> 1
B33: =IF(C33="",0,1) -> 1 | C33: =TRIM(iCountryP!V22) -> 1.1) Digital security (Inputs) | D33: =iCountryP!W22 -> 88.3 | F33: =IF(G33="",0,1) -> 0 | G33: =TRIM(iCountryP!Z22) ->  | H33: =iCountryP!AA22 ->  | I33: =iCountryP!AA22 ->  | W33: =C33 -> 1.1) Digital security (Inputs) | X33: =G33 -> 
B34: =IF(C34="",0,1) -> 1 | C34: =TRIM(iCountryP!V23) -> 2.2) Health security (Outputs) | D34: =iCountryP!W23 -> 80.9 | F34: =IF(G34="",0,1) -> 0 | G34: =TRIM(iCountryP!Z23) ->  | H34: =iCountryP!AA23 ->  | I34: =iCountryP!AA23 ->  | W34: =C34 -> 2.2) Health security (Outputs) | X34: =G34 -> 
B35: 1 | C35: =TRIM(iCountryP!V24) -> 3.1) Infrastructure security (Inputs) | D35: =iCountryP!W24 -> 91.7 | F35: 0 | G35: =TRIM(iCountryP!Z24) ->  | H35: =iCountryP!AA24 ->  | I35: =iCountryP!AA24 ->  | W35: 3.1) Infrastructure security (Inputs)
B36: 1 | C36: =TRIM(iCountryP!V25) -> 4.1) Personal security (Inputs) | D36: =iCountryP!W25 -> 89.2 | F36: 0 | G36: =TRIM(iCountryP!Z25) ->  | H36: =iCountryP!AA25 ->  | I36: =iCountryP!AA25 ->  | W36: 4.1) Personal security (Inputs)
B37: 1 | C37: =TRIM(iCountryP!V26) -> 4.2) Personal security (Outputs) | D37: =iCountryP!W26 -> 88.7 | F37: 0 | G37: =TRIM(iCountryP!Z26) ->  | H37: =iCountryP!AA26 ->  | I37: =iCountryP!AA26 ->  | W37: 4.2) Personal security (Outputs)
B38: 0 | C38: =TRIM(iCountryP!V27) ->  | D38: =iCountryP!W27 ->  | F38: 0 | G38: =TRIM(iCountryP!Z27) ->  | H38: =iCountryP!AA27 ->  | I38: =iCountryP!AA27 -> 
B39: =IF(C39="",0,1) -> 0 | C39: =TRIM(iCountryP!V28) ->  | D39: =iCountryP!W28 ->  | F39: =IF(G39="",0,1) -> 0 | G39: =TRIM(iCountryP!Z28) ->  | H39: =iCountryP!AA28 ->  | I39: =iCountryP!AA28 ->  | W39: =C39 ->  | X39: =G39 -> 
B40: 0 | C40: =TRIM(iCountryP!V29) ->  | D40: =iCountryP!W29 ->  | F40: 0 | G40: =TRIM(iCountryP!Z29) ->  | H40: =iCountryP!AA29 ->  | I40: =iCountryP!AA29 -> 
B41: 0 | C41: =TRIM(iCountryP!V30) ->  | D41: =iCountryP!W30 ->  | F41: 0 | G41: =TRIM(iCountryP!Z30) ->  | H41: =iCountryP!AA30 ->  | I41: =iCountryP!AA30 -> 
B42: 0 | C42: =TRIM(iCountryP!V31) ->  | D42: =iCountryP!W31 ->  | F42: 0 | G42: =TRIM(iCountryP!Z31) ->  | H42: =iCountryP!AA31 ->  | I42: =iCountryP!AA31 -> 
B43: 0 | C43: =TRIM(iCountryP!V32) ->  | D43: =iCountryP!W32 ->  | F43: 0 | G43: =TRIM(iCountryP!Z32) ->  | H43: =iCountryP!AA32 ->  | I43: =iCountryP!AA32 -> 
B44: 0 | C44: =TRIM(iCountryP!V33) ->  | D44: =iCountryP!W33 ->  | F44: 0 | G44: =TRIM(iCountryP!Z33) ->  | H44: =iCountryP!AA33 ->  | I44: =iCountryP!AA33 -> 
B45: 0 | C45: =TRIM(iCountryP!V34) ->  | D45: =iCountryP!W34 ->  | F45: 0 | G45: =TRIM(iCountryP!Z34) ->  | H45: =iCountryP!AA34 ->  | I45: =iCountryP!AA34 -> 
B46: 0 | C46: =TRIM(iCountryP!V35) ->  | D46: =iCountryP!W35 ->  | F46: 0 | G46: =TRIM(iCountryP!Z35) ->  | H46: =iCountryP!AA35 ->  | I46: =iCountryP!AA35 -> 
B47: 0 | C47: =TRIM(iCountryP!V36) ->  | D47: =iCountryP!W36 ->  | F47: 0 | G47: =TRIM(iCountryP!Z36) ->  | H47: =iCountryP!AA36 ->  | I47: =iCountryP!AA36 -> 
B48: 0 | C48: =TRIM(iCountryP!V37) ->  | D48: =iCountryP!W37 ->  | F48: 0 | G48: =TRIM(iCountryP!Z37) ->  | H48: =iCountryP!AA37 ->  | I48: =iCountryP!AA37 -> 
B49: 0 | C49: =TRIM(iCountryP!V38) ->  | D49: =iCountryP!W38 ->  | F49: 0 | G49: =TRIM(iCountryP!Z38) ->  | H49: =iCountryP!AA38 ->  | I49: =iCountryP!AA38 -> 
B50: 0 | C50: =TRIM(iCountryP!V39) ->  | D50: =iCountryP!W39 ->  | F50: 0 | G50: =TRIM(iCountryP!Z39) ->  | H50: =iCountryP!AA39 ->  | I50: =iCountryP!AA39 -> 
B51: 0 | C51: =TRIM(iCountryP!V40) ->  | D51: =iCountryP!W40 ->  | F51: 0 | G51: =TRIM(iCountryP!Z40) ->  | H51: =iCountryP!AA40 ->  | I51: =iCountryP!AA40 -> 
B52: 0 | C52: =TRIM(iCountryP!V41) ->  | D52: =iCountryP!W41 ->  | F52: 0 | G52: =TRIM(iCountryP!Z41) ->  | H52: =iCountryP!AA41 ->  | I52: =iCountryP!AA41 -> 
B53: 0 | C53: =TRIM(iCountryP!V42) ->  | D53: =iCountryP!W42 ->  | F53: 0 | G53: =TRIM(iCountryP!Z42) ->  | H53: =iCountryP!AA42 ->  | I53: =iCountryP!AA42 -> 
B54: 0 | C54: =TRIM(iCountryP!V43) ->  | D54: =iCountryP!W43 ->  | F54: 0 | G54: =TRIM(iCountryP!Z43) ->  | H54: =iCountryP!AA43 ->  | I54: =iCountryP!AA43 -> 
B55: 0 | C55: =TRIM(iCountryP!V44) ->  | D55: =iCountryP!W44 ->  | F55: 0 | G55: =TRIM(iCountryP!Z44) ->  | H55: =iCountryP!AA44 ->  | I55: =iCountryP!AA44 -> 
B56: 0 | C56: =TRIM(iCountryP!V45) ->  | D56: =iCountryP!W45 ->  | F56: 0 | G56: =TRIM(iCountryP!Z45) ->  | H56: =iCountryP!AA45 ->  | I56: =iCountryP!AA45 -> 
B57: 0 | C57: =TRIM(iCountryP!V46) ->  | D57: =iCountryP!W46 ->  | F57: 0 | G57: =TRIM(iCountryP!Z46) ->  | H57: =iCountryP!AA46 ->  | I57: =iCountryP!AA46 -> 
B58: 0 | C58: =TRIM(iCountryP!V47) ->  | D58: =iCountryP!W47 ->  | F58: 0 | G58: =TRIM(iCountryP!Z47) ->  | H58: =iCountryP!AA47 ->  | I58: =iCountryP!AA47 -> 
B59: 0 | C59: =TRIM(iCountryP!V48) ->  | D59: =iCountryP!W48 ->  | F59: 0 | G59: =TRIM(iCountryP!Z48) ->  | H59: =iCountryP!AA48 ->  | I59: =iCountryP!AA48 -> 
B60: 0 | C60: =TRIM(iCountryP!V49) ->  | D60: =iCountryP!W49 ->  | F60: 0 | G60: =TRIM(iCountryP!Z49) ->  | H60: =iCountryP!AA49 ->  | I60: =iCountryP!AA49 -> 
B61: 0 | C61: =TRIM(iCountryP!V50) ->  | D61: =iCountryP!W50 ->  | F61: 0 | G61: =TRIM(iCountryP!Z50) ->  | H61: =iCountryP!AA50 ->  | I61: =iCountryP!AA50 -> 
B62: 0 | C62: =TRIM(iCountryP!V51) ->  | D62: =iCountryP!W51 ->  | F62: 0 | G62: =TRIM(iCountryP!Z51) ->  | H62: =iCountryP!AA51 ->  | I62: =iCountryP!AA51 -> 
B63: 0 | C63: =TRIM(iCountryP!V52) ->  | D63: =iCountryP!W52 ->  | F63: 0 | G63: =TRIM(iCountryP!Z52) ->  | H63: =iCountryP!AA52 ->  | I63: =iCountryP!AA52 -> 
B64: 0 | C64: =TRIM(iCountryP!V53) ->  | D64: =iCountryP!W53 ->  | F64: 0 | G64: =TRIM(iCountryP!Z53) ->  | H64: =iCountryP!AA53 ->  | I64: =iCountryP!AA53 -> 
B65: 0 | C65: =TRIM(iCountryP!V54) ->  | D65: =iCountryP!W54 ->  | F65: 0 | G65: =TRIM(iCountryP!Z54) ->  | H65: =iCountryP!AA54 ->  | I65: =iCountryP!AA54 -> 
B66: 0 | C66: =TRIM(iCountryP!V55) ->  | D66: =iCountryP!W55 ->  | F66: 0 | G66: =TRIM(iCountryP!Z55) ->  | H66: =iCountryP!AA55 ->  | I66: =iCountryP!AA55 -> 
B67: 0 | C67: =TRIM(iCountryP!V56) ->  | D67: =iCountryP!W56 ->  | F67: 0 | G67: =TRIM(iCountryP!Z56) ->  | H67: =iCountryP!AA56 ->  | I67: =iCountryP!AA56 -> 
B68: 0 | C68: =TRIM(iCountryP!V57) ->  | D68: =iCountryP!W57 ->  | F68: 0 | G68: =TRIM(iCountryP!Z57) ->  | H68: =iCountryP!AA57 ->  | I68: =iCountryP!AA57 -> 
B69: 0 | C69: =TRIM(iCountryP!V58) ->  | D69: =iCountryP!W58 ->  | F69: 0 | G69: =TRIM(iCountryP!Z58) ->  | H69: =iCountryP!AA58 ->  | I69: =iCountryP!AA58 -> 
B70: 0 | C70: =TRIM(iCountryP!V59) ->  | D70: =iCountryP!W59 ->  | F70: 0 | G70: =TRIM(iCountryP!Z59) ->  | H70: =iCountryP!AA59 ->  | I70: =iCountryP!AA59 -> 
B71: 0 | C71: =TRIM(iCountryP!V60) ->  | D71: =iCountryP!W60 ->  | F71: 0 | G71: =TRIM(iCountryP!Z60) ->  | H71: =iCountryP!AA60 ->  | I71: =iCountryP!AA60 -> 
B72: 0 | C72: =TRIM(iCountryP!V61) ->  | D72: =iCountryP!W61 ->  | F72: 0 | G72: =TRIM(iCountryP!Z61) ->  | H72: =iCountryP!AA61 ->  | I72: =iCountryP!AA61 -> 
B73: 0 | C73: =TRIM(iCountryP!V62) ->  | D73: =iCountryP!W62 ->  | F73: 0 | G73: =TRIM(iCountryP!Z62) ->  | H73: =iCountryP!AA62 ->  | I73: =iCountryP!AA62 -> 
B74: 0 | C74: =TRIM(iCountryP!V63) ->  | D74: =iCountryP!W63 ->  | F74: 0 | G74: =TRIM(iCountryP!Z63) ->  | H74: =iCountryP!AA63 ->  | I74: =iCountryP!AA63 -> 
B75: 0 | C75: =TRIM(iCountryP!V64) ->  | D75: =iCountryP!W64 ->  | F75: 0 | G75: =TRIM(iCountryP!Z64) ->  | H75: =iCountryP!AA64 ->  | I75: =iCountryP!AA64 -> 

Sheet CountryCompare
B1: s | C1: =uxb_works!$B$92 -> SAFE CITIES INDEX: 2019 | Z1: 1 | AX1: $V$16 | AY1: =INDEX(tblIndicators!$AL$2:$AL$71,MATCH($AX$2,tblIndiSets!$F$13:$F$82,0)) -> OVERALL SCORE | BA1: 1 | BB1: 3
AX2: =TRIM(INDIRECT(AX1)) -> OVERALL SCORE | AY2: =INDEX(tblIndicators!$O$2:$O$71,MATCH($AX$2,tblIndiSets!$F$13:$F$82,0)) -> The overall score is the weighted sum of the following category scores: 1) DIGITAL SECURITY (25.0%) 2) HEALTH SECURITY (25.0%) 3) INFRASTRUCTURE SECURITY (25.0%) 4) PERSONAL SECURITY (25.0%)
A4: =uxb_works!B111 -> 1 | B4: =uxb_works!C111 -> Show filter options | C4: =uxb_works!D111 -> Hide filter options | D4: =uxb_works!E111 -> Show filter options | E4: =uxb_works!F111 -> 0 | F4: =uxb_works!G111 -> 0 | G4: =uxb_works!H111 -> 0 | H4: =uxb_works!I111 -> 0 | I4: =uxb_works!J111 -> 0 | J4: =uxb_works!K111 -> 0 | K4: =uxb_works!L111 -> 0 | L4: =uxb_works!M111 -> 0 | M4: =uxb_works!N111 -> 0 | N4: =uxb_works!O111 -> 0 | O4: =uxb_works!P111 -> 0 | P4: =uxb_works!Q111 -> 0 | Q4: =uxb_works!R111 -> 0 | R4: =uxb_works!S111 -> 0 | S4: =uxb_works!T111 -> 0 | T4: =uxb_works!U111 -> 0 | U4: =uxb_works!V111 -> 0 | V4: =uxb_works!W111 -> 0 | W4: =uxb_works!X111 -> 0 | X4: =uxb_works!Y111 -> 0 | Y4: =uxb_works!Z111 -> 0 | Z4: =uxb_works!AA111 -> 0 | AA4: =uxb_works!AB111 -> 0 | AB4: =uxb_works!AC111 -> 0 | AC4: =uxb_works!AD111 -> 0 | AD4: =uxb_works!AE111 -> 0 | AE4: =uxb_works!AF111 -> 0 | AF4: =uxb_works!AG111 -> 0 | AG4: =uxb_works!AH111 -> 0 | AH4: =uxb_works!AI111 -> 0 | AI4: =uxb_works!AJ111 -> 0
C6: =uxb_works!$C$5 -> The active weight profile has been changed from its default setting
C8: =uxb_works!D67 -> Active filter group: All regions in all income levels with all population sizes
C10: =TRIM(uxb_works!D32) -> OVERALL SCORE
C12: City Comparison Overview | X12: 1 | Y12: 2 | Z12: 3 | AA12: 1 | AB12: 2 | AC12: =iCountryComp!AH17 -> 3 | AD12: =iCountryComp!AI17 -> 1 | AE12: =iCountryComp!AJ17 -> 2 | AF12: =iCountryComp!AK17 -> 3 | AG12: =iCountryComp!AL17 -> 0 | AH12: =iCountryComp!AM17 -> 0
B14: =MAX(COUNTIF(S16:S57,"<>0"),11) -> 13 | S14: =COUNTIF(S16:S57,"<>0") -> 13 | T14: =uxb_works!E32 -> 0 | V14: Indicator | X14: =iCountryComp!C2 -> Abu Dhabi | AA14: =iCountryComp!C3 -> Amsterdam | AD14: =iCountryComp!C4 -> Baku | AG14: =iCountryComp!C5 -> <none>
X15: Score | Y15: Rank | AA15: Score | AB15: Rank | AD15: Score | AE15: Rank | AG15: Score | AH15: Rank
S16: =iCountryComp!AB22 -> 2 | T16: =iCountryComp!AC22 -> 2 | V16: =iCountryComp!AD22 -> OVERALL SCORE | X16: =iCountryComp!AE22 -> 79.5 | Y16: =iCountryComp!AF22 -> 27 | AA16: =iCountryComp!AG22 -> 88 | AB16: =iCountryComp!AH22 -> 4 | AD16: =iCountryComp!AI22 -> 56.4 | AE16: =iCountryComp!AJ22 -> 49 | AG16: =iCountryComp!AL22 ->  | AH16: =iCountryComp!AM22 ->  | AK16: =MIN(X16,AA16,AD16,AG16) -> 56.4 | AL16: =MAX(X16,AA16,AD16,AG16) -> 88 | AN16: =V16 -> OVERALL SCORE
S17: =iCountryComp!AB23 -> 1 | T17: =iCountryComp!AC23 -> 1 | V17: =iCountryComp!AD23 -> 1) DIGITAL SECURITY | X17: =iCountryComp!AE23 -> 74.1 | Y17: =iCountryComp!AF23 -> =24 | AA17: =iCountryComp!AG23 -> 89 | AB17: =iCountryComp!AH23 -> 14 | AD17: =iCountryComp!AI23 -> 51.7 | AE17: =iCountryComp!AJ23 -> 46 | AG17: =iCountryComp!AL23 ->  | AH17: =iCountryComp!AM23 ->  | AK17: =MIN(X17,AA17,AD17,AG17) -> 51.7 | AL17: =MAX(X17,AA17,AD17,AG17) -> 89 | AN17: =V17 -> 1) DIGITAL SECURITY
S18: =iCountryComp!AB24 -> 1 | T18: =iCountryComp!AC24 -> 1 | V18: =iCountryComp!AD24 -> 1.1) Digital security (Inputs) | X18: =iCountryComp!AE24 -> 88.3 | Y18: =iCountryComp!AF24 -> =18 | AA18: =iCountryComp!AG24 -> 80 | AB18: =iCountryComp!AH24 -> =21 | AD18: =iCountryComp!AI24 -> 58.3 | AE18: =iCountryComp!AJ24 -> =42 | AG18: =iCountryComp!AL24 ->  | AH18: =iCountryComp!AM24 ->  | AK18: =MIN(X18,AA18,AD18,AG18) -> 58.3 | AL18: =MAX(X18,AA18,AD18,AG18) -> 88.3 | AN18: 1.1) Digital security (Inputs)
S19: =iCountryComp!AB25 -> 1 | T19: =iCountryComp!AC25 -> 1 | V19: =iCountryComp!AD25 -> 1.2) Digital security (Outputs) | X19: =iCountryComp!AE25 -> 59.8 | Y19: =iCountryComp!AF25 -> =28 | AA19: =iCountryComp!AG25 -> 98.1 | AB19: =iCountryComp!AH25 -> 2 | AD19: =iCountryComp!AI25 -> 45.1 | AE19: =iCountryComp!AJ25 -> 45 | AG19: =iCountryComp!AL25 ->  | AH19: =iCountryComp!AM25 ->  | AK19: 45.1 | AL19: 98.1 | AN19: 1.2) Digital security (Outputs)
S20: =iCountryComp!AB26 -> 2 | T20: =iCountryComp!AC26 -> 1 | V20: =iCountryComp!AD26 -> 2) HEALTH SECURITY | X20: =iCountryComp!AE26 -> 71.8 | Y20: =iCountryComp!AF26 -> 29 | AA20: =iCountryComp!AG26 -> 81.6 | AB20: =iCountryComp!AH26 -> =4 | AD20: =iCountryComp!AI26 -> 64 | AE20: =iCountryComp!AJ26 -> 41 | AG20: =iCountryComp!AL26 ->  | AH20: =iCountryComp!AM26 ->  | AK20: 64 | AL20: 81.6 | AN20: 2) HEALTH SECURITY
S21: =iCountryComp!AB27 -> 2 | T21: =iCountryComp!AC27 -> 1 | V21: =iCountryComp!AD27 -> 2.1) Health security (Inputs) | X21: =iCountryComp!AE27 -> 62.7 | Y21: =iCountryComp!AF27 -> 34 | AA21: =iCountryComp!AG27 -> 76.4 | AB21: =iCountryComp!AH27 -> 11 | AD21: =iCountryComp!AI27 -> 67.7 | AE21: =iCountryComp!AJ27 -> 31 | AG21: =iCountryComp!AL27 ->  | AH21: =iCountryComp!AM27 ->  | AK21: 62.7 | AL21: 76.4 | AN21: 2.1) Health security (Inputs)
S22: =iCountryComp!AB28 -> 2 | T22: =iCountryComp!AC28 -> 1 | V22: =iCountryComp!AD28 -> 2.2) Health security (Outputs) | X22: =iCountryComp!AE28 -> 80.9 | Y22: =iCountryComp!AF28 -> 19 | AA22: =iCountryComp!AG28 -> 86.9 | AB22: =iCountryComp!AH28 -> 6 | AD22: =iCountryComp!AI28 -> 60.2 | AE22: =iCountryComp!AJ28 -> 52 | AG22: =iCountryComp!AL28 ->  | AH22: =iCountryComp!AM28 ->  | AK22: 60.2 | AL22: 86.9 | AN22: 2.2) Health security (Outputs)
S23: =iCountryComp!AB29 -> 1 | T23: =iCountryComp!AC29 -> 1 | V23: =iCountryComp!AD29 -> 3) INFRASTRUCTURE SECURITY | X23: =iCountryComp!AE29 -> 83.2 | Y23: =iCountryComp!AF29 -> =26 | AA23: =iCountryComp!AG29 -> 92 | AB23: =iCountryComp!AH29 -> 16 | AD23: =iCountryComp!AI29 -> 46.3 | AE23: =iCountryComp!AJ29 -> 54 | AG23: =iCountryComp!AL29 ->  | AH23: =iCountryComp!AM29 ->  | AK23: 46.3 | AL23: 92 | AN23: 3) INFRASTRUCTURE SECURITY
S24: =iCountryComp!AB30 -> 1 | T24: =iCountryComp!AC30 -> 1 | V24: =iCountryComp!AD30 -> 3.1) Infrastructure security (Inputs) | X24: =iCountryComp!AE30 -> 91.7 | Y24: =iCountryComp!AF30 -> =13 | AA24: =iCountryComp!AG30 -> 85.8 | AB24: =iCountryComp!AH30 -> 30 | AD24: =iCountryComp!AI30 -> 50 | AE24: =iCountryComp!AJ30 -> 48 | AG24: =iCountryComp!AL30 ->  | AH24: =iCountryComp!AM30 ->  | AK24: 50 | AL24: 91.7 | AN24: 3.1) Infrastructure security (Inputs)
S25: =iCountryComp!AB31 -> 1 | T25: =iCountryComp!AC31 -> 1 | V25: =iCountryComp!AD31 -> 3.2) Infrastructure security (Outputs) | X25: =iCountryComp!AE31 -> 74.7 | Y25: =iCountryComp!AF31 -> =29 | AA25: =iCountryComp!AG31 -> 98.1 | AB25: =iCountryComp!AH31 -> 2 | AD25: =iCountryComp!AI31 -> 42.6 | AE25: =iCountryComp!AJ31 -> 55 | AG25: =iCountryComp!AL31 ->  | AH25: =iCountryComp!AM31 ->  | AK25: =MIN(X25,AA25,AD25,AG25) -> 42.6 | AL25: =MAX(X25,AA25,AD25,AG25) -> 98.1 | AN25: 3.2) Infrastructure security (Outputs)
S26: =iCountryComp!AB32 -> 2 | T26: =iCountryComp!AC32 -> 1 | V26: =iCountryComp!AD32 -> 4) PERSONAL SECURITY | X26: =iCountryComp!AE32 -> 88.9 | Y26: =iCountryComp!AF32 -> 11 | AA26: =iCountryComp!AG32 -> 89.4 | AB26: =iCountryComp!AH32 -> 9 | AD26: =iCountryComp!AI32 -> 63.7 | AE26: =iCountryComp!AJ32 -> 49 | AG26: =iCountryComp!AL32 ->  | AH26: =iCountryComp!AM32 ->  | AK26: 63.7 | AL26: 89.4 | AN26: 4) PERSONAL SECURITY
S27: =iCountryComp!AB33 -> 2 | T27: =iCountryComp!AC33 -> 1 | V27: =iCountryComp!AD33 -> 4.1) Personal security (Inputs) | X27: =iCountryComp!AE33 -> 89.2 | Y27: =iCountryComp!AF33 -> =23 | AA27: =iCountryComp!AG33 -> 90.8 | AB27: =iCountryComp!AH33 -> =19 | AD27: =iCountryComp!AI33 -> 59.5 | AE27: =iCountryComp!AJ33 -> 54 | AG27: =iCountryComp!AL33 ->  | AH27: =iCountryComp!AM33 ->  | AK27: 59.5 | AL27: 90.8 | AN27: 4.1) Personal security (Inputs)
S28: =iCountryComp!AB34 -> 2 | T28: =iCountryComp!AC34 -> 1 | V28: =iCountryComp!AD34 -> 4.2) Personal security (Outputs) | X28: =iCountryComp!AE34 -> 88.7 | Y28: =iCountryComp!AF34 -> 11 | AA28: =iCountryComp!AG34 -> 88 | AB28: =iCountryComp!AH34 -> =12 | AD28: =iCountryComp!AI34 -> 67.9 | AE28: =iCountryComp!AJ34 -> 39 | AG28: =iCountryComp!AL34 ->  | AH28: =iCountryComp!AM34 ->  | AK28: =MIN(X28,AA28,AD28,AG28) -> 67.9 | AL28: =MAX(X28,AA28,AD28,AG28) -> 88.7 | AN28: =V28 -> 4.2) Personal security (Outputs)
S29: =iCountryComp!AB35 -> 0 | T29: =iCountryComp!AC35 -> 0 | V29: =iCountryComp!AD35 ->  | X29: =iCountryComp!AE35 ->  | Y29: =iCountryComp!AF35 ->  | AA29: =iCountryComp!AG35 ->  | AB29: =iCountryComp!AH35 ->  | AD29: =iCountryComp!AI35 ->  | AE29: =iCountryComp!AJ35 ->  | AG29: =iCountryComp!AL35 ->  | AH29: =iCountryComp!AM35 ->  | AK29: 0 | AL29: 0
S30: =iCountryComp!AB36 -> 0 | T30: =iCountryComp!AC36 -> 0 | V30: =iCountryComp!AD36 ->  | X30: =iCountryComp!AE36 ->  | Y30: =iCountryComp!AF36 ->  | AA30: =iCountryComp!AG36 ->  | AB30: =iCountryComp!AH36 ->  | AD30: =iCountryComp!AI36 ->  | AE30: =iCountryComp!AJ36 ->  | AG30: =iCountryComp!AL36 ->  | AH30: =iCountryComp!AM36 ->  | AK30: 0 | AL30: 0
S31: =iCountryComp!AB37 -> 0 | T31: =iCountryComp!AC37 -> 0 | V31: =iCountryComp!AD37 ->  | X31: =iCountryComp!AE37 ->  | Y31: =iCountryComp!AF37 ->  | AA31: =iCountryComp!AG37 ->  | AB31: =iCountryComp!AH37 ->  | AD31: =iCountryComp!AI37 ->  | AE31: =iCountryComp!AJ37 ->  | AG31: =iCountryComp!AL37 ->  | AH31: =iCountryComp!AM37 ->  | AK31: 0 | AL31: 0
S32: =iCountryComp!AB38 -> 0 | T32: =iCountryComp!AC38 -> 0 | V32: =iCountryComp!AD38 ->  | X32: =iCountryComp!AE38 ->  | Y32: =iCountryComp!AF38 ->  | AA32: =iCountryComp!AG38 ->  | AB32: =iCountryComp!AH38 ->  | AD32: =iCountryComp!AI38 ->  | AE32: =iCountryComp!AJ38 ->  | AG32: =iCountryComp!AL38 ->  | AH32: =iCountryComp!AM38 ->  | AK32: 0 | AL32: 0
S33: =iCountryComp!AB39 -> 0 | T33: =iCountryComp!AC39 -> 0 | V33: =iCountryComp!AD39 ->  | X33: =iCountryComp!AE39 ->  | Y33: =iCountryComp!AF39 ->  | AA33: =iCountryComp!AG39 ->  | AB33: =iCountryComp!AH39 ->  | AD33: =iCountryComp!AI39 ->  | AE33: =iCountryComp!AJ39 ->  | AG33: =iCountryComp!AL39 ->  | AH33: =iCountryComp!AM39 ->  | AK33: 0 | AL33: 0
S34: =iCountryComp!AB40 -> 0 | T34: =iCountryComp!AC40 -> 0 | V34: =iCountryComp!AD40 ->  | X34: =iCountryComp!AE40 ->  | Y34: =iCountryComp!AF40 ->  | AA34: =iCountryComp!AG40 ->  | AB34: =iCountryComp!AH40 ->  | AD34: =iCountryComp!AI40 ->  | AE34: =iCountryComp!AJ40 ->  | AG34: =iCountryComp!AL40 ->  | AH34: =iCountryComp!AM40 ->  | AK34: 0 | AL34: 0
S35: =iCountryComp!AB41 -> 0 | T35: =iCountryComp!AC41 -> 0 | V35: =iCountryComp!AD41 ->  | X35: =iCountryComp!AE41 ->  | Y35: =iCountryComp!AF41 ->  | AA35: =iCountryComp!AG41 ->  | AB35: =iCountryComp!AH41 ->  | AD35: =iCountryComp!AI41 ->  | AE35: =iCountryComp!AJ41 ->  | AG35: =iCountryComp!AL41 ->  | AH35: =iCountryComp!AM41 ->  | AK35: 0 | AL35: 0
S36: =iCountryComp!AB42 -> 0 | T36: =iCountryComp!AC42 -> 0 | V36: =iCountryComp!AD42 ->  | X36: =iCountryComp!AE42 ->  | Y36: =iCountryComp!AF42 ->  | AA36: =iCountryComp!AG42 ->  | AB36: =iCountryComp!AH42 ->  | AD36: =iCountryComp!AI42 ->  | AE36: =iCountryComp!AJ42 ->  | AG36: =iCountryComp!AL42 ->  | AH36: =iCountryComp!AM42 ->  | AK36: 0 | AL36: 0
S37: =iCountryComp!AB43 -> 0 | T37: =iCountryComp!AC43 -> 0 | V37: =iCountryComp!AD43 ->  | X37: =iCountryComp!AE43 ->  | Y37: =iCountryComp!AF43 ->  | AA37: =iCountryComp!AG43 ->  | AB37: =iCountryComp!AH43 ->  | AD37: =iCountryComp!AI43 ->  | AE37: =iCountryComp!AJ43 ->  | AG37: =iCountryComp!AL43 ->  | AH37: =iCountryComp!AM43 ->  | AK37: 0 | AL37: 0
S38: =iCountryComp!AB44 -> 0 | T38: =iCountryComp!AC44 -> 0 | V38: =iCountryComp!AD44 ->  | X38: =iCountryComp!AE44 ->  | Y38: =iCountryComp!AF44 ->  | AA38: =iCountryComp!AG44 ->  | AB38: =iCountryComp!AH44 ->  | AD38: =iCountryComp!AI44 ->  | AE38: =iCountryComp!AJ44 ->  | AG38: =iCountryComp!AL44 ->  | AH38: =iCountryComp!AM44 ->  | AK38: 0 | AL38: 0
S39: =iCountryComp!AB45 -> 0 | T39: =iCountryComp!AC45 -> 0 | V39: =iCountryComp!AD45 ->  | X39: =iCountryComp!AE45 ->  | Y39: =iCountryComp!AF45 ->  | AA39: =iCountryComp!AG45 ->  | AB39: =iCountryComp!AH45 ->  | AD39: =iCountryComp!AI45 ->  | AE39: =iCountryComp!AJ45 ->  | AG39: =iCountryComp!AL45 ->  | AH39: =iCountryComp!AM45 ->  | AK39: 0 | AL39: 0
S40: =iCountryComp!AB46 -> 0 | T40: =iCountryComp!AC46 -> 0 | V40: =iCountryComp!AD46 ->  | X40: =iCountryComp!AE46 ->  | Y40: =iCountryComp!AF46 ->  | AA40: =iCountryComp!AG46 ->  | AB40: =iCountryComp!AH46 ->  | AD40: =iCountryComp!AI46 ->  | AE40: =iCountryComp!AJ46 ->  | AG40: =iCountryComp!AL46 ->  | AH40: =iCountryComp!AM46 ->  | AK40: 0 | AL40: 0
S41: =iCountryComp!AB47 -> 0 | T41: =iCountryComp!AC47 -> 0 | V41: =iCountryComp!AD47 ->  | X41: =iCountryComp!AE47 ->  | Y41: =iCountryComp!AF47 ->  | AA41: =iCountryComp!AG47 ->  | AB41: =iCountryComp!AH47 ->  | AD41: =iCountryComp!AI47 ->  | AE41: =iCountryComp!AJ47 ->  | AG41: =iCountryComp!AL47 ->  | AH41: =iCountryComp!AM47 ->  | AK41: 0 | AL41: 0
S42: =iCountryComp!AB48 -> 0 | T42: =iCountryComp!AC48 -> 0 | V42: =iCountryComp!AD48 ->  | X42: =iCountryComp!AE48 ->  | Y42: =iCountryComp!AF48 ->  | AA42: =iCountryComp!AG48 ->  | AB42: =iCountryComp!AH48 ->  | AD42: =iCountryComp!AI48 ->  | AE42: =iCountryComp!AJ48 ->  | AG42: =iCountryComp!AL48 ->  | AH42: =iCountryComp!AM48 ->  | AK42: 0 | AL42: 0
S43: =iCountryComp!AB49 -> 0 | T43: =iCountryComp!AC49 -> 0 | V43: =iCountryComp!AD49 ->  | X43: =iCountryComp!AE49 ->  | Y43: =iCountryComp!AF49 ->  | AA43: =iCountryComp!AG49 ->  | AB43: =iCountryComp!AH49 ->  | AD43: =iCountryComp!AI49 ->  | AE43: =iCountryComp!AJ49 ->  | AG43: =iCountryComp!AL49 ->  | AH43: =iCountryComp!AM49 ->  | AK43: 0 | AL43: 0
S44: =iCountryComp!AB50 -> 0 | T44: =iCountryComp!AC50 -> 0 | V44: =iCountryComp!AD50 ->  | X44: =iCountryComp!AE50 ->  | Y44: =iCountryComp!AF50 ->  | AA44: =iCountryComp!AG50 ->  | AB44: =iCountryComp!AH50 ->  | AD44: =iCountryComp!AI50 ->  | AE44: =iCountryComp!AJ50 ->  | AG44: =iCountryComp!AL50 ->  | AH44: =iCountryComp!AM50 ->  | AK44: 0 | AL44: 0
S45: =iCountryComp!AB51 -> 0 | T45: =iCountryComp!AC51 -> 0 | V45: =iCountryComp!AD51 ->  | X45: =iCountryComp!AE51 ->  | Y45: =iCountryComp!AF51 ->  | AA45: =iCountryComp!AG51 ->  | AB45: =iCountryComp!AH51 ->  | AD45: =iCountryComp!AI51 ->  | AE45: =iCountryComp!AJ51 ->  | AG45: =iCountryComp!AL51 ->  | AH45: =iCountryComp!AM51 ->  | AK45: 0 | AL45: 0
S46: =iCountryComp!AB52 -> 0 | T46: =iCountryComp!AC52 -> 0 | V46: =iCountryComp!AD52 ->  | X46: =iCountryComp!AE52 ->  | Y46: =iCountryComp!AF52 ->  | AA46: =iCountryComp!AG52 ->  | AB46: =iCountryComp!AH52 ->  | AD46: =iCountryComp!AI52 ->  | AE46: =iCountryComp!AJ52 ->  | AG46: =iCountryComp!AL52 ->  | AH46: =iCountryComp!AM52 ->  | AK46: 0 | AL46: 0
S47: =iCountryComp!AB53 -> 0 | T47: =iCountryComp!AC53 -> 0 | V47: =iCountryComp!AD53 ->  | X47: =iCountryComp!AE53 ->  | Y47: =iCountryComp!AF53 ->  | AA47: =iCountryComp!AG53 ->  | AB47: =iCountryComp!AH53 ->  | AD47: =iCountryComp!AI53 ->  | AE47: =iCountryComp!AJ53 ->  | AG47: =iCountryComp!AL53 ->  | AH47: =iCountryComp!AM53 ->  | AK47: =MIN(X47,AA47,AD47,AG47) -> 0 | AL47: =MAX(X47,AA47,AD47,AG47) -> 0 | AN47: =V47 -> 
S48: =iCountryComp!AB54 -> 0 | T48: =iCountryComp!AC54 -> 0 | V48: =iCountryComp!AD54 ->  | X48: =iCountryComp!AE54 ->  | Y48: =iCountryComp!AF54 ->  | AA48: =iCountryComp!AG54 ->  | AB48: =iCountryComp!AH54 ->  | AD48: =iCountryComp!AI54 ->  | AE48: =iCountryComp!AJ54 ->  | AG48: =iCountryComp!AL54 ->  | AH48: =iCountryComp!AM54 ->  | AK48: 0 | AL48: 0
S49: =iCountryComp!AB55 -> 0 | T49: =iCountryComp!AC55 -> 0 | V49: =iCountryComp!AD55 ->  | X49: =iCountryComp!AE55 ->  | Y49: =iCountryComp!AF55 ->  | AA49: =iCountryComp!AG55 ->  | AB49: =iCountryComp!AH55 ->  | AD49: =iCountryComp!AI55 ->  | AE49: =iCountryComp!AJ55 ->  | AG49: =iCountryComp!AL55 ->  | AH49: =iCountryComp!AM55 ->  | AK49: 0 | AL49: 0
S50: =iCountryComp!AB56 -> 0 | T50: =iCountryComp!AC56 -> 0 | V50: =iCountryComp!AD56 ->  | X50: =iCountryComp!AE56 ->  | Y50: =iCountryComp!AF56 ->  | AA50: =iCountryComp!AG56 ->  | AB50: =iCountryComp!AH56 ->  | AD50: =iCountryComp!AI56 ->  | AE50: =iCountryComp!AJ56 ->  | AG50: =iCountryComp!AL56 ->  | AH50: =iCountryComp!AM56 ->  | AK50: 0 | AL50: 0
S51: =iCountryComp!AB57 -> 0 | T51: =iCountryComp!AC57 -> 0 | V51: =iCountryComp!AD57 ->  | X51: =iCountryComp!AE57 ->  | Y51: =iCountryComp!AF57 ->  | AA51: =iCountryComp!AG57 ->  | AB51: =iCountryComp!AH57 ->  | AD51: =iCountryComp!AI57 ->  | AE51: =iCountryComp!AJ57 ->  | AG51: =iCountryComp!AL57 ->  | AH51: =iCountryComp!AM57 ->  | AK51: 0 | AL51: 0
S52: =iCountryComp!AB58 -> 0 | T52: =iCountryComp!AC58 -> 0 | V52: =iCountryComp!AD58 ->  | X52: =iCountryComp!AE58 ->  | Y52: =iCountryComp!AF58 ->  | AA52: =iCountryComp!AG58 ->  | AB52: =iCountryComp!AH58 ->  | AD52: =iCountryComp!AI58 ->  | AE52: =iCountryComp!AJ58 ->  | AG52: =iCountryComp!AL58 ->  | AH52: =iCountryComp!AM58 ->  | AK52: 0 | AL52: 0
S53: =iCountryComp!AB59 -> 0 | T53: =iCountryComp!AC59 -> 0 | V53: =iCountryComp!AD59 ->  | X53: =iCountryComp!AE59 ->  | Y53: =iCountryComp!AF59 ->  | AA53: =iCountryComp!AG59 ->  | AB53: =iCountryComp!AH59 ->  | AD53: =iCountryComp!AI59 ->  | AE53: =iCountryComp!AJ59 ->  | AG53: =iCountryComp!AL59 ->  | AH53: =iCountryComp!AM59 ->  | AK53: 0 | AL53: 0
S54: =iCountryComp!AB60 -> 0 | T54: =iCountryComp!AC60 -> 0 | V54: =iCountryComp!AD60 ->  | X54: =iCountryComp!AE60 ->  | Y54: =iCountryComp!AF60 ->  | AA54: =iCountryComp!AG60 ->  | AB54: =iCountryComp!AH60 ->  | AD54: =iCountryComp!AI60 ->  | AE54: =iCountryComp!AJ60 ->  | AG54: =iCountryComp!AL60 ->  | AH54: =iCountryComp!AM60 ->  | AK54: 0 | AL54: 0
S55: =iCountryComp!AB61 -> 0 | T55: =iCountryComp!AC61 -> 0 | V55: =iCountryComp!AD61 ->  | X55: =iCountryComp!AE61 ->  | Y55: =iCountryComp!AF61 ->  | AA55: =iCountryComp!AG61 ->  | AB55: =iCountryComp!AH61 ->  | AD55: =iCountryComp!AI61 ->  | AE55: =iCountryComp!AJ61 ->  | AG55: =iCountryComp!AL61 ->  | AH55: =iCountryComp!AM61 ->  | AK55: 0 | AL55: 0
S56: =iCountryComp!AB62 -> 0 | T56: =iCountryComp!AC62 -> 0 | V56: =iCountryComp!AD62 ->  | X56: =iCountryComp!AE62 ->  | Y56: =iCountryComp!AF62 ->  | AA56: =iCountryComp!AG62 ->  | AB56: =iCountryComp!AH62 ->  | AD56: =iCountryComp!AI62 ->  | AE56: =iCountryComp!AJ62 ->  | AG56: =iCountryComp!AL62 ->  | AH56: =iCountryComp!AM62 ->  | AK56: 0 | AL56: 0
S57: =iCountryComp!AB63 -> 0 | T57: =iCountryComp!AC63 -> 0 | V57: =iCountryComp!AD63 ->  | X57: =iCountryComp!AE63 ->  | Y57: =iCountryComp!AF63 ->  | AA57: =iCountryComp!AG63 ->  | AB57: =iCountryComp!AH63 ->  | AD57: =iCountryComp!AI63 ->  | AE57: =iCountryComp!AJ63 ->  | AG57: =iCountryComp!AL63 ->  | AH57: =iCountryComp!AM63 ->  | AK57: 0 | AL57: 0
S58: =iCountryComp!AB64 -> 0 | T58: =iCountryComp!AC64 -> 0 | V58: =iCountryComp!AD64 ->  | X58: =iCountryComp!AE64 ->  | Y58: =iCountryComp!AF64 ->  | AA58: =iCountryComp!AG64 ->  | AB58: =iCountryComp!AH64 ->  | AD58: =iCountryComp!AI64 ->  | AE58: =iCountryComp!AJ64 ->  | AG58: =iCountryComp!AL64 ->  | AH58: =iCountryComp!AM64 ->  | AK58: 0 | AL58: 0

Sheet RegionCompare
A1: =uxb_works!$B$92 -> SAFE CITIES INDEX: 2019 | AN1: =uxb_works!L16 -> 1 | BA1: 1 | BB1: 4 | BH1: 1 | BI1: 5 | BJ1: 1 | BK1: 6
A4: =uxb_works!B111 -> 1 | AP4: 1600
C6: =uxb_works!$C$5 -> The active weight profile has been changed from its default setting
D8: =uxb_works!D67 -> Active filter group: All regions in all income levels with all population sizes
D10: =" "&iRegionComp!$E$2 -> OVERALL SCORE
D11: CATEGORIES | R11: =iRegionComp!AD7 -> All | T11: See filter selection above | V11: =iRegionComp!AF7 -> Asia Pacific | W11: =iRegionComp!AG7 -> Europe | X11: =iRegionComp!AH7 -> Latin America | Y11: =iRegionComp!AI7 -> Middle East and Africa | Z11: =iRegionComp!AJ7 -> North America | AB11: =iRegionComp!AK7 -> Lower middle income | AC11: =iRegionComp!AL7 -> Upper middle income | AD11: =iRegionComp!AM7 -> High Income | AF11: =iRegionComp!AN7 -> Population < 5m | AG11: =iRegionComp!AO7 -> Population 5-10m | AH11: =iRegionComp!AP7 -> Population 10-15m | AI11: =iRegionComp!AQ7 -> Population 15m +
C14: =iRegionComp!D8 -> 1 | D14: =iRegionComp!E8 -> OVERALL SCORE | R14: =iRegionComp!G8 -> 71.2 | T14: =iRegionComp!H8 -> 71.2 | V14: =iRegionComp!I8 -> 69.8 | W14: =iRegionComp!J8 -> 80.8 | X14: =iRegionComp!K8 -> 58.9 | Y14: =iRegionComp!L8 -> 60.1 | Z14: =iRegionComp!M8 -> 86 | AB14: =iRegionComp!N8 -> 50.4 | AC14: =iRegionComp!O8 -> 60.2 | AD14: =iRegionComp!P8 -> 82.8 | AF14: =iRegionComp!Q8 -> 75.9 | AG14: =iRegionComp!R8 -> 77.4 | AH14: =iRegionComp!S8 -> 67.1 | AI14: =iRegionComp!T8 -> 63.8 | AN14: =CHOOSE($AN$1,MIN(R14:Y14,AC14:AI14),MIN(R14:AI14),MIN(R14:Y14,AC14:AI14),MIN(R14:AB14,AC14:AI14)) -> 58.9 | AO14: =CHOOSE($AN$1,MAX(R14:Y14,AC14:AI14),MAX(R14:AI14),MAX(R14:Y14,AC14:AI14),MAX(R14:AB14,AC14:AI14)) -> 82.8
C15: =iRegionComp!D9 -> 0 | D15: =iRegionComp!E9 -> 1) DIGITAL SECURITY | R15: =iRegionComp!G9 -> 67.2 | T15: =iRegionComp!H9 -> 67.2 | V15: =iRegionComp!I9 -> 64.4 | W15: =iRegionComp!J9 -> 74.9 | X15: =iRegionComp!K9 -> 54.7 | Y15: =iRegionComp!L9 -> 55.6 | Z15: =iRegionComp!M9 -> 91.6 | AB15: =iRegionComp!N9 -> 43.4 | AC15: =iRegionComp!O9 -> 53.7 | AD15: =iRegionComp!P9 -> 80.9 | AF15: =iRegionComp!Q9 -> 72.9 | AG15: =iRegionComp!R9 -> 73.7 | AH15: =iRegionComp!S9 -> 64.5 | AI15: =iRegionComp!T9 -> 57.8 | AN15: =CHOOSE($AN$1,MIN(R15:Y15,AC15:AI15),MIN(R15:AI15),MIN(R15:Y15,AC15:AI15),MIN(R15:AB15,AC15:AI15)) -> 53.7 | AO15: =CHOOSE($AN$1,MAX(R15:Y15,AC15:AI15),MAX(R15:AI15),MAX(R15:Y15,AC15:AI15),MAX(R15:AB15,AC15:AI15)) -> 80.9
C16: =iRegionComp!D10 -> 0 | D16: =iRegionComp!E10 -> 2) HEALTH SECURITY | R16: =iRegionComp!G10 -> 68 | T16: =iRegionComp!H10 -> 68 | V16: =iRegionComp!I10 -> 66.1 | W16: =iRegionComp!J10 -> 76.8 | X16: =iRegionComp!K10 -> 61.7 | Y16: =iRegionComp!L10 -> 57.5 | Z16: =iRegionComp!M10 -> 77.2 | AB16: =iRegionComp!N10 -> 48.3 | AC16: =iRegionComp!O10 -> 62.1 | AD16: =iRegionComp!P10 -> 76.9 | AF16: =iRegionComp!Q10 -> 72.2 | AG16: =iRegionComp!R10 -> 71.6 | AH16: =iRegionComp!S10 -> 65.8 | AI16: =iRegionComp!T10 -> 61.8 | AN16: =CHOOSE($AN$1,MIN(R16:Y16,AC16:AI16),MIN(R16:AI16),MIN(R16:Y16,AC16:AI16),MIN(R16:AB16,AC16:AI16)) -> 57.5 | AO16: =CHOOSE($AN$1,MAX(R16:Y16,AC16:AI16),MAX(R16:AI16),MAX(R16:Y16,AC16:AI16),MAX(R16:AB16,AC16:AI16)) -> 76.9
C17: =iRegionComp!D11 -> 0 | D17: =iRegionComp!E11 -> 3) INFRASTRUCTURE SECURITY | R17: =iRegionComp!G11 -> 72.5 | T17: =iRegionComp!H11 -> 72.5 | V17: =iRegionComp!I11 -> 70.3 | W17: =iRegionComp!J11 -> 87.1 | X17: =iRegionComp!K11 -> 55.9 | Y17: =iRegionComp!L11 -> 57.4 | Z17: =iRegionComp!M11 -> 91 | AB17: =iRegionComp!N11 -> 46.6 | AC17: =iRegionComp!O11 -> 58.4 | AD17: =iRegionComp!P11 -> 87.2 | AF17: =iRegionComp!Q11 -> 77.5 | AG17: =iRegionComp!R11 -> 81.5 | AH17: =iRegionComp!S11 -> 68.1 | AI17: =iRegionComp!T11 -> 62.9 | AN17: =CHOOSE($AN$1,MIN(R17:Y17,AC17:AI17),MIN(R17:AI17),MIN(R17:Y17,AC17:AI17),MIN(R17:AB17,AC17:AI17)) -> 55.9 | AO17: =CHOOSE($AN$1,MAX(R17:Y17,AC17:AI17),MAX(R17:AI17),MAX(R17:Y17,AC17:AI17),MAX(R17:AB17,AC17:AI17)) -> 87.2
C18: =iRegionComp!D12 -> 0 | D18: =iRegionComp!E12 -> 4) PERSONAL SECURITY | R18: =iRegionComp!G12 -> 77 | T18: =iRegionComp!H12 -> 77 | V18: =iRegionComp!I12 -> 78.7 | W18: =iRegionComp!J12 -> 84.3 | X18: =iRegionComp!K12 -> 63.6 | Y18: =iRegionComp!L12 -> 69.8 | Z18: =iRegionComp!M12 -> 84.1 | AB18: =iRegionComp!N12 -> 63.5 | AC18: =iRegionComp!O12 -> 66.6 | AD18: =iRegionComp!P12 -> 86 | AF18: =iRegionComp!Q12 -> 81 | AG18: =iRegionComp!R12 -> 82.8 | AH18: =iRegionComp!S12 -> 70.1 | AI18: =iRegionComp!T12 -> 72.6 | AN18: =CHOOSE($AN$1,MIN(R18:Y18,AC18:AI18),MIN(R18:AI18),MIN(R18:Y18,AC18:AI18),MIN(R18:AB18,AC18:AI18)) -> 63.6 | AO18: =CHOOSE($AN$1,MAX(R18:Y18,AC18:AI18),MAX(R18:AI18),MAX(R18:Y18,AC18:AI18),MAX(R18:AB18,AC18:AI18)) -> 86
Q24: =iRegionComp!F17 -> 1 | R24: =iRegionComp!G17 -> 0 | T24: =iRegionComp!H17 -> 0 | V24: =iRegionComp!I17 -> 0 | W24: =iRegionComp!J17 -> 0 | X24: =iRegionComp!K17 -> 0 | Y24: =iRegionComp!L17 -> 0 | Z24: =iRegionComp!M17 -> 0 | AB24: =iRegionComp!N17 -> 0 | AC24: =iRegionComp!O17 -> 0 | AD24: =iRegionComp!P17 -> 0 | AF24: =iRegionComp!Q17 -> 0 | AG24: =iRegionComp!R17 -> 0 | AH24: =iRegionComp!S17 -> 0 | AI24: =iRegionComp!T17 -> 0
E26: Sub-category | R26: =iRegionComp!AD7 -> All | T26: =T11 -> See filter selection above | V26: =iRegionComp!AF7 -> Asia Pacific | W26: =iRegionComp!AG7 -> Europe | X26: =iRegionComp!AH7 -> Latin America | Y26: =iRegionComp!AI7 -> Middle East and Africa | Z26: =iRegionComp!AJ7 -> North America | AB26: =iRegionComp!AK7 -> Lower middle income | AC26: =iRegionComp!AL7 -> Upper middle income | AD26: =iRegionComp!AM7 -> High Income | AF26: =iRegionComp!AN7 -> Population < 5m | AG26: =iRegionComp!AO7 -> Population 5-10m | AH26: =iRegionComp!AP7 -> Population 10-15m | AI26: =iRegionComp!AQ7 -> Population 15m +
B27: =COUNTIF(B28:B93,"<>0") -> 65
B28: =IF(iRegionComp!AA22="",0,iRegionComp!AA22) -> 3 | C28: =iRegionComp!AB22 -> 2 | E28: =TRIM(iRegionComp!AC22) -> 1.1) Digital security (Inputs) | R28: =iRegionComp!AD22 -> 73.8 | T28: =iRegionComp!AE22 -> 73.8 | V28: =iRegionComp!AF22 -> 74.8 | W28: =iRegionComp!AG22 -> 77 | X28: =iRegionComp!AH22 -> 58 | Y28: =iRegionComp!AI22 -> 61.7 | Z28: =iRegionComp!AJ22 -> 100 | AB28: =iRegionComp!AK22 -> 55.8 | AC28: =iRegionComp!AL22 -> 58 | AD28: =iRegionComp!AM22 -> 86.6 | AF28: =iRegionComp!AN22 -> 76.3 | AG28: =iRegionComp!AO22 -> 81.7 | AH28: =iRegionComp!AP22 -> 69.2 | AI28: =iRegionComp!AQ22 -> 67.8 | AN28: =CHOOSE($AN$1,MIN(R28:Y28,AC28:AI28),MIN(R28:AI28),MIN(R28:Y28,AC28:AI28),MIN(R28:AB28,AC28:AI28)) -> 58 | AO28: =CHOOSE($AN$1,MAX(R28:Y28,AC28:AI28),MAX(R28:AI28),MAX(R28:Y28,AC28:AI28),MAX(R28:AB28,AC28:AI28)) -> 86.6
B29: =IF(iRegionComp!AA23="",0,iRegionComp!AA23) -> 4 | C29: =iRegionComp!AB23 -> 0 | E29: =TRIM(iRegionComp!AC23) -> 1.1.1) Privacy policy | R29: =iRegionComp!AD23 -> 74.6 | T29: =iRegionComp!AE23 -> 74.6 | V29: =iRegionComp!AF23 -> 72.6 | W29: =iRegionComp!AG23 -> 92.9 | X29: =iRegionComp!AH23 -> 50 | Y29: =iRegionComp!AI23 -> 55.6 | Z29: =iRegionComp!AJ23 -> 100 | AB29: =iRegionComp!AK23 -> 47.7 | AC29: =iRegionComp!AL23 -> 51.7 | AD29: =iRegionComp!AM23 -> 93.4 | AF29: =iRegionComp!AN23 -> 81.6 | AG29: =iRegionComp!AO23 -> 84.6 | AH29: =iRegionComp!AP23 -> 68.2 | AI29: =iRegionComp!AQ23 -> 63.2 | AN29: 50 | AO29: 93.4
B30: =IF(iRegionComp!AA24="",0,iRegionComp!AA24) -> 5 | C30: =iRegionComp!AB24 -> 0 | E30: =TRIM(iRegionComp!AC24) -> 1.1.2) Citizen awareness of digital threats | R30: =iRegionComp!AD24 -> 78.9 | T30: =iRegionComp!AE24 -> 78.9 | V30: =iRegionComp!AF24 -> 82.6 | W30: =iRegionComp!AG24 -> 90.5 | X30: =iRegionComp!AH24 -> 59.3 | Y30: =iRegionComp!AI24 -> 55.6 | Z30: =iRegionComp!AJ24 -> 100 | AB30: =iRegionComp!AK24 -> 60.6 | AC30: =iRegionComp!AL24 -> 66.7 | AD30: =iRegionComp!AM24 -> 90.2 | AF30: =iRegionComp!AN24 -> 79 | AG30: =iRegionComp!AO24 -> 87.2 | AH30: =iRegionComp!AP24 -> 75.8 | AI30: =iRegionComp!AQ24 -> 74.5 | AN30: 55.6 | AO30: 90.5
B31: =IF(iRegionComp!AA25="",0,iRegionComp!AA25) -> 6 | C31: =iRegionComp!AB25 -> 0 | E31: =TRIM(iRegionComp!AC25) -> 1.1.3) Public-private partnerships | R31: =iRegionComp!AD25 -> 58.3 | T31: =iRegionComp!AE25 -> 58.3 | V31: =iRegionComp!AF25 -> 57.1 | W31: =iRegionComp!AG25 -> 50 | X31: =iRegionComp!AH25 -> 44.4 | Y31: =iRegionComp!AI25 -> 55.6 | Z31: =iRegionComp!AJ25 -> 100 | AB31: =iRegionComp!AK25 -> 40.9 | AC31: =iRegionComp!AL25 -> 36.7 | AD31: =iRegionComp!AM25 -> 73.5 | AF31: =iRegionComp!AN25 -> 65.8 | AG31: =iRegionComp!AO25 -> 73.1 | AH31: =iRegionComp!AP25 -> 45.5 | AI31: =iRegionComp!AQ25 -> 47.1 | AN31: 36.7 | AO31: 73.5
B32: =IF(iRegionComp!AA26="",0,iRegionComp!AA26) -> 7 | C32: =iRegionComp!AB26 -> 0 | E32: =TRIM(iRegionComp!AC26) -> 1.1.4) Level of technology employed | R32: =iRegionComp!AD26 -> 86.3 | T32: =iRegionComp!AE26 -> 86.3 | V32: =iRegionComp!AF26 -> 83.3 | W32: =iRegionComp!AG26 -> 94.6 | X32: =iRegionComp!AH26 -> 75 | Y32: =iRegionComp!AI26 -> 80.6 | Z32: =iRegionComp!AJ26 -> 100 | AB32: =iRegionComp!AK26 -> 70.5 | AC32: =iRegionComp!AL26 -> 75 | AD32: =iRegionComp!AM26 -> 96.3 | AF32: =iRegionComp!AN26 -> 92.1 | AG32: =iRegionComp!AO26 -> 86.5 | AH32: =iRegionComp!AP26 -> 84.1 | AI32: =iRegionComp!AQ26 -> 80.9 | AN32: 75 | AO32: 96.3
B33: =IF(iRegionComp!AA27="",0,iRegionComp!AA27) -> 8 | C33: =iRegionComp!AB27 -> 0 | E33: =TRIM(iRegionComp!AC27) -> 1.1.5) Dedicated cyber security teams | R33: =iRegionComp!AD27 -> 70.8 | T33: =iRegionComp!AE27 -> 70.8 | V33: =iRegionComp!AF27 -> 78.6 | W33: =iRegionComp!AG27 -> 57.1 | X33: =iRegionComp!AH27 -> 61.1 | Y33: =iRegionComp!AI27 -> 61.1 | Z33: =iRegionComp!AJ27 -> 100 | AB33: =iRegionComp!AK27 -> 59.1 | AC33: =iRegionComp!AL27 -> 60 | AD33: =iRegionComp!AM27 -> 79.4 | AF33: =iRegionComp!AN27 -> 63.2 | AG33: =iRegionComp!AO27 -> 76.9 | AH33: =iRegionComp!AP27 -> 72.7 | AI33: =iRegionComp!AQ27 -> 73.5 | AN33: 57.1 | AO33: 79.4
B34: =IF(iRegionComp!AA28="",0,iRegionComp!AA28) -> 9 | C34: =iRegionComp!AB28 -> 2 | E34: =TRIM(iRegionComp!AC28) -> 1.2) Digital security (Outputs) | R34: =iRegionComp!AD28 -> 60.7 | T34: =iRegionComp!AE28 -> 60.7 | V34: =iRegionComp!AF28 -> 53.9 | W34: =iRegionComp!AG28 -> 72.8 | X34: =iRegionComp!AH28 -> 51.4 | Y34: =iRegionComp!AI28 -> 49.6 | Z34: =iRegionComp!AJ28 -> 83.1 | AB34: =iRegionComp!AK28 -> 31 | AC34: =iRegionComp!AL28 -> 49.4 | AD34: =iRegionComp!AM28 -> 75.3 | AF34: =iRegionComp!AN28 -> 69.4 | AG34: =iRegionComp!AO28 -> 65.7 | AH34: =iRegionComp!AP28 -> 59.7 | AI34: =iRegionComp!AQ28 -> 47.8 | AN34: 47.8 | AO34: 75.3
B35: =IF(iRegionComp!AA29="",0,iRegionComp!AA29) -> 10 | C35: =iRegionComp!AB29 -> 0 | E35: =TRIM(iRegionComp!AC29) -> 1.2.1) Risk of local malware threats | R35: =iRegionComp!AD29 -> 62.2 | T35: =iRegionComp!AE29 -> 62.2 | V35: =iRegionComp!AF29 -> 54 | W35: =iRegionComp!AG29 -> 78.6 | X35: =iRegionComp!AH29 -> 51.9 | Y35: =iRegionComp!AI29 -> 37 | Z35: =iRegionComp!AJ29 -> 100 | AB35: =iRegionComp!AK29 -> 30.3 | AC35: =iRegionComp!AL29 -> 46.7 | AD35: =iRegionComp!AM29 -> 79.4 | AF35: =iRegionComp!AN29 -> 71.9 | AG35: =iRegionComp!AO29 -> 66.7 | AH35: =iRegionComp!AP29 -> 63.6 | AI35: =iRegionComp!AQ29 -> 47 | AN35: 37 | AO35: 79.4
B36: =IF(iRegionComp!AA30="",0,iRegionComp!AA30) -> 11 | C36: =iRegionComp!AB30 -> 0 | E36: =TRIM(iRegionComp!AC30) -> 1.2.2) Percentage of computers infected | R36: =iRegionComp!AD30 -> 50 | T36: =iRegionComp!AE30 -> 50 | V36: =iRegionComp!AF30 -> 47.6 | W36: =iRegionComp!AG30 -> 51.8 | X36: =iRegionComp!AH30 -> 41.7 | Y36: =iRegionComp!AI30 -> 44.4 | Z36: =iRegionComp!AJ30 -> 71.4 | AB36: =iRegionComp!AK30 -> 36.4 | AC36: =iRegionComp!AL30 -> 40 | AD36: =iRegionComp!AM30 -> 58.8 | AF36: =iRegionComp!AN30 -> 51.3 | AG36: =iRegionComp!AO30 -> 51.9 | AH36: =iRegionComp!AP30 -> 52.3 | AI36: =iRegionComp!AQ30 -> 45.6 | AN36: 40 | AO36: 58.8
B37: =IF(iRegionComp!AA31="",0,iRegionComp!AA31) -> 12 | C37: =iRegionComp!AB31 -> 0 | E37: =TRIM(iRegionComp!AC31) -> 1.2.3) Percentage with Internet access | R37: =iRegionComp!AD31 -> 69.9 | T37: =iRegionComp!AE31 -> 69.9 | V37: =iRegionComp!AF31 -> 60.1 | W37: =iRegionComp!AG31 -> 88.1 | X37: =iRegionComp!AH31 -> 60.6 | Y37: =iRegionComp!AI31 -> 67.3 | Z37: =iRegionComp!AJ31 -> 78 | AB37: =iRegionComp!AK31 -> 26.3 | AC37: =iRegionComp!AL31 -> 61.4 | AD37: =iRegionComp!AM31 -> 87.7 | AF37: =iRegionComp!AN31 -> 85 | AG37: =iRegionComp!AO31 -> 78.5 | AH37: =iRegionComp!AP31 -> 63.3 | AI37: =iRegionComp!AQ31 -> 50.6 | AN37: 50.6 | AO37: 88.1
B38: =IF(iRegionComp!AA32="",0,iRegionComp!AA32) -> 14 | C38: =iRegionComp!AB32 -> 2 | E38: =TRIM(iRegionComp!AC32) -> 2.1) Health security (Inputs) | R38: =iRegionComp!AD32 -> 61.8 | T38: =iRegionComp!AE32 -> 61.8 | V38: =iRegionComp!AF32 -> 60.8 | W38: =iRegionComp!AG32 -> 72.6 | X38: =iRegionComp!AH32 -> 51 | Y38: =iRegionComp!AI32 -> 50.9 | Z38: =iRegionComp!AJ32 -> 71.5 | AB38: =iRegionComp!AK32 -> 40.6 | AC38: =iRegionComp!AL32 -> 54.9 | AD38: =iRegionComp!AM32 -> 71.8 | AF38: =iRegionComp!AN32 -> 65.8 | AG38: =iRegionComp!AO32 -> 65.7 | AH38: =iRegionComp!AP32 -> 60.2 | AI38: =iRegionComp!AQ32 -> 55.5 | AN38: 50.9 | AO38: 72.6
B39: =IF(iRegionComp!AA33="",0,iRegionComp!AA33) -> 15 | C39: =iRegionComp!AB33 -> 0 | E39: =TRIM(iRegionComp!AC33) -> 2.1.1) Environmental policies | R39: =iRegionComp!AD33 -> 72.1 | T39: =iRegionComp!AE33 -> 72.1 | V39: =iRegionComp!AF33 -> 71 | W39: =iRegionComp!AG33 -> 84.7 | X39: =iRegionComp!AH33 -> 58.6 | Y39: =iRegionComp!AI33 -> 53.3 | Z39: =iRegionComp!AJ33 -> 91.5 | AB39: =iRegionComp!AK33 -> 50 | AC39: =iRegionComp!AL33 -> 61 | AD39: =iRegionComp!AM33 -> 84.1 | AF39: =iRegionComp!AN33 -> 73 | AG39: =iRegionComp!AO33 -> 78.8 | AH39: =iRegionComp!AP33 -> 70.7 | AI39: =iRegionComp!AQ33 -> 66.8 | AN39: 53.3 | AO39: 84.7
B40: =IF(iRegionComp!AA34="",0,iRegionComp!AA34) -> 16 | C40: =iRegionComp!AB34 -> 0 | E40: =TRIM(iRegionComp!AC34) -> 2.1.2) Access to healthcare | R40: =iRegionComp!AD34 -> 81.2 | T40: =iRegionComp!AE34 -> 81.2 | V40: =iRegionComp!AF34 -> 81.3 | W40: =iRegionComp!AG34 -> 92.4 | X40: =iRegionComp!AH34 -> 65.9 | Y40: =iRegionComp!AI34 -> 69.6 | Z40: =iRegionComp!AJ34 -> 93.3 | AB40: =iRegionComp!AK34 -> 64.2 | AC40: =iRegionComp!AL34 -> 68.5 | AD40: =iRegionComp!AM34 -> 92.3 | AF40: =iRegionComp!AN34 -> 85.6 | AG40: =iRegionComp!AO34 -> 86.7 | AH40: =iRegionComp!AP34 -> 78.2 | AI40: =iRegionComp!AQ34 -> 74.1 | AN40: 65.9 | AO40: 92.4
B41: =IF(iRegionComp!AA35="",0,iRegionComp!AA35) -> 17 | C41: =iRegionComp!AB35 -> 0 | E41: =TRIM(iRegionComp!AC35) -> 2.1.3) No. of beds per 1,000 population | R41: =iRegionComp!AD35 -> 25 | T41: =iRegionComp!AE35 -> 25 | V41: =iRegionComp!AF35 -> 31.7 | W41: =iRegionComp!AG35 -> 32 | X41: =iRegionComp!AH35 -> 13.7 | Y41: =iRegionComp!AI35 -> 15.1 | Z41: =iRegionComp!AJ35 -> 18.6 | AB41: =iRegionComp!AK35 -> 6.7 | AC41: =iRegionComp!AL35 -> 23.4 | AD41: =iRegionComp!AM35 -> 31.7 | AF41: =iRegionComp!AN35 -> 23.6 | AG41: =iRegionComp!AO35 -> 25.1 | AH41: =iRegionComp!AP35 -> 29.8 | AI41: =iRegionComp!AQ35 -> 23.5 | AN41: 13.7 | AO41: 32
B42: =IF(iRegionComp!AA36="",0,iRegionComp!AA36) -> 18 | C42: =iRegionComp!AB36 -> 0 | E42: =TRIM(iRegionComp!AC36) -> 2.1.4) No. of doctors per 1,000 population | R42: =iRegionComp!AD36 -> 27.9 | T42: =iRegionComp!AE36 -> 27.9 | V42: =iRegionComp!AF36 -> 21 | W42: =iRegionComp!AG36 -> 39.4 | X42: =iRegionComp!AH36 -> 21.9 | Y42: =iRegionComp!AI36 -> 25.1 | Z42: =iRegionComp!AJ36 -> 36.7 | AB42: =iRegionComp!AK36 -> 5.6 | AC42: =iRegionComp!AL36 -> 28.4 | AD42: =iRegionComp!AM36 -> 34.9 | AF42: =iRegionComp!AN36 -> 37.6 | AG42: =iRegionComp!AO36 -> 28.5 | AH42: =iRegionComp!AP36 -> 22.2 | AI42: =iRegionComp!AQ36 -> 20.3 | AN42: 20.3 | AO42: 39.4
B43: =IF(iRegionComp!AA37="",0,iRegionComp!AA37) -> 19 | C43: =iRegionComp!AB37 -> 0 | E43: =TRIM(iRegionComp!AC37) -> 2.1.5) Access to safe and quality food | R43: =iRegionComp!AD37 -> 95.3 | T43: =iRegionComp!AE37 -> 95.3 | V43: =iRegionComp!AF37 -> 93.2 | W43: =iRegionComp!AG37 -> 99.8 | X43: =iRegionComp!AH37 -> 96.2 | Y43: =iRegionComp!AI37 -> 89.2 | Z43: =iRegionComp!AJ37 -> 99.4 | AB43: =iRegionComp!AK37 -> 81.8 | AC43: =iRegionComp!AL37 -> 95.4 | AD43: =iRegionComp!AM37 -> 99.6 | AF43: =iRegionComp!AN37 -> 96.3 | AG43: =iRegionComp!AO37 -> 96.4 | AH43: =iRegionComp!AP37 -> 94.3 | AI43: =iRegionComp!AQ37 -> 93.9 | AN43: 89.2 | AO43: 99.8
B44: =IF(iRegionComp!AA38="",0,iRegionComp!AA38) -> 20 | C44: =iRegionComp!AB38 -> 0 | E44: =TRIM(iRegionComp!AC38) -> 2.1.6) Quality of health services | R44: =iRegionComp!AD38 -> 69.6 | T44: =iRegionComp!AE38 -> 69.6 | V44: =iRegionComp!AF38 -> 66.7 | W44: =iRegionComp!AG38 -> 87.5 | X44: =iRegionComp!AH38 -> 50 | Y44: =iRegionComp!AI38 -> 52.8 | Z44: =iRegionComp!AJ38 -> 89.3 | AB44: =iRegionComp!AK38 -> 35.2 | AC44: =iRegionComp!AL38 -> 52.5 | AD44: =iRegionComp!AM38 -> 88.2 | AF44: =iRegionComp!AN38 -> 78.9 | AG44: =iRegionComp!AO38 -> 78.8 | AH44: =iRegionComp!AP38 -> 65.9 | AI44: =iRegionComp!AQ38 -> 54.4 | AN44: 50 | AO44: 88.2
B45: =IF(iRegionComp!AA39="",0,iRegionComp!AA39) -> 21 | C45: =iRegionComp!AB39 -> 2 | E45: =TRIM(iRegionComp!AC39) -> 2.2) Health security (Outputs) | R45: =iRegionComp!AD39 -> 74.1 | T45: =iRegionComp!AE39 -> 74.1 | V45: =iRegionComp!AF39 -> 71.5 | W45: =iRegionComp!AG39 -> 81 | X45: =iRegionComp!AH39 -> 72.3 | Y45: =iRegionComp!AI39 -> 64.1 | Z45: =iRegionComp!AJ39 -> 82.9 | AB45: =iRegionComp!AK39 -> 56.1 | AC45: =iRegionComp!AL39 -> 69.2 | AD45: =iRegionComp!AM39 -> 82 | AF45: =iRegionComp!AN39 -> 78.6 | AG45: =iRegionComp!AO39 -> 77.5 | AH45: =iRegionComp!AP39 -> 71.5 | AI45: =iRegionComp!AQ39 -> 68 | AN45: 64.1 | AO45: 82
B46: =IF(iRegionComp!AA40="",0,iRegionComp!AA40) -> 22 | C46: =iRegionComp!AB40 -> 0 | E46: =TRIM(iRegionComp!AC40) -> 2.2.1) Air quality (PM 2.5 levels) | R46: =iRegionComp!AD40 -> 80.1 | T46: =iRegionComp!AE40 -> 80.1 | V46: =iRegionComp!AF40 -> 77.3 | W46: =iRegionComp!AG40 -> 93.5 | X46: =iRegionComp!AH40 -> 88.1 | Y46: =iRegionComp!AI40 -> 44.2 | Z46: =iRegionComp!AJ40 -> 97.6 | AB46: =iRegionComp!AK40 -> 54.8 | AC46: =iRegionComp!AL40 -> 83.9 | AD46: =iRegionComp!AM40 -> 86.6 | AF46: =iRegionComp!AN40 -> 82 | AG46: =iRegionComp!AO40 -> 88.7 | AH46: =iRegionComp!AP40 -> 82.7 | AI46: =iRegionComp!AQ40 -> 69.7 | AN46: 44.2 | AO46: 93.5
B47: =IF(iRegionComp!AA41="",0,iRegionComp!AA41) -> 23 | C47: =iRegionComp!AB41 -> 0 | E47: =TRIM(iRegionComp!AC41) -> 2.2.2) Water quality | R47: =iRegionComp!AD41 -> 76.3 | T47: =iRegionComp!AE41 -> 76.3 | V47: =iRegionComp!AF41 -> 76.9 | W47: =iRegionComp!AG41 -> 88.5 | X47: =iRegionComp!AH41 -> 63 | Y47: =iRegionComp!AI41 -> 67.2 | Z47: =iRegionComp!AJ41 -> 79.4 | AB47: =iRegionComp!AK41 -> 63.3 | AC47: =iRegionComp!AL41 -> 66.9 | AD47: =iRegionComp!AM41 -> 84.7 | AF47: =iRegionComp!AN41 -> 82.2 | AG47: =iRegionComp!AO41 -> 78.3 | AH47: =iRegionComp!AP41 -> 73.4 | AI47: =iRegionComp!AQ41 -> 70.2 | AN47: 63 | AO47: 88.5
B48: =IF(iRegionComp!AA42="",0,iRegionComp!AA42) -> 24 | C48: =iRegionComp!AB42 -> 0 | E48: =TRIM(iRegionComp!AC42) -> 2.2.3) Life expectancy years | R48: =iRegionComp!AD42 -> 70.8 | T48: =iRegionComp!AE42 -> 70.8 | V48: =iRegionComp!AF42 -> 69.5 | W48: =iRegionComp!AG42 -> 83.1 | X48: =iRegionComp!AH42 -> 65.7 | Y48: =iRegionComp!AI42 -> 53.1 | Z48: =iRegionComp!AJ42 -> 79.7 | AB48: =iRegionComp!AK42 -> 48.1 | AC48: =iRegionComp!AL42 -> 64.4 | AD48: =iRegionComp!AM42 -> 81 | AF48: =iRegionComp!AN42 -> 76.6 | AG48: =iRegionComp!AO42 -> 75.4 | AH48: =iRegionComp!AP42 -> 63.9 | AI48: =iRegionComp!AQ42 -> 65.3 | AN48: 53.1 | AO48: 83.1
B49: =IF(iRegionComp!AA43="",0,iRegionComp!AA43) -> 25 | C49: =iRegionComp!AB43 -> 0 | E49: =TRIM(iRegionComp!AC43) -> 2.2.4) Infant mortality | R49: =iRegionComp!AD43 -> 87.9 | T49: =iRegionComp!AE43 -> 87.9 | V49: =iRegionComp!AF43 -> 85 | W49: =iRegionComp!AG43 -> 97.6 | X49: =iRegionComp!AH43 -> 89.5 | Y49: =iRegionComp!AI43 -> 72.4 | Z49: =iRegionComp!AJ43 -> 95.3 | AB49: =iRegionComp!AK43 -> 59.8 | AC49: =iRegionComp!AL43 -> 88.2 | AD49: =iRegionComp!AM43 -> 96.9 | AF49: =iRegionComp!AN43 -> 93.5 | AG49: =iRegionComp!AO43 -> 92.9 | AH49: =iRegionComp!AP43 -> 84.4 | AI49: =iRegionComp!AQ43 -> 80.2 | AN49: 72.4 | AO49: 97.6
B50: =IF(iRegionComp!AA44="",0,iRegionComp!AA44) -> 26 | C50: =iRegionComp!AB44 -> 0 | E50: =TRIM(iRegionComp!AC44) -> 2.2.5) Cancer mortality rate | R50: =iRegionComp!AD44 -> 47.3 | T50: =iRegionComp!AE44 -> 47.3 | V50: =iRegionComp!AF44 -> 39.2 | W50: =iRegionComp!AG44 -> 42.1 | X50: =iRegionComp!AH44 -> 55.1 | Y50: =iRegionComp!AI44 -> 61.9 | Z50: =iRegionComp!AJ44 -> 53.7 | AB50: =iRegionComp!AK44 -> 39.1 | AC50: =iRegionComp!AL44 -> 38 | AD50: =iRegionComp!AM44 -> 54.1 | AF50: =iRegionComp!AN44 -> 58 | AG50: =iRegionComp!AO44 -> 45.7 | AH50: =iRegionComp!AP44 -> 41.4 | AI50: =iRegionComp!AQ44 -> 40.5 | AN50: 38 | AO50: 61.9
B51: =IF(iRegionComp!AA45="",0,iRegionComp!AA45) -> 27 | C51: =iRegionComp!AB45 -> 0 | E51: =TRIM(iRegionComp!AC45) -> 2.2.6) Biological, chemical, radiological weapons attacks (#) | R51: =iRegionComp!AD45 -> 95 | T51: =iRegionComp!AE45 -> 95 | V51: =iRegionComp!AF45 -> 92.9 | W51: =iRegionComp!AG45 -> 98.2 | X51: =iRegionComp!AH45 -> 100 | Y51: =iRegionComp!AI45 -> 100 | Z51: =iRegionComp!AJ45 -> 82.1 | AB51: =iRegionComp!AK45 -> 95.5 | AC51: =iRegionComp!AL45 -> 100 | AD51: =iRegionComp!AM45 -> 92.6 | AF51: =iRegionComp!AN45 -> 94.7 | AG51: =iRegionComp!AO45 -> 96.2 | AH51: =iRegionComp!AP45 -> 95.5 | AI51: =iRegionComp!AQ45 -> 94.1 | AN51: 92.6 | AO51: 100
B52: =IF(iRegionComp!AA46="",0,iRegionComp!AA46) -> 28 | C52: =iRegionComp!AB46 -> 0 | E52: =TRIM(iRegionComp!AC46) -> 2.2.7) Emergency services in the city | R52: =iRegionComp!AD46 -> 60.8 | T52: =iRegionComp!AE46 -> 60.8 | V52: =iRegionComp!AF46 -> 59.5 | W52: =iRegionComp!AG46 -> 64.3 | X52: =iRegionComp!AH46 -> 44.4 | Y52: =iRegionComp!AI46 -> 50 | Z52: =iRegionComp!AJ46 -> 92.9 | AB52: =iRegionComp!AK46 -> 31.8 | AC52: =iRegionComp!AL46 -> 43.3 | AD52: =iRegionComp!AM46 -> 77.9 | AF52: =iRegionComp!AN46 -> 63.2 | AG52: =iRegionComp!AO46 -> 65.4 | AH52: =iRegionComp!AP46 -> 59.1 | AI52: =iRegionComp!AQ46 -> 55.9 | AN52: 43.3 | AO52: 77.9
B53: =IF(iRegionComp!AA47="",0,iRegionComp!AA47) -> 30 | C53: =iRegionComp!AB47 -> 2 | E53: =TRIM(iRegionComp!AC47) -> 3.1) Infrastructure security (Inputs) | R53: =iRegionComp!AD47 -> 72.3 | T53: =iRegionComp!AE47 -> 72.3 | V53: =iRegionComp!AF47 -> 68 | W53: =iRegionComp!AG47 -> 90.5 | X53: =iRegionComp!AH47 -> 57.1 | Y53: =iRegionComp!AI47 -> 57.1 | Z53: =iRegionComp!AJ47 -> 87.6 | AB53: =iRegionComp!AK47 -> 43.7 | AC53: =iRegionComp!AL47 -> 58.8 | AD53: =iRegionComp!AM47 -> 87.5 | AF53: =iRegionComp!AN47 -> 78.7 | AG53: =iRegionComp!AO47 -> 79.6 | AH53: =iRegionComp!AP47 -> 69.5 | AI53: =iRegionComp!AQ47 -> 61.4 | AN53: 57.1 | AO53: 90.5
B54: =IF(iRegionComp!AA48="",0,iRegionComp!AA48) -> 31 | C54: =iRegionComp!AB48 -> 0 | E54: =TRIM(iRegionComp!AC48) -> 3.1.1) Enforcement of transport safety | R54: =iRegionComp!AD48 -> 67.3 | T54: =iRegionComp!AE48 -> 67.3 | V54: =iRegionComp!AF48 -> 66 | W54: =iRegionComp!AG48 -> 75.2 | X54: =iRegionComp!AH48 -> 54.5 | Y54: =iRegionComp!AI48 -> 68.6 | Z54: =iRegionComp!AJ48 -> 70 | AB54: =iRegionComp!AK48 -> 56.2 | AC54: =iRegionComp!AL48 -> 61.4 | AD54: =iRegionComp!AM48 -> 73.5 | AF54: =iRegionComp!AN48 -> 72.8 | AG54: =iRegionComp!AO48 -> 69.4 | AH54: =iRegionComp!AP48 -> 63 | AI54: =iRegionComp!AQ48 -> 62.3 | AN54: 54.5 | AO54: 75.2
B55: =IF(iRegionComp!AA49="",0,iRegionComp!AA49) -> 32 | C55: =iRegionComp!AB49 -> 0 | E55: =TRIM(iRegionComp!AC49) -> 3.1.2) Pedestrian friendliness | R55: =iRegionComp!AD49 -> 75 | T55: =iRegionComp!AE49 -> 75 | V55: =iRegionComp!AF49 -> 64.3 | W55: =iRegionComp!AG49 -> 100 | X55: =iRegionComp!AH49 -> 66.7 | Y55: =iRegionComp!AI49 -> 55.6 | Z55: =iRegionComp!AJ49 -> 92.9 | AB55: =iRegionComp!AK49 -> 31.8 | AC55: =iRegionComp!AL49 -> 60 | AD55: =iRegionComp!AM49 -> 95.6 | AF55: =iRegionComp!AN49 -> 81.6 | AG55: =iRegionComp!AO49 -> 84.6 | AH55: =iRegionComp!AP49 -> 77.3 | AI55: =iRegionComp!AQ49 -> 58.8 | AN55: 55.6 | AO55: 100
B56: =IF(iRegionComp!AA50="",0,iRegionComp!AA50) -> 33 | C56: =iRegionComp!AB50 -> 0 | E56: =TRIM(iRegionComp!AC50) -> 3.1.3) Disaster management/business continuity plan | R56: =iRegionComp!AD50 -> 74.6 | T56: =iRegionComp!AE50 -> 74.6 | V56: =iRegionComp!AF50 -> 73.8 | W56: =iRegionComp!AG50 -> 96.4 | X56: =iRegionComp!AH50 -> 50 | Y56: =iRegionComp!AI50 -> 47.2 | Z56: =iRegionComp!AJ50 -> 100 | AB56: =iRegionComp!AK50 -> 43.2 | AC56: =iRegionComp!AL50 -> 55 | AD56: =iRegionComp!AM50 -> 93.4 | AF56: =iRegionComp!AN50 -> 81.6 | AG56: =iRegionComp!AO50 -> 84.6 | AH56: =iRegionComp!AP50 -> 68.2 | AI56: =iRegionComp!AQ50 -> 63.2 | AN56: 47.2 | AO56: 96.4
B57: =IF(iRegionComp!AA51="",0,iRegionComp!AA51) -> 34 | C57: =iRegionComp!AB51 -> 2 | E57: =TRIM(iRegionComp!AC51) -> 3.2) Infrastructure security (Outputs) | R57: =iRegionComp!AD51 -> 72.8 | T57: =iRegionComp!AE51 -> 72.8 | V57: =iRegionComp!AF51 -> 72.5 | W57: =iRegionComp!AG51 -> 83.7 | X57: =iRegionComp!AH51 -> 54.6 | Y57: =iRegionComp!AI51 -> 57.7 | Z57: =iRegionComp!AJ51 -> 94.4 | AB57: =iRegionComp!AK51 -> 49.5 | AC57: =iRegionComp!AL51 -> 57.9 | AD57: =iRegionComp!AM51 -> 86.9 | AF57: =iRegionComp!AN51 -> 76.4 | AG57: =iRegionComp!AO51 -> 83.5 | AH57: =iRegionComp!AP51 -> 66.7 | AI57: =iRegionComp!AQ51 -> 64.4 | AN57: 54.6 | AO57: 86.9
B58: =IF(iRegionComp!AA52="",0,iRegionComp!AA52) -> 35 | C58: =iRegionComp!AB52 -> 0 | E58: =TRIM(iRegionComp!AC52) -> 3.2.1) Deaths from natural disaster | R58: =iRegionComp!AD52 -> 88.2 | T58: =iRegionComp!AE52 -> 88.2 | V58: =iRegionComp!AF52 -> 89.5 | W58: =iRegionComp!AG52 -> 86.5 | X58: =iRegionComp!AH52 -> 77.9 | Y58: =iRegionComp!AI52 -> 94.6 | Z58: =iRegionComp!AJ52 -> 92.7 | AB58: =iRegionComp!AK52 -> 85.2 | AC58: =iRegionComp!AL52 -> 87 | AD58: =iRegionComp!AM52 -> 89.7 | AF58: =iRegionComp!AN52 -> 86.4 | AG58: =iRegionComp!AO52 -> 92 | AH58: =iRegionComp!AP52 -> 83.4 | AI58: =iRegionComp!AQ52 -> 90.4 | AN58: 77.9 | AO58: 94.6
B59: =IF(iRegionComp!AA53="",0,iRegionComp!AA53) -> 36 | C59: =iRegionComp!AB53 -> 0 | E59: =TRIM(iRegionComp!AC53) -> 3.2.2) Road traffic deaths | R59: =iRegionComp!AD53 -> 66.3 | T59: =iRegionComp!AE53 -> 66.3 | V59: =iRegionComp!AF53 -> 63.2 | W59: =iRegionComp!AG53 -> 86.4 | X59: =iRegionComp!AH53 -> 47.3 | Y59: =iRegionComp!AI53 -> 46.6 | Z59: =iRegionComp!AJ53 -> 85.1 | AB59: =iRegionComp!AK53 -> 49.7 | AC59: =iRegionComp!AL53 -> 43.1 | AD59: =iRegionComp!AM53 -> 81.9 | AF59: =iRegionComp!AN53 -> 72.7 | AG59: =iRegionComp!AO53 -> 73.9 | AH59: =iRegionComp!AP53 -> 56.4 | AI59: =iRegionComp!AQ53 -> 59.7 | AN59: =CHOOSE($AN$1,MIN(R59:Y59,AC59:AI59),MIN(R59:AI59),MIN(R59:Y59,AC59:AI59),MIN(R59:AB59,AC59:AI59)) -> 43.1 | AO59: =CHOOSE($AN$1,MAX(R59:Y59,AC59:AI59),MAX(R59:AI59),MAX(R59:Y59,AC59:AI59),MAX(R59:AB59,AC59:AI59)) -> 86.4
B60: =IF(iRegionComp!AA54="",0,iRegionComp!AA54) -> 37 | C60: =iRegionComp!AB54 -> 0 | E60: =TRIM(iRegionComp!AC54) -> 3.2.3) Percentage living in slums | R60: =iRegionComp!AD54 -> 73.5 | T60: =iRegionComp!AE54 -> 73.5 | V60: =iRegionComp!AF54 -> 64.2 | W60: =iRegionComp!AG54 -> 92.4 | X60: =iRegionComp!AH54 -> 60.3 | Y60: =iRegionComp!AI54 -> 59.7 | Z60: =iRegionComp!AJ54 -> 98.5 | AB60: =iRegionComp!AK54 -> 32.9 | AC60: =iRegionComp!AL54 -> 57.4 | AD60: =iRegionComp!AM54 -> 93.7 | AF60: =iRegionComp!AN54 -> 81.6 | AG60: =iRegionComp!AO54 -> 89 | AH60: =iRegionComp!AP54 -> 71.2 | AI60: =iRegionComp!AQ54 -> 54.2 | AN60: 54.2 | AO60: 93.7
B61: =IF(iRegionComp!AA55="",0,iRegionComp!AA55) -> 38 | C61: =iRegionComp!AB55 -> 0 | E61: =TRIM(iRegionComp!AC55) -> 3.2.4) Number of attacks on facilities/infrastructure | R61: =iRegionComp!AD55 -> 92.1 | T61: =iRegionComp!AE55 -> 92.1 | V61: =iRegionComp!AF55 -> 87.3 | W61: =iRegionComp!AG55 -> 92.3 | X61: =iRegionComp!AH55 -> 95.2 | Y61: =iRegionComp!AI55 -> 97.6 | Z61: =iRegionComp!AJ55 -> 95.4 | AB61: =iRegionComp!AK55 -> 82.6 | AC61: =iRegionComp!AL55 -> 91 | AD61: =iRegionComp!AM55 -> 95.7 | AF61: =iRegionComp!AN55 -> 97.6 | AG61: =iRegionComp!AO55 -> 97.3 | AH61: =iRegionComp!AP55 -> 88.5 | AI61: =iRegionComp!AQ55 -> 84.4 | AN61: 84.4 | AO61: 97.6
B62: =IF(iRegionComp!AA56="",0,iRegionComp!AA56) -> 39 | C62: =iRegionComp!AB56 -> 0 | E62: =TRIM(iRegionComp!AC56) -> 3.2.5) Institutional capacity and access to resources | R62: =iRegionComp!AD56 -> 86.7 | T62: =iRegionComp!AE56 -> 86.7 | V62: =iRegionComp!AF56 -> 100 | W62: =iRegionComp!AG56 -> 100 | X62: =iRegionComp!AH56 -> 44.4 | Y62: =iRegionComp!AI56 -> 66.7 | Z62: =iRegionComp!AJ56 -> 100 | AB62: =iRegionComp!AK56 -> 81.8 | AC62: =iRegionComp!AL56 -> 60 | AD62: =iRegionComp!AM56 -> 100 | AF62: =iRegionComp!AN56 -> 84.2 | AG62: =iRegionComp!AO56 -> 100 | AH62: =iRegionComp!AP56 -> 72.7 | AI62: =iRegionComp!AQ56 -> 88.2 | AN62: 44.4 | AO62: 100
B63: =IF(iRegionComp!AA57="",0,iRegionComp!AA57) -> 40 | C63: =iRegionComp!AB57 -> 0 | E63: =TRIM(iRegionComp!AC57) -> 3.2.6) Catastrophe insurance | R63: =iRegionComp!AD57 -> 33.3 | T63: =iRegionComp!AE57 -> 33.3 | V63: =iRegionComp!AF57 -> 33.3 | W63: =iRegionComp!AG57 -> 35.7 | X63: =iRegionComp!AH57 -> 11.1 | Y63: =iRegionComp!AI57 -> 0 | Z63: =iRegionComp!AJ57 -> 100 | AB63: =iRegionComp!AK57 -> 0 | AC63: =iRegionComp!AL57 -> 6.7 | AD63: =iRegionComp!AM57 -> 55.9 | AF63: =iRegionComp!AN57 -> 36.8 | AG63: =iRegionComp!AO57 -> 53.8 | AH63: =iRegionComp!AP57 -> 27.3 | AI63: =iRegionComp!AQ57 -> 17.6 | AN63: 0 | AO63: 55.9
B64: =IF(iRegionComp!AA58="",0,iRegionComp!AA58) -> 41 | C64: =iRegionComp!AB58 -> 0 | E64: =TRIM(iRegionComp!AC58) -> 3.2.7) Disaster-risk informed development | R64: =iRegionComp!AD58 -> 65.8 | T64: =iRegionComp!AE58 -> 65.8 | V64: =iRegionComp!AF58 -> 76.2 | W64: =iRegionComp!AG58 -> 75 | X64: =iRegionComp!AH58 -> 38.9 | Y64: =iRegionComp!AI58 -> 27.8 | Z64: =iRegionComp!AJ58 -> 100 | AB64: =iRegionComp!AK58 -> 40.9 | AC64: =iRegionComp!AL58 -> 46.7 | AD64: =iRegionComp!AM58 -> 82.4 | AF64: =iRegionComp!AN58 -> 65.8 | AG64: =iRegionComp!AO58 -> 80.8 | AH64: =iRegionComp!AP58 -> 54.5 | AI64: =iRegionComp!AQ58 -> 61.8 | AN64: 27.8 | AO64: 82.4
B65: =IF(iRegionComp!AA59="",0,iRegionComp!AA59) -> 42 | C65: =iRegionComp!AB59 -> 0 | E65: =TRIM(iRegionComp!AC59) -> 3.2.8) Air transport facilities | R65: =iRegionComp!AD59 -> 77.5 | T65: =iRegionComp!AE59 -> 77.5 | V65: =iRegionComp!AF59 -> 76.2 | W65: =iRegionComp!AG59 -> 92 | X65: =iRegionComp!AH59 -> 55.6 | Y65: =iRegionComp!AI59 -> 66.7 | Z65: =iRegionComp!AJ59 -> 94.6 | AB65: =iRegionComp!AK59 -> 48.9 | AC65: =iRegionComp!AL59 -> 64.2 | AD65: =iRegionComp!AM59 -> 92.6 | AF65: =iRegionComp!AN59 -> 82.9 | AG65: =iRegionComp!AO59 -> 86.5 | AH65: =iRegionComp!AP59 -> 70.5 | AI65: =iRegionComp!AQ59 -> 69.1 | AN65: 55.6 | AO65: 92.6
B66: =IF(iRegionComp!AA60="",0,iRegionComp!AA60) -> 43 | C66: =iRegionComp!AB60 -> 0 | E66: =TRIM(iRegionComp!AC60) -> 3.2.9) Road network | R66: =iRegionComp!AD60 -> 71.7 | T66: =iRegionComp!AE60 -> 71.7 | V66: =iRegionComp!AF60 -> 67.1 | W66: =iRegionComp!AG60 -> 86.4 | X66: =iRegionComp!AH60 -> 57.4 | Y66: =iRegionComp!AI60 -> 65.8 | Z66: =iRegionComp!AJ60 -> 82.1 | AB66: =iRegionComp!AK60 -> 42.5 | AC66: =iRegionComp!AL60 -> 58.9 | AD66: =iRegionComp!AM60 -> 86.8 | AF66: =iRegionComp!AN60 -> 80.3 | AG66: =iRegionComp!AO60 -> 78.9 | AH66: =iRegionComp!AP60 -> 66.7 | AI66: =iRegionComp!AQ60 -> 59.8 | AN66: 57.4 | AO66: 86.8
B67: =IF(iRegionComp!AA61="",0,iRegionComp!AA61) -> 44 | C67: =iRegionComp!AB61 -> 0 | E67: =TRIM(iRegionComp!AC61) -> 3.2.10) Power network | R67: =iRegionComp!AD61 -> 76.9 | T67: =iRegionComp!AE61 -> 76.9 | V67: =iRegionComp!AF61 -> 71.4 | W67: =iRegionComp!AG61 -> 85.7 | X67: =iRegionComp!AH61 -> 66 | Y67: =iRegionComp!AI61 -> 70.1 | Z67: =iRegionComp!AJ61 -> 98.2 | AB67: =iRegionComp!AK61 -> 46.6 | AC67: =iRegionComp!AL61 -> 70 | AD67: =iRegionComp!AM61 -> 89.7 | AF67: =iRegionComp!AN61 -> 82.9 | AG67: =iRegionComp!AO61 -> 86.5 | AH67: =iRegionComp!AP61 -> 76.1 | AI67: =iRegionComp!AQ61 -> 63.3 | AN67: 63.3 | AO67: 89.7
B68: =IF(iRegionComp!AA62="",0,iRegionComp!AA62) -> 45 | C68: =iRegionComp!AB62 -> 0 | E68: =TRIM(iRegionComp!AC62) -> 3.2.11) Rail network | R68: =iRegionComp!AD62 -> 70.4 | T68: =iRegionComp!AE62 -> 70.4 | V68: =iRegionComp!AF62 -> 70.2 | W68: =iRegionComp!AG62 -> 86.6 | X68: =iRegionComp!AH62 -> 51.4 | Y68: =iRegionComp!AI62 -> 52.8 | Z68: =iRegionComp!AJ62 -> 85.7 | AB68: =iRegionComp!AK62 -> 42 | AC68: =iRegionComp!AL62 -> 58.3 | AD68: =iRegionComp!AM62 -> 84.9 | AF68: =iRegionComp!AN62 -> 72.4 | AG68: =iRegionComp!AO62 -> 78.8 | AH68: =iRegionComp!AP62 -> 67 | AI68: =iRegionComp!AQ62 -> 64 | AN68: 51.4 | AO68: 86.6
B69: =IF(iRegionComp!AA63="",0,iRegionComp!AA63) -> 46 | C69: =iRegionComp!AB63 -> 0 | E69: =TRIM(iRegionComp!AC63) -> 3.2.12) Cyber security preparedness | R69: =iRegionComp!AD63 -> 70.8 | T69: =iRegionComp!AE63 -> 70.8 | V69: =iRegionComp!AF63 -> 71.4 | W69: =iRegionComp!AG63 -> 85.7 | X69: =iRegionComp!AH63 -> 50 | Y69: =iRegionComp!AI63 -> 44.4 | Z69: =iRegionComp!AJ63 -> 100 | AB69: =iRegionComp!AK63 -> 40.9 | AC69: =iRegionComp!AL63 -> 51.7 | AD69: =iRegionComp!AM63 -> 89 | AF69: =iRegionComp!AN63 -> 73.7 | AG69: =iRegionComp!AO63 -> 84.6 | AH69: =iRegionComp!AP63 -> 65.9 | AI69: =iRegionComp!AQ63 -> 60.3 | AN69: 44.4 | AO69: 89
B70: =IF(iRegionComp!AA64="",0,iRegionComp!AA64) -> 48 | C70: =iRegionComp!AB64 -> 2 | E70: =TRIM(iRegionComp!AC64) -> 4.1) Personal security (Inputs) | R70: =iRegionComp!AD64 -> 80.9 | T70: =iRegionComp!AE64 -> 80.9 | V70: =iRegionComp!AF64 -> 83.6 | W70: =iRegionComp!AG64 -> 88.5 | X70: =iRegionComp!AH64 -> 69.2 | Y70: =iRegionComp!AI64 -> 69.8 | Z70: =iRegionComp!AJ64 -> 87.3 | AB70: =iRegionComp!AK64 -> 69.1 | AC70: =iRegionComp!AL64 -> 71.7 | AD70: =iRegionComp!AM64 -> 88.8 | AF70: =iRegionComp!AN64 -> 82.9 | AG70: =iRegionComp!AO64 -> 84 | AH70: =iRegionComp!AP64 -> 74.7 | AI70: =iRegionComp!AQ64 -> 80.4 | AN70: 69.2 | AO70: 88.8
B71: =IF(iRegionComp!AA65="",0,iRegionComp!AA65) -> 49 | C71: =iRegionComp!AB65 -> 0 | E71: =TRIM(iRegionComp!AC65) -> 4.1.1) Level of police engagement | R71: =iRegionComp!AD65 -> 96.7 | T71: =iRegionComp!AE65 -> 96.7 | V71: =iRegionComp!AF65 -> 100 | W71: =iRegionComp!AG65 -> 100 | X71: =iRegionComp!AH65 -> 83.3 | Y71: =iRegionComp!AI65 -> 94.4 | Z71: =iRegionComp!AJ65 -> 100 | AB71: =iRegionComp!AK65 -> 95.5 | AC71: =iRegionComp!AL65 -> 93.3 | AD71: =iRegionComp!AM65 -> 98.5 | AF71: =iRegionComp!AN65 -> 94.7 | AG71: =iRegionComp!AO65 -> 96.2 | AH71: =iRegionComp!AP65 -> 100 | AI71: =iRegionComp!AQ65 -> 97.1 | AN71: 83.3 | AO71: 100
B72: =IF(iRegionComp!AA66="",0,iRegionComp!AA66) -> 50 | C72: =iRegionComp!AB66 -> 0 | E72: =TRIM(iRegionComp!AC66) -> 4.1.2) Community-based patrolling | R72: =iRegionComp!AD66 -> 98.3 | T72: =iRegionComp!AE66 -> 98.3 | V72: =iRegionComp!AF66 -> 100 | W72: =iRegionComp!AG66 -> 100 | X72: =iRegionComp!AH66 -> 100 | Y72: =iRegionComp!AI66 -> 88.9 | Z72: =iRegionComp!AJ66 -> 100 | AB72: =iRegionComp!AK66 -> 90.9 | AC72: =iRegionComp!AL66 -> 100 | AD72: =iRegionComp!AM66 -> 100 | AF72: =iRegionComp!AN66 -> 100 | AG72: =iRegionComp!AO66 -> 100 | AH72: =iRegionComp!AP66 -> 90.9 | AI72: =iRegionComp!AQ66 -> 100 | AN72: 88.9 | AO72: 100
B73: =IF(iRegionComp!AA67="",0,iRegionComp!AA67) -> 51 | C73: =iRegionComp!AB67 -> 0 | E73: =TRIM(iRegionComp!AC67) -> 4.1.3) Available street-level crime data | R73: =iRegionComp!AD67 -> 83.3 | T73: =iRegionComp!AE67 -> 83.3 | V73: =iRegionComp!AF67 -> 81 | W73: =iRegionComp!AG67 -> 100 | X73: =iRegionComp!AH67 -> 66.7 | Y73: =iRegionComp!AI67 -> 66.7 | Z73: =iRegionComp!AJ67 -> 100 | AB73: =iRegionComp!AK67 -> 54.5 | AC73: =iRegionComp!AL67 -> 66.7 | AD73: =iRegionComp!AM67 -> 100 | AF73: =iRegionComp!AN67 -> 84.2 | AG73: =iRegionComp!AO67 -> 92.3 | AH73: =iRegionComp!AP67 -> 72.7 | AI73: =iRegionComp!AQ67 -> 82.4 | AN73: 66.7 | AO73: 100
B74: =IF(iRegionComp!AA68="",0,iRegionComp!AA68) -> 52 | C74: =iRegionComp!AB68 -> 0 | E74: =TRIM(iRegionComp!AC68) -> 4.1.4) Use of data-driven techniques for crime | R74: =iRegionComp!AD68 -> 71.7 | T74: =iRegionComp!AE68 -> 71.7 | V74: =iRegionComp!AF68 -> 71.4 | W74: =iRegionComp!AG68 -> 92.9 | X74: =iRegionComp!AH68 -> 38.9 | Y74: =iRegionComp!AI68 -> 50 | Z74: =iRegionComp!AJ68 -> 100 | AB74: =iRegionComp!AK68 -> 40.9 | AC74: =iRegionComp!AL68 -> 43.3 | AD74: =iRegionComp!AM68 -> 94.1 | AF74: =iRegionComp!AN68 -> 78.9 | AG74: =iRegionComp!AO68 -> 80.8 | AH74: =iRegionComp!AP68 -> 59.1 | AI74: =iRegionComp!AQ68 -> 64.7 | AN74: 38.9 | AO74: 94.1
B75: =IF(iRegionComp!AA69="",0,iRegionComp!AA69) -> 53 | C75: =iRegionComp!AB69 -> 0 | E75: =TRIM(iRegionComp!AC69) -> 4.1.5) Private security measures | R75: =iRegionComp!AD69 -> 93.3 | T75: =iRegionComp!AE69 -> 93.3 | V75: =iRegionComp!AF69 -> 85.7 | W75: =iRegionComp!AG69 -> 100 | X75: =iRegionComp!AH69 -> 100 | Y75: =iRegionComp!AI69 -> 88.9 | Z75: =iRegionComp!AJ69 -> 100 | AB75: =iRegionComp!AK69 -> 63.6 | AC75: =iRegionComp!AL69 -> 100 | AD75: =iRegionComp!AM69 -> 100 | AF75: =iRegionComp!AN69 -> 100 | AG75: =iRegionComp!AO69 -> 92.3 | AH75: =iRegionComp!AP69 -> 90.9 | AI75: =iRegionComp!AQ69 -> 88.2 | AN75: 85.7 | AO75: 100
B76: =IF(iRegionComp!AA70="",0,iRegionComp!AA70) -> 54 | C76: =iRegionComp!AB70 -> 0 | E76: =TRIM(iRegionComp!AC70) -> 4.1.6) Gun regulation and enforcement | R76: =iRegionComp!AD70 -> 60.9 | T76: =iRegionComp!AE70 -> 60.9 | V76: =iRegionComp!AF70 -> 71.1 | W76: =iRegionComp!AG70 -> 59.6 | X76: =iRegionComp!AH70 -> 57.1 | Y76: =iRegionComp!AI70 -> 53.4 | Z76: =iRegionComp!AJ70 -> 46.7 | AB76: =iRegionComp!AK70 -> 63.9 | AC76: =iRegionComp!AL70 -> 57.8 | AD76: =iRegionComp!AM70 -> 61.2 | AF76: =iRegionComp!AN70 -> 61.3 | AG76: =iRegionComp!AO70 -> 57.3 | AH76: =iRegionComp!AP70 -> 57.7 | AI76: =iRegionComp!AQ70 -> 65.1 | AN76: 53.4 | AO76: 71.1
B77: =IF(iRegionComp!AA71="",0,iRegionComp!AA71) -> 55 | C77: =iRegionComp!AB71 -> 0 | E77: =TRIM(iRegionComp!AC71) -> 4.1.7) Political stability risk | R77: =iRegionComp!AD71 -> 63.8 | T77: =iRegionComp!AE71 -> 63.8 | V77: =iRegionComp!AF71 -> 63.8 | W77: =iRegionComp!AG71 -> 69.3 | X77: =iRegionComp!AH71 -> 58.9 | Y77: =iRegionComp!AI71 -> 49.4 | Z77: =iRegionComp!AJ71 -> 77.9 | AB77: =iRegionComp!AK71 -> 54.1 | AC77: =iRegionComp!AL71 -> 50.7 | AD77: =iRegionComp!AM71 -> 72.8 | AF77: =iRegionComp!AN71 -> 65.8 | AG77: =iRegionComp!AO71 -> 68.8 | AH77: =iRegionComp!AP71 -> 65 | AI77: =iRegionComp!AQ71 -> 57.1 | AN77: 49.4 | AO77: 72.8
B78: =IF(iRegionComp!AA72="",0,iRegionComp!AA72) -> 56 | C78: =iRegionComp!AB72 -> 0 | E78: =TRIM(iRegionComp!AC72) -> 4.1.8) Effectiveness of the criminal justice system | R78: =iRegionComp!AD72 -> 70.4 | T78: =iRegionComp!AE72 -> 70.4 | V78: =iRegionComp!AF72 -> 81.7 | W78: =iRegionComp!AG72 -> 78.3 | X78: =iRegionComp!AH72 -> 34.3 | Y78: =iRegionComp!AI72 -> 74.8 | Z78: =iRegionComp!AJ72 -> 61.3 | AB78: =iRegionComp!AK72 -> 72.4 | AC78: =iRegionComp!AL72 -> 57 | AD78: =iRegionComp!AM72 -> 75.7 | AF78: =iRegionComp!AN72 -> 74.3 | AG78: =iRegionComp!AO72 -> 72.5 | AH78: =iRegionComp!AP72 -> 53.9 | AI78: =iRegionComp!AQ72 -> 75.1 | AN78: 34.3 | AO78: 81.7
B79: =IF(iRegionComp!AA73="",0,iRegionComp!AA73) -> 57 | C79: =iRegionComp!AB73 -> 0 | E79: =TRIM(iRegionComp!AC73) -> 4.1.9) Hazard monitoring | R79: =iRegionComp!AD73 -> 90 | T79: =iRegionComp!AE73 -> 90 | V79: =iRegionComp!AF73 -> 97.6 | W79: =iRegionComp!AG73 -> 96.4 | X79: =iRegionComp!AH73 -> 83.3 | Y79: =iRegionComp!AI73 -> 61.1 | Z79: =iRegionComp!AJ73 -> 100 | AB79: =iRegionComp!AK73 -> 86.4 | AC79: =iRegionComp!AL73 -> 76.7 | AD79: =iRegionComp!AM73 -> 97.1 | AF79: =iRegionComp!AN73 -> 86.8 | AG79: =iRegionComp!AO73 -> 96.2 | AH79: =iRegionComp!AP73 -> 81.8 | AI79: =iRegionComp!AQ73 -> 94.1 | AN79: 61.1 | AO79: 97.6
B80: =IF(iRegionComp!AA74="",0,iRegionComp!AA74) -> 58 | C80: =iRegionComp!AB74 -> 2 | E80: =TRIM(iRegionComp!AC74) -> 4.2) Personal security (Outputs) | R80: =iRegionComp!AD74 -> 73.1 | T80: =iRegionComp!AE74 -> 73.1 | V80: =iRegionComp!AF74 -> 73.8 | W80: =iRegionComp!AG74 -> 80.1 | X80: =iRegionComp!AH74 -> 58 | Y80: =iRegionComp!AI74 -> 69.9 | Z80: =iRegionComp!AJ74 -> 80.9 | AB80: =iRegionComp!AK74 -> 57.8 | AC80: =iRegionComp!AL74 -> 61.4 | AD80: =iRegionComp!AM74 -> 83.3 | AF80: =iRegionComp!AN74 -> 79.2 | AG80: =iRegionComp!AO74 -> 81.5 | AH80: =iRegionComp!AP74 -> 65.6 | AI80: =iRegionComp!AQ74 -> 64.8 | AN80: 58 | AO80: 83.3
B81: =IF(iRegionComp!AA75="",0,iRegionComp!AA75) -> 59 | C81: =iRegionComp!AB75 -> 0 | E81: =TRIM(iRegionComp!AC75) -> 4.2.1) Prevalence of petty crime | R81: =iRegionComp!AD75 -> 57.9 | T81: =iRegionComp!AE75 -> 57.9 | V81: =iRegionComp!AF75 -> 58.3 | W81: =iRegionComp!AG75 -> 69.6 | X81: =iRegionComp!AH75 -> 22.2 | Y81: =iRegionComp!AI75 -> 58.3 | Z81: =iRegionComp!AJ75 -> 78.6 | AB81: =iRegionComp!AK75 -> 36.4 | AC81: =iRegionComp!AL75 -> 31.7 | AD81: =iRegionComp!AM75 -> 76.5 | AF81: =iRegionComp!AN75 -> 67.1 | AG81: =iRegionComp!AO75 -> 73.1 | AH81: =iRegionComp!AP75 -> 45.5 | AI81: =iRegionComp!AQ75 -> 44.1 | AN81: 22.2 | AO81: 76.5
B82: =IF(iRegionComp!AA76="",0,iRegionComp!AA76) -> 60 | C82: =iRegionComp!AB76 -> 0 | E82: =TRIM(iRegionComp!AC76) -> 4.2.2) Prevalence of violent crime | R82: =iRegionComp!AD76 -> 72.1 | T82: =iRegionComp!AE76 -> 72.1 | V82: =iRegionComp!AF76 -> 82.1 | W82: =iRegionComp!AG76 -> 83.9 | X82: =iRegionComp!AH76 -> 30.6 | Y82: =iRegionComp!AI76 -> 69.4 | Z82: =iRegionComp!AJ76 -> 75 | AB82: =iRegionComp!AK76 -> 59.1 | AC82: =iRegionComp!AL76 -> 45 | AD82: =iRegionComp!AM76 -> 88.2 | AF82: =iRegionComp!AN76 -> 80.3 | AG82: =iRegionComp!AO76 -> 84.6 | AH82: =iRegionComp!AP76 -> 56.8 | AI82: =iRegionComp!AQ76 -> 63.2 | AN82: 30.6 | AO82: 88.2
B83: =IF(iRegionComp!AA77="",0,iRegionComp!AA77) -> 61 | C83: =iRegionComp!AB77 -> 0 | E83: =TRIM(iRegionComp!AC77) -> 4.2.3) Organised crime | R83: =iRegionComp!AD77 -> 57.9 | T83: =iRegionComp!AE77 -> 57.9 | V83: =iRegionComp!AF77 -> 58.3 | W83: =iRegionComp!AG77 -> 67.9 | X83: =iRegionComp!AH77 -> 30.6 | Y83: =iRegionComp!AI77 -> 55.6 | Z83: =iRegionComp!AJ77 -> 75 | AB83: =iRegionComp!AK77 -> 40.9 | AC83: =iRegionComp!AL77 -> 35 | AD83: =iRegionComp!AM77 -> 73.5 | AF83: =iRegionComp!AN77 -> 65.8 | AG83: =iRegionComp!AO77 -> 73.1 | AH83: =iRegionComp!AP77 -> 43.2 | AI83: =iRegionComp!AQ77 -> 47.1 | AN83: 30.6 | AO83: 73.5
B84: =IF(iRegionComp!AA78="",0,iRegionComp!AA78) -> 62 | C84: =iRegionComp!AB78 -> 0 | E84: =TRIM(iRegionComp!AC78) -> 4.2.4) Level of corruption | R84: =iRegionComp!AD78 -> 54.7 | T84: =iRegionComp!AE78 -> 54.7 | V84: =iRegionComp!AF78 -> 52.7 | W84: =iRegionComp!AG78 -> 66.9 | X84: =iRegionComp!AH78 -> 36.4 | Y84: =iRegionComp!AI78 -> 44.8 | Z84: =iRegionComp!AJ78 -> 72.4 | AB84: =iRegionComp!AK78 -> 34.7 | AC84: =iRegionComp!AL78 -> 34.6 | AD84: =iRegionComp!AM78 -> 70 | AF84: =iRegionComp!AN78 -> 63.8 | AG84: =iRegionComp!AO78 -> 63.5 | AH84: =iRegionComp!AP78 -> 48.7 | AI84: =iRegionComp!AQ78 -> 41.5 | AN84: 34.6 | AO84: 70
B85: =IF(iRegionComp!AA79="",0,iRegionComp!AA79) -> 63 | C85: =iRegionComp!AB79 -> 0 | E85: =TRIM(iRegionComp!AC79) -> 4.2.5) Rate of drug use | R85: =iRegionComp!AD79 -> 76.9 | T85: =iRegionComp!AE79 -> 76.9 | V85: =iRegionComp!AF79 -> 80.6 | W85: =iRegionComp!AG79 -> 65 | X85: =iRegionComp!AH79 -> 80.8 | Y85: =iRegionComp!AI79 -> 84 | Z85: =iRegionComp!AJ79 -> 75.9 | AB85: =iRegionComp!AK79 -> 84.9 | AC85: =iRegionComp!AL79 -> 88.3 | AD85: =iRegionComp!AM79 -> 69.3 | AF85: =iRegionComp!AN79 -> 64.8 | AG85: =iRegionComp!AO79 -> 81 | AH85: =iRegionComp!AP79 -> 77.6 | AI85: =iRegionComp!AQ79 -> 87 | AN85: 64.8 | AO85: 88.3
B86: =IF(iRegionComp!AA80="",0,iRegionComp!AA80) -> 64 | C86: =iRegionComp!AB80 -> 0 | E86: =TRIM(iRegionComp!AC80) -> 4.2.6) Frequency of terrorist attacks | R86: =iRegionComp!AD80 -> 92.2 | T86: =iRegionComp!AE80 -> 92.2 | V86: =iRegionComp!AF80 -> 86.5 | W86: =iRegionComp!AG80 -> 94.1 | X86: =iRegionComp!AH80 -> 95.3 | Y86: =iRegionComp!AI80 -> 94.5 | Z86: =iRegionComp!AJ80 -> 98.4 | AB86: =iRegionComp!AK80 -> 75.1 | AC86: =iRegionComp!AL80 -> 91.8 | AD86: =iRegionComp!AM80 -> 97.9 | AF86: =iRegionComp!AN80 -> 98.5 | AG86: =iRegionComp!AO80 -> 97.7 | AH86: =iRegionComp!AP80 -> 91.3 | AI86: =iRegionComp!AQ80 -> 81.4 | AN86: 81.4 | AO86: 98.5
B87: =IF(iRegionComp!AA81="",0,iRegionComp!AA81) -> 65 | C87: =iRegionComp!AB81 -> 0 | E87: =TRIM(iRegionComp!AC81) -> 4.2.7) Severity of terrorist attacks | R87: =iRegionComp!AD81 -> 96.2 | T87: =iRegionComp!AE81 -> 96.2 | V87: =iRegionComp!AF81 -> 92.9 | W87: =iRegionComp!AG81 -> 96.7 | X87: =iRegionComp!AH81 -> 99 | Y87: =iRegionComp!AI81 -> 98 | Z87: =iRegionComp!AJ81 -> 99.7 | AB87: =iRegionComp!AK81 -> 86.6 | AC87: =iRegionComp!AL81 -> 96.8 | AD87: =iRegionComp!AM81 -> 99.1 | AF87: =iRegionComp!AN81 -> 99.4 | AG87: =iRegionComp!AO81 -> 99.6 | AH87: =iRegionComp!AP81 -> 96.9 | AI87: =iRegionComp!AQ81 -> 89.8 | AN87: 89.8 | AO87: 99.6
B88: =IF(iRegionComp!AA82="",0,iRegionComp!AA82) -> 66 | C88: =iRegionComp!AB82 -> 0 | E88: =TRIM(iRegionComp!AC82) -> 4.2.8) Gender safety (female homicide) | R88: =iRegionComp!AD82 -> 83 | T88: =iRegionComp!AE82 -> 83 | V88: =iRegionComp!AF82 -> 88.5 | W88: =iRegionComp!AG82 -> 94.3 | X88: =iRegionComp!AH82 -> 52.5 | Y88: =iRegionComp!AI82 -> 79.4 | Z88: =iRegionComp!AJ82 -> 87.7 | AB88: =iRegionComp!AK82 -> 79 | AC88: =iRegionComp!AL82 -> 63.2 | AD88: =iRegionComp!AM82 -> 93 | AF88: =iRegionComp!AN82 -> 89.9 | AG88: =iRegionComp!AO82 -> 90.9 | AH88: =iRegionComp!AP82 -> 68.7 | AI88: =iRegionComp!AQ82 -> 78.5 | AN88: 52.5 | AO88: 94.3
B89: =IF(iRegionComp!AA83="",0,iRegionComp!AA83) -> 67 | C89: =iRegionComp!AB83 -> 0 | E89: =TRIM(iRegionComp!AC83) -> 4.2.9) Perceptions of safety | R89: =iRegionComp!AD83 -> 52.8 | T89: =iRegionComp!AE83 -> 52.8 | V89: =iRegionComp!AF83 -> 56.9 | W89: =iRegionComp!AG83 -> 57 | X89: =iRegionComp!AH83 -> 34 | Y89: =iRegionComp!AI83 -> 57.3 | Z89: =iRegionComp!AJ83 -> 50.6 | AB89: =iRegionComp!AK83 -> 42 | AC89: =iRegionComp!AL83 -> 40.6 | AD89: =iRegionComp!AM83 -> 61.7 | AF89: =iRegionComp!AN83 -> 59.8 | AG89: =iRegionComp!AO83 -> 57.4 | AH89: =iRegionComp!AP83 -> 44.4 | AI89: =iRegionComp!AQ83 -> 46.9 | AN89: 34 | AO89: 61.7
B90: =IF(iRegionComp!AA84="",0,iRegionComp!AA84) -> 68 | C90: =iRegionComp!AB84 -> 0 | E90: =TRIM(iRegionComp!AC84) -> 4.2.10) Threat of terrorism | R90: =iRegionComp!AD84 -> 72.5 | T90: =iRegionComp!AE84 -> 72.5 | V90: =iRegionComp!AF84 -> 72.6 | W90: =iRegionComp!AG84 -> 83.9 | X90: =iRegionComp!AH84 -> 72.2 | Y90: =iRegionComp!AI84 -> 52.8 | Z90: =iRegionComp!AJ84 -> 75 | AB90: =iRegionComp!AK84 -> 38.6 | AC90: =iRegionComp!AL84 -> 66.7 | AD90: =iRegionComp!AM84 -> 86 | AF90: =iRegionComp!AN84 -> 81.6 | AG90: =iRegionComp!AO84 -> 80.8 | AH90: =iRegionComp!AP84 -> 65.9 | AI90: =iRegionComp!AQ84 -> 60.3 | AN90: 52.8 | AO90: 86
B91: =IF(iRegionComp!AA85="",0,iRegionComp!AA85) -> 69 | C91: =iRegionComp!AB85 -> 0 | E91: =TRIM(iRegionComp!AC85) -> 4.2.11) Threat of military conflict | R91: =iRegionComp!AD85 -> 87.1 | T91: =iRegionComp!AE85 -> 87.1 | V91: =iRegionComp!AF85 -> 81 | W91: =iRegionComp!AG85 -> 94.6 | X91: =iRegionComp!AH85 -> 88.9 | Y91: =iRegionComp!AI85 -> 77.8 | Z91: =iRegionComp!AJ85 -> 100 | AB91: =iRegionComp!AK85 -> 68.2 | AC91: =iRegionComp!AL85 -> 81.7 | AD91: =iRegionComp!AM85 -> 95.6 | AF91: =iRegionComp!AN85 -> 93.4 | AG91: =iRegionComp!AO85 -> 94.2 | AH91: =iRegionComp!AP85 -> 81.8 | AI91: =iRegionComp!AQ85 -> 77.9 | AN91: 77.8 | AO91: 95.6
B92: =IF(iRegionComp!AA86="",0,iRegionComp!AA86) -> 70 | C92: =iRegionComp!AB86 -> 0 | E92: =TRIM(iRegionComp!AC86) -> 4.2.12) Threat of civil unrest | R92: =iRegionComp!AD86 -> 74.2 | T92: =iRegionComp!AE86 -> 74.2 | V92: =iRegionComp!AF86 -> 75 | W92: =iRegionComp!AG86 -> 87.5 | X92: =iRegionComp!AH86 -> 52.8 | Y92: =iRegionComp!AI86 -> 66.7 | Z92: =iRegionComp!AJ86 -> 82.1 | AB92: =iRegionComp!AK86 -> 47.7 | AC92: =iRegionComp!AL86 -> 61.7 | AD92: =iRegionComp!AM86 -> 88.2 | AF92: =iRegionComp!AN86 -> 85.5 | AG92: =iRegionComp!AO86 -> 82.7 | AH92: =iRegionComp!AP86 -> 65.9 | AI92: =iRegionComp!AQ86 -> 60.3 | AN92: 52.8 | AO92: 88.2
B93: =IF(iRegionComp!AA87="",0,iRegionComp!AA87) -> 0 | C93: =iRegionComp!AB87 -> 0 | E93: =TRIM(iRegionComp!AC87) ->  | R93: =iRegionComp!AD87 ->  | T93: =iRegionComp!AE87 ->  | V93: =iRegionComp!AF87 ->  | W93: =iRegionComp!AG87 ->  | X93: =iRegionComp!AH87 ->  | Y93: =iRegionComp!AI87 ->  | Z93: =iRegionComp!AJ87 ->  | AB93: =iRegionComp!AK87 ->  | AC93: =iRegionComp!AL87 ->  | AD93: =iRegionComp!AM87 ->  | AF93: =iRegionComp!AN87 ->  | AG93: =iRegionComp!AO87 ->  | AH93: =iRegionComp!AP87 ->  | AI93: =iRegionComp!AQ87 ->  | AN93: 0 | AO93: 0

Sheet Scatter
B1: =uxb_works!B92 -> SAFE CITIES INDEX: 2019 | BA1: 1 | BB1: 5
A4: =uxb_works!B111 -> 1
B6: =uxb_works!$C$5 -> The active weight profile has been changed from its default setting
B8: =uxb_works!D67 -> Active filter group: All regions in all income levels with all population sizes
B11: =iScatter!G1 -> OVERALL SCORE | H11: =iScatter!G2 -> OVERALL SCORE
B12: =IF(iScatter!B1=1,"",iScatter!F1) ->  | H12: =IF(iScatter!B2=1,"",iScatter!F2) -> 1) DIGITAL SECURITY
S26: CORRELATION(X,Y)
R27: =IF(ISERROR(iScatter!B14),"n/a",iScatter!B14) -> 0.9461791912

Sheet Correlations
A1: =uxb_works!B92 -> SAFE CITIES INDEX: 2019 | BA1: 1 | BB1: 6
A4: =uxb_works!B111 -> 1
D6: =uxb_works!$C$5 -> The active weight profile has been changed from its default setting
D8: =uxb_works!D67 -> Active filter group: All regions in all income levels with all population sizes
H22: Compare
H23: =UPPER(iCorrel1!C6) -> OVERALL SCORE
H24: with *
F25: Most postive correlations | K25: Most negative correlations
E26: =MAX(G26,L26) -> 28 | G26: =MAX(COUNT(G27:G54),1) -> 28 | L26: =MAX(COUNT(L27:L54),1) -> 2
E27: =iCorrel1!N8 -> 4 | F27: =TRIM(iCorrel1!O8) -> 3) INFRASTRUCTURE SECURITY | G27: =iCorrel1!P8 -> 0.98 | J27: =iCorrel1!T8 -> 1 | K27: =TRIM(iCorrel1!U8) -> 4.2.5) Rate of drug use | L27: =iCorrel1!V8 -> -0.32
E28: =iCorrel1!N9 -> 4 | F28: =TRIM(iCorrel1!O9) -> 2) HEALTH SECURITY | G28: =iCorrel1!P9 -> 0.96 | J28: =iCorrel1!T9 -> 1 | K28: =TRIM(iCorrel1!U9) -> 2.2.6) Number of attacks using biological, chemical and/or radiological weapons | L28: =iCorrel1!V9 -> -0.16
E29: =iCorrel1!N10 -> 4 | F29: =TRIM(iCorrel1!O10) -> 2.1.6) Quality of health services | G29: =iCorrel1!P10 -> 0.96 | J29: =iCorrel1!T10 -> 0 | K29: =TRIM(iCorrel1!U10) ->  | L29: =iCorrel1!V10 -> 
E30: =iCorrel1!N11 -> 4 | F30: =TRIM(iCorrel1!O11) -> 3.2) Infrastructure security (Outputs) | G30: =iCorrel1!P11 -> 0.96 | J30: =iCorrel1!T11 -> 0 | K30: =TRIM(iCorrel1!U11) ->  | L30: =iCorrel1!V11 -> 
E31: =iCorrel1!N12 -> 4 | F31: =TRIM(iCorrel1!O12) -> 1) DIGITAL SECURITY | G31: =iCorrel1!P12 -> 0.95 | J31: =iCorrel1!T12 -> 0 | K31: =TRIM(iCorrel1!U12) ->  | L31: =iCorrel1!V12 -> 
E32: =iCorrel1!N13 -> 4 | F32: =TRIM(iCorrel1!O13) -> 3.1.3) Disaster management/business continuity plan | G32: =iCorrel1!P13 -> 0.95 | J32: =iCorrel1!T13 -> 0 | K32: =TRIM(iCorrel1!U13) ->  | L32: =iCorrel1!V13 -> 
E33: =iCorrel1!N14 -> 4 | F33: =TRIM(iCorrel1!O14) -> 1.1.1) Privacy policy | G33: =iCorrel1!P14 -> 0.93 | J33: =iCorrel1!T14 -> 0 | K33: =TRIM(iCorrel1!U14) ->  | L33: =iCorrel1!V14 -> 
E34: =iCorrel1!N15 -> 4 | F34: =TRIM(iCorrel1!O15) -> 2.1) Health security (Inputs) | G34: =iCorrel1!P15 -> 0.92 | J34: =iCorrel1!T15 -> 0 | K34: =TRIM(iCorrel1!U15) ->  | L34: =iCorrel1!V15 -> 
E35: =iCorrel1!N16 -> 4 | F35: =TRIM(iCorrel1!O16) -> 2.1.2) Access to healthcare | G35: =iCorrel1!P16 -> 0.92 | J35: =iCorrel1!T16 -> 0 | K35: =TRIM(iCorrel1!U16) ->  | L35: =iCorrel1!V16 -> 
E36: =iCorrel1!N17 -> 4 | F36: =TRIM(iCorrel1!O17) -> 3.1) Infrastructure security (Inputs) | G36: =iCorrel1!P17 -> 0.92 | J36: =iCorrel1!T17 -> 0 | K36: =TRIM(iCorrel1!U17) ->  | L36: =iCorrel1!V17 -> 
E37: =iCorrel1!N18 -> 4 | F37: =TRIM(iCorrel1!O18) -> 3.2.8) Air transport facilities | G37: =iCorrel1!P18 -> 0.92 | J37: =iCorrel1!T18 -> 0 | K37: =TRIM(iCorrel1!U18) ->  | L37: =iCorrel1!V18 -> 
E38: =iCorrel1!N19 -> 4 | F38: =TRIM(iCorrel1!O19) -> 3.2.12) Cyber security preparedness | G38: =iCorrel1!P19 -> 0.92 | J38: =iCorrel1!T19 -> 0 | K38: =TRIM(iCorrel1!U19) ->  | L38: =iCorrel1!V19 -> 
E39: =iCorrel1!N20 -> 4 | F39: =TRIM(iCorrel1!O20) -> BG1) HDI score for city or region in which city located | G39: =iCorrel1!P20 -> 0.92 | J39: =iCorrel1!T20 -> 0 | K39: =TRIM(iCorrel1!U20) ->  | L39: =iCorrel1!V20 -> 
E40: =iCorrel1!N21 -> 4 | F40: =TRIM(iCorrel1!O21) -> 4) PERSONAL SECURITY | G40: =iCorrel1!P21 -> 0.91 | J40: =iCorrel1!T21 -> 0 | K40: =TRIM(iCorrel1!U21) ->  | L40: =iCorrel1!V21 -> 
E41: =iCorrel1!N22 -> 4 | F41: =TRIM(iCorrel1!O22) -> 4.2.4) Level of corruption | G41: =iCorrel1!P22 -> 0.91 | J41: =iCorrel1!T22 -> 0 | K41: =TRIM(iCorrel1!U22) ->  | L41: =iCorrel1!V22 -> 
E42: =iCorrel1!N23 -> 4 | F42: =TRIM(iCorrel1!O23) -> 3.2.9) Road network | G42: =iCorrel1!P23 -> 0.9 | J42: =iCorrel1!T23 -> 0 | K42: =TRIM(iCorrel1!U23) ->  | L42: =iCorrel1!V23 -> 
E43: =iCorrel1!N24 -> 3 | F43: =TRIM(iCorrel1!O24) -> 2.1.1) Environmental policies | G43: =iCorrel1!P24 -> 0.89 | J43: =iCorrel1!T24 -> 0 | K43: =TRIM(iCorrel1!U24) ->  | L43: =iCorrel1!V24 -> 
E44: =iCorrel1!N25 -> 3 | F44: =TRIM(iCorrel1!O25) -> 2.2) Health security (Outputs) | G44: =iCorrel1!P25 -> 0.89 | J44: =iCorrel1!T25 -> 0 | K44: =TRIM(iCorrel1!U25) ->  | L44: =iCorrel1!V25 -> 
E45: =iCorrel1!N26 -> 3 | F45: =TRIM(iCorrel1!O26) -> 2.2.2) Water quality | G45: =iCorrel1!P26 -> 0.89 | J45: =iCorrel1!T26 -> 0 | K45: =TRIM(iCorrel1!U26) ->  | L45: =iCorrel1!V26 -> 
E46: =iCorrel1!N27 -> 3 | F46: =TRIM(iCorrel1!O27) -> 3.2.11) Rail network | G46: =iCorrel1!P27 -> 0.89 | J46: =iCorrel1!T27 -> 0 | K46: =TRIM(iCorrel1!U27) ->  | L46: =iCorrel1!V27 -> 
E47: =iCorrel1!N28 -> 3 | F47: =TRIM(iCorrel1!O28) -> BG2) Control of Corruption score for country in which city located | G47: =iCorrel1!P28 -> 0.89 | J47: =iCorrel1!T28 -> 0 | K47: =TRIM(iCorrel1!U28) ->  | L47: =iCorrel1!V28 -> 
E48: =iCorrel1!N29 -> 3 | F48: =TRIM(iCorrel1!O29) -> 1.2) Digital security (Outputs) | G48: =iCorrel1!P29 -> 0.88 | J48: =iCorrel1!T29 -> 0 | K48: =TRIM(iCorrel1!U29) ->  | L48: =iCorrel1!V29 -> 
E49: =iCorrel1!N30 -> 3 | F49: =TRIM(iCorrel1!O30) -> 4.1.4) Use of data-driven techniques for crime | G49: =iCorrel1!P30 -> 0.88 | J49: =iCorrel1!T30 -> 0 | K49: =TRIM(iCorrel1!U30) ->  | L49: =iCorrel1!V30 -> 
E50: =iCorrel1!N31 -> 3 | F50: =TRIM(iCorrel1!O31) -> 4.2) Personal security (Outputs) | G50: =iCorrel1!P31 -> 0.88 | J50: =iCorrel1!T31 -> 0 | K50: =TRIM(iCorrel1!U31) ->  | L50: =iCorrel1!V31 -> 
E51: =iCorrel1!N32 -> 3 | F51: =TRIM(iCorrel1!O32) -> 1.1) Digital security (Inputs) | G51: =iCorrel1!P32 -> 0.87 | J51: =iCorrel1!T32 -> 0 | K51: =TRIM(iCorrel1!U32) ->  | L51: =iCorrel1!V32 -> 
E52: =iCorrel1!N33 -> 3 | F52: =TRIM(iCorrel1!O33) -> 3.2.10) Power network | G52: =iCorrel1!P33 -> 0.85 | J52: =iCorrel1!T33 -> 0 | K52: =TRIM(iCorrel1!U33) ->  | L52: =iCorrel1!V33 -> 
E53: =iCorrel1!N34 -> 3 | F53: =TRIM(iCorrel1!O34) -> 4.1) Personal security (Inputs) | G53: =iCorrel1!P34 -> 0.84 | J53: =iCorrel1!T34 -> 0 | K53: =TRIM(iCorrel1!U34) ->  | L53: =iCorrel1!V34 -> 
E54: =iCorrel1!N35 -> 3 | F54: =TRIM(iCorrel1!O35) -> 1.2.3) Percentage with Internet access | G54: =iCorrel1!P35 -> 0.83 | J54: =iCorrel1!T35 -> 0 | K54: =TRIM(iCorrel1!U35) ->  | L54: =iCorrel1!V35 -> 

Sheet InputOutput
B1: =uxb_works!B92 -> SAFE CITIES INDEX: 2019 | BA1: 1 | BB1: 7
A4: =uxb_works!B111 -> 1
B6: =uxb_works!$C$5 -> The active weight profile has been changed from its default setting
B8: =uxb_works!D67 -> Active filter group: All regions in all income levels with all population sizes
B11: =iScatter2!C2 -> 3) INFRASTRUCTURE SECURITY | I11: Highlight a city to view component results
J12: =IF(uxb_works!B6=1,"<none selected>",uxb_works!C6) -> <none selected>
H13: =tblIndiSets!C505 -> 2 | I13: =tblIndiSets!E505 -> 3.1) Infrastructure security (Inputs) | J13: =tblIndiSets!F505 -> 
H14: =tblIndiSets!C506 -> 3 | I14: =tblIndiSets!E506 -> 3.1.1) Enforcement of transport safety | J14: =tblIndiSets!F506 -> 
H15: =tblIndiSets!C507 -> 3 | I15: =tblIndiSets!E507 -> 3.1.2) Pedestrian friendliness | J15: =tblIndiSets!F507 -> 
H16: =tblIndiSets!C508 -> 3 | I16: =tblIndiSets!E508 -> 3.1.3) Disaster management/business continuity plan | J16: =tblIndiSets!F508 -> 
H17: =tblIndiSets!C509 -> 0 | I17: =tblIndiSets!E509 ->  | J17: =tblIndiSets!F509 -> 
H18: =tblIndiSets!C510 -> 2 | I18: =tblIndiSets!E510 -> 3.2) Infrastructure security (Outputs) | J18: =tblIndiSets!F510 -> 
H19: =tblIndiSets!C511 -> 3 | I19: =tblIndiSets!E511 -> 3.2.1) Deaths from natural disaster | J19: =tblIndiSets!F511 -> 
H20: =tblIndiSets!C512 -> 3 | I20: =tblIndiSets!E512 -> 3.2.2) Road traffic deaths | J20: =tblIndiSets!F512 -> 
H21: =tblIndiSets!C513 -> 3 | I21: =tblIndiSets!E513 -> 3.2.3) Percentage living in slums | J21: =tblIndiSets!F513 -> 
H22: =tblIndiSets!C514 -> 3 | I22: =tblIndiSets!E514 -> 3.2.4) Number of attacks on facilities/infrastructure | J22: =tblIndiSets!F514 -> 
H23: =tblIndiSets!C515 -> 3 | I23: =tblIndiSets!E515 -> 3.2.5) Institutional capacity and access to resources | J23: =tblIndiSets!F515 -> 
H24: =tblIndiSets!C516 -> 3 | I24: =tblIndiSets!E516 -> 3.2.6) Catastrophe insurance | J24: =tblIndiSets!F516 -> 
H25: =tblIndiSets!C517 -> 3 | I25: =tblIndiSets!E517 -> 3.2.7) Disaster-risk informed development | J25: =tblIndiSets!F517 -> 
H26: =tblIndiSets!C518 -> 3 | I26: =tblIndiSets!E518 -> 3.2.8) Air transport facilities | J26: =tblIndiSets!F518 -> 
H27: =tblIndiSets!C519 -> 3 | I27: =tblIndiSets!E519 -> 3.2.9) Road network | J27: =tblIndiSets!F519 -> 
H28: =tblIndiSets!C520 -> 3 | I28: =tblIndiSets!E520 -> 3.2.10) Power network | J28: =tblIndiSets!F520 -> 
H29: =tblIndiSets!C521 -> 3 | I29: =tblIndiSets!E521 -> 3.2.11) Rail network | J29: =tblIndiSets!F521 -> 
H30: =tblIndiSets!C522 -> 3 | I30: =tblIndiSets!E522 -> 3.2.12) Cyber security preparedness | J30: =tblIndiSets!F522 -> 
H31: =tblIndiSets!C523 -> 0 | I31: =tblIndiSets!E523 ->  | J31: =tblIndiSets!F523 -> 
H32: =tblIndiSets!C524 -> 0 | I32: =tblIndiSets!E524 ->  | J32: =tblIndiSets!F524 -> 
H33: =tblIndiSets!C525 -> 0 | I33: =tblIndiSets!E525 ->  | J33: =tblIndiSets!F525 -> 
H34: =tblIndiSets!C526 -> 0 | I34: =tblIndiSets!E526 ->  | J34: =tblIndiSets!F526 -> 
H35: =tblIndiSets!C527 -> 0 | I35: =tblIndiSets!E527 ->  | J35: =tblIndiSets!F527 -> 
H36: =tblIndiSets!C528 -> 0 | I36: =tblIndiSets!E528 ->  | J36: =tblIndiSets!F528 -> 

Sheet Scores
N1: =uxb_works!$B$92 -> SAFE CITIES INDEX: 2019 | Z1: 1 | BA1: 1 | BB1: 8 | CA1: =uxb_works!B47 -> 1 | CG1: 1 | CH1: 8
Q3: 1 | R3: =Q3+1 -> 2 | S3: =R3+1 -> 3 | T3: 4 | U3: =T3+1 -> 5 | V3: =U3+1 -> 6 | W3: =V3+1 -> 7 | X3: =W3+1 -> 8 | Y3: =X3+1 -> 9 | Z3: =Y3+1 -> 10 | AA3: =Z3+1 -> 11 | AB3: =AA3+1 -> 12 | AC3: =AB3+1 -> 13 | AD3: =AC3+1 -> 14 | AE3: =AD3+1 -> 15 | AF3: =AE3+1 -> 16 | AG3: =AF3+1 -> 17 | AH3: =AG3+1 -> 18 | AI3: =AH3+1 -> 19 | AJ3: =AI3+1 -> 20 | AK3: =AJ3+1 -> 21 | AL3: =AK3+1 -> 22 | AM3: =AL3+1 -> 23 | AN3: =AM3+1 -> 24 | AO3: =AN3+1 -> 25 | AP3: =AO3+1 -> 26 | AQ3: =AP3+1 -> 27 | AR3: =AQ3+1 -> 28 | AS3: =AR3+1 -> 29 | AT3: =AS3+1 -> 30 | AU3: =AT3+1 -> 31 | AV3: =AU3+1 -> 32 | AW3: =AV3+1 -> 33 | AX3: =AW3+1 -> 34 | AY3: =AX3+1 -> 35 | AZ3: =AY3+1 -> 36 | BA3: =AZ3+1 -> 37 | BB3: =BA3+1 -> 38 | BC3: =BB3+1 -> 39 | BD3: =BC3+1 -> 40 | BE3: =BD3+1 -> 41 | BF3: =BE3+1 -> 42 | BG3: =BF3+1 -> 43 | BH3: =BG3+1 -> 44 | BI3: =BH3+1 -> 45 | BJ3: =BI3+1 -> 46 | BK3: =BJ3+1 -> 47 | BL3: =BK3+1 -> 48 | BM3: =BL3+1 -> 49 | BN3: =BM3+1 -> 50 | BO3: =BN3+1 -> 51 | BP3: =BO3+1 -> 52 | BQ3: =BP3+1 -> 53 | BR3: =BQ3+1 -> 54 | BS3: =BR3+1 -> 55 | BT3: =BS3+1 -> 56 | BU3: =BT3+1 -> 57 | BV3: =BU3+1 -> 58 | BW3: =BV3+1 -> 59 | BX3: =BW3+1 -> 60 | BY3: =BX3+1 -> 61
A4: =uxb_works!B111 -> 1 | N4: =uxb_works!O111 -> 0 | P4: 0 | Q4: =INDEX(tblTerritories!$V$3:$V$62,Scores!Q3) -> 1 | R4: =INDEX(tblTerritories!$V$3:$V$62,Scores!R3) -> 2 | S4: =INDEX(tblTerritories!$V$3:$V$62,Scores!S3) -> 3 | T4: =INDEX(tblTerritories!$V$3:$V$62,Scores!T3) -> 4 | U4: =INDEX(tblTerritories!$V$3:$V$62,Scores!U3) -> 5 | V4: =INDEX(tblTerritories!$V$3:$V$62,Scores!V3) -> 6 | W4: =INDEX(tblTerritories!$V$3:$V$62,Scores!W3) -> 7 | X4: =INDEX(tblTerritories!$V$3:$V$62,Scores!X3) -> 8 | Y4: =INDEX(tblTerritories!$V$3:$V$62,Scores!Y3) -> 9 | Z4: =INDEX(tblTerritories!$V$3:$V$62,Scores!Z3) -> 10 | AA4: =INDEX(tblTerritories!$V$3:$V$62,Scores!AA3) -> 11 | AB4: =INDEX(tblTerritories!$V$3:$V$62,Scores!AB3) -> 12 | AC4: =INDEX(tblTerritories!$V$3:$V$62,Scores!AC3) -> 13 | AD4: =INDEX(tblTerritories!$V$3:$V$62,Scores!AD3) -> 14 | AE4: =INDEX(tblTerritories!$V$3:$V$62,Scores!AE3) -> 15 | AF4: =INDEX(tblTerritories!$V$3:$V$62,Scores!AF3) -> 16 | AG4: =INDEX(tblTerritories!$V$3:$V$62,Scores!AG3) -> 17 | AH4: =INDEX(tblTerritories!$V$3:$V$62,Scores!AH3) -> 18 | AI4: =INDEX(tblTerritories!$V$3:$V$62,Scores!AI3) -> 19 | AJ4: =INDEX(tblTerritories!$V$3:$V$62,Scores!AJ3) -> 20 | AK4: =INDEX(tblTerritories!$V$3:$V$62,Scores!AK3) -> 21 | AL4: =INDEX(tblTerritories!$V$3:$V$62,Scores!AL3) -> 22 | AM4: =INDEX(tblTerritories!$V$3:$V$62,Scores!AM3) -> 23 | AN4: =INDEX(tblTerritories!$V$3:$V$62,Scores!AN3) -> 24 | AO4: =INDEX(tblTerritories!$V$3:$V$62,Scores!AO3) -> 25 | AP4: =INDEX(tblTerritories!$V$3:$V$62,Scores!AP3) -> 26 | AQ4: =INDEX(tblTerritories!$V$3:$V$62,Scores!AQ3) -> 27 | AR4: =INDEX(tblTerritories!$V$3:$V$62,Scores!AR3) -> 28 | AS4: =INDEX(tblTerritories!$V$3:$V$62,Scores!AS3) -> 29 | AT4: =INDEX(tblTerritories!$V$3:$V$62,Scores!AT3) -> 30 | AU4: =INDEX(tblTerritories!$V$3:$V$62,Scores!AU3) -> 31 | AV4: =INDEX(tblTerritories!$V$3:$V$62,Scores!AV3) -> 32 | AW4: =INDEX(tblTerritories!$V$3:$V$62,Scores!AW3) -> 33 | AX4: =INDEX(tblTerritories!$V$3:$V$62,Scores!AX3) -> 34 | AY4: =INDEX(tblTerritories!$V$3:$V$62,Scores!AY3) -> 35 | AZ4: =INDEX(tblTerritories!$V$3:$V$62,Scores!AZ3) -> 36 | BA4: =INDEX(tblTerritories!$V$3:$V$62,Scores!BA3) -> 37 | BB4: =INDEX(tblTerritories!$V$3:$V$62,Scores!BB3) -> 38 | BC4: =INDEX(tblTerritories!$V$3:$V$62,Scores!BC3) -> 39 | BD4: =INDEX(tblTerritories!$V$3:$V$62,Scores!BD3) -> 40 | BE4: =INDEX(tblTerritories!$V$3:$V$62,Scores!BE3) -> 41 | BF4: =INDEX(tblTerritories!$V$3:$V$62,Scores!BF3) -> 42 | BG4: =INDEX(tblTerritories!$V$3:$V$62,Scores!BG3) -> 43 | BH4: =INDEX(tblTerritories!$V$3:$V$62,Scores!BH3) -> 44 | BI4: =INDEX(tblTerritories!$V$3:$V$62,Scores!BI3) -> 45 | BJ4: =INDEX(tblTerritories!$V$3:$V$62,Scores!BJ3) -> 46 | BK4: =INDEX(tblTerritories!$V$3:$V$62,Scores!BK3) -> 47 | BL4: =INDEX(tblTerritories!$V$3:$V$62,Scores!BL3) -> 48 | BM4: =INDEX(tblTerritories!$V$3:$V$62,Scores!BM3) -> 49 | BN4: =INDEX(tblTerritories!$V$3:$V$62,Scores!BN3) -> 50 | BO4: =INDEX(tblTerritories!$V$3:$V$62,Scores!BO3) -> 51 | BP4: =INDEX(tblTerritories!$V$3:$V$62,Scores!BP3) -> 52 | BQ4: =INDEX(tblTerritories!$V$3:$V$62,Scores!BQ3) -> 53 | BR4: =INDEX(tblTerritories!$V$3:$V$62,Scores!BR3) -> 54 | BS4: =INDEX(tblTerritories!$V$3:$V$62,Scores!BS3) -> 55 | BT4: =INDEX(tblTerritories!$V$3:$V$62,Scores!BT3) -> 56 | BU4: =INDEX(tblTerritories!$V$3:$V$62,Scores!BU3) -> 57 | BV4: =INDEX(tblTerritories!$V$3:$V$62,Scores!BV3) -> 58 | BW4: =INDEX(tblTerritories!$V$3:$V$62,Scores!BW3) -> 59 | BX4: =INDEX(tblTerritories!$V$3:$V$62,Scores!BX3) -> 60
C6: =iWeights1!#REF! ->  | N6: =uxb_works!C5 -> The active weight profile has been changed from its default setting
N8: =uxb_works!D67 -> Active filter group: All regions in all income levels with all population sizes
B10: =tblIndicators!A1 -> line | C10: =tblIndicators!B1 -> IS_BG | F10: =tblIndicators!G1 -> DEPTH | H10: =tblIndicators!AC1 -> Format | K10: =SUM(K11:K80) -> 70 | N10: Indicators | O10: =CHOOSE(uxb_works!$B$47,"Unit","Weight") -> Unit | P10: Source | Q10: =IF(Q$4="","",INDEX(tblTerritories!$C$3:$C$62,Q$4)) -> Abu Dhabi | R10: =IF(R$4="","",INDEX(tblTerritories!$C$3:$C$62,R$4)) -> Amsterdam | S10: =IF(S$4="","",INDEX(tblTerritories!$C$3:$C$62,S$4)) -> Baku | T10: =IF(T$4="","",INDEX(tblTerritories!$C$3:$C$62,T$4)) -> Bangkok | U10: =IF(U$4="","",INDEX(tblTerritories!$C$3:$C$62,U$4)) -> Barcelona | V10: =IF(V$4="","",INDEX(tblTerritories!$C$3:$C$62,V$4)) -> Beijing | W10: =IF(W$4="","",INDEX(tblTerritories!$C$3:$C$62,W$4)) -> Bogota | X10: =IF(X$4="","",INDEX(tblTerritories!$C$3:$C$62,X$4)) -> Brussels | Y10: =IF(Y$4="","",INDEX(tblTerritories!$C$3:$C$62,Y$4)) -> Buenos Aires | Z10: =IF(Z$4="","",INDEX(tblTerritories!$C$3:$C$62,Z$4)) -> Cairo | AA10: =IF(AA$4="","",INDEX(tblTerritories!$C$3:$C$62,AA$4)) -> Caracas | AB10: =IF(AB$4="","",INDEX(tblTerritories!$C$3:$C$62,AB$4)) -> Casablanca | AC10: =IF(AC$4="","",INDEX(tblTerritories!$C$3:$C$62,AC$4)) -> Chicago | AD10: =IF(AD$4="","",INDEX(tblTerritories!$C$3:$C$62,AD$4)) -> Copenhagen | AE10: =IF(AE$4="","",INDEX(tblTerritories!$C$3:$C$62,AE$4)) -> Dallas | AF10: =IF(AF$4="","",INDEX(tblTerritories!$C$3:$C$62,AF$4)) -> Dhaka | AG10: =IF(AG$4="","",INDEX(tblTerritories!$C$3:$C$62,AG$4)) -> Dubai | AH10: =IF(AH$4="","",INDEX(tblTerritories!$C$3:$C$62,AH$4)) -> Frankfurt | AI10: =IF(AI$4="","",INDEX(tblTerritories!$C$3:$C$62,AI$4)) -> Ho Chi Minh City | AJ10: =IF(AJ$4="","",INDEX(tblTerritories!$C$3:$C$62,AJ$4)) -> Hong Kong | AK10: =IF(AK$4="","",INDEX(tblTerritories!$C$3:$C$62,AK$4)) -> Istanbul | AL10: =IF(AL$4="","",INDEX(tblTerritories!$C$3:$C$62,AL$4)) -> Jakarta | AM10: =IF(AM$4="","",INDEX(tblTerritories!$C$3:$C$62,AM$4)) -> Johannesburg | AN10: =IF(AN$4="","",INDEX(tblTerritories!$C$3:$C$62,AN$4)) -> Karachi | AO10: =IF(AO$4="","",INDEX(tblTerritories!$C$3:$C$62,AO$4)) -> Kuala Lumpur | AP10: =IF(AP$4="","",INDEX(tblTerritories!$C$3:$C$62,AP$4)) -> Kuwait city | AQ10: =IF(AQ$4="","",INDEX(tblTerritories!$C$3:$C$62,AQ$4)) -> Lagos | AR10: =IF(AR$4="","",INDEX(tblTerritories!$C$3:$C$62,AR$4)) -> Lima | AS10: =IF(AS$4="","",INDEX(tblTerritories!$C$3:$C$62,AS$4)) -> London | AT10: =IF(AT$4="","",INDEX(tblTerritories!$C$3:$C$62,AT$4)) -> Los Angeles | AU10: =IF(AU$4="","",INDEX(tblTerritories!$C$3:$C$62,AU$4)) -> Madrid | AV10: =IF(AV$4="","",INDEX(tblTerritories!$C$3:$C$62,AV$4)) -> Manila | AW10: =IF(AW$4="","",INDEX(tblTerritories!$C$3:$C$62,AW$4)) -> Melbourne | AX10: =IF(AX$4="","",INDEX(tblTerritories!$C$3:$C$62,AX$4)) -> Mexico City | AY10: =IF(AY$4="","",INDEX(tblTerritories!$C$3:$C$62,AY$4)) -> Milan | AZ10: =IF(AZ$4="","",INDEX(tblTerritories!$C$3:$C$62,AZ$4)) -> Moscow | BA10: =IF(BA$4="","",INDEX(tblTerritories!$C$3:$C$62,BA$4)) -> Mumbai | BB10: =IF(BB$4="","",INDEX(tblTerritories!$C$3:$C$62,BB$4)) -> New Delhi | BC10: =IF(BC$4="","",INDEX(tblTerritories!$C$3:$C$62,BC$4)) -> New York | BD10: =IF(BD$4="","",INDEX(tblTerritories!$C$3:$C$62,BD$4)) -> Osaka | BE10: =IF(BE$4="","",INDEX(tblTerritories!$C$3:$C$62,BE$4)) -> Paris | BF10: =IF(BF$4="","",INDEX(tblTerritories!$C$3:$C$62,BF$4)) -> Quito | BG10: =IF(BG$4="","",INDEX(tblTerritories!$C$3:$C$62,BG$4)) -> Rio de Janeiro | BH10: =IF(BH$4="","",INDEX(tblTerritories!$C$3:$C$62,BH$4)) -> Riyadh | BI10: =IF(BI$4="","",INDEX(tblTerritories!$C$3:$C$62,BI$4)) -> Rome | BJ10: =IF(BJ$4="","",INDEX(tblTerritories!$C$3:$C$62,BJ$4)) -> San Francisco | BK10: =IF(BK$4="","",INDEX(tblTerritories!$C$3:$C$62,BK$4)) -> Santiago | BL10: =IF(BL$4="","",INDEX(tblTerritories!$C$3:$C$62,BL$4)) -> Sao Paulo | BM10: =IF(BM$4="","",INDEX(tblTerritories!$C$3:$C$62,BM$4)) -> Seoul | BN10: =IF(BN$4="","",INDEX(tblTerritories!$C$3:$C$62,BN$4)) -> Shanghai | BO10: =IF(BO$4="","",INDEX(tblTerritories!$C$3:$C$62,BO$4)) -> Singapore | BP10: =IF(BP$4="","",INDEX(tblTerritories!$C$3:$C$62,BP$4)) -> Stockholm | BQ10: =IF(BQ$4="","",INDEX(tblTerritories!$C$3:$C$62,BQ$4)) -> Sydney | BR10: =IF(BR$4="","",INDEX(tblTerritories!$C$3:$C$62,BR$4)) -> Taipei | BS10: =IF(BS$4="","",INDEX(tblTerritories!$C$3:$C$62,BS$4)) -> Tokyo | BT10: =IF(BT$4="","",INDEX(tblTerritories!$C$3:$C$62,BT$4)) -> Toronto | BU10: =IF(BU$4="","",INDEX(tblTerritories!$C$3:$C$62,BU$4)) -> Washington DC | BV10: =IF(BV$4="","",INDEX(tblTerritories!$C$3:$C$62,BV$4)) -> Wellington | BW10: =IF(BW$4="","",INDEX(tblTerritories!$C$3:$C$62,BW$4)) -> Yangon | BX10: =IF(BX$4="","",INDEX(tblTerritories!$C$3:$C$62,BX$4)) -> Zurich
B11: =tblIndicators!A2 -> 1 | C11: =tblIndicators!B2 -> 0 | F11: 5 | H11: =tblIndicators!AC2 -> #,##0.0 | K11: =IF(AND(uxb_works!$B$47=2,C11=1),0,IF(uxb_works!$B$46>=L11,1,0)) -> 1 | L11: =tblIndicators!G2 -> 0 | N11: =iScores!N6 -> OVERALL SCORE | P11: =IF(tblIndicators!T2="","",IF(AND(uxb_works!$B$47=1,OR(F11=5,Scores!F11<=2)),"",tblIndicators!T2)) ->  | Q11: =IF(Q$4="","",CHOOSE(uxb_works!$B$47,IF(INDEX(aData,$B11,Q$4)="","-",TEXT(INDEX(aData,$B11,Q$4),$H11)),IF($C11=1,"",INDEX(aScores,$B11,Q$4)))) -> - | R11: =IF(R$4="","",CHOOSE(uxb_works!$B$47,IF(INDEX(aData,$B11,R$4)="","-",TEXT(INDEX(aData,$B11,R$4),$H11)),IF($C11=1,"",INDEX(aScores,$B11,R$4)))) -> - | S11: =IF(S$4="","",CHOOSE(uxb_works!$B$47,IF(INDEX(aData,$B11,S$4)="","-",TEXT(INDEX(aData,$B11,S$4),$H11)),IF($C11=1,"",INDEX(aScores,$B11,S$4)))) -> - | T11: =IF(T$4="","",CHOOSE(uxb_works!$B$47,IF(INDEX(aData,$B11,T$4)="","-",TEXT(INDEX(aData,$B11,T$4),$H11)),IF($C11=1,"",INDEX(aScores,$B11,T$4)))) -> - | U11: =IF(U$4="","",CHOOSE(uxb_works!$B$47,IF(INDEX(aData,$B11,U$4)="","-",TEXT(INDEX(aData,$B11,U$4),$H11)),IF($C11=1,"",INDEX(aScores,$B11,U$4)))) -> - | V11: =IF(V$4="","",CHOOSE(uxb_works!$B$47,IF(INDEX(aData,$B11,V$4)="","-",TEXT(INDEX(aData,$B11,V$4),$H11)),IF($C11=1,"",INDEX(aScores,$B11,V$4)))) -> - | W11: =IF(W$4="","",CHOOSE(uxb_works!$B$47,IF(INDEX(aData,$B11,W$4)="","-",TEXT(INDEX(aData,$B11,W$4),$H11)),IF($C11=1,"",INDEX(aScores,$B11,W$4)))) -> - | X11: =IF(X$4="","",CHOOSE(uxb_works!$B$47,IF(INDEX(aData,$B11,X$4)="","-",TEXT(INDEX(aData,$B11,X$4),$H11)),IF($C11=1,"",INDEX(aScores,$B11,X$4)))) -> - | Y11: =IF(Y$4="","",CHOOSE(uxb_works!$B$47,IF(INDEX(aData,$B11,Y$4)="","-",TEXT(INDEX(aData,$B11,Y$4),$H11)),IF($C11=1,"",INDEX(aScores,$B11,Y$4)))) -> - | Z11: =IF(Z$4="","",CHOOSE(uxb_works!$B$47,IF(INDEX(aData,$B11,Z$4)="","-",TEXT(INDEX(aData,$B11,Z$4),$H11)),IF($C11=1,"",INDEX(aScores,$B11,Z$4)))) -> - | AA11: =IF(AA$4="","",CHOOSE(uxb_works!$B$47,IF(INDEX(aData,$B11,AA$4)="","-",TEXT(INDEX(aData,$B11,AA$4),$H11)),IF($C11=1,"",INDEX(aScores,$B11,AA$4)))) -> - | AB11: =IF(AB$4="","",CHOOSE(uxb_works!$B$47,IF(INDEX(aData,$B11,AB$4)="","-",TEXT(INDEX(aData,$B11,AB$4),$H11)),IF($C11=1,"",INDEX(aScores,$B11,AB$4)))) -> - | AC11: =IF(AC$4="","",CHOOSE(uxb_works!$B$47,IF(INDEX(aData,$B11,AC$4)="","-",TEXT(INDEX(aData,$B11,AC$4),$H11)),IF($C11=1,"",INDEX(aScores,$B11,AC$4)))) -> - | AD11: =IF(AD$4="","",CHOOSE(uxb_works!$B$47,IF(INDEX(aData,$B11,AD$4)="","-",TEXT(INDEX(aData,$B11,AD$4),$H11)),IF($C11=1,"",INDEX(aScores,$B11,AD$4)))) -> - | AE11: =IF(AE$4="","",CHOOSE(uxb_works!$B$47,IF(INDEX(aData,$B11,AE$4)="","-",TEXT(INDEX(aData,$B11,AE$4),$H11)),IF($C11=1,"",INDEX(aScores,$B11,AE$4)))) -> - | AF11: =IF(AF$4="","",CHOOSE(uxb_works!$B$47,IF(INDEX(aData,$B11,AF$4)="","-",TEXT(INDEX(aData,$B11,AF$4),$H11)),IF($C11=1,"",INDEX(aScores,$B11,AF$4)))) -> - | AG11: =IF(AG$4="","",CHOOSE(uxb_works!$B$47,IF(INDEX(aData,$B11,AG$4)="","-",TEXT(INDEX(aData,$B11,AG$4),$H11)),IF($C11=1,"",INDEX(aScores,$B11,AG$4)))) -> - | AH11: =IF(AH$4="","",CHOOSE(uxb_works!$B$47,IF(INDEX(aData,$B11,AH$4)="","-",TEXT(INDEX(aData,$B11,AH$4),$H11)),IF($C11=1,"",INDEX(aScores,$B11,AH$4)))) -> - | AI11: =IF(AI$4="","",CHOOSE(uxb_works!$B$47,IF(INDEX(aData,$B11,AI$4)="","-",TEXT(INDEX(aData,$B11,AI$4),$H11)),IF($C11=1,"",INDEX(aScores,$B11,AI$4)))) -> - | AJ11: =IF(AJ$4="","",CHOOSE(uxb_works!$B$47,IF(INDEX(aData,$B11,AJ$4)="","-",TEXT(INDEX(aData,$B11,AJ$4),$H11)),IF($C11=1,"",INDEX(aScores,$B11,AJ$4)))) -> - | AK11: =IF(AK$4="","",CHOOSE(uxb_works!$B$47,IF(INDEX(aData,$B11,AK$4)="","-",TEXT(INDEX(aData,$B11,AK$4),$H11)),IF($C11=1,"",INDEX(aScores,$B11,AK$4)))) -> - | AL11: =IF(AL$4="","",CHOOSE(uxb_works!$B$47,IF(INDEX(aData,$B11,AL$4)="","-",TEXT(INDEX(aData,$B11,AL$4),$H11)),IF($C11=1,"",INDEX(aScores,$B11,AL$4)))) -> - | AM11: =IF(AM$4="","",CHOOSE(uxb_works!$B$47,IF(INDEX(aData,$B11,AM$4)="","-",TEXT(INDEX(aData,$B11,AM$4),$H11)),IF($C11=1,"",INDEX(aScores,$B11,AM$4)))) -> - | AN11: =IF(AN$4="","",CHOOSE(uxb_works!$B$47,IF(INDEX(aData,$B11,AN$4)="","-",TEXT(INDEX(aData,$B11,AN$4),$H11)),IF($C11=1,"",INDEX(aScores,$B11,AN$4)))) -> - | AO11: =IF(AO$4="","",CHOOSE(uxb_works!$B$47,IF(INDEX(aData,$B11,AO$4)="","-",TEXT(INDEX(aData,$B11,AO$4),$H11)),IF($C11=1,"",INDEX(aScores,$B11,AO$4)))) -> - | AP11: =IF(AP$4="","",CHOOSE(uxb_works!$B$47,IF(INDEX(aData,$B11,AP$4)="","-",TEXT(INDEX(aData,$B11,AP$4),$H11)),IF($C11=1,"",INDEX(aScores,$B11,AP$4)))) -> - | AQ11: =IF(AQ$4="","",CHOOSE(uxb_works!$B$47,IF(INDEX(aData,$B11,AQ$4)="","-",TEXT(INDEX(aData,$B11,AQ$4),$H11)),IF($C11=1,"",INDEX(aScores,$B11,AQ$4)))) -> - | AR11: =IF(AR$4="","",CHOOSE(uxb_works!$B$47,IF(INDEX(aData,$B11,AR$4)="","-",TEXT(INDEX(aData,$B11,AR$4),$H11)),IF($C11=1,"",INDEX(aScores,$B11,AR$4)))) -> - | AS11: =IF(AS$4="","",CHOOSE(uxb_works!$B$47,IF(INDEX(aData,$B11,AS$4)="","-",TEXT(INDEX(aData,$B11,AS$4),$H11)),IF($C11=1,"",INDEX(aScores,$B11,AS$4)))) -> - | AT11: =IF(AT$4="","",CHOOSE(uxb_works!$B$47,IF(INDEX(aData,$B11,AT$4)="","-",TEXT(INDEX(aData,$B11,AT$4),$H11)),IF($C11=1,"",INDEX(aScores,$B11,AT$4)))) -> - | AU11: =IF(AU$4="","",CHOOSE(uxb_works!$B$47,IF(INDEX(aData,$B11,AU$4)="","-",TEXT(INDEX(aData,$B11,AU$4),$H11)),IF($C11=1,"",INDEX(aScores,$B11,AU$4)))) -> - | AV11: =IF(AV$4="","",CHOOSE(uxb_works!$B$47,IF(INDEX(aData,$B11,AV$4)="","-",TEXT(INDEX(aData,$B11,AV$4),$H11)),IF($C11=1,"",INDEX(aScores,$B11,AV$4)))) -> - | AW11: =IF(AW$4="","",CHOOSE(uxb_works!$B$47,IF(INDEX(aData,$B11,AW$4)="","-",TEXT(INDEX(aData,$B11,AW$4),$H11)),IF($C11=1,"",INDEX(aScores,$B11,AW$4)))) -> - | AX11: =IF(AX$4="","",CHOOSE(uxb_works!$B$47,IF(INDEX(aData,$B11,AX$4)="","-",TEXT(INDEX(aData,$B11,AX$4),$H11)),IF($C11=1,"",INDEX(aScores,$B11,AX$4)))) -> - | AY11: =IF(AY$4="","",CHOOSE(uxb_works!$B$47,IF(INDEX(aData,$B11,AY$4)="","-",TEXT(INDEX(aData,$B11,AY$4),$H11)),IF($C11=1,"",INDEX(aScores,$B11,AY$4)))) -> - | AZ11: =IF(AZ$4="","",CHOOSE(uxb_works!$B$47,IF(INDEX(aData,$B11,AZ$4)="","-",TEXT(INDEX(aData,$B11,AZ$4),$H11)),IF($C11=1,"",INDEX(aScores,$B11,AZ$4)))) -> - | BA11: =IF(BA$4="","",CHOOSE(uxb_works!$B$47,IF(INDEX(aData,$B11,BA$4)="","-",TEXT(INDEX(aData,$B11,BA$4),$H11)),IF($C11=1,"",INDEX(aScores,$B11,BA$4)))) -> - | BB11: =IF(BB$4="","",CHOOSE(uxb_works!$B$47,IF(INDEX(aData,$B11,BB$4)="","-",TEXT(INDEX(aData,$B11,BB$4),$H11)),IF($C11=1,"",INDEX(aScores,$B11,BB$4)))) -> - | BC11: =IF(BC$4="","",CHOOSE(uxb_works!$B$47,IF(INDEX(aData,$B11,BC$4)="","-",TEXT(INDEX(aData,$B11,BC$4),$H11)),IF($C11=1,"",INDEX(aScores,$B11,BC$4)))) -> - | BD11: =IF(BD$4="","",CHOOSE(uxb_works!$B$47,IF(INDEX(aData,$B11,BD$4)="","-",TEXT(INDEX(aData,$B11,BD$4),$H11)),IF($C11=1,"",INDEX(aScores,$B11,BD$4)))) -> - | BE11: =IF(BE$4="","",CHOOSE(uxb_works!$B$47,IF(INDEX(aData,$B11,BE$4)="","-",TEXT(INDEX(aData,$B11,BE$4),$H11)),IF($C11=1,"",INDEX(aScores,$B11,BE$4)))) -> - | BF11: =IF(BF$4="","",CHOOSE(uxb_works!$B$47,IF(INDEX(aData,$B11,BF$4)="","-",TEXT(INDEX(aData,$B11,BF$4),$H11)),IF($C11=1,"",INDEX(aScores,$B11,BF$4)))) -> - | BG11: =IF(BG$4="","",CHOOSE(uxb_works!$B$47,IF(INDEX(aData,$B11,BG$4)="","-",TEXT(INDEX(aData,$B11,BG$4),$H11)),IF($C11=1,"",INDEX(aScores,$B11,BG$4)))) -> - | BH11: =IF(BH$4="","",CHOOSE(uxb_works!$B$47,IF(INDEX(aData,$B11,BH$4)="","-",TEXT(INDEX(aData,$B11,BH$4),$H11)),IF($C11=1,"",INDEX(aScores,$B11,BH$4)))) -> - | BI11: =IF(BI$4="","",CHOOSE(uxb_works!$B$47,IF(INDEX(aData,$B11,BI$4)="","-",TEXT(INDEX(aData,$B11,BI$4),$H11)),IF($C11=1,"",INDEX(aScores,$B11,BI$4)))) -> - | BJ11: =IF(BJ$4="","",CHOOSE(uxb_works!$B$47,IF(INDEX(aData,$B11,BJ$4)="","-",TEXT(INDEX(aData,$B11,BJ$4),$H11)),IF($C11=1,"",INDEX(aScores,$B11,BJ$4)))) -> - | BK11: =IF(BK$4="","",CHOOSE(uxb_works!$B$47,IF(INDEX(aData,$B11,BK$4)="","-",TEXT(INDEX(aData,$B11,BK$4),$H11)),IF($C11=1,"",INDEX(aScores,$B11,BK$4)))) -> - | BL11: =IF(BL$4="","",CHOOSE(uxb_works!$B$47,IF(INDEX(aData,$B11,BL$4)="","-",TEXT(INDEX(aData,$B11,BL$4),$H11)),IF($C11=1,"",INDEX(aScores,$B11,BL$4)))) -> - | BM11: =IF(BM$4="","",CHOOSE(uxb_works!$B$47,IF(INDEX(aData,$B11,BM$4)="","-",TEXT(INDEX(aData,$B11,BM$4),$H11)),IF($C11=1,"",INDEX(aScores,$B11,BM$4)))) -> - | BN11: =IF(BN$4="","",CHOOSE(uxb_works!$B$47,IF(INDEX(aData,$B11,BN$4)="","-",TEXT(INDEX(aData,$B11,BN$4),$H11)),IF($C11=1,"",INDEX(aScores,$B11,BN$4)))) -> - | BO11: =IF(BO$4="","",CHOOSE(uxb_works!$B$47,IF(INDEX(aData,$B11,BO$4)="","-",TEXT(INDEX(aData,$B11,BO$4),$H11)),IF($C11=1,"",INDEX(aScores,$B11,BO$4)))) -> - | BP11: =IF(BP$4="","",CHOOSE(uxb_works!$B$47,IF(INDEX(aData,$B11,BP$4)="","-",TEXT(INDEX(aData,$B11,BP$4),$H11)),IF($C11=1,"",INDEX(aScores,$B11,BP$4)))) -> - | BQ11: =IF(BQ$4="","",CHOOSE(uxb_works!$B$47,IF(INDEX(aData,$B11,BQ$4)="","-",TEXT(INDEX(aData,$B11,BQ$4),$H11)),IF($C11=1,"",INDEX(aScores,$B11,BQ$4)))) -> - | BR11: =IF(BR$4="","",CHOOSE(uxb_works!$B$47,IF(INDEX(aData,$B11,BR$4)="","-",TEXT(INDEX(aData,$B11,BR$4),$H11)),IF($C11=1,"",INDEX(aScores,$B11,BR$4)))) -> - | BS11: =IF(BS$4="","",CHOOSE(uxb_works!$B$47,IF(INDEX(aData,$B11,BS$4)="","-",TEXT(INDEX(aData,$B11,BS$4),$H11)),IF($C11=1,"",INDEX(aScores,$B11,BS$4)))) -> - | BT11: =IF(BT$4="","",CHOOSE(uxb_works!$B$47,IF(INDEX(aData,$B11,BT$4)="","-",TEXT(INDEX(aData,$B11,BT$4),$H11)),IF($C11=1,"",INDEX(aScores,$B11,BT$4)))) -> - | BU11: =IF(BU$4="","",CHOOSE(uxb_works!$B$47,IF(INDEX(aData,$B11,BU$4)="","-",TEXT(INDEX(aData,$B11,BU$4),$H11)),IF($C11=1,"",INDEX(aScores,$B11,BU$4)))) -> - | BV11: =IF(BV$4="","",CHOOSE(uxb_works!$B$47,IF(INDEX(aData,$B11,BV$4)="","-",TEXT(INDEX(aData,$B11,BV$4),$H11)),IF($C11=1,"",INDEX(aScores,$B11,BV$4)))) -> - | BW11: =IF(BW$4="","",CHOOSE(uxb_works!$B$47,IF(INDEX(aData,$B11,BW$4)="","-",TEXT(INDEX(aData,$B11,BW$4),$H11)),IF($C11=1,"",INDEX(aScores,$B11,BW$4)))) -> - | BX11: =IF(BX$4="","",CHOOSE(uxb_works!$B$47,IF(INDEX(aData,$B11,BX$4)="","-",TEXT(INDEX(aData,$B11,BX$4),$H11)),IF($C11=1,"",INDEX(aScores,$B11,BX$4)))) -> -
B12: =tblIndicators!A3 -> 2 | C12: =tblIndicators!B3 -> 0 | F12: =iScores!F7 -> 1 | H12: =tblIndicators!AC3 -> #,##0.0 | K12: =IF(AND(uxb_works!$B$47=2,C12=1),0,IF(uxb_works!$B$46>=L12,1,0)) -> 1 | L12: =tblIndicators!G3 -> 1 | N12: =iScores!N7 -> 1) DIGITAL SECURITY | O12: =CHOOSE(uxb_works!$B$47,iData!I7,iScores!O7) ->  | P12: =IF(tblIndicators!T3="","",IF(AND(uxb_works!$B$47=1,OR(F12=5,Scores!F12<=2)),"",tblIndicators!T3)) ->  | Q12: =IF(Q$4="","",CHOOSE(uxb_works!$B$47,IF(INDEX(aData,$B12,Q$4)="","-",TEXT(INDEX(aData,$B12,Q$4),$H12)),IF($C12=1,"",INDEX(aScores,$B12,Q$4)))) -> - | R12: =IF(R$4="","",CHOOSE(uxb_works!$B$47,IF(INDEX(aData,$B12,R$4)="","-",TEXT(INDEX(aData,$B12,R$4),$H12)),IF($C12=1,"",INDEX(aScores,$B12,R$4)))) -> - | S12: =IF(S$4="","",CHOOSE(uxb_works!$B$47,IF(INDEX(aData,$B12,S$4)="","-",TEXT(INDEX(aData,$B12,S$4),$H12)),IF($C12=1,"",INDEX(aScores,$B12,S$4)))) -> - | T12: =IF(T$4="","",CHOOSE(uxb_works!$B$47,IF(INDEX(aData,$B12,T$4)="","-",TEXT(INDEX(aData,$B12,T$4),$H12)),IF($C12=1,"",INDEX(aScores,$B12,T$4)))) -> - | U12: =IF(U$4="","",CHOOSE(uxb_works!$B$47,IF(INDEX(aData,$B12,U$4)="","-",TEXT(INDEX(aData,$B12,U$4),$H12)),IF($C12=1,"",INDEX(aScores,$B12,U$4)))) -> - | V12: =IF(V$4="","",CHOOSE(uxb_works!$B$47,IF(INDEX(aData,$B12,V$4)="","-",TEXT(INDEX(aData,$B12,V$4),$H12)),IF($C12=1,"",INDEX(aScores,$B12,V$4)))) -> - | W12: =IF(W$4="","",CHOOSE(uxb_works!$B$47,IF(INDEX(aData,$B12,W$4)="","-",TEXT(INDEX(aData,$B12,W$4),$H12)),IF($C12=1,"",INDEX(aScores,$B12,W$4)))) -> - | X12: =IF(X$4="","",CHOOSE(uxb_works!$B$47,IF(INDEX(aData,$B12,X$4)="","-",TEXT(INDEX(aData,$B12,X$4),$H12)),IF($C12=1,"",INDEX(aScores,$B12,X$4)))) -> - | Y12: =IF(Y$4="","",CHOOSE(uxb_works!$B$47,IF(INDEX(aData,$B12,Y$4)="","-",TEXT(INDEX(aData,$B12,Y$4),$H12)),IF($C12=1,"",INDEX(aScores,$B12,Y$4)))) -> - | Z12: =IF(Z$4="","",CHOOSE(uxb_works!$B$47,IF(INDEX(aData,$B12,Z$4)="","-",TEXT(INDEX(aData,$B12,Z$4),$H12)),IF($C12=1,"",INDEX(aScores,$B12,Z$4)))) -> - | AA12: =IF(AA$4="","",CHOOSE(uxb_works!$B$47,IF(INDEX(aData,$B12,AA$4)="","-",TEXT(INDEX(aData,$B12,AA$4),$H12)),IF($C12=1,"",INDEX(aScores,$B12,AA$4)))) -> - | AB12: =IF(AB$4="","",CHOOSE(uxb_works!$B$47,IF(INDEX(aData,$B12,AB$4)="","-",TEXT(INDEX(aData,$B12,AB$4),$H12)),IF($C12=1,"",INDEX(aScores,$B12,AB$4)))) -> - | AC12: =IF(AC$4="","",CHOOSE(uxb_works!$B$47,IF(INDEX(aData,$B12,AC$4)="","-",TEXT(INDEX(aData,$B12,AC$4),$H12)),IF($C12=1,"",INDEX(aScores,$B12,AC$4)))) -> - | AD12: =IF(AD$4="","",CHOOSE(uxb_works!$B$47,IF(INDEX(aData,$B12,AD$4)="","-",TEXT(INDEX(aData,$B12,AD$4),$H12)),IF($C12=1,"",INDEX(aScores,$B12,AD$4)))) -> - | AE12: =IF(AE$4="","",CHOOSE(uxb_works!$B$47,IF(INDEX(aData,$B12,AE$4)="","-",TEXT(INDEX(aData,$B12,AE$4),$H12)),IF($C12=1,"",INDEX(aScores,$B12,AE$4)))) -> - | AF12: =IF(AF$4="","",CHOOSE(uxb_works!$B$47,IF(INDEX(aData,$B12,AF$4)="","-",TEXT(INDEX(aData,$B12,AF$4),$H12)),IF($C12=1,"",INDEX(aScores,$B12,AF$4)))) -> - | AG12: =IF(AG$4="","",CHOOSE(uxb_works!$B$47,IF(INDEX(aData,$B12,AG$4)="","-",TEXT(INDEX(aData,$B12,AG$4),$H12)),IF($C12=1,"",INDEX(aScores,$B12,AG$4)))) -> - | AH12: =IF(AH$4="","",CHOOSE(uxb_works!$B$47,IF(INDEX(aData,$B12,AH$4)="","-",TEXT(INDEX(aData,$B12,AH$4),$H12)),IF($C12=1,"",INDEX(aScores,$B12,AH$4)))) -> - | AI12: =IF(AI$4="","",CHOOSE(uxb_works!$B$47,IF(INDEX(aData,$B12,AI$4)="","-",TEXT(INDEX(aData,$B12,AI$4),$H12)),IF($C12=1,"",INDEX(aScores,$B12,AI$4)))) -> - | AJ12: =IF(AJ$4="","",CHOOSE(uxb_works!$B$47,IF(INDEX(aData,$B12,AJ$4)="","-",TEXT(INDEX(aData,$B12,AJ$4),$H12)),IF($C12=1,"",INDEX(aScores,$B12,AJ$4)))) -> - | AK12: =IF(AK$4="","",CHOOSE(uxb_works!$B$47,IF(INDEX(aData,$B12,AK$4)="","-",TEXT(INDEX(aData,$B12,AK$4),$H12)),IF($C12=1,"",INDEX(aScores,$B12,AK$4)))) -> - | AL12: =IF(AL$4="","",CHOOSE(uxb_works!$B$47,IF(INDEX(aData,$B12,AL$4)="","-",TEXT(INDEX(aData,$B12,AL$4),$H12)),IF($C12=1,"",INDEX(aScores,$B12,AL$4)))) -> - | AM12: =IF(AM$4="","",CHOOSE(uxb_works!$B$47,IF(INDEX(aData,$B12,AM$4)="","-",TEXT(INDEX(aData,$B12,AM$4),$H12)),IF($C12=1,"",INDEX(aScores,$B12,AM$4)))) -> - | AN12: =IF(AN$4="","",CHOOSE(uxb_works!$B$47,IF(INDEX(aData,$B12,AN$4)="","-",TEXT(INDEX(aData,$B12,AN$4),$H12)),IF($C12=1,"",INDEX(aScores,$B12,AN$4)))) -> - | AO12: =IF(AO$4="","",CHOOSE(uxb_works!$B$47,IF(INDEX(aData,$B12,AO$4)="","-",TEXT(INDEX(aData,$B12,AO$4),$H12)),IF($C12=1,"",INDEX(aScores,$B12,AO$4)))) -> - | AP12: =IF(AP$4="","",CHOOSE(uxb_works!$B$47,IF(INDEX(aData,$B12,AP$4)="","-",TEXT(INDEX(aData,$B12,AP$4),$H12)),IF($C12=1,"",INDEX(aScores,$B12,AP$4)))) -> - | AQ12: =IF(AQ$4="","",CHOOSE(uxb_works!$B$47,IF(INDEX(aData,$B12,AQ$4)="","-",TEXT(INDEX(aData,$B12,AQ$4),$H12)),IF($C12=1,"",INDEX(aScores,$B12,AQ$4)))) -> - | AR12: =IF(AR$4="","",CHOOSE(uxb_works!$B$47,IF(INDEX(aData,$B12,AR$4)="","-",TEXT(INDEX(aData,$B12,AR$4),$H12)),IF($C12=1,"",INDEX(aScores,$B12,AR$4)))) -> - | AS12: =IF(AS$4="","",CHOOSE(uxb_works!$B$47,IF(INDEX(aData,$B12,AS$4)="","-",TEXT(INDEX(aData,$B12,AS$4),$H12)),IF($C12=1,"",INDEX(aScores,$B12,AS$4)))) -> - | AT12: =IF(AT$4="","",CHOOSE(uxb_works!$B$47,IF(INDEX(aData,$B12,AT$4)="","-",TEXT(INDEX(aData,$B12,AT$4),$H12)),IF($C12=1,"",INDEX(aScores,$B12,AT$4)))) -> - | AU12: =IF(AU$4="","",CHOOSE(uxb_works!$B$47,IF(INDEX(aData,$B12,AU$4)="","-",TEXT(INDEX(aData,$B12,AU$4),$H12)),IF($C12=1,"",INDEX(aScores,$B12,AU$4)))) -> - | AV12: =IF(AV$4="","",CHOOSE(uxb_works!$B$47,IF(INDEX(aData,$B12,AV$4)="","-",TEXT(INDEX(aData,$B12,AV$4),$H12)),IF($C12=1,"",INDEX(aScores,$B12,AV$4)))) -> - | AW12: =IF(AW$4="","",CHOOSE(uxb_works!$B$47,IF(INDEX(aData,$B12,AW$4)="","-",TEXT(INDEX(aData,$B12,AW$4),$H12)),IF($C12=1,"",INDEX(aScores,$B12,AW$4)))) -> - | AX12: =IF(AX$4="","",CHOOSE(uxb_works!$B$47,IF(INDEX(aData,$B12,AX$4)="","-",TEXT(INDEX(aData,$B12,AX$4),$H12)),IF($C12=1,"",INDEX(aScores,$B12,AX$4)))) -> - | AY12: =IF(AY$4="","",CHOOSE(uxb_works!$B$47,IF(INDEX(aData,$B12,AY$4)="","-",TEXT(INDEX(aData,$B12,AY$4),$H12)),IF($C12=1,"",INDEX(aScores,$B12,AY$4)))) -> - | AZ12: =IF(AZ$4="","",CHOOSE(uxb_works!$B$47,IF(INDEX(aData,$B12,AZ$4)="","-",TEXT(INDEX(aData,$B12,AZ$4),$H12)),IF($C12=1,"",INDEX(aScores,$B12,AZ$4)))) -> - | BA12: =IF(BA$4="","",CHOOSE(uxb_works!$B$47,IF(INDEX(aData,$B12,BA$4)="","-",TEXT(INDEX(aData,$B12,BA$4),$H12)),IF($C12=1,"",INDEX(aScores,$B12,BA$4)))) -> - | BB12: =IF(BB$4="","",CHOOSE(uxb_works!$B$47,IF(INDEX(aData,$B12,BB$4)="","-",TEXT(INDEX(aData,$B12,BB$4),$H12)),IF($C12=1,"",INDEX(aScores,$B12,BB$4)))) -> - | BC12: =IF(BC$4="","",CHOOSE(uxb_works!$B$47,IF(INDEX(aData,$B12,BC$4)="","-",TEXT(INDEX(aData,$B12,BC$4),$H12)),IF($C12=1,"",INDEX(aScores,$B12,BC$4)))) -> - | BD12: =IF(BD$4="","",CHOOSE(uxb_works!$B$47,IF(INDEX(aData,$B12,BD$4)="","-",TEXT(INDEX(aData,$B12,BD$4),$H12)),IF($C12=1,"",INDEX(aScores,$B12,BD$4)))) -> - | BE12: =IF(BE$4="","",CHOOSE(uxb_works!$B$47,IF(INDEX(aData,$B12,BE$4)="","-",TEXT(INDEX(aData,$B12,BE$4),$H12)),IF($C12=1,"",INDEX(aScores,$B12,BE$4)))) -> - | BF12: =IF(BF$4="","",CHOOSE(uxb_works!$B$47,IF(INDEX(aData,$B12,BF$4)="","-",TEXT(INDEX(aData,$B12,BF$4),$H12)),IF($C12=1,"",INDEX(aScores,$B12,BF$4)))) -> - | BG12: =IF(BG$4="","",CHOOSE(uxb_works!$B$47,IF(INDEX(aData,$B12,BG$4)="","-",TEXT(INDEX(aData,$B12,BG$4),$H12)),IF($C12=1,"",INDEX(aScores,$B12,BG$4)))) -> - | BH12: =IF(BH$4="","",CHOOSE(uxb_works!$B$47,IF(INDEX(aData,$B12,BH$4)="","-",TEXT(INDEX(aData,$B12,BH$4),$H12)),IF($C12=1,"",INDEX(aScores,$B12,BH$4)))) -> - | BI12: =IF(BI$4="","",CHOOSE(uxb_works!$B$47,IF(INDEX(aData,$B12,BI$4)="","-",TEXT(INDEX(aData,$B12,BI$4),$H12)),IF($C12=1,"",INDEX(aScores,$B12,BI$4)))) -> - | BJ12: =IF(BJ$4="","",CHOOSE(uxb_works!$B$47,IF(INDEX(aData,$B12,BJ$4)="","-",TEXT(INDEX(aData,$B12,BJ$4),$H12)),IF($C12=1,"",INDEX(aScores,$B12,BJ$4)))) -> - | BK12: =IF(BK$4="","",CHOOSE(uxb_works!$B$47,IF(INDEX(aData,$B12,BK$4)="","-",TEXT(INDEX(aData,$B12,BK$4),$H12)),IF($C12=1,"",INDEX(aScores,$B12,BK$4)))) -> - | BL12: =IF(BL$4="","",CHOOSE(uxb_works!$B$47,IF(INDEX(aData,$B12,BL$4)="","-",TEXT(INDEX(aData,$B12,BL$4),$H12)),IF($C12=1,"",INDEX(aScores,$B12,BL$4)))) -> - | BM12: =IF(BM$4="","",CHOOSE(uxb_works!$B$47,IF(INDEX(aData,$B12,BM$4)="","-",TEXT(INDEX(aData,$B12,BM$4),$H12)),IF($C12=1,"",INDEX(aScores,$B12,BM$4)))) -> - | BN12: =IF(BN$4="","",CHOOSE(uxb_works!$B$47,IF(INDEX(aData,$B12,BN$4)="","-",TEXT(INDEX(aData,$B12,BN$4),$H12)),IF($C12=1,"",INDEX(aScores,$B12,BN$4)))) -> - | BO12: =IF(BO$4="","",CHOOSE(uxb_works!$B$47,IF(INDEX(aData,$B12,BO$4)="","-",TEXT(INDEX(aData,$B12,BO$4),$H12)),IF($C12=1,"",INDEX(aScores,$B12,BO$4)))) -> - | BP12: =IF(BP$4="","",CHOOSE(uxb_works!$B$47,IF(INDEX(aData,$B12,BP$4)="","-",TEXT(INDEX(aData,$B12,BP$4),$H12)),IF($C12=1,"",INDEX(aScores,$B12,BP$4)))) -> - | BQ12: =IF(BQ$4="","",CHOOSE(uxb_works!$B$47,IF(INDEX(aData,$B12,BQ$4)="","-",TEXT(INDEX(aData,$B12,BQ$4),$H12)),IF($C12=1,"",INDEX(aScores,$B12,BQ$4)))) -> - | BR12: =IF(BR$4="","",CHOOSE(uxb_works!$B$47,IF(INDEX(aData,$B12,BR$4)="","-",TEXT(INDEX(aData,$B12,BR$4),$H12)),IF($C12=1,"",INDEX(aScores,$B12,BR$4)))) -> - | BS12: =IF(BS$4="","",CHOOSE(uxb_works!$B$47,IF(INDEX(aData,$B12,BS$4)="","-",TEXT(INDEX(aData,$B12,BS$4),$H12)),IF($C12=1,"",INDEX(aScores,$B12,BS$4)))) -> - | BT12: =IF(BT$4="","",CHOOSE(uxb_works!$B$47,IF(INDEX(aData,$B12,BT$4)="","-",TEXT(INDEX(aData,$B12,BT$4),$H12)),IF($C12=1,"",INDEX(aScores,$B12,BT$4)))) -> - | BU12: =IF(BU$4="","",CHOOSE(uxb_works!$B$47,IF(INDEX(aData,$B12,BU$4)="","-",TEXT(INDEX(aData,$B12,BU$4),$H12)),IF($C12=1,"",INDEX(aScores,$B12,BU$4)))) -> - | BV12: =IF(BV$4="","",CHOOSE(uxb_works!$B$47,IF(INDEX(aData,$B12,BV$4)="","-",TEXT(INDEX(aData,$B12,BV$4),$H12)),IF($C12=1,"",INDEX(aScores,$B12,BV$4)))) -> - | BW12: =IF(BW$4="","",CHOOSE(uxb_works!$B$47,IF(INDEX(aData,$B12,BW$4)="","-",TEXT(INDEX(aData,$B12,BW$4),$H12)),IF($C12=1,"",INDEX(aScores,$B12,BW$4)))) -> - | BX12: =IF(BX$4="","",CHOOSE(uxb_works!$B$47,IF(INDEX(aData,$B12,BX$4)="","-",TEXT(INDEX(aData,$B12,BX$4),$H12)),IF($C12=1,"",INDEX(aScores,$B12,BX$4)))) -> -
B13: =tblIndicators!A4 -> 3 | C13: =tblIndicators!B4 -> 0 | F13: =iScores!F8 -> 2 | H13: =tblIndicators!AC4 -> #,##0.0 | K13: =IF(AND(uxb_works!$B$47=2,C13=1),0,IF(uxb_works!$B$46>=L13,1,0)) -> 1 | L13: =tblIndicators!G4 -> 2 | N13: =iScores!N8 -> 1.1) Digital security (Inputs) | O13: =CHOOSE(uxb_works!$B$47,iData!I8,iScores!O8) ->  | P13: =IF(tblIndicators!T4="","",IF(AND(uxb_works!$B$47=1,OR(F13=5,Scores!F13<=2)),"",tblIndicators!T4)) ->  | Q13: =IF(Q$4="","",CHOOSE(uxb_works!$B$47,IF(INDEX(aData,$B13,Q$4)="","-",TEXT(INDEX(aData,$B13,Q$4),$H13)),IF($C13=1,"",INDEX(aScores,$B13,Q$4)))) -> - | R13: =IF(R$4="","",CHOOSE(uxb_works!$B$47,IF(INDEX(aData,$B13,R$4)="","-",TEXT(INDEX(aData,$B13,R$4),$H13)),IF($C13=1,"",INDEX(aScores,$B13,R$4)))) -> - | S13: =IF(S$4="","",CHOOSE(uxb_works!$B$47,IF(INDEX(aData,$B13,S$4)="","-",TEXT(INDEX(aData,$B13,S$4),$H13)),IF($C13=1,"",INDEX(aScores,$B13,S$4)))) -> - | T13: =IF(T$4="","",CHOOSE(uxb_works!$B$47,IF(INDEX(aData,$B13,T$4)="","-",TEXT(INDEX(aData,$B13,T$4),$H13)),IF($C13=1,"",INDEX(aScores,$B13,T$4)))) -> - | U13: =IF(U$4="","",CHOOSE(uxb_works!$B$47,IF(INDEX(aData,$B13,U$4)="","-",TEXT(INDEX(aData,$B13,U$4),$H13)),IF($C13=1,"",INDEX(aScores,$B13,U$4)))) -> - | V13: =IF(V$4="","",CHOOSE(uxb_works!$B$47,IF(INDEX(aData,$B13,V$4)="","-",TEXT(INDEX(aData,$B13,V$4),$H13)),IF($C13=1,"",INDEX(aScores,$B13,V$4)))) -> - | W13: =IF(W$4="","",CHOOSE(uxb_works!$B$47,IF(INDEX(aData,$B13,W$4)="","-",TEXT(INDEX(aData,$B13,W$4),$H13)),IF($C13=1,"",INDEX(aScores,$B13,W$4)))) -> - | X13: =IF(X$4="","",CHOOSE(uxb_works!$B$47,IF(INDEX(aData,$B13,X$4)="","-",TEXT(INDEX(aData,$B13,X$4),$H13)),IF($C13=1,"",INDEX(aScores,$B13,X$4)))) -> - | Y13: =IF(Y$4="","",CHOOSE(uxb_works!$B$47,IF(INDEX(aData,$B13,Y$4)="","-",TEXT(INDEX(aData,$B13,Y$4),$H13)),IF($C13=1,"",INDEX(aScores,$B13,Y$4)))) -> - | Z13: =IF(Z$4="","",CHOOSE(uxb_works!$B$47,IF(INDEX(aData,$B13,Z$4)="","-",TEXT(INDEX(aData,$B13,Z$4),$H13)),IF($C13=1,"",INDEX(aScores,$B13,Z$4)))) -> - | AA13: =IF(AA$4="","",CHOOSE(uxb_works!$B$47,IF(INDEX(aData,$B13,AA$4)="","-",TEXT(INDEX(aData,$B13,AA$4),$H13)),IF($C13=1,"",INDEX(aScores,$B13,AA$4)))) -> - | AB13: =IF(AB$4="","",CHOOSE(uxb_works!$B$47,IF(INDEX(aData,$B13,AB$4)="","-",TEXT(INDEX(aData,$B13,AB$4),$H13)),IF($C13=1,"",INDEX(aScores,$B13,AB$4)))) -> - | AC13: =IF(AC$4="","",CHOOSE(uxb_works!$B$47,IF(INDEX(aData,$B13,AC$4)="","-",TEXT(INDEX(aData,$B13,AC$4),$H13)),IF($C13=1,"",INDEX(aScores,$B13,AC$4)))) -> - | AD13: =IF(AD$4="","",CHOOSE(uxb_works!$B$47,IF(INDEX(aData,$B13,AD$4)="","-",TEXT(INDEX(aData,$B13,AD$4),$H13)),IF($C13=1,"",INDEX(aScores,$B13,AD$4)))) -> - | AE13: =IF(AE$4="","",CHOOSE(uxb_works!$B$47,IF(INDEX(aData,$B13,AE$4)="","-",TEXT(INDEX(aData,$B13,AE$4),$H13)),IF($C13=1,"",INDEX(aScores,$B13,AE$4)))) -> - | AF13: =IF(AF$4="","",CHOOSE(uxb_works!$B$47,IF(INDEX(aData,$B13,AF$4)="","-",TEXT(INDEX(aData,$B13,AF$4),$H13)),IF($C13=1,"",INDEX(aScores,$B13,AF$4)))) -> - | AG13: =IF(AG$4="","",CHOOSE(uxb_works!$B$47,IF(INDEX(aData,$B13,AG$4)="","-",TEXT(INDEX(aData,$B13,AG$4),$H13)),IF($C13=1,"",INDEX(aScores,$B13,AG$4)))) -> - | AH13: =IF(AH$4="","",CHOOSE(uxb_works!$B$47,IF(INDEX(aData,$B13,AH$4)="","-",TEXT(INDEX(aData,$B13,AH$4),$H13)),IF($C13=1,"",INDEX(aScores,$B13,AH$4)))) -> - | AI13: =IF(AI$4="","",CHOOSE(uxb_works!$B$47,IF(INDEX(aData,$B13,AI$4)="","-",TEXT(INDEX(aData,$B13,AI$4),$H13)),IF($C13=1,"",INDEX(aScores,$B13,AI$4)))) -> - | AJ13: =IF(AJ$4="","",CHOOSE(uxb_works!$B$47,IF(INDEX(aData,$B13,AJ$4)="","-",TEXT(INDEX(aData,$B13,AJ$4),$H13)),IF($C13=1,"",INDEX(aScores,$B13,AJ$4)))) -> - | AK13: =IF(AK$4="","",CHOOSE(uxb_works!$B$47,IF(INDEX(aData,$B13,AK$4)="","-",TEXT(INDEX(aData,$B13,AK$4),$H13)),IF($C13=1,"",INDEX(aScores,$B13,AK$4)))) -> - | AL13: =IF(AL$4="","",CHOOSE(uxb_works!$B$47,IF(INDEX(aData,$B13,AL$4)="","-",TEXT(INDEX(aData,$B13,AL$4),$H13)),IF($C13=1,"",INDEX(aScores,$B13,AL$4)))) -> - | AM13: =IF(AM$4="","",CHOOSE(uxb_works!$B$47,IF(INDEX(aData,$B13,AM$4)="","-",TEXT(INDEX(aData,$B13,AM$4),$H13)),IF($C13=1,"",INDEX(aScores,$B13,AM$4)))) -> - | AN13: =IF(AN$4="","",CHOOSE(uxb_works!$B$47,IF(INDEX(aData,$B13,AN$4)="","-",TEXT(INDEX(aData,$B13,AN$4),$H13)),IF($C13=1,"",INDEX(aScores,$B13,AN$4)))) -> - | AO13: =IF(AO$4="","",CHOOSE(uxb_works!$B$47,IF(INDEX(aData,$B13,AO$4)="","-",TEXT(INDEX(aData,$B13,AO$4),$H13)),IF($C13=1,"",INDEX(aScores,$B13,AO$4)))) -> - | AP13: =IF(AP$4="","",CHOOSE(uxb_works!$B$47,IF(INDEX(aData,$B13,AP$4)="","-",TEXT(INDEX(aData,$B13,AP$4),$H13)),IF($C13=1,"",INDEX(aScores,$B13,AP$4)))) -> - | AQ13: =IF(AQ$4="","",CHOOSE(uxb_works!$B$47,IF(INDEX(aData,$B13,AQ$4)="","-",TEXT(INDEX(aData,$B13,AQ$4),$H13)),IF($C13=1,"",INDEX(aScores,$B13,AQ$4)))) -> - | AR13: =IF(AR$4="","",CHOOSE(uxb_works!$B$47,IF(INDEX(aData,$B13,AR$4)="","-",TEXT(INDEX(aData,$B13,AR$4),$H13)),IF($C13=1,"",INDEX(aScores,$B13,AR$4)))) -> - | AS13: =IF(AS$4="","",CHOOSE(uxb_works!$B$47,IF(INDEX(aData,$B13,AS$4)="","-",TEXT(INDEX(aData,$B13,AS$4),$H13)),IF($C13=1,"",INDEX(aScores,$B13,AS$4)))) -> - | AT13: =IF(AT$4="","",CHOOSE(uxb_works!$B$47,IF(INDEX(aData,$B13,AT$4)="","-",TEXT(INDEX(aData,$B13,AT$4),$H13)),IF($C13=1,"",INDEX(aScores,$B13,AT$4)))) -> - | AU13: =IF(AU$4="","",CHOOSE(uxb_works!$B$47,IF(INDEX(aData,$B13,AU$4)="","-",TEXT(INDEX(aData,$B13,AU$4),$H13)),IF($C13=1,"",INDEX(aScores,$B13,AU$4)))) -> - | AV13: =IF(AV$4="","",CHOOSE(uxb_works!$B$47,IF(INDEX(aData,$B13,AV$4)="","-",TEXT(INDEX(aData,$B13,AV$4),$H13)),IF($C13=1,"",INDEX(aScores,$B13,AV$4)))) -> - | AW13: =IF(AW$4="","",CHOOSE(uxb_works!$B$47,IF(INDEX(aData,$B13,AW$4)="","-",TEXT(INDEX(aData,$B13,AW$4),$H13)),IF($C13=1,"",INDEX(aScores,$B13,AW$4)))) -> - | AX13: =IF(AX$4="","",CHOOSE(uxb_works!$B$47,IF(INDEX(aData,$B13,AX$4)="","-",TEXT(INDEX(aData,$B13,AX$4),$H13)),IF($C13=1,"",INDEX(aScores,$B13,AX$4)))) -> - | AY13: =IF(AY$4="","",CHOOSE(uxb_works!$B$47,IF(INDEX(aData,$B13,AY$4)="","-",TEXT(INDEX(aData,$B13,AY$4),$H13)),IF($C13=1,"",INDEX(aScores,$B13,AY$4)))) -> - | AZ13: =IF(AZ$4="","",CHOOSE(uxb_works!$B$47,IF(INDEX(aData,$B13,AZ$4)="","-",TEXT(INDEX(aData,$B13,AZ$4),$H13)),IF($C13=1,"",INDEX(aScores,$B13,AZ$4)))) -> - | BA13: =IF(BA$4="","",CHOOSE(uxb_works!$B$47,IF(INDEX(aData,$B13,BA$4)="","-",TEXT(INDEX(aData,$B13,BA$4),$H13)),IF($C13=1,"",INDEX(aScores,$B13,BA$4)))) -> - | BB13: =IF(BB$4="","",CHOOSE(uxb_works!$B$47,IF(INDEX(aData,$B13,BB$4)="","-",TEXT(INDEX(aData,$B13,BB$4),$H13)),IF($C13=1,"",INDEX(aScores,$B13,BB$4)))) -> - | BC13: =IF(BC$4="","",CHOOSE(uxb_works!$B$47,IF(INDEX(aData,$B13,BC$4)="","-",TEXT(INDEX(aData,$B13,BC$4),$H13)),IF($C13=1,"",INDEX(aScores,$B13,BC$4)))) -> - | BD13: =IF(BD$4="","",CHOOSE(uxb_works!$B$47,IF(INDEX(aData,$B13,BD$4)="","-",TEXT(INDEX(aData,$B13,BD$4),$H13)),IF($C13=1,"",INDEX(aScores,$B13,BD$4)))) -> - | BE13: =IF(BE$4="","",CHOOSE(uxb_works!$B$47,IF(INDEX(aData,$B13,BE$4)="","-",TEXT(INDEX(aData,$B13,BE$4),$H13)),IF($C13=1,"",INDEX(aScores,$B13,BE$4)))) -> - | BF13: =IF(BF$4="","",CHOOSE(uxb_works!$B$47,IF(INDEX(aData,$B13,BF$4)="","-",TEXT(INDEX(aData,$B13,BF$4),$H13)),IF($C13=1,"",INDEX(aScores,$B13,BF$4)))) -> - | BG13: =IF(BG$4="","",CHOOSE(uxb_works!$B$47,IF(INDEX(aData,$B13,BG$4)="","-",TEXT(INDEX(aData,$B13,BG$4),$H13)),IF($C13=1,"",INDEX(aScores,$B13,BG$4)))) -> - | BH13: =IF(BH$4="","",CHOOSE(uxb_works!$B$47,IF(INDEX(aData,$B13,BH$4)="","-",TEXT(INDEX(aData,$B13,BH$4),$H13)),IF($C13=1,"",INDEX(aScores,$B13,BH$4)))) -> - | BI13: =IF(BI$4="","",CHOOSE(uxb_works!$B$47,IF(INDEX(aData,$B13,BI$4)="","-",TEXT(INDEX(aData,$B13,BI$4),$H13)),IF($C13=1,"",INDEX(aScores,$B13,BI$4)))) -> - | BJ13: =IF(BJ$4="","",CHOOSE(uxb_works!$B$47,IF(INDEX(aData,$B13,BJ$4)="","-",TEXT(INDEX(aData,$B13,BJ$4),$H13)),IF($C13=1,"",INDEX(aScores,$B13,BJ$4)))) -> - | BK13: =IF(BK$4="","",CHOOSE(uxb_works!$B$47,IF(INDEX(aData,$B13,BK$4)="","-",TEXT(INDEX(aData,$B13,BK$4),$H13)),IF($C13=1,"",INDEX(aScores,$B13,BK$4)))) -> - | BL13: =IF(BL$4="","",CHOOSE(uxb_works!$B$47,IF(INDEX(aData,$B13,BL$4)="","-",TEXT(INDEX(aData,$B13,BL$4),$H13)),IF($C13=1,"",INDEX(aScores,$B13,BL$4)))) -> - | BM13: =IF(BM$4="","",CHOOSE(uxb_works!$B$47,IF(INDEX(aData,$B13,BM$4)="","-",TEXT(INDEX(aData,$B13,BM$4),$H13)),IF($C13=1,"",INDEX(aScores,$B13,BM$4)))) -> - | BN13: =IF(BN$4="","",CHOOSE(uxb_works!$B$47,IF(INDEX(aData,$B13,BN$4)="","-",TEXT(INDEX(aData,$B13,BN$4),$H13)),IF($C13=1,"",INDEX(aScores,$B13,BN$4)))) -> - | BO13: =IF(BO$4="","",CHOOSE(uxb_works!$B$47,IF(INDEX(aData,$B13,BO$4)="","-",TEXT(INDEX(aData,$B13,BO$4),$H13)),IF($C13=1,"",INDEX(aScores,$B13,BO$4)))) -> - | BP13: =IF(BP$4="","",CHOOSE(uxb_works!$B$47,IF(INDEX(aData,$B13,BP$4)="","-",TEXT(INDEX(aData,$B13,BP$4),$H13)),IF($C13=1,"",INDEX(aScores,$B13,BP$4)))) -> - | BQ13: =IF(BQ$4="","",CHOOSE(uxb_works!$B$47,IF(INDEX(aData,$B13,BQ$4)="","-",TEXT(INDEX(aData,$B13,BQ$4),$H13)),IF($C13=1,"",INDEX(aScores,$B13,BQ$4)))) -> - | BR13: =IF(BR$4="","",CHOOSE(uxb_works!$B$47,IF(INDEX(aData,$B13,BR$4)="","-",TEXT(INDEX(aData,$B13,BR$4),$H13)),IF($C13=1,"",INDEX(aScores,$B13,BR$4)))) -> - | BS13: =IF(BS$4="","",CHOOSE(uxb_works!$B$47,IF(INDEX(aData,$B13,BS$4)="","-",TEXT(INDEX(aData,$B13,BS$4),$H13)),IF($C13=1,"",INDEX(aScores,$B13,BS$4)))) -> - | BT13: =IF(BT$4="","",CHOOSE(uxb_works!$B$47,IF(INDEX(aData,$B13,BT$4)="","-",TEXT(INDEX(aData,$B13,BT$4),$H13)),IF($C13=1,"",INDEX(aScores,$B13,BT$4)))) -> - | BU13: =IF(BU$4="","",CHOOSE(uxb_works!$B$47,IF(INDEX(aData,$B13,BU$4)="","-",TEXT(INDEX(aData,$B13,BU$4),$H13)),IF($C13=1,"",INDEX(aScores,$B13,BU$4)))) -> - | BV13: =IF(BV$4="","",CHOOSE(uxb_works!$B$47,IF(INDEX(aData,$B13,BV$4)="","-",TEXT(INDEX(aData,$B13,BV$4),$H13)),IF($C13=1,"",INDEX(aScores,$B13,BV$4)))) -> - | BW13: =IF(BW$4="","",CHOOSE(uxb_works!$B$47,IF(INDEX(aData,$B13,BW$4)="","-",TEXT(INDEX(aData,$B13,BW$4),$H13)),IF($C13=1,"",INDEX(aScores,$B13,BW$4)))) -> - | BX13: =IF(BX$4="","",CHOOSE(uxb_works!$B$47,IF(INDEX(aData,$B13,BX$4)="","-",TEXT(INDEX(aData,$B13,BX$4),$H13)),IF($C13=1,"",INDEX(aScores,$B13,BX$4)))) -> -
B14: =tblIndicators!A5 -> 4 | C14: =tblIndicators!B5 -> 0 | F14: =iScores!F9 -> 3 | H14: =tblIndicators!AC5 -> #0 | K14: =IF(AND(uxb_works!$B$47=2,C14=1),0,IF(uxb_works!$B$46>=L14,1,0)) -> 1 | L14: =tblIndicators!G5 -> 3 | N14: =iScores!N9 -> 1.1.1) Privacy policy | O14: =CHOOSE(uxb_works!$B$47,iData!I9,iScores!O9) -> Scale 1 - 5 | P14: =IF(tblIndicators!T5="","",IF(AND(uxb_works!$B$47=1,OR(F14=5,Scores!F14<=2)),"",tblIndicators!T5)) ->  | Q14: =IF(Q$4="","",CHOOSE(uxb_works!$B$47,IF(INDEX(aData,$B14,Q$4)="","-",TEXT(INDEX(aData,$B14,Q$4),$H14)),IF($C14=1,"",INDEX(aScores,$B14,Q$4)))) -> 4 | R14: =IF(R$4="","",CHOOSE(uxb_works!$B$47,IF(INDEX(aData,$B14,R$4)="","-",TEXT(INDEX(aData,$B14,R$4),$H14)),IF($C14=1,"",INDEX(aScores,$B14,R$4)))) -> 5 | S14: =IF(S$4="","",CHOOSE(uxb_works!$B$47,IF(INDEX(aData,$B14,S$4)="","-",TEXT(INDEX(aData,$B14,S$4),$H14)),IF($C14=1,"",INDEX(aScores,$B14,S$4)))) -> 3 | T14: =IF(T$4="","",CHOOSE(uxb_works!$B$47,IF(INDEX(aData,$B14,T$4)="","-",TEXT(INDEX(aData,$B14,T$4),$H14)),IF($C14=1,"",INDEX(aScores,$B14,T$4)))) -> 3 | U14: =IF(U$4="","",CHOOSE(uxb_works!$B$47,IF(INDEX(aData,$B14,U$4)="","-",TEXT(INDEX(aData,$B14,U$4),$H14)),IF($C14=1,"",INDEX(aScores,$B14,U$4)))) -> 5 | V14: =IF(V$4="","",CHOOSE(uxb_works!$B$47,IF(INDEX(aData,$B14,V$4)="","-",TEXT(INDEX(aData,$B14,V$4),$H14)),IF($C14=1,"",INDEX(aScores,$B14,V$4)))) -> 4 | W14: =IF(W$4="","",CHOOSE(uxb_works!$B$47,IF(INDEX(aData,$B14,W$4)="","-",TEXT(INDEX(aData,$B14,W$4),$H14)),IF($C14=1,"",INDEX(aScores,$B14,W$4)))) -> 3 | X14: =IF(X$4="","",CHOOSE(uxb_works!$B$47,IF(INDEX(aData,$B14,X$4)="","-",TEXT(INDEX(aData,$B14,X$4),$H14)),IF($C14=1,"",INDEX(aScores,$B14,X$4)))) -> 5 | Y14: =IF(Y$4="","",CHOOSE(uxb_works!$B$47,IF(INDEX(aData,$B14,Y$4)="","-",TEXT(INDEX(aData,$B14,Y$4),$H14)),IF($C14=1,"",INDEX(aScores,$B14,Y$4)))) -> 4 | Z14: =IF(Z$4="","",CHOOSE(uxb_works!$B$47,IF(INDEX(aData,$B14,Z$4)="","-",TEXT(INDEX(aData,$B14,Z$4),$H14)),IF($C14=1,"",INDEX(aScores,$B14,Z$4)))) -> 3 | AA14: =IF(AA$4="","",CHOOSE(uxb_works!$B$47,IF(INDEX(aData,$B14,AA$4)="","-",TEXT(INDEX(aData,$B14,AA$4),$H14)),IF($C14=1,"",INDEX(aScores,$B14,AA$4)))) -> 2 | AB14: =IF(AB$4="","",CHOOSE(uxb_works!$B$47,IF(INDEX(aData,$B14,AB$4)="","-",TEXT(INDEX(aData,$B14,AB$4),$H14)),IF($C14=1,"",INDEX(aScores,$B14,AB$4)))) -> 3 | AC14: =IF(AC$4="","",CHOOSE(uxb_works!$B$47,IF(INDEX(aData,$B14,AC$4)="","-",TEXT(INDEX(aData,$B14,AC$4),$H14)),IF($C14=1,"",INDEX(aScores,$B14,AC$4)))) -> 5 | AD14: =IF(AD$4="","",CHOOSE(uxb_works!$B$47,IF(INDEX(aData,$B14,AD$4)="","-",TEXT(INDEX(aData,$B14,AD$4),$H14)),IF($C14=1,"",INDEX(aScores,$B14,AD$4)))) -> 5 | AE14: =IF(AE$4="","",CHOOSE(uxb_works!$B$47,IF(INDEX(aData,$B14,AE$4)="","-",TEXT(INDEX(aData,$B14,AE$4),$H14)),IF($C14=1,"",INDEX(aScores,$B14,AE$4)))) -> 5 | AF14: =IF(AF$4="","",CHOOSE(uxb_works!$B$47,IF(INDEX(aData,$B14,AF$4)="","-",TEXT(INDEX(aData,$B14,AF$4),$H14)),IF($C14=1,"",INDEX(aScores,$B14,AF$4)))) -> 3 | AG14: =IF(AG$4="","",CHOOSE(uxb_works!$B$47,IF(INDEX(aData,$B14,AG$4)="","-",TEXT(INDEX(aData,$B14,AG$4),$H14)),IF($C14=1,"",INDEX(aScores,$B14,AG$4)))) -> 4 | AH14: =IF(AH$4="","",CHOOSE(uxb_works!$B$47,IF(INDEX(aData,$B14,AH$4)="","-",TEXT(INDEX(aData,$B14,AH$4),$H14)),IF($C14=1,"",INDEX(aScores,$B14,AH$4)))) -> 5 | AI14: =IF(AI$4="","",CHOOSE(uxb_works!$B$47,IF(INDEX(aData,$B14,AI$4)="","-",TEXT(INDEX(aData,$B14,AI$4),$H14)),IF($C14=1,"",INDEX(aScores,$B14,AI$4)))) -> 3 | AJ14: =IF(AJ$4="","",CHOOSE(uxb_works!$B$47,IF(INDEX(aData,$B14,AJ$4)="","-",TEXT(INDEX(aData,$B14,AJ$4),$H14)),IF($C14=1,"",INDEX(aScores,$B14,AJ$4)))) -> 5 | AK14: =IF(AK$4="","",CHOOSE(uxb_works!$B$47,IF(INDEX(aData,$B14,AK$4)="","-",TEXT(INDEX(aData,$B14,AK$4),$H14)),IF($C14=1,"",INDEX(aScores,$B14,AK$4)))) -> 3 | AL14: =IF(AL$4="","",CHOOSE(uxb_works!$B$47,IF(INDEX(aData,$B14,AL$4)="","-",TEXT(INDEX(aData,$B14,AL$4),$H14)),IF($C14=1,"",INDEX(aScores,$B14,AL$4)))) -> 3 | AM14: =IF(AM$4="","",CHOOSE(uxb_works!$B$47,IF(INDEX(aData,$B14,AM$4)="","-",TEXT(INDEX(aData,$B14,AM$4),$H14)),IF($C14=1,"",INDEX(aScores,$B14,AM$4)))) -> 3 | AN14: =IF(AN$4="","",CHOOSE(uxb_works!$B$47,IF(INDEX(aData,$B14,AN$4)="","-",TEXT(INDEX(aData,$B14,AN$4),$H14)),IF($C14=1,"",INDEX(aScores,$B14,AN$4)))) -> 3 | AO14: =IF(AO$4="","",CHOOSE(uxb_works!$B$47,IF(INDEX(aData,$B14,AO$4)="","-",TEXT(INDEX(aData,$B14,AO$4),$H14)),IF($C14=1,"",INDEX(aScores,$B14,AO$4)))) -> 4 | AP14: =IF(AP$4="","",CHOOSE(uxb_works!$B$47,IF(INDEX(aData,$B14,AP$4)="","-",TEXT(INDEX(aData,$B14,AP$4),$H14)),IF($C14=1,"",INDEX(aScores,$B14,AP$4)))) -> 3 | AQ14: =IF(AQ$4="","",CHOOSE(uxb_works!$B$47,IF(INDEX(aData,$B14,AQ$4)="","-",TEXT(INDEX(aData,$B14,AQ$4),$H14)),IF($C14=1,"",INDEX(aScores,$B14,AQ$4)))) -> 3 | AR14: =IF(AR$4="","",CHOOSE(uxb_works!$B$47,IF(INDEX(aData,$B14,AR$4)="","-",TEXT(INDEX(aData,$B14,AR$4),$H14)),IF($C14=1,"",INDEX(aScores,$B14,AR$4)))) -> 3 | AS14: =IF(AS$4="","",CHOOSE(uxb_works!$B$47,IF(INDEX(aData,$B14,AS$4)="","-",TEXT(INDEX(aData,$B14,AS$4),$H14)),IF($C14=1,"",INDEX(aScores,$B14,AS$4)))) -> 5 | AT14: =IF(AT$4="","",CHOOSE(uxb_works!$B$47,IF(INDEX(aData,$B14,AT$4)="","-",TEXT(INDEX(aData,$B14,AT$4),$H14)),IF($C14=1,"",INDEX(aScores,$B14,AT$4)))) -> 5 | AU14: =IF(AU$4="","",CHOOSE(uxb_works!$B$47,IF(INDEX(aData,$B14,AU$4)="","-",TEXT(INDEX(aData,$B14,AU$4),$H14)),IF($C14=1,"",INDEX(aScores,$B14,AU$4)))) -> 5 | AV14: =IF(AV$4="","",CHOOSE(uxb_works!$B$47,IF(INDEX(aData,$B14,AV$4)="","-",TEXT(INDEX(aData,$B14,AV$4),$H14)),IF($C14=1,"",INDEX(aScores,$B14,AV$4)))) -> 3 | AW14: =IF(AW$4="","",CHOOSE(uxb_works!$B$47,IF(INDEX(aData,$B14,AW$4)="","-",TEXT(INDEX(aData,$B14,AW$4),$H14)),IF($C14=1,"",INDEX(aScores,$B14,AW$4)))) -> 5 | AX14: =IF(AX$4="","",CHOOSE(uxb_works!$B$47,IF(INDEX(aData,$B14,AX$4)="","-",TEXT(INDEX(aData,$B14,AX$4),$H14)),IF($C14=1,"",INDEX(aScores,$B14,AX$4)))) -> 3 | AY14: =IF(AY$4="","",CHOOSE(uxb_works!$B$47,IF(INDEX(aData,$B14,AY$4)="","-",TEXT(INDEX(aData,$B14,AY$4),$H14)),IF($C14=1,"",INDEX(aScores,$B14,AY$4)))) -> 5 | AZ14: =IF(AZ$4="","",CHOOSE(uxb_works!$B$47,IF(INDEX(aData,$B14,AZ$4)="","-",TEXT(INDEX(aData,$B14,AZ$4),$H14)),IF($C14=1,"",INDEX(aScores,$B14,AZ$4)))) -> 3 | BA14: =IF(BA$4="","",CHOOSE(uxb_works!$B$47,IF(INDEX(aData,$B14,BA$4)="","-",TEXT(INDEX(aData,$B14,BA$4),$H14)),IF($C14=1,"",INDEX(aScores,$B14,BA$4)))) -> 3 | BB14: =IF(BB$4="","",CHOOSE(uxb_works!$B$47,IF(INDEX(aData,$B14,BB$4)="","-",TEXT(INDEX(aData,$B14,BB$4),$H14)),IF($C14=1,"",INDEX(aScores,$B14,BB$4)))) -> 3 | BC14: =IF(BC$4="","",CHOOSE(uxb_works!$B$47,IF(INDEX(aData,$B14,BC$4)="","-",TEXT(INDEX(aData,$B14,BC$4),$H14)),IF($C14=1,"",INDEX(aScores,$B14,BC$4)))) -> 5 | BD14: =IF(BD$4="","",CHOOSE(uxb_works!$B$47,IF(INDEX(aData,$B14,BD$4)="","-",TEXT(INDEX(aData,$B14,BD$4),$H14)),IF($C14=1,"",INDEX(aScores,$B14,BD$4)))) -> 5 | BE14: =IF(BE$4="","",CHOOSE(uxb_works!$B$47,IF(INDEX(aData,$B14,BE$4)="","-",TEXT(INDEX(aData,$B14,BE$4),$H14)),IF($C14=1,"",INDEX(aScores,$B14,BE$4)))) -> 5 | BF14: =IF(BF$4="","",CHOOSE(uxb_works!$B$47,IF(INDEX(aData,$B14,BF$4)="","-",TEXT(INDEX(aData,$B14,BF$4),$H14)),IF($C14=1,"",INDEX(aScores,$B14,BF$4)))) -> 2 | BG14: =IF(BG$4="","",CHOOSE(uxb_works!$B$47,IF(INDEX(aData,$B14,BG$4)="","-",TEXT(INDEX(aData,$B14,BG$4),$H14)),IF($C14=1,"",INDEX(aScores,$B14,BG$4)))) -> 3 | BH14: =IF(BH$4="","",CHOOSE(uxb_works!$B$47,IF(INDEX(aData,$B14,BH$4)="","-",TEXT(INDEX(aData,$B14,BH$4),$H14)),IF($C14=1,"",INDEX(aScores,$B14,BH$4)))) -> 3 | BI14: =IF(BI$4="","",CHOOSE(uxb_works!$B$47,IF(INDEX(aData,$B14,BI$4)="","-",TEXT(INDEX(aData,$B14,BI$4),$H14)),IF($C14=1,"",INDEX(aScores,$B14,BI$4)))) -> 5 | BJ14: =IF(BJ$4="","",CHOOSE(uxb_works!$B$47,IF(INDEX(aData,$B14,BJ$4)="","-",TEXT(INDEX(aData,$B14,BJ$4),$H14)),IF($C14=1,"",INDEX(aScores,$B14,BJ$4)))) -> 5 | BK14: =IF(BK$4="","",CHOOSE(uxb_works!$B$47,IF(INDEX(aData,$B14,BK$4)="","-",TEXT(INDEX(aData,$B14,BK$4),$H14)),IF($C14=1,"",INDEX(aScores,$B14,BK$4)))) -> 4 | BL14: =IF(BL$4="","",CHOOSE(uxb_works!$B$47,IF(INDEX(aData,$B14,BL$4)="","-",TEXT(INDEX(aData,$B14,BL$4),$H14)),IF($C14=1,"",INDEX(aScores,$B14,BL$4)))) -> 3 | BM14: =IF(BM$4="","",CHOOSE(uxb_works!$B$47,IF(INDEX(aData,$B14,BM$4)="","-",TEXT(INDEX(aData,$B14,BM$4),$H14)),IF($C14=1,"",INDEX(aScores,$B14,BM$4)))) -> 5 | BN14: =IF(BN$4="","",CHOOSE(uxb_works!$B$47,IF(INDEX(aData,$B14,BN$4)="","-",TEXT(INDEX(aData,$B14,BN$4),$H14)),IF($C14=1,"",INDEX(aScores,$B14,BN$4)))) -> 4 | BO14: =IF(BO$4="","",CHOOSE(uxb_works!$B$47,IF(INDEX(aData,$B14,BO$4)="","-",TEXT(INDEX(aData,$B14,BO$4),$H14)),IF($C14=1,"",INDEX(aScores,$B14,BO$4)))) -> 5 | BP14: =IF(BP$4="","",CHOOSE(uxb_works!$B$47,IF(INDEX(aData,$B14,BP$4)="","-",TEXT(INDEX(aData,$B14,BP$4),$H14)),IF($C14=1,"",INDEX(aScores,$B14,BP$4)))) -> 5 | BQ14: =IF(BQ$4="","",CHOOSE(uxb_works!$B$47,IF(INDEX(aData,$B14,BQ$4)="","-",TEXT(INDEX(aData,$B14,BQ$4),$H14)),IF($C14=1,"",INDEX(aScores,$B14,BQ$4)))) -> 5 | BR14: =IF(BR$4="","",CHOOSE(uxb_works!$B$47,IF(INDEX(aData,$B14,BR$4)="","-",TEXT(INDEX(aData,$B14,BR$4),$H14)),IF($C14=1,"",INDEX(aScores,$B14,BR$4)))) -> 4 | BS14: =IF(BS$4="","",CHOOSE(uxb_works!$B$47,IF(INDEX(aData,$B14,BS$4)="","-",TEXT(INDEX(aData,$B14,BS$4),$H14)),IF($C14=1,"",INDEX(aScores,$B14,BS$4)))) -> 5 | BT14: =IF(BT$4="","",CHOOSE(uxb_works!$B$47,IF(INDEX(aData,$B14,BT$4)="","-",TEXT(INDEX(aData,$B14,BT$4),$H14)),IF($C14=1,"",INDEX(aScores,$B14,BT$4)))) -> 5 | BU14: =IF(BU$4="","",CHOOSE(uxb_works!$B$47,IF(INDEX(aData,$B14,BU$4)="","-",TEXT(INDEX(aData,$B14,BU$4),$H14)),IF($C14=1,"",INDEX(aScores,$B14,BU$4)))) -> 5 | BV14: =IF(BV$4="","",CHOOSE(uxb_works!$B$47,IF(INDEX(aData,$B14,BV$4)="","-",TEXT(INDEX(aData,$B14,BV$4),$H14)),IF($C14=1,"",INDEX(aScores,$B14,BV$4)))) -> 5 | BW14: =IF(BW$4="","",CHOOSE(uxb_works!$B$47,IF(INDEX(aData,$B14,BW$4)="","-",TEXT(INDEX(aData,$B14,BW$4),$H14)),IF($C14=1,"",INDEX(aScores,$B14,BW$4)))) -> 2 | BX14: =IF(BX$4="","",CHOOSE(uxb_works!$B$47,IF(INDEX(aData,$B14,BX$4)="","-",TEXT(INDEX(aData,$B14,BX$4),$H14)),IF($C14=1,"",INDEX(aScores,$B14,BX$4)))) -> 5
